Workbook

Sheet Design Converter
A1: LM5175 DC/DC Controller Design Tool
O2: http://www.ti.com/product/lm5175
A3: About | C3: xx | F3: = Input Box | O3: TERMS OF USE
A5: Step 1: Operating Specifications
D6: Input Voltage - Min, VIN(min) | E6: 6 | F6: V
D7: Input Voltage - Nom, VIN(nom) | E7: 6 | F7: V
D8: Input Voltage - Max, VIN(max) | E8: 12 | F8: V
D9: Output Voltage, VOUT | E9: 8.3 | F9: V
D10: Full Load Output Current, IOUT(max) | E10: 10 | F10: A
D11: Switching Frequency | E11: 120 | F11: kHz
D12: Frequency Set Resistor, RT | E12: =IF('Standard Value Calculator'!O4/1000>288, "N/A",'Standard Value Calculator'!O4/1000) -> 221 | F12: kΩ
A14: Step 2: Filter Inductor
D15: Recommended Filter Inductance | E15: =Lopt*1000000 -> 2.935454103 | F15: µH
D16: Inductance, LF | E16: 6.8 | F16: µH
D17: Inductor DCR | E17: 10 | F17: mΩ
D18: Pk-to-Pk Ripple Current at VIN(min), DIL1 | E18: ='Variable Management'!B78 -> 2.174655852 | F18: Apk-pk
D19: Pk-to-Pk Ripple Current at VIN(nom), DIL2 | E19: ='Variable Management'!B79 -> 2.174655852 | F19: Apk-pk
D20: Pk-to-Pk Ripple Current at VIN(max), DIL3 | E20: ='Variable Management'!B80 -> 3.176847662 | F20: Apk-pk
D21: DIL as a % at VIN(min) | E21: ='Variable Management'!B90*100 -> 15.0915876 | F21: %
D22: DIL as a % at VIN(nom) | E22: ='Variable Management'!B91*100 -> 15.0915876 | F22: %
D23: DIL as a % at VIN(max) | E23: ='Variable Management'!B92*100 -> 31.76847662 | F23: %
A25: Step 3: OCP, Sense Resistors, Slope Comp
D26: Required IOCP(MIN) Setpoint at VIN(nom) | E26: 29 | F26: A
D27: Recommended Sense Resistance | E27: =Rs_ideal*1000 -> 2.504533128 | F27: mΩ
D28: Sense Resistance, RS | E28: 2.5 | F28: mΩ
D29: Peak Inductor Current, ILPK | E29: ='Variable Management'!B135 -> 64 | F29: A
D30: =IF('Variable Management'!B85>'Variable Management'!B83, "Power Loss in Rs at Full Load (Max VIN)", "Power Loss in Rs at Full Load (Min VIN)") -> Power Loss in Rs at Full Load (Min VIN) | E30: ='Variable Management'!B86 -> 0.1538169403 | F30: W
D31: Recommended SLOPE Capacitance | E31: ='Standard Value Calculator'!O14 -> 820 | F31: pF
D32: SLOPE Capacitance, CSLOPE | E32: 120 | F32: pF
D33: VIN(min) | E33: ='Variable Management'!B127 -> 44.30604825 | F33: A
C34: IOUT(typ) at OCP Inception: | D34: VIN(nom) | E34: ='Variable Management'!B128 -> 44.30604825 | F34: A
D35: VIN(max) | E35: ='Variable Management'!B129 -> 33.58842383 | F35: A
D36: Required Const Current Loop Setpoint | E36: 10 | F36: A
D37: Output Leg Shunt Resistance, RCS(out) | E37: =Rshunt -> 5 | F37: mΩ
A39: Step 4: Output Capacitor
D40: Output Voltage Ripple Spec | E40: 120 | F40: mVpk-pk
D41: Minimum Output Capacitance | E41: ='Variable Management'!B168 -> 205.3841638 | F41: µF
D42: Output Capacitance, COUT | E42: 2500 | F42: µF
D43: Maximum Permitted ESR | E43: ='Variable Management'!B172 -> 11.01415601 | F43: mΩ
D44: Output Capacitor ESR | E44: 3 | F44: mΩ
D45: Resulting Output Voltage Ripple (max) | E45: =Vripple2*1000 -> 39.85843986 | F45: mVpk-pk
D46: Output Capacitor RMS Current (max) | E46: ='Variable Management'!B163 -> 6.191391874 | F46: A (rms)
M47: VIN(nom) | N47: =VIN_nom&"V" -> 6V
A48: Step 5: Input Capacitor
D49: Input Voltage Ripple Spec | E49: 180 | F49: mVpk-pk
D50: Minimum Input Capacitance | E50: ='Variable Management'!B188 -> 97.10654201 | F50: µF
D51: Input Capacitance, CIN | E51: 1120 | F51: µF
D52: Maximum Permitted ESR | E52: ='Variable Management'!B193 -> 14.18601821 | F52: mΩ
D53: Input Capacitor ESR | E53: 3 | F53: mΩ
D54: Resulting Input Voltage Ripple (max) | E54: =Vinripple2*1000 -> 50.37168003 | F54: mVpk-pk
D55: Input Capacitor RMS Current (max) | E55: ='Variable Management'!B181 -> 4.579848586 | F55: A (rms)
A57: Step 6: Soft-start, Dither, UVLO
D58: Soft-Start Time, tSS | E58: 15 | F58: ms
D59: Soft-Start Capacitance, CSS | E59: =IF(Tss>1.28/1000,Css_u*1000000000,"N/A") -> 100 | F59: nF
D60: Modulating Frequency | E60: 0.9 | F60: =IF(DITHER=1, "kHz", "") -> kHz
D61: =IF(DITHER=1, "DITH Capacitance, Cd", "*Short DITH pin to GND") -> DITH Capacitance, Cd | E61: =IF(DITHER=1,IF(E60>0,'Standard Value Calculator'!O19*1000000000,"N/A"),"") -> 47 | F61: =IF(DITHER=1, "nF", "") -> nF
D62: Required Input Voltage UVLO On | E62: 5.5 | F62: V
D63: Input Voltage UVLO Off | E63: ='Variable Management'!B216 -> 4.843984704 | F63: V
D64: Upper UVLO Resistor, RUV1 | E64: 200 | F64: kΩ
D65: Lower UVLO Resistor, RUV2 | E65: ='Variable Management'!E213 -> 52.3 | F65: kΩ
A67: Step 7: Compensation Design
D68: Load Pole Frequency | E68: =Fp_dominant -> 398.8930837 | F68: Hz
D69: COUT ESR Zero Frequency | E69: =Fesr/1000 -> 21.2206591 | F69: kHz
D70: Boost RHP Zero Frequency | E70: =Frhp/1000 -> 9.634719636 | F70: kHz
D71: Desired Crossover Frequency | E71: 1 | F71: =" kHz " -> kHz
D72: Error Amp Pole Frequency | E72: =Fp1_u -> 0.0530456536 | F72: Hz
D73: Upper Feedback Resistor, RFB1 | E73: 100 | F73: kΩ
D74: Lower Feedback Resistor, RFB2 | E74: =IF(Vout=Vref,"OPEN",Rfb2_u/1000) -> 10.7 | F74: =IF(Vout=Vref,"","kΩ") -> kΩ
A76: Compensation Components
B77: Calculated / | C77: Std Values | D77: =" Selected" -> Selected | F77: Actual P/Z Frequencies
A78: RC | B78: =Rcea1/1000 -> 2.265492621 | C78: ='Standard Value Calculator'!O27 -> 2.26 | D78: 2.26 | E78: kΩ | F78: =Fp1_u -> 0.0530456536 | G78: Hz (FPEA) | I78: Min COMP Voltage | J78: =ROUND('Variable Management'!B269,2)&"V" -> 1.34V
A79: CC1 | B79: =Cc1ea*1000000000 -> 140.5036078 | C79: ='Standard Value Calculator'!O28 -> 150 | D79: 150 | E79: nF | F79: =Fz1_u/1000 -> 0.4694836085 | G79: kHz (FZCOMP) | I79: Max COMP Voltage | J79: =ROUND('Variable Management'!B270,2)&"V" -> 1.97V
A80: CC2 | B80: =IF(Cc2ea*1000000000000<0, 0, Cc2ea*1000000000000) -> 3285.272413 | C80: ='Standard Value Calculator'!O29 -> 3300 | D80: 3300 | E80: pF | F80: =Fp2_u/1000 -> 21.17801839 | G80: kHz (FPCOMP)
A82: Efficiency / Power Loss Analyzer
A84: Step 8: Efficiency
D85: Buck-Leg Power MOSFETs (Q1, Q2) | E85: CSD18563Q5A
E86: Hi-side | F86: Low-side
D87: On-State Resistance, RDS(on) | E87: 5.7 | F87: 5.7 | G87: mΩ
D88: Total Gate Charge, QG | E88: 11 | F88: 11 | G88: nC
D89: Gate-Drain Charge, QGD | E89: 2.9 | F89: 2.9 | G89: nC
D90: Gate-Source Charge, QGS | E90: 3.3 | F90: 3.3 | G90: nC
D91: Gate Resistance, RG | E91: 1.5 | F91: 1.5 | G91: Ω
D92: Transconductance, gFS | E92: 60 | F92: 60 | G92: S
D93: Gate-Source Threshold Voltage, VTH | E93: 4 | F93: 4 | G93: V
D94: Body Diode Forward Voltage, VBD | E94: 0.8 | F94: 0.8 | G94: V
D95: Body Diode Rev Recovery Charge, QRR | F95: 63 | G95: nC
D96: Thermal Resistance, θJA | E96: 50 | F96: 50 | G96: °C/W
D98: Boost-Leg Power MOSFETs (Q3, Q4) | E98: CSD16321Q5
E99: Hi-side | F99: Low-side
D100: On-State Resistance, RDS(on) | E100: 1.9 | F100: 1.9 | G100: mΩ
D101: Total Gate Charge, QG | E101: 22 | F101: 22 | G101: nC
D102: Gate-Drain Charge, QGD | E102: 2.5 | F102: 2.5 | G102: nC
D103: Gate-Source Charge, QGS | E103: 4 | F103: 4 | G103: nC
D104: Gate Resistance, RG | E104: 1.5 | F104: 1.5 | G104: Ω
D105: Transconductance, gFS | E105: 150 | F105: 150 | G105: S
D106: Gate-Source Threshold Voltage, VTH | E106: 2 | F106: 2 | G106: V
D107: Body Diode Forward Voltage, VBD | E107: 0.8 | F107: 0.8 | G107: V
D108: Body Diode Rev Recovery Charge, QRR | E108: 33 | G108: nC
D109: Thermal Resistance, θJA | E109: 50 | F109: 50 | G109: °C/W
A111: External Schottky Diode (if applicable) | E111: Buck Leg | F111: Boost Leg
D112: Schottky Fwd Voltage, VFWDsch | E112: 0 | F112: 0 | G112: V
D113: Schottky Rev Recovery Charge, QRRsch | E113: 0 | F113: 0 | G113: nC

Sheet BOM & Schematic
B45: ** Tie MODE to VCC (or voltage > 2.4V) for CCM, GND for DCM **
A46: ="VIN = "&VIN_min&" V to "&VIN_max&" V, VOUT = "& Vout &" V, IOUT = " &Iout & " A, Fsw = " & Fsw/1000 &" kHz, Current Limit = "&ROUNDUP(Ilimit_DC,0)&" A" -> VIN = 6 V to 12 V, VOUT = 8.3 V, IOUT = 10 A, Fsw = 120 kHz, Current Limit = 29 A
A47: High Efficiency Synchronous Buck-Boost Regulator BOM
A48: Count | B48: Ref Des | C48: Value | D48: Description | H48: Size | I48: Part Number | J48: MFR
A49: 2 | B49: CBOOT1, CBOOT2 | C49: 0.1 | D49: =C49 -> 0.1 | H49: 0603 | I49: Std | J49: Std
A50: 1 | B50: CC1 | C50: ='Design Converter'!D79 -> 150 | D50: 150 | H50: 0603 | I50: Std | J50: Std
A51: 1 | B51: CC2 | C51: ='Design Converter'!D80 -> 3300 | D51: 3300 | H51: 0603 | I51: Std | J51: Std
A52: 1 | B52: CSLOPE | C52: =Cslope -> 120 | D52: 120 | H52: 0603 | I52: Std | J52: Std
A53: 1 | B53: CCS | C53: 100 | D53: =C53 -> 100 | H53: 0603 | I53: Std | J53: Std
A54: 1 | B54: CDITH | C54: =Cdither*1000000000 -> 47 | D54: =C54 -> 47 | H54: 0603 | I54: Std | J54: Std
A55: =ROUNDUP('Design Converter'!E51/10,0) -> 112 | B55: CIN | C55: 10 | D55: =C55 -> 10 | H55: 1210 | I55: Std | J55: Std
A56: =ROUNDUP('Design Converter'!E42/22,0) -> 114 | B56: COUT | C56: 22 | D56: =C56 -> 22 | H56: 1210 | I56: Std | J56: Std
A57: 1 | B57: CSS | C57: ='Design Converter'!E59 -> 100 | D57: =C57 -> 100 | H57: 0603 | I57: Std | J57: Std
A58: 1 | B58: CVCC | C58: 1 | D58: 1 | H58: 0603 | I58: Std | J58: Std
A59: 1 | B59: CVIN | C59: 0.1 | D59: 0.1 | H59: 0603 | I59: Std | J59: Std
A60: 3 | B60: DBOOT1, DBOOT2, DVIN | C60: See description | D60: Schottky Diode, 200mA | H60: - | I60: - | J60: Various
A61: 1 | B61: LF | C61: ='Design Converter'!E16 -> 6.8 | D61: ="Inductor, "&Lf*1000000&"µH, "&Rdcr*1000&"mΩ, >"&ROUNDUP(IL_peak_OCP*1.1,0)&"A" -> Inductor, 6.8µH, 10mΩ, >71A | H61: - | I61: - | J61: Various
A62: 2 | B62: Q1, Q2 | C62: See description | D62: ='Design Converter'!E87 -> 5.7 | H62: Std | I62: ='Design Converter'!E85 -> CSD18563Q5A | J62: -
A63: 2 | B63: Q3, Q4 | C63: See description | D63: ='Design Converter'!E100 -> 1.9 | H63: Std | I63: ='Design Converter'!E98 -> CSD16321Q5 | J63: -
A64: 1 | B64: RC1 | C64: ='Design Converter'!D78 -> 2.26 | D64: =C64 -> 2.26 | H64: 0603 | I64: Std | J64: Std
A65: 1 | B65: RS | C65: =Rs*1000 -> 2.5 | D65: 2.5 | H65: 2512 | I65: Std | J65: Std
A66: 1 | B66: RCS(out) | C66: ='Standard Value Calculator'!O21 -> 4.99 | D66: =C66 -> 4.99 | H66: 2512 | I66: Std | J66: Std
A67: 1 | B67: RT | C67: ='Design Converter'!E12 -> 221 | D67: 221 | H67: 0603 | I67: Std | J67: Std
A68: 1 | B68: RFB1 | C68: ='Design Converter'!E73 -> 100 | D68: 100 | H68: 0603 | I68: Std | J68: Std
A69: 1 | B69: RFB2 | C69: ='Design Converter'!E74 -> 10.7 | D69: 10.7 | H69: 0603 | I69: Std | J69: Std
A70: 1 | B70: RPGOOD | C70: 20 | D70: 20 | H70: 0603 | I70: Std | J70: Std
A71: 2 | B71: RCS, RCSG | C71: 100 | D71: 100 | H71: 0603 | I71: Std | J71: Std
A72: 1 | B72: RUV1 | C72: ='Design Converter'!E64 -> 200 | D72: 200 | H72: 0603 | I72: Std | J72: Std
A73: 1 | B73: RUV2 | C73: ='Design Converter'!E65 -> 52.3 | D73: 52.3 | H73: 0603 | I73: Std | J73: Std
A74: 1 | B74: RVIN | C74: 2.2 | D74: 2.2 | H74: 0603 | I74: Std | J74: Std
A75: 1 | B75: U1 | C75: LM5175 | D75: IC, LM5175, Buck-Boost PWM Controller, 3.5V–42V Input | H75: QFN-28 | I75: LM5175RHF | J75: TI
H76: TSSOP-28 | I76: LM5175PWP
A78: NOTES:
A79: ** For information on TI NexFETTM MOSFETs, see ** | D79: http://www.ti.com/nexfet | E79: **
A80: ** Inductor saturation current should be higher than the peak inductor current at the OCP setpoint for all input voltages and operating temperatures **
A81: ** Effective input and output capacitances should be appropriately derated for applied voltage and temperature, particularly with ceramics **

Sheet EVMs
A1: LM5175 Quickstart Design Tool
B6: LM5175EVM-HD PCB Layout | M6: LM5175EVM-HP PCB Layout | W6: LM5175EVM PCB Layout

Sheet Variable Management (hidden)
A1: EXCEL Variables Names/Calculations
B2: Input from user =
B3: Output =
B4: Constant
A5: Variable Name | B5: Value | C5: STD Units | E5: Notes | I5: Iteration
A6: Step 1: Operational Specs
A7: VIN_min | B7: ='Design Converter'!E6 -> 6 | C7: V | D7: Minimum input voltage | I7: 1
B8: ='Design Converter'!E7 -> 6 | C8: V | D8: Nominal input voltage | K8: Efficiency vs IOUT Plot | L8: 1 | M8: DITHER Enabled | O8: 1
A9: VIN_max | B9: ='Design Converter'!E8 -> 12 | C9: V | D9: Maximum input voltage | K9: Efficiency vs VIN Plot | L9: 2 | M9: DITHER Disabled | O9: 2
A10: VIN_edgebuckboost | B10: =B40 -> 7.843584521 | C10: V | K10: PLOT_TYPE | L10: 1 | M10: DITHER Yes/No | O10: 1 | P10: 1 = Yes, 2 = No
A12: Vout | B12: ='Design Converter'!E9 -> 8.3 | C12: V | D12: Output Voltage | I12: 1
A13: Iout | B13: ='Design Converter'!E10 -> 10 | C13: A | D13: Maximum Output Current | I13: 1
A14: Rout | B14: =Vout/Iout -> 0.83 | C14: W | D14: Load resistance
A15: Pout | B15: =Vout*Iout -> 83 | C15: W | D15: Output power
A16: Efficiency | B16: 0.96 | D16: Estimate of efficiency
A17: Pin | B17: =Pout/Efficiency -> 86.45833333 | C17: W | D17: Calculate input power assuming 90% efficiency
A18: Iin_Vinmin | B18: =Pin/VIN_min -> 14.40972222 | C18: A
A19: Iin_Vinnom | B19: =Pin/VIN_nom -> 14.40972222 | C19: A | D19: Input currents at min, nom, max Vin
A20: Iin_Vinmax | B20: =Pin/VIN_max -> 7.204861111 | C20: A
A22: Fsw | B22: ='Design Converter'!E11*1000 -> 120000 | C22: Hz | D22: Nominal Switching Frequency | I22: 1
A23: Ts | B23: =1/Fsw -> 8.333333333e-06 | C23: sec | D23: Period
A24: Vref | B24: 0.8 | C24: V | D24: Reference Voltage
A25: Rt | B25: =((1/Fsw)-200*10^-9)/(37*10^-12) -> 219819.8198 | C25: W | D25: Frequency Set Resistor
A28: Toff_min_buck | B28: 3e-07 | C28: sec | D28: 200ns | E28: buck min timer
A29: Ton_min_boost | B29: =0.0000003 -> 3e-07 | C29: sec | D29: 300ns | E29: boost min timer
A30: T_max_BB | B30: 1.2e-06 | C30: sec | E30: max timer before transition from BB
A32: D_min_boost | B32: =Ton_min_boost/Ts -> 0.036
A33: D_max_exitBB_to_boost | B33: =B30/(2*Ts) -> 0.072
A34: D_max_buck_BB | B34: =1-B28/(2*Ts) -> 0.982
A36: D_min_boost_exitBB_to_buck | B36: =Ton_min_boost/(2*Ts) -> 0.018
A37: D_max_exitBB_to_buck | B37: =1-B30/(2*Ts) -> 0.928
A38: D_max_buck_enterBB | B38: =1-Toff_min_buck/Ts -> 0.964
A40: VIN_BB_to_boost | B40: =Vout*(1-B33)/B34 -> 7.843584521 | C40: V
A41: VIN_boost_to_BB | B41: =Vout*(1-B32) -> 8.0012 | C41: V
A42: VIN_buck_to_BB | B42: =Vout/B38 -> 8.609958506 | C42: V
A43: VIN_BB_to_buck | B43: =Vout/B37*(1-B36) -> 8.782974138 | C43: V
A47: Step 2: Filter Inductor
A48: Don1 | B48: =Vout/VIN_nom -> 1.383333333 | C48: =(Vout-VIN_nom)/Vout -> 0.2771084337 | E48: Ideal Duty Cycle at VIN(nom) | I48: 1
A49: Doff1 | B49: =1-48:48 -> -0.3833333333 | E49: Ideal 1- Duty Cycle at VIN(nom) | I49: 1
A51: Don_Vinmin | B51: =IF(VIN_min>Vout, Vout/VIN_min, (Vout-VIN_min)/Vout) -> 0.2771084337 | C51: =IF(VIN_min>Vout, "BUCK", "BOOST") -> BOOST
A52: Don_Vinnom | B52: =IF(VIN_nom>Vout, Vout/VIN_nom, (Vout-VIN_nom)/Vout) -> 0.2771084337 | C52: =IF(VIN_nom>Vout, "BUCK", "BOOST") -> BOOST
A53: Don_Vinmax | B53: =IF(VIN_max>Vout, Vout/VIN_max, (Vout-VIN_max)/Vout) -> 0.6916666667 | C53: =IF(VIN_max>Vout, "BUCK", "BOOST") -> BUCK
A54: Don_buckboost | B54: =B33 -> 0.072 | C54: lower edge of BUCK-BOOST
A56: Lf_Vinmin | B56: =(VIN_min-Vout)*Don_Vinmin/(Fsw*Iout*0.3) -> -1.770414993e-06 | C56: =VIN_min/(Iin_Vinmin*0.3*Fsw)*(1-VIN_min/Vout) -> 3.205109595e-06 | D56: H
A57: Lf_Vinnom | B57: =(VIN_nom-Vout)*Don_Vinnom/(Fsw*Iout*0.4) -> -1.327811245e-06 | C57: =VIN_nom/(Iin_Vinnom*0.4*Fsw)*(1-VIN_nom/Vout) -> 2.403832196e-06 | D57: H | I57: 1
A58: Lf_Vinmax | B58: =(VIN_max-Vout)*Don_Vinmax/(Fsw*Iout*0.8) -> 2.665798611e-06 | C58: =VIN_max/(Iin_Vinmax*0.3*Fsw)*(1-VIN_max/Vout) -> -2.062418348e-05 | D58: H
A60: L_Vinmin | B60: =IF(VIN_min>Vout, (VIN_min-Vout)*Don_Vinmin/(Fsw*Iout*0.3), VIN_min/(Iin_Vinmin*0.3*Fsw)*(1-VIN_min/Vout)) -> 3.205109595e-06 | C60: H | D60: =IF(VIN_min>Vout, "BUCK", "BOOST") -> BOOST | E60: Calculated inductance for 30% ripple at VIN(min)
A61: L_Vinnom | B61: =IF(VIN_nom>Vout, (VIN_nom-Vout)*Don_Vinnom/(Fsw*Iout*0.4), VIN_nom/(Iin_Vinnom*0.4*Fsw)*(1-VIN_nom/Vout)) -> 2.403832196e-06 | C61: H | D61: =IF(VIN_nom>Vout, "BUCK", "BOOST") -> BOOST | E61: Calculated inductance for 40% ripple at VIN(nom)
A62: L_Vinmax | B62: =IF(VIN_max>Vout, (VIN_max-Vout)*Don_Vinmax/(Fsw*Iout*0.8), VIN_max/(Iin_Vinmax*0.8*Fsw)*(1-VIN_max/Vout)) -> 2.665798611e-06 | C62: H | D62: =IF(VIN_max>Vout, "BUCK", "BOOST") -> BUCK | E62: Calculated inductance for 80% ripple at VIN(max)
A64: Lopt | B64: =AVERAGE(B60,B62) -> 2.935454103e-06 | C64: H | D64: min of calculated inductances at VIN(min) and VIN(nom)
A66: Lf | B66: ='Design Converter'!E16/1000000 -> 6.8e-06 | C66: H | E66: Chosen inductance | I66: 2
A67: Rdcr | B67: ='Design Converter'!E17/1000 -> 0.01 | C67: W | E67: Chosen inductor DCR | I67: 1
A69: Don2 | B69: =(Vout+Iout*(Rdcr+Rs))/(Vin+Iout*Rs) -> 1.398340249 | I69: 2
A70: Doff2 | B70: =1-_Don2 -> -0.398340249 | I70: 2
A72: Don_Vinmin_2 | B72: =IF(VIN_min>Vout, (Vout+Iout*(Rdcr+Rs))/(VIN_min+Iout*Rs), (Vout-VIN_min+Iin_Vinmin*(Rdcr))/(Vout-Iin_Vinmin*Rs)) -> 0.2957531959 | C72: =IF(VIN_min>Vout, "BUCK", "BOOST") -> BOOST | E72: Duty cycles adjusted for DCR and shunt voltage drops | I72: 2
A73: Don_Vinnom_2 | B73: =IF(VIN_nom>Vout, (Vout+Iout*(Rdcr+Rs))/(VIN_nom+Iout*Rs), (Vout-VIN_nom+Iin_Vinnom*(Rdcr))/(Vout-Iin_Vinnom*Rs)) -> 0.2957531959 | C73: =IF(VIN_nom>Vout, "BUCK", "BOOST") -> BOOST | E73: need to include RDS(on) later
A74: Don_Vinmax_2 | B74: =IF(VIN_max>Vout, (Vout+Iout*(Rdcr+Rs))/(VIN_max+Iout*Rs), (Vout-VIN_max+Iin_Vinmax*(Rdcr))/(Vout-Iin_Vinmax*Rs)) -> 0.7006237006 | C74: =IF(VIN_max>Vout, "BUCK", "BOOST") -> BUCK
A76: Vripple1 | B76: ='Design Converter'!E40/1000 -> 0.12 | C76: V | E76: Output voltage ripple spec(pk-pk) | I76: 1
A78: Iripple_Vinmin | B78: =IF(VIN_min>Vout, (VIN_min-Vout)*Don_Vinmin_2/(Fsw*Lf),VIN_min*Don_Vinmin_2/(Lf*Fsw)) -> 2.174655852 | C78: =(VIN_min-Vout)*Don_Vinmin_2/(Fsw*Lf) -> -0.8336180766 | D78: A | E78: =IF(VIN_min>Vout, "BUCK", "BOOST") -> BOOST | H78: =VIN_min*Don_Vinmin_2/(Lopt*Fsw) -> 5.03760552
A79: Iripple_Vinnom | B79: =IF(VIN_nom>Vout, (VIN_nom-Vout)*Don_Vinnom_2/(Fsw*Lf),VIN_nom*Don_Vinnom_2/(Lf*Fsw)) -> 2.174655852 | C79: =(VIN_nom-Vout)*Don_Vinnom_2/(Fsw*Lf) -> -0.8336180766 | D79: A | E79: =IF(VIN_nom>Vout, "BUCK", "BOOST") -> BOOST
A80: Iripple_Vinmax | B80: =IF(VIN_max>Vout, (VIN_max-Vout)*Don_Vinmax_2/(Fsw*Lf),VIN_max*Don_Vinmax_2/(Lf*Fsw)) -> 3.176847662 | C80: =(VIN_max-Vout)*Don_Vinmax_2/(Fsw*Lf) -> 3.176847662 | D80: A | E80: =IF(VIN_max>Vout, "BUCK", "BOOST") -> BUCK
A81: Iripple_edgebuckboost | B81: =VIN_edgebuckboost*Don_buckboost/(Lf*Fsw/2) -> 1.384161974 | D81: A | E81: BUCK-BOOST
A83: Ishunt_rms_Vinmin | B83: =IF(VIN_min>Vout, SQRT(1-Don_Vinmin_2)*SQRT(Iout^2+(Iripple_Vinmin^2)/12), SQRT(Don_Vinmin_2)*SQRT(Iin_Vinmin^2+(Iripple_Vinmin^2)/12)) -> 7.843900567 | C83: A | E83: =SQRT(1-Don_Vinmin_2)*SQRT(Iout^2+(Iripple_Vinmin^2)/12) -> 8.408461206 | F83: =SQRT(Don_Vinmin_2)*SQRT(Iout^2+(Iripple_Vinmin^2)/12) -> 5.449025064
A84: Ishunt_rms_Vinnom | B84: =IF(VIN_nom>Vout, SQRT(1-Don_Vinnom_2)*SQRT(Iout^2+(Iripple_Vinnom^2)/12), SQRT(Don_Vinnom_2)*SQRT(Iin_Vinnom^2+(Iripple_Vinnom^2)/12)) -> 7.843900567 | C84: A | E84: =SQRT(1-Don_Vinnom_2)*SQRT(Iout^2+(Iripple_Vinnom^2)/12) -> 8.408461206 | F84: =SQRT(Don_Vinnom_2)*SQRT(Iout^2+(Iripple_Vinnom^2)/12) -> 5.449025064
A85: Ishunt_rms_Vinmax | B85: =IF(VIN_max>Vout, SQRT(1-Don_Vinmax_2)*SQRT(Iout^2+(Iripple_Vinmax^2)/12), SQRT(Don_Vinmax_2)*SQRT(Iin_Vinmax^2+(Iripple_Vinmax^2)/12)) -> 5.494489459 | C85: A | E85: =SQRT(1-Don_Vinmax_2)*SQRT(Iout^2+(Iripple_Vinmax^2)/12) -> 5.494489459 | F85: =SQRT(Don_Vinmax_2)*SQRT(Iout^2+(Iripple_Vinmax^2)/12) -> 8.405451545
A86: Max shunt power loss at full load | B86: =MAX(B83,B85)^2*Rs -> 0.1538169403 | C86: W | D86: =IF(B85>B83, "BUCK", "BOOST") -> BOOST
A88: Max inductor ripple current | B88: =MAX(B78:B80) -> 3.176847662 | C88: A
F89: Ripple I | G89: Iin
A90: % Ripple Current | B90: =IF(VIN_min>Vout, B78/Iout, B78/Iin_Vinmin) -> 0.150915876 | C90: =IF(VIN_min>Vout, "BUCK", "BOOST") -> BOOST | F90: =B78 -> 2.174655852 | G90: =Iin_Vinmin -> 14.40972222
B91: =IF(VIN_nom>Vout, B79/Iout, B79/Iin_Vinnom) -> 0.150915876 | C91: =IF(VIN_nom>Vout, "BUCK", "BOOST") -> BOOST | F91: =B79 -> 2.174655852 | G91: =Iin_Vinnom -> 14.40972222
B92: =IF(VIN_max>Vout, B80/Iout, B80/Iin_Vinmax) -> 0.3176847662 | C92: =IF(VIN_max>Vout, "BUCK", "BOOST") -> BUCK | F92: =B80 -> 3.176847662 | G92: =Iin_Vinmax -> 7.204861111
A94: Temp | B94: 100
A95: DCR at hot | B95: =Rdcr*(1+0.0039*(B94-25)) -> 0.012925 | C95: W
A98: Step 3: Sense Resistors, Slope Comp, Current Limit
A100: Ilimit_DC | B100: ='Design Converter'!E26 -> 29 | C100: A | E100: Chosen OCP level - based on output current | K100: At Iout = Ilimit_DC: | N100: Shunt
K101: I_valley BUCK | L101: I_peak BOOST
A102: Ilimit_inductor_Vinmin | B102: =IF(VIN_min>Vout, Ilimit_DC-Iripple_Vinmin/2, Ilimit_DC/(1-Don_Vinmin_2)+Iripple_Vinmin/2) -> 42.26607354 | C102: A | D102: =IF(VIN_min>Vout, "BUCK", "BOOST") -> BOOST | E102: Valley inductor current at current limit inception (if operating in buck) | K102: =Ilimit_DC-Iripple_Vinmin/2 -> 27.91267207 | L102: =Ilimit_DC/(1-Don_Vinmin_2)+Iripple_Vinmin/2 -> 42.26607354 | M102: =IF(VIN_min>Vout, "BUCK", "BOOST") -> BOOST | N102: =IF(VIN_min>Vout, Buck_CS_threshold/K102, Boost_CS_Threshold/L102) -> 0.003785542081 | P102: =Boost_CS_Threshold/L102 -> 0.003785542081
A103: Ilimit_inductor_Vinnom | B103: =IF(VIN_nom>Vout, Ilimit_DC-Iripple_Vinnom/2, Ilimit_DC/(1-Don_Vinnom_2)+Iripple_Vinnom/2) -> 42.26607354 | C103: A | D103: =IF(VIN_nom>Vout, "BUCK", "BOOST") -> BOOST | E103: or | K103: =Ilimit_DC-Iripple_Vinnom/2 -> 27.91267207 | L103: =Ilimit_DC/(1-Don_Vinnom_2)+Iripple_Vinnom/2 -> 42.26607354 | M103: =IF(VIN_nom>Vout, "BUCK", "BOOST") -> BOOST | N103: =IF(VIN_nom>Vout, Buck_CS_threshold/K103, Boost_CS_Threshold/L103) -> 0.003785542081 | P103: =Boost_CS_Threshold/L103 -> 0.003785542081
A104: Ilimit_inductor_Vinmax | B104: =IF(VIN_max>Vout, Ilimit_DC-Iripple_Vinmax/2, Ilimit_DC/(1-Don_Vinmax_2)+Iripple_Vinmax/2) -> 27.41157617 | C104: A | D104: =IF(VIN_max>Vout, "BUCK", "BOOST") -> BUCK | E104: Peak inductor current at current limit inception (if operating in boost) | K104: =Ilimit_DC-Iripple_Vinmax/2 -> 27.41157617 | L104: =Ilimit_DC/(1-Don_Vinmax_2)+Iripple_Vinmax/2 -> 98.45647939 | M104: =IF(VIN_max>Vout, "BUCK", "BOOST") -> BUCK | N104: =IF(VIN_max>Vout, Buck_CS_threshold/K104, Boost_CS_Threshold/L104) -> 0.002918475009 | P104: =Boost_CS_Threshold/L104 -> 0.001625083499
A105: Ilimit_inductor_buckboost | B105: =Ilimit_DC/(1-Don_buckboost)+Iripple_edgebuckboost/2 -> 31.94208099 | C105: A | D105: edge of buck-boost
A107: Buck CS threshold_min | B107: 0.064 | C107: V
A108: Buck CS threshold | B108: 0.08 | C108: V | D108: 80mV ± 20%
A109: Buck CS threshold_max | B109: 0.096 | C109: V
A111: Boost CS Threshold_min | B111: 0.128 | C111: V
A112: Boost CS Threshold | B112: 0.16 | C112: V | D112: 160mV ± 20%
A113: Boost CS Threshold_max | B113: 0.192 | C113: V
A115: Assume we'd like to achieve current limit particularly at VIN(min) and boost side of buck-boost region; accept inevitable variation over line thereafter
A116: Shunt required to get OCP at VIN(min) | B116: =IF(VIN_min>Vout,Buck_CS_threshold/B102, Boost_CS_Threshold/B102) -> 0.003785542081 | C116: W | D116: =IF(VIN_min>Vout, "BUCK", "BOOST") -> BOOST
A117: Shunt required to get OCP at VIN(nom) | B117: =IF(VIN_nom>Vout,Buck_CS_threshold/B103, Boost_CS_Threshold/B103) -> 0.003785542081 | C117: W | D117: =IF(VIN_nom>Vout, "BUCK", "BOOST") -> BOOST
A118: Shunt required to get OCP at VIN(max) | B118: =IF(VIN_max>Vout,Buck_CS_threshold/B104, Boost_CS_Threshold/B104) -> 0.002918475009 | C118: W | D118: =IF(VIN_max>Vout, "BUCK", "BOOST") -> BUCK
A119: Shunt required to get OCP at VIN(edge-bb) | B119: =IF(VIN_min<VIN_edgebuckboost,Buck_CS_threshold/B105, 10) -> 0.002504533128 | C119: W | D119: Edge of B-B
A121: Rs_ideal | B121: =MIN(B116:B119) -> 0.002504533128 | C121: W | E121: Ideal Rs for the required OCP -- based on 80mV or 160mV CL threshold
A122: Rs | B122: ='Design Converter'!E28/1000 -> 0.0025 | C122: W | E122: Selected (starndard value) current limit sense resistor
A124: BOOST current limit - peak | B124: =Boost_CS_Threshold/Rs -> 64 | C124: A | E124: Peak inductor current limit in BOOST
A125: BUCK current limit - valley | B125: =Buck_CS_threshold/Rs -> 32 | C125: A | E125: Valley inductor current limit in BUCK
A127: Iout_OCP_Vinmin | B127: =IF(VIN_min>Vout,Buck_CS_threshold/Rs+Iripple_Vinmin/2, (Boost_CS_Threshold/Rs-Iripple_Vinmin/2)*(1-Don_Vinmin_2)) -> 44.30604825 | C127: A | D127: =IF(VIN_min>Vout, "BUCK", "BOOST") -> BOOST | E127: Current limit setpoints (i.e. IOUT) after standard components are selected
A128: Iout_OCP_Vinnom | B128: =IF(VIN_nom>Vout,Buck_CS_threshold/Rs+Iripple_Vinnom/2, IF(VIN_nom<VIN_edgebuckboost,(Boost_CS_Threshold/Rs-Iripple_Vinnom/2)*(1-Don_Vinnom_2),(Buck_CS_threshold/Rs-Iripple_Vinnom/2)*(1-Don_Vinnom_2))) -> 44.30604825 | C128: A | D128: =IF(VIN_nom>Vout,"BUCK",IF(VIN_nom<VIN_edgebuckboost,"BOOST","BUCK-BOOST")) -> BOOST
A129: Iout_OCP_Vinmax | B129: =IF(VIN_max>Vout, Buck_CS_threshold/Rs+Iripple_Vinmax/2, (Boost_CS_Threshold/Rs-Iripple_Vinmax/2)*(1-Don_Vinmax_2)) -> 33.58842383 | C129: A | D129: =IF(VIN_max>Vout, "BUCK", "BOOST") -> BUCK
A130: Iout_edgebuckboost | B130: =(Buck_CS_threshold/Rs-Iripple_edgebuckboost/2)*(1-Don_buckboost) -> 29.05374884 | C130: A | D130: lower edge of buck-boost window | K130: RMS current in Rs | M130: Power diss in Rs
A132: ILpeak_OCP_Vinmin | B132: =IF(VIN_min>Vout, Buck_CS_threshold/Rs+Iripple_Vinmin, Boost_CS_Threshold/Rs) -> 64 | C132: A | D132: =IF(VIN_min>Vout, "BUCK", "BOOST") -> BOOST | E132: Peak inductor currents in OCP | H132: =SQRT(Don_Vinmin_2)*SQRT(Iin_Vinmin^2+(Iripple_Vinmin^2)/12) -> 7.843900567 | K132: =IF(VIN_min>Vout, SQRT(1-Don_Vinmin_2)*SQRT(Iout_OCP_Vinmin^2+(Iripple_Vinmin^2)/12), SQRT(Don_Vinmin_2)*SQRT(Iin_Vinmin^2+(Iripple_Vinmin^2)/12)) -> 7.843900567 | L132: A | M132: =K132^2*Rs -> 0.1538169403 | N132: W
A133: ILpeak_OCP_Vinnom | B133: =IF(VIN_nom>Vout, Buck_CS_threshold/Rs+Iripple_Vinnom, IF(VIN_nom<VIN_edgebuckboost, Boost_CS_Threshold/Rs, Buck_CS_threshold/Rs)) -> 64 | C133: A | D133: =IF(VIN_nom>Vout,"BUCK",IF(VIN_nom<VIN_edgebuckboost,"BOOST","BUCK-BOOST")) -> BOOST | H133: =SQRT(1-Don_Vinnom_2)*SQRT(Iout_OCP_Vinnom^2+(Iripple_Vinnom^2)/12) -> 37.18510809 | K133: =IF(VIN_nom>Vout, SQRT(1-Don_Vinnom_2)*SQRT(Iout_OCP_Vinnom^2+(Iripple_Vinnom^2)/12), SQRT(Don_Vinnom_2)*SQRT(Iin_Vinnom^2+(Iripple_Vinnom^2)/12)) -> 7.843900567 | L133: A | M133: =K133^2*Rs -> 0.1538169403 | N133: W
A134: ILpeak_OCP_Vinmax | B134: =IF(VIN_max>Vout, Buck_CS_threshold/Rs+Iripple_Vinmax, Boost_CS_Threshold/Rs) -> 35.17684766 | C134: A | D134: =IF(VIN_max>Vout, "BUCK", "BOOST") -> BUCK | H134: =SQRT(1-Don_Vinmax_2)*SQRT(Iout_OCP_Vinmax^2+(Iripple_Vinmax^2)/12) -> 18.38485249 | K134: =IF(VIN_max>Vout, SQRT(1-Don_Vinmax_2)*SQRT(Iout_OCP_Vinmax^2+(Iripple_Vinmax^2)/12), SQRT(Don_Vinmax_2)*SQRT(Iin_Vinmax^2+(Iripple_Vinmax^2)/12)) -> 18.38485249 | L134: A | M134: =K134^2*Rs -> 0.8450070029 | N134: W
A135: Worst case peak inductor current | B135: =MAX(B132:B134) -> 64 | C135: A
A137: IL_peak_OCP | B137: =MAX(B132:B134) -> 64 | C137: A | E137: Peak inductor current over the full input range
A139: Cslope_ideal | B139: =Lf/Rs*0.4*10^6*0.7 -> 761.6 | C139: pF | E139: Ideal slope capacitor - actually derated to 70% of nom to provide more slope comp
A140: Cslope_recommended | B140: ='Standard Value Calculator'!O14 -> 820 | C140: pF | E140: Standard size based on Csideal slope capacitor
A141: Cslope_selected | B141: ='Design Converter'!E32 -> 120 | C141: pF | E141: Selected SLOPE cap
A143: Islope_fixed | B143: 4e-06 | C143: A
G144: =Islope_fixed/(Cslope*10^-12) -> 33333.33333
A145: SLOPE comp dv/dt = I_slope_total/Cslope | B145: =(ABS((VIN_min-Vout))*2*10^-6 + Islope_fixed)/(Cslope*10^-12) -> 71666.66667 | C145: V/s | E145: at VIN_min
A146: SLOPE comp dv/dt = I_slope_total/Cslope | B146: =(ABS((VIN_nom-Vout))*2*10^-6 + Islope_fixed)/(Cslope*10^-12) -> 71666.66667 | C146: V/s | E146: at VIN_nom
A147: SLOPE comp dv/dt = I_slope_total/Cslope | B147: =(ABS((VIN_max-Vout))*2*10^-6 + Islope_fixed)/(Cslope*10^-12) -> 95000 | C147: V/s | E147: at VIN_max
K148: BUCK | L148: BOOST
A149: DV_SLOPEcomp at Vinmin | B149: =IF(D149="BUCK", K149,L149) -> 0.1766303809 | C149: V | D149: =IF(VIN_min>Vout, "BUCK", "BOOST") -> BOOST | E149: at VIN_min | K149: =B145*(1-Don_Vinmin_2)/Fsw -> 0.4205918414 | L149: =B145*Don_Vinmin_2/Fsw -> 0.1766303809 | N149: =IF(VIN_min>Vout, "BUCK", "BOOST") -> BOOST
A150: DV_SLOPEcomp at Vinnom | B150: =IF(D150="BUCK", K150,L150) -> 0.1766303809 | C150: V | D150: =IF(VIN_nom>Vout,"BUCK",IF(VIN_nom<VIN_edgebuckboost,"BOOST","BUCK-BOOST")) -> BOOST | E150: at VIN_nom | K150: =B146*(1-Don_Vinnom_2)/Fsw -> 0.4205918414 | L150: =B146*Don_Vinnom_2/Fsw -> 0.1766303809 | N150: =IF(VIN_nom>Vout, "BUCK", "BOOST") -> BOOST
A151: DV_SLOPEcomp at Vinmax | B151: =IF(D151="BUCK", K151,L151) -> 0.237006237 | C151: V | D151: =IF(VIN_max>Vout, "BUCK", "BOOST") -> BUCK | E151: at VIN_max | K151: =B147*(1-Don_Vinmax_2)/Fsw -> 0.237006237 | L151: =B147*Don_Vinmax_2/Fsw -> 0.5546604297 | N151: =IF(VIN_max>Vout, "BUCK", "BOOST") -> BUCK
A154: Required Constant Current Loop Setpoint | B154: ='Design Converter'!E36 -> 10 | C154: A
A155: Current Limit Threshold | B155: 50 | C155: mV
A156: Shunt Resistor in Output Leg | B156: =IF(Constant_Current_Loop_Setpoint="N/A", 0, Iout_threshold/Constant_Current_Loop_Setpoint) -> 5 | C156: mΩ
A159: Step 4: Output Capacitor
A160: Icoutrms_VINmin | B160: =IF(D160="BUCK", Iripple_Vinmin/SQRT(12), Iout*SQRT((Vout-VIN_min)/VIN_min)) -> 6.191391874 | C160: A | D160: =IF(VIN_min>Vout, "BUCK", "BOOST") -> BOOST | E160: Output Cap RMS current
A161: Icoutrms_VINnom | B161: =IF(D161="BUCK", Iripple_Vinnom/SQRT(12), Iout*SQRT((Vout-VIN_nom)/VIN_nom)) -> 6.191391874 | C161: A | D161: =IF(VIN_nom>Vout,"BUCK",IF(VIN_nom<VIN_edgebuckboost,"BOOST","BUCK-BOOST")) -> BOOST
A162: Icoutrms_VINmax | B162: =IF(D162="BUCK", Iripple_Vinmax/SQRT(12), Iout*SQRT((Vout-VIN_max)/VIN_max)) -> 0.9170769265 | C162: A | D162: =IF(VIN_max>Vout, "BUCK", "BOOST") -> BUCK
A163: Max Cout rms current | B163: =MAX(B160:B162) -> 6.191391874 | C163: A
A165: Output Ripple Spec (pk-pk) | B165: =Vripple1*1000 -> 120 | C165: mV | E165: Vout ripple spec at Vin(nom)
A167: Coutmin | B167: =IF(VIN_min>Vout, Iripple_Vinmin/(Fsw*8*Vripple1), Iout*Don_Vinmin_2/(Vripple1*Fsw)) -> 0.0002053841638 | C167: F | E167: Minimum Output Capacitnace | H167: =Vripple2 -> 0.03985843986 | I167: 1 | K167: =Coutmin -> 0.0002053841638
A168: Reported Coutmin | B168: =IF(Coutmin*1000000<22, 22,Coutmin*1000000) -> 205.3841638 | C168: uF | K168: =Coutmin*1000000 -> 205.3841638
A169: Cout | B169: ='Design Converter'!E42/1000000 -> 0.0025 | C169: F | E169: Chosen Output Capacitance | I169: 1
A170: Resrmax | B170: =IF(VIN_min>Vout, SQRT((Vripple1/Iripple_Vinmin)^2-(1/(Fsw*Cout*8))^2), (Vripple1-Iout*Don_Vinmin_2/(Fsw*Cout))/Iout) -> 0.01101415601 | C170: W | E170: Max ESR before ripple exceeds Vripple1 | I170: 1
A172: Reported Cout ESR max | B172: =IF(OR(CoutEsrMax>0.3, CoutEsrMax<0, (ISERROR(CoutEsrMax))), "N/A", CoutEsrMax*1000) -> 11.01415601 | C172: mΩ
A173: CoutEsr | B173: ='Design Converter'!E44/1000 -> 0.003 | C173: W | E173: Chosen ESR | I173: 1 | K173: =ISERROR(CoutEsrMax) -> FALSE | L173: =ISERROR(B172) -> FALSE
A174: Vripple | B174: =IF(VIN_min>Vout, Iripple_Vinmax*SQRT(CoutEsr^2+(1/(8*Fsw*Cout))^2), CoutEsr*Iout+Iout*Don_Vinmin_2/(Fsw*Cout)) -> 0.03985843986 | C174: Vp-p | L174: =OR(CoutEsrMax>0.3,CoutEsrMax<0) -> FALSE
K175: =OR(TRUE, FALSE, TRUE) -> TRUE
A176: Step 5: Input Capacitor
A178: Icinrms_VINmin | B178: =IF(D178="BUCK", Iout*SQRT(Don_Vinmin_2*(1-Don_Vinmax_2)), Iripple_Vinmin/SQRT(12)) -> 0.6277690708 | C178: A | D178: =IF(VIN_min>Vout, "BUCK", "BOOST") -> BOOST | F178: =Iripple_Vinmin/SQRT(12) -> 0.6277690708 | G178: =Iout*SQRT(Don_Vinmax_2*(1-Don_Vinmax_2)) -> 4.579848586 | H178: =Iout*0.25 -> 2.5
A179: Icinrms_VINnom | B179: =IF(D179="BUCK", Iout*SQRT(Don_Vinnom_2*(1-Don_Vinnom_2)), Iripple_Vinnom/SQRT(12)) -> 0.6277690708 | C179: A | D179: =IF(VIN_nom>Vout,"BUCK",IF(VIN_nom<VIN_edgebuckboost,"BOOST","BUCK-BOOST")) -> BOOST
A180: Icinrms_VINmiax | B180: =IF(D180="BUCK", Iout*SQRT(Don_Vinmax_2*(1-Don_Vinmax_2)), Iripple_Vinmax/SQRT(12)) -> 4.579848586 | C180: A | D180: =IF(VIN_max>Vout, "BUCK", "BOOST") -> BUCK
A181: Max Cin rms current | B181: =MAX(B178:B180) -> 4.579848586 | C181: A | D181: …report this
A183: Vinripple1 | B183: ='Design Converter'!E49/1000 -> 0.18 | C183: Vp-p | D183: Input voltage ripple spec (pk-pk)
A185: Cinmin_Vinmax | B185: =IF(VIN_max>Vout, Iout*Don_Vinmax_2*(1-Don_Vinmax_2)/(Vinripple1*Fsw), Iripple_Vinmax/(Fsw*8*Vinripple1)) -> 9.710654201e-05 | C185: F | D185: Calculate cap at Vinmax and 50% duty cycle (Vin = 2*Vout) | K185: =Iripple_Vinnom/(Fsw*8*Vinripple1) -> 1.258481396e-05
A186: Cinmin_50%D | B186: =IF(VIN_max>Vout, Iout*0.5*(1-0.5)/(Vinripple1*Fsw), Iripple_Vinmax/(Fsw*8*Vinripple1)) -> 0.0001157407407 | D186: Buck 50% typically worst case
A187: Cinmin | B187: =IF(VIN_max<2*Vout, B185,B186) -> 9.710654201e-05
A188: Reported Cinmin | B188: =IF(Cinmin*1000000<10, 10,Cinmin*1000000) -> 97.10654201 | C188: uF | D188: …report this
A189: Cin | B189: ='Design Converter'!E51/1000000 -> 0.00112 | C189: F | D189: Input capacitance
A190: CinEsrMax_Vinmax | B190: =IF(VIN_max>Vout, -(Iout*Don_Vinmax_2*(1-Don_Vinmax_2)/(Cin*Fsw)-Vinripple1)/(Iout+Iripple_Vinmax/2), SQRT((Vinripple1/Iripple_Vinmax)^2-(1/(Fsw*Cin*8))^2)) -> 0.01418601821 | C190: W
A191: CinEsrMax_50%D | B191: =IF(VIN_max>Vout, -(Iout*0.5*(1-0.5)/(Cin*Fsw)-Vinripple1)/(Iout+Iripple_Vinmax/2), SQRT((Vinripple1/Iripple_Vinmax)^2-(1/(Fsw*Cin*8))^2)) -> 0.01392758945 | C191: W | D191: Calculate ESR at Vinmax and 50% duty cycle (Vin = 2*Vout)
A192: CinEsrMax | B192: =IF(VIN_max<2*Vout, B190,B191) -> 0.01418601821 | C192: W
A193: Reported Cin ESR max | B193: =IF(OR(CinEsrMax>0.3, CinEsrMax<0), "N/A",CinEsrMax*1000) -> 14.18601821 | C193: mΩ | D193: …report this
A194: RCinEsr | B194: ='Design Converter'!E53/1000 -> 0.003 | C194: W | D194: Input capacitance series resistance (ESR)
K195: =CinEsrMax -> 0.01418601821
A196: Vinripple2_Vinmax | B196: =IF(VIN_max>Vout, Iout*Don_Vinmax_2*(1-Don_Vinmax_2)/(Cin*Fsw)+(Iout +Iripple_Vinmax/2)*RCinEsr, Iripple_Vinmax*SQRT(RCinEsr^2+(1/(8*Fsw*Cin))^2)) -> 0.05037168003 | C196: Vp-p
A197: Vinripple2_50%D | B197: =IF(VIN_max>Vout, Iout*0.5*(1-0.5)/(Cin*Fsw)+(Iout +Iripple_Vinmax/2)*RCinEsr, Iripple_Vinmax*SQRT(RCinEsr^2+(1/(8*Fsw*Cin))^2)) -> 0.05336646197 | C197: Vp-p | D197: Calculate ripple at Vinmax and 50% duty cycle (Vin = 2*Vout)
A198: Vinripple2 | B198: =IF(VIN_max<2*Vout, B196,B197) -> 0.05037168003 | C198: Vp-p | D198: …report highest of these
B200: =Iout*Don_Vinmax_2*(1-Don_Vinmax_2)/(Cin*Fsw) -> 0.01560640854 | C200: Vp-p
A202: Step 6a: Soft Start
A203: Tss | B203: ='Design Converter'!E58/1000 -> 0.015 | C203: s | D203: Soft-start time
A204: Iss | B204: =Cout*Vout/Tss -> 1.383333333 | C204: A | D204: Load cap current during soft start
A205: Css | B205: =0.000005*Tss/0.8 -> 9.375e-08 | C205: F
A206: Css_u | B206: ='Standard Value Calculator'!B4 -> 1e-07 | C206: F
A208: Step 6b: Other Components - UVLO, Dither, MODE
A210: VINUVLO_ON | B210: ='Design Converter'!E62 -> 5.5 | C210: V
A212: RUV1 | B212: ='Design Converter'!E64 -> 200 | C212: kΩ | E212: ='Standard Value Calculator'!O16 -> 200 | F212: kΩ | G212: =IF(Ruvlo1<0,"N/A",E212) -> 200 | H212: =IF(Ruvlo1<0,"N/A",E212&"kΩ") -> 200kΩ
A213: RUV2 | B213: =Vuvlo_on/((VINuvlo_on-Vuvlo_on)/Ruvlo1+Iuvlo1) -> 52.79449699 | C213: kΩ | E213: ='Standard Value Calculator'!O17 -> 52.3 | F213: kΩ | G213: =IF(G212="N/A","N/A",E213) -> 52.3 | H213: =IF(H212="N/A","N/A",E213&"kΩ") -> 52.3kΩ
A215: VINUVLO_ON_ACTUAL | B215: =(E212+E213)/E213*Vuvlo_on-Iuvlo1*E212 -> 5.543984704
A216: VINUVLO_OFF_ACTUAL | B216: =(E212+E213)/E213*Vuvlo_off-Iuvlo2*E212 -> 4.843984704
A218: Rising UVLO/EN Threshold | B218: 1.228 | C218: V
A219: Falling UVLO/EN Threshold | B219: 1.228 | C219: V
A220: Voltage Hysteresis | B220: =B218-B219 -> 0 | C220: V
A221: Rising UVLO/EN Current | B221: 0.0019 | C221: mA
A222: Falling UVLO/EN Current | B222: 0.0054 | C222: mA | E222: 5.4uA if UVLO > 2V
A223: UVLO/EN Current Hysteresis | B223: =B222-B221 -> 0.0035 | C223: mA | E223: 3.5uA hysteresis current
A225: RPG | B225: 20 | C225: kΩ
A226: RSB | C226: W
A227: Rh | B227: 0 | C227: W
A228: Rmode | C228: W | D228: TBD | E228: Tie to GND or VCC for DCM/CCM, respectively. Use 93.1k or 200k for hiccup in DCM, CCM, respectively.
A230: Dither Modulation Frequency | B230: ='Design Converter'!E60*1000 -> 900 | C230: Hz
A231: Cdither_calculated | B231: =10*10^-6/Fdither/0.24 -> 4.62962963e-08 | C231: F
A232: Cdither_stdvalue | B232: ='Standard Value Calculator'!O19 -> 4.7e-08 | C232: F
A235: Step 7: Compensation
A236: Pi | B236: 3.14159265 | D236: p
A237: CS Amp Gain | B237: 5
A238: Ri | B238: =Rs*CSAmp_gain -> 0.0125 | C238: W | D238: Current Sense effective resistance = shunt resistor Rs * CS amp gain
A239: gm | B239: 0.00127 | C239: S | D239: Error Amp Transconductance
A241: gm_slopecomp | B241: 2e-06 | C241: S | D241: adaptive slope comp gm amplifier transconductance
A242: Isc_const | B242: 4e-06 | C242: A | D242: slope comp constant current source
A244: Se_fixed | B244: =Isc_const/(Cslope*10^-12) -> 33333.33333 | C244: V/s
A245: Se_proportional | B245: =(ABS((Vin-Vout))*gm_slopecomp)/(Cslope*10^-12) -> 38333.33333 | C245: V/s
A246: Se | B246: =Se_fixed+Se_proportional -> 71666.66667 | C246: V/s | D246: Slope comp slope - internal
A248: V_sc_fixed | B248: =Se_fixed/Fsw -> 0.2777777778 | C248: V/s | D248: Fixed slope comp amplitude over full period
A249: V_sc_proportional | B249: =Se_proportional/Fsw -> 0.3194444444 | C249: V/s | D249: Proportional slope comp amplitude over full period
A250: V_sc_total | B250: =Se/Fsw -> 0.5972222222 | C250: V/s | D250: Total slope comp amplitude over full period
A251: K_SL | B251: =gm_slopecomp/(Cslope*10^-12*Fsw) -> 0.1388888889 | D251: Proportional slope comp factor, where Vslope= Abs(Vin-Vout)*KSL
D252: KSL = gm/(Cslope*Fsw)
A254: Se_ext | B254: =(ABS((Vin-Vout))*gm_slopecomp+0.000004)/(Cslope*10^-12)/Ri -> 5733333.333 | C254: A/s | D254: Slope Comp Slope - referred to inductor current
A255: Sn | B255: =IF(VIN_nom>Vout, (Vin-Vout)/Lf, Vin/Lf) -> 882352.9412 | C255: A/s | D255: On-time Slope | I255: =Cslope -> 120
A256: Sf | B256: =IF(VIN_nom>Vout, Vout/Lf, (Vout-Vin)/Lf) -> 338235.2941 | C256: A/s | D256: Off-time Slope
A258: Se_int | B258: =Se/1000 -> 71.66666667 | C258: mV/μs | D258: Slope Comp Slope - referred to IC
A259: Sn_int | B259: =Sn*Ri/1000 -> 11.02941176 | C259: mV/μs | D259: etc
A260: Sf_int | B260: =Sf*Ri/1000 -> 4.227941176 | C260: mV/μs | D260: etc
A262: Toff_Vinmax | B262: =(1-Don_Vinmax_2)/Fsw -> 2.494802495e-06 | C262: sec
... 190 more rows

Sheet Schematic Management (hidden)
A2: =IF(DITHER=1, "SCH_WITH_DITH", "SCH_NO_DITH") -> SCH_WITH_DITH

Sheet Efficiency Plot Management (hidden)
A2: =IF(PLOT_TYPE=1, "EFF_IOUT", "EFF_VIN") -> EFF_IOUT

Sheet Efficiency vs VIN Calculations (hidden)
A1: BUCK-BOOST CONTROLLER POWER TOOL
H2: =BD9 -> 0.9369763555 | I2: Low VIN
H3: =BD109 -> 0.9684323678 | I3: Nom VIN
H4: =BD209 -> 0.9658772348 | I4: High VIN
A6: Enter the values of your design and MOSFET datasheet specifications below. Note that thermal resistance (θJA) will change when components are placed on the PCB | BU6: 80 | BV6: 100 | BW6: 120 | BX6: 140 | BY6: 160 | BZ6: 180 | CA6: 20 | CB6: 30 | CC6: 40 | CD6: 50
G7: Operating Point Condtions | Q7: Filter Inductor | U7: Cout | X7: Cin | AA7: High-side BUCK "Control" MOSFET Losses | AF7: Low-side BUCK "Sync" MOSFET Losses | AJ7: Low-side BOOST "Control" MOSFET Losses | AO7: High-side BOOST "Sync" MOSFET Losses | AS7: Pass FET | AT7: External Diode | AU7: Diode/FET | AV7: Sense Rs | AW7: Output Rs | AX7: Controller IC Losses | BB7: RESULTS | BH7: Consolidated Buck/Boost Efficiency & Losses
A8: Input Parameters | G8: Step | H8: Vin | I8: Mode | J8: Mode Digit | K8: Iout | L8: Iin | M8: Avg IL | N8: Actual Duty Cycle BUCK Leg | O8: Actual Duty Cycle BOOST Leg | P8: Ripple Current pk-pk | Q8: Irms Lf | R8: DCR Loss | S8: Core Loss | T8: Total Inductor Loss | U8: Irms Cout | V8: Cout ESR Loss | W8: Total Cout Loss | X8: Irms Cin | Y8: Cin ESR Loss | Z8: Total Cin Loss | AA8: Irms | AB8: RDS(on) Loss | AC8: Transition Loss | AD8: Dead Time Loss | AE8: Total Control MOSFET Loss | AF8: Irms | AG8: RDS(on) Loss | AH8: Deadtime Loss | AI8: Total Sync MOSFET Loss | AJ8: Irms | AK8: RDS(on) Loss | AL8: Transition Loss | AM8: Dead Time Loss | AN8: Total Control MOSFET Loss | AO8: Irms | AP8: RDS(on) Loss | AQ8: Deadtime Loss | AR8: Total Sync MOSFET Loss | AS8: Q1/Q3 RDS(on) Loss @ D = 100% | AT8: Deadtime Loss | AU8: Reverse Recovery Loss | AV8: Isense Shunt Loss | AW8: Iout Shunt Loss | AX8: IQ Loss | AY8: Switching Current Loss | AZ8: Switching Current Diss | BA8: Total IC Loss | BB8: Total Loss | BC8: Pout | BD8: EFF, h | BE8: Control FET Temp Rise | BF8: Sync FET Temp Rise | BH8: h | BI8: Inductor Cu & Core Loss | BJ8: Total MOSFET Loss | BK8: Total Sync MOSFET Loss | BL8: Shunt Loss | BS8: Qg | BU8: θJA=80 | BV8: θJA=100 | BW8: θJA=120 | BX8: θJA=140 | BY8: θJA=160 | BZ8: θJA=180 | CA8: θJA=20 | CB8: θJA=30 | CC8: θJA=40 | CD8: θJA=50
A9: Design | B9: Input Value | C9: Units | D9: Description | G9: 0 | H9: =VIN_min+(VIN_max-VIN_min)*(G9/200) -> 6 | I9: =IF(H9>VIN_BB_to_buck, "BUCK", IF(H9<VIN_boost_to_BB,"BOOST","BUCK-BST")) -> BOOST | J9: =IF(I9="BOOST",2, IF(I9="BUCK", 1,3)) -> 2 | K9: =Iout -> 10 | L9: =Vout*K9/(H9*Efficiency) -> 14.40972222 | M9: =Iout/(1-O9) -> 14.26668225 | N9: =CHOOSE(J9,(Vout+(Rdson2+Rs+Rdcr)*K9)/(H9+(Rs+Rdson2-Rdson1)*K9),1,IF(H9<Vout,D_max_buck_BB,Vout/H9*(1-D_min_boost_exitBB_to_buck))) -> 1 | O9: =CHOOSE(J9,0,(Vout+(Rdson3+Rdcr)*L9-H9)/(Vout+(Rdson3-Rdson4-Rs)*L9), IF(H9>Vout,D_min_boost_exitBB_to_buck, (Vout-H9*D_max_buck_BB)/Vout)) -> 0.2990661863 | P9: =MAX(0, CHOOSE(J9, (H9-(Rdson1+Rdcr)*K9-Vout)*N9/(Fsw*Lf), (H9-(Rdson4+Rdcr+Rs)*L9)*O9/(Fsw*Lf), IF(H9<Vout, (H9-(Rdson4+Rdcr+Rs)*L9)*O9/(0.5*Fsw*Lf),(H9-(Rdson1+Rdcr)*K9-Vout)*N9/(0.5*Fsw*Lf)))) -> 2.12296677 | Q9: =CHOOSE(J9, SQRT(K9^2+(P9^2)/12), SQRT(L9^2+(P9^2)/12), SQRT(M9^2+(P9^2)/12)) -> 14.42274859 | R9: =(Q9^2*Rdcr*(1+Ltc*Ta-Ltc*25))/(1-Q9^2*Rdcr*Ltc*ThetaCa) -> 2.495427141 | S9: =ABS(7.759*10^-3*Fsw^0.9458*(0.00787*P9)^2.304) -> 0.03974644422 | T9: =R9+S9 -> 2.535173585 | U9: =IF(H9>Vout, P9/SQRT(12), SQRT(O9/(1-O9))*SQRT(K9^2+(P9^2)/12)) -> 6.544239571 | V9: =RCoutEsr*U9^2 -> 0.1284812147 | W9: =V9 -> 0.1284812147 | X9: =IF(H9>Vout, SQRT(N9*(1-N9))*SQRT(K9^2+(P9^2)/12), P9/SQRT(12)) -> 0.612847718 | Y9: =RCinEsr*X9^2 -> 0.001126746976 | Z9: =Y9 -> 0.001126746976 | AA9: =CHOOSE(J9, SQRT(N9)*SQRT(K9^2+(P9^2)/12), SQRT(L9^2+(P9^2)/12), SQRT(N9)*SQRT(M9^2+(P9^2)/12)) -> 14.42274859 | AB9: =Rdson1*AA9^2 -> 1.185689358 | AC9: =CHOOSE(J9, (H9*K9/2)*(Fsw)*(Tr_buck+Tf_buck), 0, (H9*M9/2)*(Fsw/2)*(Tr_buck+Tf_buck)) -> 0 | AD9: =IF(H9>Vout, IF(K9>P9/2,0,ABS(K9-P9/2)*Vsd_Q1*Deadtime*Fsw),0) -> 0 | AE9: =(AD9+AC9+AB9*(1+RdsonTopTc*Ta-RdsonTopTc*25))/(1-AB9*RdsonTopTc*ThetaJA_Q1) -> 1.554264282 | AF9: =CHOOSE(J9, SQRT((1-N9))*SQRT(K9^2+(P9^2)/12), 0, SQRT((1-N9))*SQRT(M9^2+(P9^2)/12)) -> 0 | AG9: =Rdson2*AF9^2 -> 0 | AH9: =CHOOSE(J9, IF(K9<P9/2,Deadtime*Fsw*IF(VfdSky_Q2>0,0,Vsd_Q2)*(K9+P9/2),2*Deadtime*Fsw*IF(VfdSky_Q2>0,0,Vsd_Q2)*K9),0, IF(K9<P9/2,Deadtime*Fsw/2*IF(VfdSky_Q2>0,0,Vsd_Q2)*(K9+P9/2),2*Deadtime*Fsw/2*IF(VfdSky_Q2>0,0,Vsd_Q2)*K9)) -> 0 | AI9: =(AH9+AG9*(1+RdsonBotTc*Ta-RdsonBotTc*25))/(1-AG9*RdsonBotTc*ThetaJA_Q2) -> 0 | AJ9: =CHOOSE(J9, 0, SQRT(O9)*SQRT(L9^2+(P9^2)/12), SQRT(O9)*SQRT(M9^2+(P9^2)/12)) -> 7.887360469 | AK9: =Rdson4*AJ9^2 -> 0.1181998648 | AL9: =CHOOSE(J9, 0, (Vout*L9/2)*(Fsw)*(Tr_boost+Tf_boost), (Vout*Iout/2)*(Fsw/2)*(Tr_boost+Tf_boost)) -> 0.04575140325 | AM9: =IF(H9>Vout, 0, IF(L9>P9/2,0,ABS(L9-P9/2)*Vsd_Q4*Deadtime*Fsw)) -> 0 | AN9: =(AM9+AL9+AK9*(1+RdsonTopTc*Ta-RdsonTopTc*25))/(1-AK9*RdsonTopTc*ThetaJA_Q4) -> 0.1679209139 | AO9: =CHOOSE(J9, SQRT(Iout^2+(P9^2)/12), SQRT(1-O9)*SQRT(L9^2+(P9^2)/12), SQRT(1-O9)*SQRT(M9^2+(P9^2)/12)) -> 12.0749833 | AP9: =Rdson3*AO9^2 -> 0.2770299212 | AQ9: =CHOOSE(J9, 0, IF(L9<P9/2,Deadtime*Fsw*IF(VfdSky_Q3>0,0,Vsd_Q3)*(L9+P9/2), 2*Deadtime*Fsw*IF(VfdSky_Q3>0,0,Vsd_Q3)*L9), IF(L9<P9/2,Deadtime*Fsw/2*IF(VfdSky_Q3>0,0,Vsd_Q3)*(L9+P9/2), 2*Deadtime*Fsw/2*IF(VfdSky_Q3>0,0,Vsd_Q3)*L9)) -> 0.1383333333 | AR9: =(AQ9+AP9*(1+RdsonBotTc*Ta-RdsonBotTc*25))/(1-AP9*RdsonBotTc*ThetaJA_Q3) -> 0.4397267478 | AS9: =CHOOSE(J9, Rdson3*Q9^2, Rdson1*Q9^2, 0) -> 1.185689358 | AT9: =CHOOSE(J9, 2*Deadtime*Fsw*IF(VfdSky_Q2>0,VfdSky_Q2,0)*K9, 2*Deadtime*Fsw*IF(VfdSky_Q3>0,VfdSky_Q3,0)*L9, 2*Deadtime*Fsw/2*IF(VfdSky_Q2>0,VfdSky_Q2,0)*K9+2*Deadtime*Fsw/2*IF(VfdSky_Q3>0,VfdSky_Q3,0)*L9) -> 0 | AU9: =CHOOSE(J9, IF(QrrSky_Q2>0,QrrSky_Q2,Qrr_Q2)*Fsw*(H9-K9*Rdson1), IF(QrrSky_Q3>0,QrrSky_Q3,Qrr_Q3)*Fsw*Vout, IF(QrrSky_Q2>0,QrrSky_Q2,Qrr_Q2)*Fsw/2*(H9-K9*Rdson1)+IF(QrrSky_Q3>0,QrrSky_Q3,Qrr_Q3)*Fsw/2*Vout) -> 0.032868 | AV9: =CHOOSE(J9, Rs*AF9^2, Rs*AJ9^2, Rs*(AF9^2+AJ9^2)) -> 0.1555261379 | AW9: =Rshunt_std/1000*Iout^2 -> 0.499 | AX9: =IF(Vout>8, Iq*Vout, Iq*H9) -> 0.0249 | AY9: =CHOOSE(J9, (Qg_Q1+Qg_Q2)*Fsw, (Qg_Q3+Qg_Q4)*Fsw, (Qg_Q1+Qg_Q2+Qg_Q3+Qg_Q4)*Fsw/2)*IF(Vout>8, Vout, H9) -> 0.043824 | AZ9: =(Vin-Vdd)*Fsw*(Qg_Q1+Qg_Q2)+(RdsonDRT+RdsonDRT2)*Fsw*Qg_Q1*Vdd/(RdsonDRT+2*Rgate1+RdsonDRT2)+(RdsonDRB+RdsonDRB2)*Fsw*Qg_Q2*Vdd/(RdsonDRB+2*Rgate2+RdsonDRB2) -> 0.00504 | BA9: =SUM(AX9:AY9) -> 0.068724 | BB9: =SUM(T9,W9,Z9,AE9,AI9,AN9,AR9, AT9,AU9,BA9,AV9,AW9) -> 5.582811628 | BC9: =Vout*K9 -> 83 | BD9: =BC9/(BC9+BB9) -> 0.9369763555 | BE9: =IF(H9>Vout,ThetaJA_Q1*(AE9+AU9),ThetaJA_Q4*(AN9+AU9)) -> 10.0394457 | BF9: =IF(H9>Vout, AI9*ThetaJA_Q2, ThetaJA_Q3*AR9) -> 21.98633739 | BH9: =BD9*100 -> 93.69763555 | BI9: =T9 -> 2.535173585 | BJ9: =AE9+AI9+AN9+AR9+AU9 -> 2.194779943 | BK9: =AI9+AU9*0.33 -> 0.01084644 | BL9: =AV9 -> 0.1555261379 | BP9: 250kHz / 5-1.2V /25A | BQ9: 70 | BR9: 70 | BS9: 70 | BT9: =250000*(5-Vdd)*BS9/1000000000+((250000*BS9/1000000000*Vdd)*2.5/(2*4)) -> -0.002734375 | BU9: =BU$6*$BT9 -> -0.21875 | BV9: -0.2734375 | BW9: -0.328125 | BX9: -0.3828125 | BY9: -0.4375 | BZ9: -0.4921875 | CA9: -0.0546875 | CB9: -0.08203125 | CC9: -0.109375 | CD9: -0.13671875
G10: 1 | H10: 6.03 | I10: BOOST | J10: =IF(I10="BOOST",2, IF(I10="BUCK", 1,3)) -> 2 | K10: 10 | L10: 14.33803206 | M10: 14.19096596 | N10: 1 | O10: =CHOOSE(J10,0,(Vout+(Rdson3+Rdcr)*L10-H10)/(Vout+(Rdson3-Rdson4-Rs)*L10),IF(H10>Vout,D_min_boost_exitBB_to_buck, (Vout-H10*D_max_buck_BB)/Vout)) -> 0.2953263347 | P10: 2.107650074 | Q10: 14.35093536 | R10: 2.465748968 | S10: =7.759*10^-3*Fsw^0.9458*(0.00787*P10)^2.304 -> 0.0390888524 | T10: =R10+S10 -> 2.50483782 | U10: 6.48573834 | V10: 0.1261944055 | W10: =V10 -> 0.1261944055 | X10: 0.6084261687 | Y10: 0.001110547208 | Z10: =Y10 -> 0.001110547208 | AA10: 14.35093536 | AB10: 1.173911271 | AC10: 0 | AD10: 0 | AE10: 1.534087882 | AF10: 0 | AG10: 0 | AH10: 0 | AI10: 0 | AJ10: 7.798863085 | AK10: 0.1155623043 | AL10: 0.04552378432 | AM10: 0 | AN10: 0.1648972703 | AO10: 12.04687015 | AP10: 0.2757414527 | AQ10: 0.1376451078 | AR10: 0.4375147511 | AS10: 1.173911271 | AT10: 0 | AU10: 0.032868 | AV10: 0.1520556636 | AW10: 0.499 | AX10: 0.0249 | AY10: 0.043824 | AZ10: 0.00504 | BA10: =SUM(AX10:AY10) -> 0.068724 | BB10: =SUM(T10,W10,Z10,AE10,AI10,AN10,AR10, AT10,AU10,BA10,AV10,AW10) -> 5.52129034 | BC10: 83 | BD10: =BC10/(BC10+BB10) -> 0.9376275434 | BE10: 9.888263517 | BF10: 21.87573756 | BH10: =BD10*100 -> 93.76275434 | BI10: =T10 -> 2.50483782 | BJ10: =AE10+AI10+AN10+AR10+AU10 -> 2.169367904 | BK10: =AI10+AU10*0.33 -> 0.01084644 | BL10: =AV10 -> 0.1520556636
A11: Vin | B11: =Vin -> 6 | C11: V | D11: Vin | G11: 2 | H11: 6.06 | I11: BOOST | J11: 2 | K11: 10 | L11: 14.26705171 | M11: 14.11607396 | N11: 1 | O11: 0.2915877299 | P11: 2.09205422 | Q11: 14.27982803 | R11: 2.436623147 | S11: 0.03842564819 | T11: 2.475048795 | U11: 6.427352706 | V11: 0.1239325884 | W11: 0.1239325884 | X11: 0.6039240335 | Y11: 0.001094172715 | Z11: 0.001094172715 | AA11: 14.27982803 | AB11: 1.162306885 | AC11: 0 | AD11: 0 | AE11: 1.514330159 | AF11: 0 | AG11: 0 | AH11: 0 | AI11: 0 | AJ11: 7.710944899 | AK11: 0.1129714754 | AL11: 0.04529841905 | AM11: 0 | AN11: 0.161928556 | AO11: 12.01893578 | AP11: 0.274464153 | AQ11: 0.1369636964 | AR11: 0.4353240169 | AS11: 1.162306885 | AT11: 0 | AU11: 0.032868 | AV11: 0.1486466781 | AW11: 0.499 | AX11: 0.0249 | AY11: 0.043824 | AZ11: 0.00504 | BA11: =SUM(AX11:AY11) -> 0.068724 | BB11: =SUM(T11,W11,Z11,AE11,AI11,AN11,AR11, AT11,AU11,BA11,AV11,AW11) -> 5.460896966 | BC11: 83 | BD11: 0.9382676736 | BE11: 9.739827799 | BF11: 21.76620084 | BH11: 93.82676736 | BI11: 2.475048795 | BJ11: 2.144450732 | BK11: 0.01084644 | BL11: 0.1486466781 | BP11: 250kHz / 12-5V / 30A | BQ11: 90 | BR11: 90 | BS11: 90 | BT11: =250000*(12-Vdd)*BS11/1000000000+((250000*BS9/1000000000*Vdd)*2.5/(2*4)) -> 0.142265625 | BU11: 11.38125 | BV11: 14.2265625 | BW11: 17.071875 | BX11: 19.9171875 | BY11: 22.7625 | BZ11: 25.6078125 | CA11: 2.8453125 | CB11: 4.26796875 | CC11: 5.690625 | CD11: 7.11328125
A12: Vout | B12: =Vout -> 8.3 | C12: V | D12: Vout | G12: 3 | H12: 6.09 | I12: BOOST | J12: 2 | K12: 10 | L12: 14.19677066 | M12: 14.04199251 | N12: 1 | O12: 0.2878503536 | P12: 2.07617941 | Q12: 14.20941615 | R12: 2.408035416 | S12: 0.03775717046 | T12: 2.445792586 | U12: 6.369075092 | V12: 0.1216953526 | W12: 0.1216953526 | X12: 0.5993413706 | Y12: 0.001077630236 | Z12: 0.001077630236 | AA12: 14.20941615 | AB12: 1.150872792 | AC12: 0 | AD12: 0 | AE12: 1.4949789 | AF12: 0 | AG12: 0 | AH12: 0 | AI12: 0 | AJ12: 7.623591501 | AK12: 0.11042638 | AL12: 0.04507527413 | AM12: 0 | AN12: 0.1590135114 | AO12: 11.99117842 | AP12: 0.2731978839 | AQ12: 0.1362889984 | AR12: 0.433154247 | AS12: 1.150872792 | AT12: 0 | AU12: 0.032868 | AV12: 0.1452978684 | AW12: 0.499 | AX12: 0.0249 | AY12: 0.043824 | AZ12: 0.00504 | BA12: 0.068724 | BB12: 5.401602096 | BC12: 83 | BD12: 0.9388970113 | BE12: 9.594075571 | BF12: 21.65771235 | BH12: 93.88970113 | BI12: 2.445792586 | BJ12: 2.120014658 | BK12: 0.01084644 | BL12: 0.1452978684 | BP12: 250kHz / 18-1.2V / 20A | BQ12: 60 | BR12: 60 | BS12: 60 | BT12: =250000*(18-Vdd)*BS12/1000000000+((250000*BS9/1000000000*Vdd)*2.5/(2*4)) -> 0.198515625 | BU12: 15.88125 | BV12: 19.8515625 | BW12: 23.821875 | BX12: 27.7921875 | BY12: 31.7625 | BZ12: 35.7328125 | CA12: 3.9703125 | CB12: 5.95546875 | CC12: 7.940625 | CD12: 9.92578125
A13: Fsw | B13: =Fsw/1000 -> 120 | C13: kHz | D13: Switching Frequency | G13: 4 | H13: 6.12 | I13: BOOST | J13: 2 | K13: 10 | L13: 14.12717865 | M13: 13.96870817 | N13: 1 | O13: 0.2841141874 | P13: 2.060025843 | Q13: 14.13968949 | R13: 2.379971986 | S13: 0.0370837621 | T13: 2.417055748 | U13: 6.310897875 | V13: 0.119482296 | W13: 0.119482296 | X13: 0.5946782375 | Y13: 0.001060926619 | Z13: 0.001060926619 | AA13: 14.13968949 | AB13: 1.139605667 | AC13: 0 | AD13: 0 | AE13: 1.476022355 | AF13: 0 | AG13: 0 | AH13: 0 | AI13: 0 | AJ13: 7.536788582 | AK13: 0.107926046 | AL13: 0.04485431691 | AM13: 0 | AN13: 0.1561509131 | AO13: 11.96359631 | AP13: 0.2719425097 | AQ13: 0.135620915 | AR13: 0.4310051491 | AS13: 1.139605667 | AT13: 0 | AU13: 0.032868 | AV13: 0.1420079553 | AW13: 0.499 | AX13: 0.0249 | AY13: 0.043824 | AZ13: 0.00504 | BA13: 0.068724 | BB13: 5.343377344 | BC13: 83 | BD13: 0.9395158131 | BE13: 9.450945653 | BF13: 21.55025745 | BH13: 93.95158131 | BI13: 2.417055748 | BJ13: 2.096046417 | BK13: 0.01084644 | BL13: 0.1420079553 | BP13: 500kHz / 5-1.2V / 15A | BQ13: 30 | BR13: 30 | BS13: 30 | BT13: =500000*(5-Vdd)*BS13/1000000000+((500000*BS9/1000000000*Vdd)*2.5/(2*4)) -> 0.04453125 | BU13: 3.5625 | BV13: 4.453125 | BW13: 5.34375 | BX13: 6.234375 | BY13: 7.125 | BZ13: 8.015625 | CA13: 0.890625 | CB13: 1.3359375 | CC13: 1.78125 | CD13: 2.2265625
A14: Iout | B14: =Iout -> 10 | C14: A | D14: Max Output Current | G14: 5 | H14: 6.15 | I14: BOOST | J14: 2 | K14: 10 | L14: 14.05826558 | M14: 13.89620782 | N14: 1 | O14: 0.2803792137 | P14: 2.043593713 | Q14: 14.07063801 | R14: 2.352419527 | S14: 0.03640576986 | T14: 2.388825297 | U14: 6.252813383 | V14: 0.1172930256 | W14: 0.1172930256 | X14: 0.5899346902 | Y14: 0.001044068816 | Z14: 0.001044068816 | AA14: 14.07063801 | AB14: 1.128502269 | AC14: 0 | AD14: 0 | AE14: 1.457449218 | AF14: 0 | AG14: 0 | AH14: 0 | AI14: 0 | AJ14: 7.450521926 | AK14: 0.1054695263 | AL14: 0.04463551536 | AM14: 0 | AN14: 0.153339572 | AO14: 11.93618771 | AP14: 0.2706978966 | AQ14: 0.1349593496 | AR14: 0.428876436 | AS14: 1.128502269 | AT14: 0 | AU14: 0.032868 | AV14: 0.1387756924 | AW14: 0.499 | AX14: 0.0249 | AY14: 0.043824 | AZ14: 0.00504 | BA14: 0.068724 | BB14: 5.28619531 | BC14: 83 | BD14: 0.9401243276 | BE14: 9.310378601 | BF14: 21.4438218 | BH14: 94.01243276 | BI14: 2.388825297 | BJ14: 2.072533226 | BK14: 0.01084644 | BL14: 0.1387756924 | BP14: 500kHz / 12-5V / 15A | BQ14: 45 | BR14: 45 | BS14: 45 | BT14: =500000*(12-Vdd)*BS14/1000000000+((500000*BS9/1000000000*Vdd)*2.5/(2*4)) -> 0.18328125 | BU14: 14.6625 | BV14: 18.328125 | BW14: 21.99375 | BX14: 25.659375 | BY14: 29.325 | BZ14: 32.990625 | CA14: 3.665625 | CB14: 5.4984375 | CC14: 7.33125 | CD14: 9.1640625
A15: Ta | B15: =Ta -> 25 | C15: °C | D15: Ambient Temperature | G15: 6 | H15: 6.18 | I15: BOOST | J15: 2 | K15: 10 | L15: 13.99002157 | M15: 13.82447863 | N15: 1 | O15: 0.2766454151 | P15: 2.026883211 | Q15: 14.0022519 | R15: 2.325365144 | S15: 0.03572354433 | T15: 2.361088689 | U15: 6.194813886 | V15: 0.1151271572 | W15: 0.1151271572 | X15: 0.5851107838 | Y15: 0.001027063888 | Z15: 0.001027063888 | AA15: 14.0022519 | AB15: 1.117559432 | AC15: 0 | AD15: 0 | AE15: 1.439248603 | AF15: 0 | AG15: 0 | AH15: 0 | AI15: 0 | AJ15: 7.364777399 | AK15: 0.1030558977 | AL15: 0.0444188381 | AM15: 0 | AN15: 0.1505783328 | AO15: 11.90895093 | AP15: 0.2694639131 | AQ15: 0.1343042071 | AR15: 0.4267678259 | AS15: 1.117559432 | AT15: 0 | AU15: 0.032868 | AV15: 0.1355998654 | AW15: 0.499 | AX15: 0.0249 | AY15: 0.043824 | AZ15: 0.00504 | BA15: 0.068724 | BB15: 5.230029537 | BC15: 83 | BD15: 0.9407227951 | BE15: 9.172316641 | BF15: 21.33839129 | BH15: 94.07227951 | BI15: 2.361088689 | BJ15: 2.049462761 | BK15: 0.01084644 | BL15: 0.1355998654 | BP15: 1Mhz / 5-1.2V / 10A | BQ15: 20 | BR15: 20 | BS15: 20 | BT15: =1000000*(5-Vdd)*BS15/1000000000+((1000000*BS9/1000000000*Vdd)*2.5/(2*4)) -> 0.1140625 | BU15: 9.125 | BV15: 11.40625 | BW15: 13.6875 | BX15: 15.96875 | BY15: 18.25 | BZ15: 20.53125 | CA15: 2.28125 | CB15: 3.421875 | CC15: 4.5625 | CD15: 5.703125
A16: Vcc | B16: =Vdd -> 7.5 | C16: V | D16: Subregulated VCC Voltage | G16: 7 | H16: 6.21 | I16: BOOST | J16: 2 | K16: 10 | L16: 13.92243693 | M16: 13.75350803 | N16: 1 | O16: 0.2729127743 | P16: 2.009894524 | Q16: 13.93452151 | R16: 2.298796366 | S16: 0.03503743982 | T16: 2.333833806 | U16: 6.136891584 | V16: 0.1129843149 | W16: 0.1129843149 | X16: 0.5802065722 | Y16: 0.001009918999 | Z16: 0.001009918999 | AA16: 13.93452151 | AB16: 1.106774071 | AC16: 0 | AD16: 0 | AE16: 1.421410023 | AF16: 0 | AG16: 0 | AH16: 0 | AI16: 0 | AJ16: 7.279540934 | AK16: 0.1006842608 | AL16: 0.04420425434 | AM16: 0 | AN16: 0.1478660724 | AO16: 11.88188426 | AP16: 0.2682404297 | AQ16: 0.1336553945 | AR16: 0.424679042 | AS16: 1.106774071 | AT16: 0 | AU16: 0.032868 | AV16: 0.1324792905 | AW16: 0.499 | AX16: 0.0249 | AY16: 0.043824 | AZ16: 0.00504 | BA16: 0.068724 | BB16: 5.174854468 | BC16: 83 | BD16: 0.9413114487 | BE16: 9.036703618 | BF16: 21.2339521 | BH16: 94.13114487 | BI16: 2.333833806 | BJ16: 2.026823137 | BK16: 0.01084644 | BL16: 0.1324792905 | BP16: 1Mhz / 12-1.2V/ 10A | BQ16: 25 | BR16: 25 | BS16: 25 | BT16: =1000000*(12-Vdd)*BS16/1000000000+((1000000*BS9/1000000000*Vdd)*2.5/(2*4)) -> 0.2765625 | BU16: 22.125 | BV16: 27.65625 | BW16: 33.1875 | BX16: 38.71875 | BY16: 44.25 | BZ16: 49.78125 | CA16: 5.53125 | CB16: 8.296875 | CC16: 11.0625 | CD16: 13.828125
A17: Components | B17: Input Value | C17: Units | D17: Description | G17: 8 | H17: 6.24 | I17: BOOST | J17: 2 | K17: 10 | L17: 13.85550214 | M17: 13.68328377 | N17: 1 | O17: 0.2691812747 | P17: 1.992627835 | Q17: 13.8674374 | R17: 2.272701121 | S17: 0.03434781424 | T17: 2.307048936 | U17: 6.079038602 | V17: 0.110864131 | W17: 0.110864131 | X17: 0.5752221084 | Y17: 0.0009926414218 | Z17: 0.0009926414218 | AA17: 13.8674374 | AB17: 1.096143174 | AC17: 0 | AD17: 0 | AE17: 1.403923379 | AF17: 0 | AG17: 0 | AH17: 0 | AI17: 0 | AJ17: 7.19479852 | AK17: 0.0983537389 | AL17: 0.04399173389 | AM17: 0 | AN17: 0.1452016988 | AO17: 11.85498605 | AP17: 0.267027319 | AQ17: 0.1330128205 | AR17: 0.4226098125 | AS17: 1.096143174 | AT17: 0 | AU17: 0.032868 | AV17: 0.1294128143 | AW17: 0.499 | AX17: 0.0249 | AY17: 0.043824 | AZ17: 0.00504 | BA17: 0.068724 | BB17: 5.120645413 | BC17: 83 | BD17: 0.941890514 | BE17: 8.903484939 | BF17: 21.13049063 | BH17: 94.1890514 | BI17: 2.307048936 | BJ17: 2.004602891 | BK17: 0.01084644 | BL17: 0.1294128143 | BP17: 500kHz / 18-1.2V / 20A | BQ17: 50 | BR17: 50 | BS17: 50 | BT17: =500000*(18-Vdd)*BS17/1000000000+((500000*BS15/1000000000*Vdd)*2.5/(2*4)) -> 0.2859375 | BU17: 22.875 | BV17: 28.59375 | BW17: 34.3125 | BX17: 40.03125 | BY17: 45.75 | BZ17: 51.46875 | CA17: 5.71875 | CB17: 8.578125 | CC17: 11.4375 | CD17: 14.296875
A18: L | B18: =Lf*1000000 -> 6.8 | C18: uH | D18: Filter Inductance | G18: 9 | H18: 6.27 | I18: BOOST | J18: 2 | K18: 10 | L18: 13.78920787 | M18: 13.61379382 | N18: 1 | O18: 0.2654508997 | P18: 1.975083323 | Q18: 13.8009903 | R18: 2.24706773 | S18: 0.03365502905 | T18: 2.280722759 | U18: 6.021246981 | V18: 0.1087662456 | W18: 0.1087662456 | X18: 0.570157444 | Y18: 0.0009752385329 | Z18: 0.0009752385329 | AA18: 13.8009903 | AB18: 1.085663799 | AC18: 0 | AD18: 0 | AE18: 1.386778937 | AF18: 0 | AG18: 0 | AH18: 0 | AI18: 0 | AJ18: 7.110536193 | AK18: 0.09606347741 | AL18: 0.04378124712 | AM18: 0 | AN18: 0.1425841504 | AO18: 11.82825466 | AP18: 0.2658244556 | AQ18: 0.1323763955 | AR18: 0.4205598708 | AS18: 1.085663799 | AT18: 0 | AU18: 0.032868 | AV18: 0.1263993124 | AW18: 0.499 | AX18: 0.0249 | AY18: 0.043824 | AZ18: 0.00504 | BA18: 0.068724 | BB18: 5.067378513 | BC18: 83 | BD18: 0.9424602095 | BE18: 8.77260752 | BF18: 21.02799354 | BH18: 94.24602095 | BI18: 2.280722759 | BJ18: 1.982790958 | BK18: 0.01084644 | BL18: 0.1263993124 | BP18: θJA=120°C/W - 160°C/W
A19: Rdcr | B19: =Rdcr*1000 -> 10 | C19: mW | D19: Inductor DCR at 25°C | G19: 10 | H19: 6.3 | I19: BOOST | J19: 2 | K19: 10 | L19: 13.72354497 | M19: 13.54502644 | N19: 1 | O19: 0.2617216333 | P19: 1.957261164 | Q19: 13.73517113 | R19: 2.221884881 | S19: 0.03295944913 | T19: 2.25484433 | U19: 5.963508666 | V19: 0.1066903068 | W19: 0.1066903068 | X19: 0.5650126301 | Y19: 0.0009577178164 | Z19: 0.0009577178164 | AA19: 13.73517113 | AB19: 1.075333078 | AC19: 0 | AD19: 0 | AE19: 1.369967311 | AF19: 0 | AG19: 0 | AH19: 0 | AI19: 0 | AJ19: 7.026740023 | AK19: 0.09381264316 | AL19: 0.043572765 | AM19: 0 | AN19: 0.1400123947 | AO19: 11.80168846 | AP19: 0.2646317161 | AQ19: 0.1317460317 | AR19: 0.4185289549 | AS19: 1.075333078 | AT19: 0 | AU19: 0.032868 | AV19: 0.1234376884 | AW19: 0.499 | AX19: 0.0249 | AY19: 0.043824 | AZ19: 0.00504 | BA19: 0.068724 | BB19: 5.015030704 | BC19: 83 | BD19: 0.943020747 | BE19: 8.644019736 | BF19: 20.92644775 | BH19: 94.3020747 | BI19: 2.25484433 | BJ19: 1.96137666 | BK19: 0.01084644 | BL19: 0.1234376884 | BP19: θJA=30°C/W - 50°C/W
A20: LTc | B20: =Ltc*1000000 -> 4000 | C20: ppm | D20: Inductor Series Resistance Temp Co | G20: 11 | H20: 6.33 | I20: BOOST | J20: 2 | K20: 10 | L20: 13.65850448 | M20: 13.47697016 | N20: 1 | O20: 0.2579934597 | P20: 1.939161532 | Q20: 13.66997099 | R20: 2.197141625 | S20: 0.03226144269 | T20: 2.229403067 | U20: 5.905815498 | V20: 0.1046359701 | W20: 0.1046359701 | X20: 0.5597877163 | Y20: 0.000940086862 | Z20: 0.000940086862 | AA20: 13.66997099 | AB20: 1.065148209 | AC20: 0 | AD20: 0 | AE20: 1.353479451 | AF20: 0 | AG20: 0 | AH20: 0 | AI20: 0 | AJ20: 6.943396098 | AK20: 0.09160042382 | AL20: 0.043366259 | AM20: 0 | AN20: 0.1374854275 | AO20: 11.77528587 | AP20: 0.2634489791 | AQ20: 0.131121643 | AR20: 0.4165168076 | AS20: 1.065148209 | AT20: 0 | AU20: 0.032868 | AV20: 0.1205268734 | AW20: 0.499 | AX20: 0.0249 | AY20: 0.043824 | AZ20: 0.00504 | BA20: 0.068724 | BB20: 4.963579684 | BC20: 83 | BD20: 0.9435723318 | BE20: 8.517671375 | BF20: 20.82584038 | BH20: 94.35723318 | BI20: 2.229403067 | BJ20: 1.940349687 | BK20: 0.01084644 | BL20: 0.1205268734
A21: ThetaCa | B21: =ThetaCa -> 20 | C21: °C/W | D21: Core to Ambient Thermal Resistance | G21: 12 | H21: 6.36 | I21: BOOST | J21: 2 | K21: 10 | L21: 13.59407757 | M21: 13.40961371 | N21: 1 | O21: 0.2542663632 | P21: 1.920784596 | Q21: 13.60538114 | R21: 2.172827353 | S21: 0.03156138114 | T21: 2.204388734 | U21: 5.848159203 | V21: 0.1026028982 | W21: 0.1026028982 | X21: 0.5544827517 | Y21: 0.0009223533658 | Z21: 0.0009223533658 | AA21: 13.60538114 | AB21: 1.055106457 | AC21: 0 | AD21: 0 | AE21: 1.33730663 | AF21: 0 | AG21: 0 | AH21: 0 | AI21: 0 | AJ21: 6.860490517 | AK21: 0.08942602725 | AL21: 0.04316170117 | AM21: 0 | AN21: 0.1350022718 | AO21: 11.74904532 | AP21: 0.2622761252 | AQ21: 0.1305031447 | AR21: 0.4145231764 | AS21: 1.055106457 | AT21: 0 | AU21: 0.032868 | AV21: 0.1176658253 | AW21: 0.499 | AX21: 0.0249 | AY21: 0.043824 | AZ21: 0.00504 | BA21: 0.068724 | BB21: 4.913003889 | BC21: 83 | BD21: 0.944115163 | BE21: 8.39351359 | BF21: 20.72615882 | BH21: 94.4115163 | BI21: 2.204388734 | BJ21: 1.919700078 | BK21: 0.01084644 | BL21: 0.1176658253
A22: Cin | B22: =Cin*1000000 -> 1120 | C22: μF | D22: Input Capacitance | G22: 13 | H22: 6.39 | I22: BOOST | J22: 2 | K22: 10 | L22: 13.53025561 | M22: 13.3429461 | N22: 1 | O22: 0.2505403287 | P22: 1.902130521 | Q22: 13.54139303 | R22: 2.14893179 | S22: 0.03085963902 | T22: 2.179791429 | U22: 5.790531379 | V22: 0.100590761 | W22: 0.100590761 | X22: 0.5490977841 | Y22: 0.0009045251297 | Z22: 0.0009045251297 | AA22: 13.54139303 | AB22: 1.045205154 | AC22: 0 | AD22: 0 | AE22: 1.321440421 | AF22: 0 | AG22: 0 | AH22: 0 | AI22: 0 | AJ22: 6.778009369 | AK22: 0.08728868092 | AL22: 0.04295906408 | AM22: 0 | AN22: 0.132561977 | AO22: 11.72296525 | AP22: 0.2611130369 | AQ22: 0.1298904538 | AR22: 0.4125478132 | AS22: 1.045205154 | AT22: 0 | AU22: 0.032868 | AV22: 0.1148535275 | AW22: 0.499 | AX22: 0.0249 | AY22: 0.043824 | AZ22: 0.00504 | BA22: 0.068724 | BB22: 4.863282454 | BC22: 83 | BD22: 0.9446494336 | BE22: 8.271498851 | BF22: 20.62739066 | BH22: 94.46494336 | BI22: 2.179791429 | BJ22: 1.899418212 | BK22: 0.01084644 | BL22: 0.1148535275
A23: RCinEsr | B23: =RCinEsr*1000 -> 3 | C23: mW | D23: Input Capacitor ESR | G23: 14 | H23: 6.42 | I23: BOOST | J23: 2 | K23: 10 | L23: 13.46703011 | M23: 13.27695657 | N23: 1 | O23: 0.2468153413 | P23: 1.883199471 | Q23: 13.47799825 | R23: 2.125444977 | S23: 0.03015659385 | T23: 2.155601571 | U23: 5.73292349 | V23: 0.09859923523 | W23: 0.09859923523 | X23: 0.5436328607 | Y23: 0.0008866100617 | Z23: 0.0008866100617 | AA23: 13.47799825 | AB23: 1.03544169 | AC23: 0 | AD23: 0 | AE23: 1.305872696 | AF23: 0 | AG23: 0 | AH23: 0 | AI23: 0 | AJ23: 6.695938727 | AK23: 0.08518763133 | AL23: 0.04275832079 | AM23: 0 | AN23: 0.1301636182 | AO23: 11.69704413 | AP23: 0.2599595986 | AQ23: 0.1292834891 | AR23: 0.4105904747 | AS23: 1.03544169 | AT23: 0 | AU23: 0.032868 | AV23: 0.1120889886 | AW23: 0.499 | AX23: 0.0249 | AY23: 0.043824 | AZ23: 0.00504 | BA23: 0.068724 | BB23: 4.814395193 | BC23: 83 | BD23: 0.9451753305 | BE23: 8.151580909 | BF23: 20.52952373 | BH23: 94.51753305 | BI23: 2.155601571 | BJ23: 1.879494789 | BK23: 0.01084644 | BL23: 0.1120889886
A24: Cout | B24: =Cout*1000000 -> 2500 | C24: μF | D24: Output Capcitance | G24: 15 | H24: 6.45 | I24: BOOST | J24: 2 | K24: 10 | L24: 13.40439276 | M24: 13.21163456 | N24: 1 | O24: 0.2430913861 | P24: 1.863991605 | Q24: 13.41518856 | R24: 2.102357263 | S24: 0.02945262605 | T24: 2.131809889 | U24: 5.675326848 | V24: 0.09662800451 | W24: 0.09662800451 | X24: 0.5380880275 | Y24: 0.000868616176 | Z24: 0.000868616176 | AA24: 13.41518856 | AB24: 1.025813519 | AC24: 0 | AD24: 0 | AE24: 1.290595603 | AF24: 0 | AG24: 0 | AH24: 0 | AI24: 0 | AJ24: 6.614264627 | AK24: 0.08312214346 | AL24: 0.04255944488 | AM24: 0 | AN24: 0.127806295 | AO24: 11.67128046 | AP24: 0.2588156964 | AQ24: 0.1286821705 | AR24: 0.4086509215 | AS24: 1.025813519 | AT24: 0 | AU24: 0.032868 | AV24: 0.1093712414 | AW24: 0.499 | AX24: 0.0249 | AY24: 0.043824 | AZ24: 0.00504 | BA24: 0.068724 | BB24: 4.76632257 | BC24: 83 | BD24: 0.9456930354 | BE24: 8.033714749 | BF24: 20.43254607 | BH24: 94.56930354 | BI24: 2.131809889 | BJ24: 1.859920819 | BK24: 0.01084644 | BL24: 0.1093712414
A25: RCoutEsr | B25: =CoutEsr*1000 -> 3 | C25: mW | D25: Output Capacitor ESR | G25: 16 | H25: 6.48 | I25: BOOST | J25: 2 | K25: 10 | L25: 13.34233539 | M25: 13.14696976 | N25: 1 | O25: 0.239368449 | P25: 1.844507081 | Q25: 13.35295589 | R25: 2.079659291 | S25: 0.02874811878 | T25: 2.108407409 | U25: 5.617732604 | V25: 0.09467675882 | W25: 0.09467675882 | X25: 0.5324633298 | Y25: 0.0008505515927 | Z25: 0.0008505515927 | AA25: 13.35295589 | AB25: 1.016318156 | AC25: 0 | AD25: 0 | AE25: 1.275601561 | AF25: 0 | AG25: 0 | AH25: 0 | AI25: 0 | AJ25: 6.532973057 | AK25: 0.08109150022 | AL25: 0.04236241041 | AM25: 0 | AN25: 0.125489131 | AO25: 11.64567276 | AP25: 0.2576812185 | AQ25: 0.1280864198 | AR25: 0.4067289189 | AS25: 1.016318156 | AT25: 0 | AU25: 0.032868 | AV25: 0.1066993424 | AW25: 0.499 | AX25: 0.0249 | AY25: 0.043824 | AZ25: 0.00504 | BA25: 0.068724 | BB25: 4.719045673 | BC25: 83 | BD25: 0.9462027244 | BE25: 7.917856551 | BF25: 20.33644594 | BH25: 94.62027244 | BI25: 2.108407409 | BJ25: 1.840687611 | BK25: 0.01084644 | BL25: 0.1066993424 | BP25: EFF_1 @ 25°C | BQ25: Vin | BR25: Iout | BS25: Vout | BT25: Efficiency | BU25: Pdis
A26: Top Driver | B26: Input Value | C26: Units | D26: Description | G26: 17 | H26: 6.51 | I26: BOOST | J26: 2 | K26: 10 | L26: 13.28084997 | M26: 13.08295207 | N26: 1 | O26: 0.2356465156 | P26: 1.824746052 | Q26: 13.2912923 | R26: 2.057341988 | S26: 0.02804345784 | T26: 2.085385446 | U26: 5.56013173 | V26: 0.09274519457 | W26: 0.09274519457 | X26: 0.526758812 | Y26: 0.0008324245382 | Z26: 0.0008324245382 | AA26: 13.2912923 | AB26: 1.00695317 | AC26: 0 | AD26: 0 | AE26: 1.260883246 | AF26: 0 | AG26: 0 | AH26: 0 | AI26: 0 | AJ26: 6.452049938 | AK26: 0.07909500198 | AL26: 0.04216719193 | AM26: 0 | AN26: 0.1232112731 | AO26: 11.62021955 | AP26: 0.2565560547 | AQ26: 0.1274961598 | AR26: 0.4048242362 | AS26: 1.00695317 | AT26: 0 | AU26: 0.032868 | AV26: 0.104072371 | AW26: 0.499 | AX26: 0.0249 | AY26: 0.043824 | AZ26: 0.00504 | BA26: 0.068724 | BB26: 4.672546191 | BC26: 83 | BD26: 0.9467045684 | BE26: 7.803963654 | BF26: 20.24121181 | BH26: 94.67045684 | BI26: 2.085385446 | BJ26: 1.821786756 | BK26: 0.01084644 | BL26: 0.104072371 | BP26: Vin=10V | BQ26: 9.998964 | BR26: 0.1027 | BS26: 5.121136 | BT26: 61.87068324 | BU26: 324.123657
A27: RdsonDRT | B27: =RdsonDRT -> 1.5 | C27: W | D27: Drain to Source Resistance of pullup Top FET Driver | G27: 18 | H27: 6.54 | I27: BOOST | J27: 2 | K27: 10 | L27: 13.21992864 | M27: 13.01957159 | N27: 1 | O27: 0.2319255722 | P27: 1.804708668 | Q27: 13.23019001 | R27: 2.035396554 | S27: 0.02733903155 | T27: 2.062735586 | U27: 5.502515012 | V27: 0.09083301436 | W27: 0.09083301436 | X27: 0.5209745178 | Y27: 0.0008142433445 | Z27: 0.0008142433445 | AA27: 13.23019001 | AB27: 0.9977161885 | AC27: 0 | AD27: 0 | AE27: 1.246433581 | AF27: 0 | AG27: 0 | AH27: 0 | AI27: 0 | AJ27: 6.371481113 | AK27: 0.07713196599 | AL27: 0.04197376445 | AM27: 0 | AN27: 0.1209718904 | AO27: 11.59491941 | AP27: 0.2554400968 | AQ27: 0.126911315 | AR27: 0.4029366471 | AS27: 0.9977161885 | AT27: 0 | AU27: 0.032868 | AV27: 0.1014894289 | AW27: 0.499 | AX27: 0.0249 | AY27: 0.043824 | AZ27: 0.00504 | BA27: 0.068724 | BB27: 4.626806391 | BC27: 83 | BD27: 0.9471987331 | BE27: 7.691994519 | BF27: 20.14683235 | BH27: 94.71987331 | BI27: 2.062735586 | BJ27: 1.803210118 | BK27: 0.01084644 | BL27: 0.1014894289 | BP27: Vout=5.1V | BQ27: 9.998667 | BR27: 0.1166 | BS27: 5.121298 | BT27: 64.72942057 | BU27: 325.3788646
A28: RdsonDRT2 | B28: =RdsonDRT2 -> 1 | C28: W | D28: Drain to Source Resistance of pulldown Top FET Driver | G28: 19 | H28: 6.57 | I28: BOOST | J28: 2 | K28: 10 | L28: 13.15956367 | M28: 12.95681864 | N28: 1 | O28: 0.2282056052 | P28: 1.78439508 | Q28: 13.16964141 | R28: 2.013814454 | S28: 0.02663523059 | T28: 2.040449684 | U28: 5.444873026 | V28: 0.0889399268 | W28: 0.0889399268 | X28: 0.5151104898 | Y28: 0.0007960164501 | Z28: 0.0007960164501 | AA28: 13.16964141 | AB28: 0.9886048929 | AC28: 0 | AD28: 0 | AE28: 1.232245723 | AF28: 0 | AG28: 0 | AH28: 0 | AI28: 0 | AJ28: 6.291252321 | AK28: 0.07520172596 | AL28: 0.04178210342 | AM28: 0 | AN28: 0.1187701738 | AO28: 11.56977092 | AP28: 0.2543332383 | AQ28: 0.1263318113 | AR28: 0.4010659289 | AS28: 0.9886048929 | AT28: 0 | AU28: 0.032868 | AV28: 0.09894963942 | AW28: 0.499 | AX28: 0.0249 | AY28: 0.043824 | AZ28: 0.00504 | BA28: 0.068724 | BB28: 4.581809093 | BC28: 83 | BD28: 0.9476853796 | BE28: 7.58190869 | BF28: 20.05329644 | BH28: 94.76853796 | BI28: 2.040449684 | BJ28: 1.784949826 | BK28: 0.01084644 | BL28: 0.09894963942 | BP28: L=3.3uH/30mOhm | BQ28: 9.998766 | BR28: 0.1466 | BS28: 5.121323 | BT28: 69.88537692 | BU28: 323.5244619
A29: Bottom Driver | B29: Input Value | C29: Units | D29: Description | G29: 20 | H29: 6.6 | I29: BOOST | J29: 2 | K29: 10 | L29: 13.09974747 | M29: 12.89468372 | N29: 1 | O29: 0.2244866011 | P29: 1.763805431 | Q29: 13.109639 | R29: 1.992587404 | S29: 0.02593244789 | T29: 2.018519852 | U29: 5.387196128 | V29: 0.08706564636 | W29: 0.08706564636 | X29: 0.5091667701 | Y29: 0.0007777523992 | Z29: 0.0007777523992 | AA29: 13.109639 | AB29: 0.9796170178 | AC29: 0 | AD29: 0 | AE29: 1.218313059 | AF29: 0 | AG29: 0 | AH29: 0 | AI29: 0 | AJ29: 6.211349187 | AK29: 0.07330363158 | AL29: 0.04159218477 | AM29: 0 | AN29: 0.1166053353 | AO29: 11.54477267 | AP29: 0.2532353744 | AQ29: 0.1257575758 | AR29: 0.3992118632 | AS29: 0.9796170178 | AT29: 0 | AU29: 0.032868 | AV29: 0.09645214682 | AW29: 0.499 | AX29: 0.0249 | AY29: 0.043824 | AZ29: 0.00504 | BA29: 0.068724 | BB29: 4.537537655 | BC29: 83 | BD29: 0.9481646643 | BE29: 7.473666763 | BF29: 19.96059316 | BH29: 94.81646643 | BI29: 2.018519852 | BJ29: 1.766998257 | BK29: 0.01084644 | BL29: 0.09645214682 | BP29: 4394 Top and Bottom Fets | BQ29: 9.99879 | BR29: 0.1958 | BS29: 5.12176 | BT29: 75.66251657 | BU29: 322.5719977
A30: RdsonDRB | B30: =RdsonDRB -> 1.5 | C30: W | D30: Drain to Source Resistance of pullup Bottom FET Driver | G30: 21 | H30: 6.63 | I30: BOOST | J30: 2 | K30: 10 | L30: 13.0404726 | M30: 12.83315754 | N30: 1 | O30: 0.2207685469 | P30: 1.742939864 | Q30: 13.05017544 | R30: 1.971707367 | S30: 0.02523107848 | T30: 1.996938445 | U30: 5.329474434 | V30: 0.08520989323 | W30: 0.08520989323 | X30: 0.5031433998 | Y30: 0.0007594598423 | Z30: 0.0007594598423 | AA30: 13.05017544 | AB30: 0.9707503497 | AC30: 0 | AD30: 0 | AE30: 1.204629191 | AF30: 0 | AG30: 0 | AH30: 0 | AI30: 0 | AJ30: 6.131757198 | AK30: 0.07143704804 | AL30: 0.04140398484 | AM30: 0 | AN30: 0.1144766071 | AO30: 11.51992329 | AP30: 0.2521464019 | AQ30: 0.125188537 | AR30: 0.3973742355 | AS30: 0.9707503497 | AT30: 0 | AU30: 0.032868 | AV30: 0.09399611584 | AW30: 0.499 | AX30: 0.0249 | AY30: 0.043824 | AZ30: 0.00504 | BA30: 0.068724 | BB30: 4.493975948 | BC30: 83 | BD30: 0.9486367387 | BE30: 7.367230353 | BF30: 19.86871178 | BH30: 94.86367387 | BI30: 1.996938445 | BJ30: 1.749348034 | BK30: 0.01084644 | BL30: 0.09399611584 | BQ30: 9.998766 | BR30: 0.2681 | BS30: 5.122408 | BT30: 80.95755345 | BU30: 323.0250607
A31: RdsonDRB2 | B31: 1 | C31: W | D31: Drain to Source Resistance of pulldown Bottom FET Driver | G31: 22 | H31: 6.66 | I31: BOOST | J31: 2 | K31: 10 | L31: 12.98173173 | M31: 12.772231 | N31: 1 | O31: 0.2170514297 | P31: 1.72179852 | Q31: 12.99124351 | R31: 1.951166539 | S31: 0.02453151932 | T31: 1.975698059 | U31: 5.271697802 | V31: 0.08337239316 | W31: 0.08337239316 | X31: 0.4970404194 | Y31: 0.0007411475357 | Z31: 0.0007411475357 | AA31: 12.99124351 | AB31: 0.9620027252 | AC31: 0 | AD31: 0 | AE31: 1.191187933 | AF31: 0 | AG31: 0 | AH31: 0 | AI31: 0 | AJ31: 6.052461683 | AK31: 0.06960135562 | AL31: 0.0412174804 | AM31: 0 | AN31: 0.1123832412 | AO31: 11.49522142 | AP31: 0.2510662195 | AQ31: 0.1246246246 | AR31: 0.3955528351 | AS31: 0.9620027252 | AT31: 0 | AU31: 0.032868 | AV31: 0.09158073107 | AW31: 0.499 | AX31: 0.0249 | AY31: 0.043824 | AZ31: 0.00504 | BA31: 0.068724 | BB31: 4.45110834 | BC31: 83 | BD31: 0.9491017504 | BE31: 7.26256206 | BF31: 19.77764175 | BH31: 94.91017504 | BI31: 1.975698059 | BJ31: 1.731992009 | BK31: 0.01084644 | BL31: 0.09158073107 | BQ31: 9.998704 | BR31: 0.3655 | BS31: 5.123094 | BT31: 85.41902227 | BU31: 319.6330069
A32: Deadtime | B32: Input Value | C32: Units | D32: Description | G32: 23 | H32: 6.69 | I32: BOOST | J32: 2 | K32: 10 | L32: 12.92351769 | M32: 12.71189516 | N32: 1 | O32: 0.2133352367 | P32: 1.700381536 | Q32: 12.93283615 | R32: 1.930957348 | S32: 0.0238341692 | T32: 1.954791517 | U32: 5.213855813 | V32: 0.0815528773 | W32: 0.0815528773 | X32: 0.4908578687 | Y32: 0.0007228243417 | Z32: 0.0007228243417 | AA32: 12.93283615 | AB32: 0.95337203 | AC32: 0 | AD32: 0 | AE32: 1.177983295 | AF32: 0 | AG32: 0 | AH32: 0 | AI32: 0 | AJ32: 5.973447794 | AK32: 0.06779594923 | AL32: 0.04103264865 | AM32: 0 | AN32: 0.1103245088 | AO32: 11.47066573 | AP32: 0.2499947274 | AQ32: 0.1240657698 | AR32: 0.3937474548 | AS32: 0.95337203 | AT32: 0 | AU32: 0.032868 | AV32: 0.08920519636 | AW32: 0.499 | AX32: 0.0249 | AY32: 0.043824 | AZ32: 0.00504 | BA32: 0.068724 | BB32: 4.408919674 | BC32: 83 | BD32: 0.9495598425 | BE32: 7.159625442 | BF32: 19.68737274 | BH32: 94.95598425 | BI32: 1.954791517 | BJ32: 1.714923259 | BK32: 0.01084644 | BL32: 0.08920519636 | BQ32: 9.998729 | BR32: 0.4906 | BS32: 5.123817 | BT32: 88.55185027 | BU32: 324.9815318
A33: Deadtime | B33: =Deadtime*1000000000 -> 50 | C33: ns | D33: Total Deadtime | G33: 24 | H33: 6.72 | I33: BOOST | J33: 2 | K33: 10 | L33: 12.86582341 | M33: 12.6521413 | N33: 1 | O33: 0.2096199557 | P33: 1.678689047 | Q33: 12.87494641 | R33: 1.911072435 | S33: 0.02313942853 | T33: 1.934211864 | U33: 5.155937745 | V33: 0.07975108208 | W33: 0.07975108208 | X33: 0.4845957865 | Y33: 0.0007044992288 | Z33: 0.0007044992288 | AA33: 12.87494641 | AB33: 0.9448561974 | AC33: 0 | AD33: 0 | AE33: 1.165009484 | AF33: 0 | AG33: 0 | AH33: 0 | AI33: 0 | AJ33: 5.894700478 | AK33: 0.06602023807 | AL33: 0.04084946718 | AM33: 0 | AN33: 0.1082996996 | AO33: 11.44625491 | AP33: 0.2489318277 | AQ33: 0.1235119048 | AR33: 0.3919578914 | AS33: 0.9448561974 | AT33: 0 | AU33: 0.032868 | AV33: 0.0868687343 | AW33: 0.499 | AX33: 0.0249 | AY33: 0.043824 | AZ33: 0.00504 | BA33: 0.068724 | BB33: 4.367395254 | BC33: 83 | BD33: 0.9500111541 | BE33: 7.058384982 | BF33: 19.59789457 | BH33: 95.00111541 | BI33: 1.934211864 | BJ33: 1.698135075 | BK33: 0.01084644 | BL33: 0.0868687343 | BQ33: 9.998642 | BR33: 0.6455 | BS33: 5.12373 | BT33: 90.41893857 | BU33: 350.4584847
A34: IQ | B34: Input Value | C34: Units | D34: Description | G34: 25 | H34: 6.75 | I34: BOOST | J34: 2 | K34: 10 | L34: 12.80864198 | M34: 12.59296083 | N34: 1 | O34: 0.2059055743 | P34: 1.656721185 | Q34: 12.81756749 | R34: 1.891504659 | S34: 0.02244769923 | T34: 1.913952358 | U34: 5.097932557 | V34: 0.07796674907 | W34: 0.07796674907 | X34: 0.4782542111 | Y34: 0.0006861812713 | Z34: 0.0006861812713 | AA34: 12.81756749 | AB34: 0.9364532071 | AC34: 0 | AD34: 0 | AE34: 1.152260888 | AF34: 0 | AG34: 0 | AH34: 0 | AI34: 0 | AJ34: 5.816204457 | AK34: 0.06427364513 | AL34: 0.040667914 | AM34: 0 | AN34: 0.1063081212 | AO34: 11.42198766 | AP34: 0.2478774239 | AQ34: 0.122962963 | AR34: 0.3901839451 | AS34: 0.9364532071 | AT34: 0 | AU34: 0.032868 | AV34: 0.0845705857 | AW34: 0.499 | AX34: 0.0249 | AY34: 0.043824 | AZ34: 0.00504 | BA34: 0.068724 | BB34: 4.326520828 | BC34: 83 | BD34: 0.9504558204 | BE34: 6.958806061 | BF34: 19.50919726 | BH34: 95.04558204 | BI34: 1.913952358 | BJ34: 1.681620954 | BK34: 0.01084644 | BL34: 0.0845705857 | BQ34: 9.998605 | BR34: 0.8324 | BS34: 5.123156 | BT34: 91.67894636 | BU34: 387.0599604
A35: IQ | B35: =Iq*1000 -> 3 | C35: mA | D35: Quiescent Current Of Controller (Not Switching!) | G35: 26 | H35: 6.78 | I35: BOOST | J35: 2 | K35: 10 | L35: 12.75196657 | M35: 12.53434537 | N35: 1 | O35: 0.2021920806 | P35: 1.634478082 | Q35: 12.76069269 | R35: 1.872247078 | S35: 0.0217593845 | T35: 1.894006462 | U35: 5.039828861 | V35: 0.07619962483 | W35: 0.07619962483 | X35: 0.4718331802 | Y35: 0.0006678796497 | Z35: 0.0006678796497 | AA35: 12.76069269 | AB35: 0.9281610841 | AC35: 0 | AD35: 0 | AE35: 1.139732076 | AF35: 0 | AG35: 0 | AH35: 0 | AI35: 0 | AJ35: 5.737944199 | AK35: 0.0625556069 | AL35: 0.04048796747 | AM35: 0 | AN35: 0.1043490986 | AO35: 11.39786271 | AP35: 0.2468314211 | AQ35: 0.1224188791 | AR35: 0.3884254199 | AS35: 0.9281610841 | AT35: 0 | AU35: 0.032868 | AV35: 0.08231000908 | AW35: 0.499 | AX35: 0.0249 | AY35: 0.043824 | AZ35: 0.00504 | BA35: 0.068724 | BB35: 4.28628257 | BC35: 83 | BD35: 0.9508939728 | BE35: 6.860854931 | BF35: 19.42127099 | BH35: 95.08939728 | BI35: 1.894006462 | BJ35: 1.665374594 | BK35: 0.01084644 | BL35: 0.08231000908 | BQ35: 9.998605 | BR35: 1.0529 | BS35: 5.121822 | BT35: 92.88993897 | BU35: 412.7776298
A36: High-side FET | B36: Input Value | C36: Units | D36: Description | G36: 27 | H36: 6.81 | I36: BOOST | J36: 2 | K36: 10 | L36: 12.6957905 | M36: 12.47628668 | N36: 1 | O36: 0.1984794628 | P36: 1.611959864 | Q36: 12.70431545 | R36: 1.853292949 | S36: 0.02107488871 | T36: 1.874367838 | U36: 4.981614892 | V36: 0.07444946081 | W36: 0.07444946081 | X36: 0.4653327306 | Y36: 0.0006496036504 | Z36: 0.0006496036504 | AA36: 12.70431545 | AB36: 0.9199778971 | AC36: 0 | AD36: 0 | AE36: 1.127417786 | AF36: 0 | AG36: 0 | AH36: 0 | AI36: 0 | AJ36: 5.659903892 | AK36: 0.06086557294 | AL36: 0.04030960638 | AM36: 0 | AN36: 0.1024219737 | AO36: 11.3738788 | AP36: 0.2457937261 | AQ36: 0.1218795888 | AR36: 0.3866821229 | AS36: 0.9199778971 | AT36: 0 | AU36: 0.032868 | AV36: 0.08008628018 | AW36: 0.499 | AX36: 0.0249 | AY36: 0.043824 | AZ36: 0.00504 | BA36: 0.068724 | BB36: 4.246667065 | BC36: 83 | BD36: 0.9513257388 | BE36: 6.764498687 | BF36: 19.33410615 | BH36: 95.13257388 | BI36: 1.874367838 | BJ36: 1.649389883 | BK36: 0.01084644 | BL36: 0.08008628018 | BQ36: 9.998667 | BR36: 1.3093 | BS36: 5.119565 | BT36: 93.69036421 | BU36: 451.4207279
A37: RdsonTop | B37: =Rdson1*1000 -> 5.7 | C37: mW | D37: Drain-Source Resistance of Top FET | G37: 28 | H37: 6.84 | I37: BOOST | J37: 2 | K37: 10 | L37: 12.64010721 | M37: 12.41877669 | N37: 1 | O37: 0.1947677094 | P37: 1.589166657 | Q37: 12.64842933 | R37: 1.834635721 | S37: 0.02039461716 | T37: 1.855030339 | U37: 4.923278487 | V37: 0.07271601319 | W37: 0.07271601319 | X37: 0.4587528985 | Y37: 0.0006313626657 | Z37: 0.0006313626657 | AA37: 12.64842933 | AB37: 0.911901758 | AC37: 0 | AD37: 0 | AE37: 1.115312921 | AF37: 0 | AG37: 0 | AH37: 0 | AI37: 0 | AJ37: 5.582067412 | AK37: 0.05920300552 | AL37: 0.04013280986 | AM37: 0 | AN37: 0.1005261049 | AO37: 11.35003471 | AP37: 0.2447642472 | AQ37: 0.1213450292 | AR37: 0.384953865 | AS37: 0.911901758 | AT37: 0 | AU37: 0.032868 | AV37: 0.07789869148 | AW37: 0.499 | AX37: 0.0249 | AY37: 0.043824 | AZ37: 0.00504 | BA37: 0.068724 | BB37: 4.207661296 | BC37: 83 | BD37: 0.9517512426 | BE37: 6.669705245 | BF37: 19.24769325 | BH37: 95.17512426 | BI37: 1.855030339 | BJ37: 1.633660891 | BK37: 0.01084644 | BL37: 0.07789869148 | BQ37: 9.998543 | BR37: 1.602 | BS37: 5.118281 | BT37: 93.86447333 | BU37: 535.9658972
A38: RdsonTopTc | B38: =RdsonTopTc*1000000 -> 4000 | C38: ppm | D38: Drain to Source Resistance Temp Co | G38: 29 | H38: 6.87 | I38: BOOST | J38: 2 | K38: 10 | L38: 12.58491024 | M38: 12.36180749 | N38: 1 | O38: 0.1910568089 | P38: 1.566098584 | Q38: 12.59302801 | R38: 1.816269025 | S38: 0.01971897595 | T38: 1.835988001 | U38: 4.864807046 | V38: 0.07099904279 | W38: 0.07099904279 | X38: 0.4520937197 | Y38: 0.0006131661941 | Z38: 0.0006131661941 | AA38: 12.59302801 | AB38: 0.9039308202 | AC38: 0 | AD38: 0 | AE38: 1.103412541 | AF38: 0 | AG38: 0 | AH38: 0 | AI38: 0 | AJ38: 5.504418289 | AK38: 0.05756737932 | AL38: 0.03995755742 | AM38: 0 | AN38: 0.09866086625 | AO38: 11.32632923 | AP38: 0.2437428941 | AQ38: 0.1208151383 | AR38: 0.3832404601 | AS38: 0.9039308202 | AT38: 0 | AU38: 0.032868 | AV38: 0.07574655174 | AW38: 0.499 | AX38: 0.0249 | AY38: 0.043824 | AZ38: 0.00504 | BA38: 0.068724 | BB38: 4.169252629 | BC38: 83 | BD38: 0.9521706049 | BE38: 6.576443312 | BF38: 19.16202301 | BH38: 95.21706049 | BI38: 1.835988001 | BJ38: 1.618181867 | BK38: 0.01084644 | BL38: 0.07574655174 | BQ38: 9.998543 | BR38: 1.935 | BS38: 5.117146 | BT38: 94.2245272 | BU38: 606.9211641
A39: QgTop | B39: =Qg_Q1*1000000000 -> 11 | C39: nC | D39: Gate Charge Of Top FET | G39: 30 | H39: 6.9 | I39: BOOST | J39: 2 | K39: 10 | L39: 12.53019324 | M39: 12.30537133 | N39: 1 | O39: 0.1873467502 | P39: 1.542755768 | Q39: 12.53810527 | R39: 1.798186669 | S39: 0.01904837172 | T39: 1.81723504 | U39: 4.806187504 | V39: 0.06929831496 | W39: 0.06929831496 | X39: 0.4453552289 | Y39: 0.0005950238397 | Z39: 0.0005950238397 | AA39: 12.53810527 | AB39: 0.8960632778 | AC39: 0 | AD39: 0 | AE39: 1.091711859 | AF39: 0 | AG39: 0 | AH39: 0 | AI39: 0 | AJ39: 5.426939674 | AK39: 0.05595818104 | AL39: 0.03978382891 | AM39: 0 | AN39: 0.09682564737 | AO39: 11.30276115 | AP39: 0.2427295782 | AQ39: 0.1202898551 | AR39: 0.3815417257 | AS39: 0.8960632778 | AT39: 0 | AU39: 0.032868 | AV39: 0.07362918557 | AW39: 0.499 | AX39: 0.0249 | AY39: 0.043824 | AZ39: 0.00504 | BA39: 0.068724 | BB39: 4.131428797 | BC39: 83 | BD39: 0.952583943 | BE39: 6.484682368 | BF39: 19.07708629 | BH39: 95.2583943 | BI39: 1.81723504 | BJ39: 1.602947232 | BK39: 0.01084644 | BL39: 0.07362918557 | BQ39: 9.998506 | BR39: 2.31 | BS39: 5.116635 | BT39: 94.4926635 | BU39: 688.8741306
A40: QgdTop | B40: =Qgd_Q1*1000000000 -> 2.9 | C40: nC | D40: Gate to Drain Charge | G40: 31 | H40: 6.93 | I40: BOOST | J40: 2 | K40: 10 | L40: 12.47594998 | M40: 12.24946059 | N40: 1 | O40: 0.1836375224 | P40: 1.519138326 | Q40: 12.48365503 | R40: 1.780382633 | S40: 0.01838321151 | T40: 1.798765844 | U40: 4.747406289 | V40: 0.06761359941 | W40: 0.06761359941 | X40: 0.4385374606 | Y40: 0.0005769453131 | Z40: 0.0005769453131 | AA40: 12.48365503 | AB40: 0.8882973646 | AC40: 0 | AD40: 0 | AE40: 1.080206235 | AF40: 0 | AG40: 0 | AH40: 0 | AI40: 0 | AJ40: 5.349614303 | AK40: 0.05437490907 | AL40: 0.03961160454 | AM40: 0 | AN40: 0.09501985278 | AO40: 11.27932931 | AP40: 0.2417242125 | AQ40: 0.1197691198 | AR40: 0.3798574824 | AS40: 0.8882973646 | AT40: 0 | AU40: 0.032868 | AV40: 0.07154593298 | AW40: 0.499 | AX40: 0.0249 | AY40: 0.043824 | AZ40: 0.00504 | BA40: 0.068724 | BB40: 4.094177892 | BC40: 83 | BD40: 0.9529913711 | BE40: 6.394392639 | BF40: 18.99287412 | BH40: 95.29913711 | BI40: 1.798765844 | BJ40: 1.58795157 | BK40: 0.01084644 | BL40: 0.07154593298 | BQ40: 9.998432 | BR40: 2.727 | BS40: 5.115812 | BT40: 94.55877042 | BU40: 802.7769493
A41: QgsTop | B41: =Qgs_Q1*1000000000 -> 3.3 | C41: nC | G41: 32 | H41: 6.96 | I41: BOOST | J41: 2 | K41: 10 | L41: 12.42217433 | M41: 12.19406783 | N41: 1 | O41: 0.1799291146 | P41: 1.495246375 | Q41: 12.4296713 | R41: 1.762851063 | S41: 0.01772390251 | T41: 1.780574966 | U41: 4.688449288 | V41: 0.06594467017 | W41: 0.06594467017 | X41: 0.4316404486 | Y41: 0.0005589404305 | Z41: 0.0005589404305 | AA41: 12.4296713 | AB41: 0.8806313527 | AC41: 0 | AD41: 0 | AE41: 1.068891168 | AF41: 0 | AG41: 0 | AH41: 0 | AI41: 0 | AJ41: 5.27242445 | AK41: 0.05281707321 | AL41: 0.03944086487 | AM41: 0 | AN41: 0.09324290151 | AO41: 11.25603256 | AP41: 0.240726711 | AQ41: 0.1192528736 | AR41: 0.3781875538 | AS41: 0.8806313527 | AT41: 0 | AU41: 0.032868 | AV41: 0.06949614896 | AW41: 0.499 | AX41: 0.0249 | AY41: 0.043824 | AZ41: 0.00504 | BA41: 0.068724 | BB41: 4.057488348 | BC41: 83 | BD41: 0.9533930001 | BE41: 6.305545075 | BF41: 18.90937769 | BH41: 95.33930001 | BI41: 1.780574966 | BJ41: 1.573189623 | BK41: 0.01084644 | BL41: 0.06949614896 | BQ41: 9.998518 | BR41: 3.186 | BS41: 5.114889 | BT41: 94.58411933 | BU41: 933.1099081
A42: RGateTop | B42: =Rgate1 -> 1.5 | C42: W | D42: Gate Resistance | G42: 33 | H42: 6.99 | I42: BOOST | J42: 2 | K42: 10 | L42: 12.36886028 | M42: 12.13918571 | N42: 1 | O42: =CHOOSE(J42,0,(Vout+(Rdson3+Rdcr)*L42-H42)/(Vout+(Rdson3-Rdson4-Rs)*L42),IF(H42>Vout,D_min_boost_exitBB_to_buck, (Vout-H42*D_max_buck_BB)/Vout)) -> 0.1762215163 | P42: 1.471080031 | Q42: 12.3761482 | R42: 1.745586267 | S42: 0.01707085185 | T42: 1.762657118 | U42: 4.629301799 | V42: 0.06429130544 | W42: 0.06429130544 | X42: 0.4246642259 | Y42: 0.0005410191142 | Z42: 0.0005410191142 | AA42: 12.3761482 | AB42: 0.8730635522 | AC42: 0 | AD42: 0 | AE42: 1.057762293 | AF42: 0 | AG42: 0 | AH42: 0 | AI42: 0 | AJ42: 5.195351887 | AK42: 0.05128419434 | AL42: 0.03927159077 | AM42: 0 | AN42: 0.09149422665 | AO42: 11.23286976 | AP42: 0.2397369897 | AQ42: 0.1187410587 | AR42: 0.3765317668 | AS42: 0.8730635522 | AT42: 0 | AU42: 0.032868 | AV42: 0.06747920308 | AW42: 0.499 | AX42: 0.0249 | AY42: 0.043824 | AZ42: 0.00504 | BA42: 0.068724 | BB42: 4.021348933 | BC42: 83 | BD42: 0.9537889382 | BE42: 6.218111333 | BF42: 18.82658834 | BH42: 95.37889382 | BI42: 1.762657118 | BJ42: 1.558656287 | BK42: 0.01084644 | BL42: 0.06747920308 | BQ42: 9.998419 | BR42: 3.692 | BS42: 5.113754 | BT42: 94.44136337 | BU42: 1111.239121
A43: GfsTop | B43: =Gfs_Q1 -> 60 | C43: S | D43: Transconductance of Top FET | G43: 34 | H43: 7.02 | I43: BOOST | J43: 2 | K43: 10 | L43: 12.3160019 | M43: 12.08480707 | N43: 1 | O43: 0.1725147171 | P43: 1.446639406 | Q43: 12.32307997 | R43: 1.728582704 | S43: 0.01642446635 | T43: 1.74500717 | U43: 4.569948486 | V43: 0.0626532875 | W43: 0.0626532875 | X43: 0.4176088251 | Y43: 0.0005231913924 | Z43: 0.0005231913924 | AA43: 12.32307997 | AB43: 0.8655923095 | AC43: 0 | AD43: 0 | AE43: 1.046815378 | AF43: 0 | AG43: 0 | AH43: 0 | AI43: 0 | AJ43: 5.118377833 | AK43: 0.04977580412 | AL43: 0.03910376346 | AM43: 0 | AN43: 0.08977327497 | AO43: 11.2098398 | AP43: 0.2387549657 | AQ43: 0.1182336182 | AR43: 0.3748899515 | AS43: 0.8655923095 | AT43: 0 | AU43: 0.032868 | AV43: 0.06549447911 | AW43: 0.499 | AX43: 0.0249 | AY43: 0.043824 | AZ43: 0.00504 | BA43: 0.068724 | BB43: 3.985748732 | BC43: 83 | BD43: 0.9541792904 | BE43: 6.132063748 | BF43: 18.74449757 | BH43: 95.41792904 | BI43: 1.74500717 | BJ43: 1.544346604 | BK43: 0.01084644 | BL43: 0.06549447911 | BQ43: 9.998246 | BR43: 4.243 | BS43: 5.112059 | BT43: 94.26717862 | BU43: 1319.097078
A44: VthTop | B44: =Vth_Q1 -> 4 | C44: V | D44: Threshold Voltage of Top FET | G44: 35 | H44: 7.05 | I44: BOOST | J44: 2 | K44: 10 | L44: 12.26359338 | M44: 12.03092487 | N44: 1 | O44: 0.1688087066 | P44: 1.42192461 | Q44: 12.27046094 | R44: 1.711834986 | S44: 0.01578515233 | T44: 1.727620138 | U44: 4.510373325 | V44: 0.06103040259 | W44: 0.06103040259 | X44: 0.4104742783 | Y44: 0.0005054673994 | Z44: 0.0005054673994 | AA44: 12.27046094 | AB44: 0.8582160069 | AC44: 0 | AD44: 0 | AE44: 1.036046313 | AF44: 0 | AG44: 0 | AH44: 0 | AI44: 0 | AJ44: 5.041482901 | AK44: 0.0482914447 | AL44: 0.03893736446 | AM44: 0 | AN44: 0.08807950648 | AO44: 11.18694158 | AP44: 0.2377805576 | AQ44: 0.1177304965 | AR44: 0.3732619405 | AS44: 0.8582160069 | AT44: 0 | AU44: 0.032868 | AV44: 0.0635413746 | AW44: 0.499 | AX44: 0.0249 | AY44: 0.043824 | AZ44: 0.00504 | BA44: 0.068724 | BB44: 3.950677142 | BC44: 83 | BD44: 0.954564159 | BE44: 6.047375324 | BF44: 18.66309703 | BH44: 95.4564159 | BI44: 1.727620138 | BJ44: 1.53025576 | BK44: 0.01084644 | BL44: 0.0635413746 | BQ44: 9.998147 | BR44: 4.849 | BS44: 5.110774 | BT44: 93.95381599 | BU44: 1594.798321
A45: VspTop | B45: =Vsp_Q1 -> 4.166666667 | C45: V | G45: 36 | H45: 7.08 | I45: BOOST | J45: 2 | K45: 10 | L45: 12.211629 | M45: 11.97753218 | N45: 1 | O45: 0.1651034748 | P45: 1.396935754 | Q45: 12.21828556 | R45: 1.695337868 | S45: 0.0151533153 | T45: 1.710491183 | U45: 4.450559548 | V45: 0.05942244087 | W45: 0.05942244087 | X45: 0.4032606169 | Y45: 0.0004878573754 | Z45: 0.0004878573754 | AA45: 12.21828556 | AB45: 0.8509330614 | AC45: 0 | AD45: 0 | AE45: 1.025451112 | AF45: 0 | AG45: 0 | AH45: 0 | AI45: 0 | AJ45: 4.964647039 | AK45: 0.04683066843 | AL45: 0.03877237563 | AM45: 0 | AN45: 0.0864123941 | AO45: 11.16417403 | AP45: 0.2368136854 | AQ45: 0.1172316384 | AR45: 0.3716475699 | AS45: 0.8509330614 | AT45: 0 | AU45: 0.032868 | AV45: 0.06161930056 | AW45: 0.499 | AX45: 0.0249 | AY45: 0.043824 | AZ45: 0.00504 | BA45: 0.068724 | BB45: 3.916123859 | BC45: 83 | BD45: 0.9549436435 | BE45: 5.964019705 | BF45: 18.5823785 | BH45: 95.49436435 | BI45: 1.710491183 | BJ45: 1.516379076 | BK45: 0.01084644 | BL45: 0.06161930056 | BQ45: 9.997986 | BR45: 5.496 | BS45: 5.109789 | BT45: 93.59977136 | BU45: 1920.305692
A46: VsdTop | B46: =Vsd_Q1 -> 0.8 | C46: V | G46: 37 | H46: 7.11 | I46: BOOST | J46: 2 | K46: 10 | L46: 12.16010314 | M46: 11.92462225 | N46: 1 | O46: 0.1613990119 | P46: 1.371672944 | Q46: 12.16654836 | R46: 1.679086247 | S46: 0.01452935973 | T46: 1.693615607 | U46: 4.390489579 | V46: 0.05782919623 | W46: 0.05782919623 | X46: 0.3959678718 | Y46: 0.0004703716665 | Z46: 0.0004703716665 | AA46: 12.16654836 | AB46: 0.8437419241 | AC46: 0 | AD46: 0 | AE46: 1.015025906 | AF46: 0 | AG46: 0 | AH46: 0 | AI46: 0 | AJ46: 4.887849469 | AK46: 0.04539303762 | AL46: 0.03860877911 | AM46: 0 | AN46: 0.08477142321 | AO46: 11.14153609 | AP46: 0.2358542704 | AQ46: 0.1167369902 | AR46: 0.3700466784 | AS46: 0.8437419241 | AT46: 0 | AU46: 0.032868 | AV46: 0.05972768108 | AW46: 0.499 | AX46: 0.0249 | AY46: 0.043824 | AZ46: 0.00504 | BA46: 0.068724 | BB46: 3.882078864 | BC46: 83 | BD46: 0.955317841 | BE46: 5.881971161 | BF46: 18.50233392 | BH46: 95.5317841 | BI46: 1.693615607 | BJ46: 1.502712008 | BK46: 0.01084644 | BL46: 0.05972768108 | BQ46: 9.9979 | BR46: 6.195 | BS46: 5.109191 | BT46: 93.15665167 | BU46: 2325.135176
A47: θJATop | B47: =ThetaJA_Q1 -> 50 | C47: °C/W | D47: Junction to Ambient Resistance | G47: 38 | H47: 7.14 | I47: BOOST | J47: 2 | K47: 10 | L47: 12.10901027 | M47: 11.87218841 | N47: 1 | O47: 0.1576953081 | P47: 1.346136285 | Q47: 12.11524398 | R47: 1.663075155 | S47: 0.01391368878 | T47: 1.676988844 | U47: 4.330144967 | V47: 0.0562504663 | W47: 0.0562504663 | X47: 0.3885960734 | Y47: 0.0004530207248 | Z47: 0.0004530207248 | AA47: 12.11524398 | AB47: 0.8366410789 | AC47: 0 | AD47: 0 | AE47: 1.004766938 | AF47: 0 | AG47: 0 | AH47: 0 | AI47: 0 | AJ47: 4.811068611 | AK47: 0.04397812424 | AL47: 0.03844655735 | AM47: 0 | AN47: 0.08315609138 | AO47: 11.11902673 | AP47: 0.2349022354 | AQ47: 0.1162464986 | AR47: 0.3684591076 | AS47: 0.8366410789 | AT47: 0 | AU47: 0.032868 | AV47: 0.05786595295 | AW47: 0.499 | AX47: 0.0249 | AY47: 0.043824 | AZ47: 0.00504 | BA47: 0.068724 | BB47: 3.84853242 | BC47: 83 | BD47: 0.9556868457 | BE47: 5.801204569 | BF47: 18.42295538 | BH47: 95.56868457 | BI47: 1.676988844 | BJ47: 1.489250137 | BK47: 0.01084644 | BL47: 0.05786595295 | BQ47: 9.997627 | BR47: 6.947 | BS47: 5.108667 | BT47: 92.65680763 | BU47: 2812.629001
A48: Low-side FET | B48: Input Value | C48: Units | D48: Description | G48: 39 | H48: 7.17 | I48: BOOST | J48: 2 | K48: 10 | L48: 12.05834496 | M48: 11.82022414 | N48: 1 | O48: 0.1539923539 | P48: 1.320325881 | Q48: 12.06436715 | R48: 1.647299754 | S48: 0.013306704 | T48: 1.660606458 | U48: 4.269506305 | V48: 0.05468605228 | W48: 0.05468605228 | X48: 0.3811452515 | Y48: 0.0004358151083 | Z48: 0.0004358151083 | AA48: 12.06436715 | AB48: 0.8296290422 | AC48: 0 | AD48: 0 | AE48: 0.9946705588 | AF48: 0 | AG48: 0 | AH48: 0 | AI48: 0 | AJ48: 4.73428201 | AK48: 0.04258550969 | AL48: 0.03828569309 | AM48: 0 | AN48: 0.08156590793 | AO48: 11.09664493 | AP48: 0.2339575044 | AQ48: 0.1157601116 | AR48: 0.3668847018 | AS48: 0.8296290422 | AT48: 0 | AU48: 0.032868 | AV48: 0.05603356538 | AW48: 0.499 | AX48: 0.0249 | AY48: 0.043824 | AZ48: 0.00504 | BA48: 0.068724 | BB48: 3.815475059 | BC48: 83 | BD48: 0.9560507495 | BE48: 5.721695397 | BF48: 18.34423509 | BH48: 95.60507495 | BI48: 1.660606458 | BJ48: 1.475989169 | BK48: 0.01084644 | BL48: 0.05603356538 | BQ48: 9.997528 | BR48: 7.753 | BS48: 5.10853 | BT48: 92.03433642 | BU48: 3427.976174
A49: RdsonBot | B49: =Rdson2*1000 -> 5.7 | C49: mW | D49: Drain-Source Resistance of Low-side FET | G49: 40 | H49: 7.2 | I49: BOOST | J49: 2 | K49: 10 | L49: 12.00810185 | M49: 11.76872303 | N49: 1 | O49: 0.1502901398 | P49: 1.294241834 | Q49: 12.01391271 | R49: 1.631755334 | S49: 0.01270880501 | T49: 1.644464139 | U49: 4.208553152 | V49: 0.05313575889 | W49: 0.05313575889 | X49: 0.3736154356 | Y49: 0.0004187654812 | Z49: 0.0004187654812 | AA49: 12.01391271 | AB49: 0.8227043619 | AC49: 0 | AD49: 0 | AE49: 0.984733226 | AF49: 0 | AG49: 0 | AH49: 0 | AI49: 0 | AJ49: 4.657466248 | AK49: 0.04121478452 | AL49: 0.03812616937 | AM49: 0 | AN49: 0.08000039369 | AO49: 11.07438968 | AP49: 0.2330200028 | AQ49: 0.1152777778 | AR49: 0.3653233082 | AS49: 0.8227043619 | AT49: 0 | AU49: 0.032868 | AV49: 0.05422997963 | AW49: 0.499 | AX49: 0.0249 | AY49: 0.043824 | AZ49: 0.00504 | BA49: 0.068724 | BB49: 3.782897571 | BC49: 83 | BD49: 0.956409642 | BE49: 5.643419684 | BF49: 18.26616541 | BH49: 95.6409642 | BI49: 1.644464139 | BJ49: 1.462924928 | BK49: 0.01084644 | BL49: 0.05422997963 | BQ49: 9.997009 | BR49: 8.612 | BS49: 5.108542 | BT49: 91.34637826 | BU49: 4167.806561
A50: RdsonBotTc | B50: =RdsonBotTc*1000000 -> 4000 | C50: ppm | D50: Drain To Source Resitance Temp Co | G50: 41 | H50: 7.23 | I50: BOOST | J50: 2 | K50: 10 | L50: 11.9582757 | M50: 11.71767879 | N50: 1 | O50: 0.1465886566 | P50: 1.267884243 | Q50: 11.96387557 | R50: 1.616437309 | S50: 0.01212038922 | T50: 1.628557698 | U50: 4.14726393 | V50: 0.05159939431 | W50: 0.05159939431 | X50: 0.3660066545 | Y50: 0.0004018826134 | Z50: 0.0004018826134 | AA50: 11.96387557 | AB50: 0.8158656164 | AC50: 0 | AD50: 0 | AE50: 0.9749514972 | AF50: 0 | AG50: 0 | AH50: 0 | AI50: 0 | AJ50: 4.580596848 | AK50: 0.03986554822 | AL50: 0.0379679695 | AM50: 0 | AN50: 0.07845908057 | AO50: 11.05226 | AP50: 0.2320896572 | AQ50: 0.1147994467 | AR50: 0.3637747766 | AS50: 0.8158656164 | AT50: 0 | AU50: 0.032868 | AV50: 0.05245466872 | AW50: 0.499 | AX50: 0.0249 | AY50: 0.043824 | AZ50: 0.00504 | BA50: 0.068724 | BB50: 3.750790998 | BC50: 83 | BD50: 0.9567636104 | BE50: 5.566354029 | BF50: 18.18873883 | BH50: 95.67636104 | BI50: 1.628557698 | BJ50: 1.450053354 | BK50: 0.01084644 | BL50: 0.05245466872 | BQ50: 9.996959 | BR50: 9.523 | BS50: 5.108754 | BT50: 90.54782619 | BU50: 5078.581624
A51: QgBot | B51: =Qg_Q2*1000000000 -> 11 | C51: nC | D51: Gate Charge Of Top FET | G51: 42 | H51: 7.26 | I51: BOOST | J51: 2 | K51: 10 | L51: 11.90886134 | M51: 11.66708526 | N51: 1 | O51: 0.1428878952 | P51: 1.241253207 | Q51: 11.91425075 | R51: 1.601341211 | S51: 0.01154185147 | T51: 1.612883062 | U51: 4.085615825 | V51: 0.05007677002 | W51: 0.05007677002 | X51: 0.3583189365 | Y51: 0.0003851773807 | Z51: 0.0003851773807 | AA51: 11.91425075 | AB51: 0.8091114141 | AC51: 0 | AD51: 0 | AE51: 0.9653220284 | AF51: 0 | AG51: 0 | AH51: 0 | AI51: 0 | AJ51: 4.503648169 | AK51: 0.03853740898 | AL51: 0.03781107706 | AM51: 0 | AN51: 0.07694151134 | AO51: 11.03025494 | AP51: 0.2311663957 | AQ51: 0.1143250689 | AR51: 0.3622389595 | AS51: 0.8091114141 | AT51: 0 | AU51: 0.032868 | AV51: 0.05070711708 | AW51: 0.499 | AX51: 0.0249 | AY51: 0.043824 | AZ51: 0.00504 | BA51: 0.068724 | BB51: 3.719146626 | BC51: 83 | BD51: 0.9571127396 | BE51: 5.490475567 | BF51: 18.11194798 | BH51: 95.71127396 | BI51: 1.612883062 | BJ51: 1.437370499 | BK51: 0.01084644 | BL51: 0.05070711708 | BQ51: 9.996464 | BR51: 10.493 | BS51: 5.109228 | BT51: 89.62666026 | BU51: 6204.922159
A52: RGateBot | B52: =Rgate2 -> 1.5 | C52: W | D52: Gate Resistance | G52: 43 | H52: 7.29 | I52: BOOST | J52: 2 | K52: 10 | L52: 11.85985368 | M52: 11.61693636 | N52: 1 | O52: 0.1391878467 | P52: 1.214348822 | Q52: 11.86503334 | R52: 1.586462688 | S52: 0.01097358368 | T52: 1.597436271 | U52: 4.02358467 | V52: 0.0485677008 | W52: 0.0485677008 | X52: 0.3505523095 | Y52: 0.0003686607651 | Z52: 0.0003686607651 | AA52: 11.86503334 | AB52: 0.8024403926 | AC52: 0 | AD52: 0 | AE52: 0.9558415695 | AF52: 0 | AG52: 0 | AH52: 0 | AI52: 0 | AJ52: 4.426593287 | AK52: 0.03722998345 | AL52: 0.03765547592 | AM52: 0 | AN52: 0.07544723927 | AO52: 11.00837355 | AP52: 0.2302501474 | AQ52: 0.1138545953 | AR52: 0.3607157119 | AS52: 0.8024403926 | AT52: 0 | AU52: 0.032868 | AV52: 0.04898682033 | AW52: 0.499 | AX52: 0.0249 | AY52: 0.043824 | AZ52: 0.00504 | BA52: 0.068724 | BB52: 3.687955974 | BC52: 83 | BD52: 0.9574571123 | BE52: 5.415761963 | BF52: 18.0357856 | BH52: 95.74571123 | BI52: 1.597436271 | BJ52: 1.424872521 | BK52: 0.01084644 | BL52: 0.04898682033 | BQ52: 9.995982 | BR52: 11.519 | BS52: 5.110126 | BT52: 88.59139042 | BU52: 7580.320731
A53: VsdBot | B53: =Vsd_Q2 -> 0.8 | C53: V | D53: Diode Forward Voltage of Bottom FET Body Diode | G53: 44 | H53: 7.32 | I53: BOOST | J53: 2 | K53: 10 | L53: 11.81124772 | M53: 11.56722615 | N53: 1 | O53: 0.1354885022 | P53: 1.187171183 | Q53: 11.81621855 | R53: 1.571797499 | S53: 0.01041597448 | T53: 1.582213474 | U53: 3.96114481 | V53: 0.04707200461 | W53: 0.04707200461 | X53: 0.3427068011 | Y53: 0.0003523438545 | Z53: 0.0003523438545 | AA53: 11.81621855 | AB53: 0.7958512182 | AC53: 0 | AD53: 0 | AE53: 0.9465069619 | AF53: 0 | AG53: 0 | AH53: 0 | AI53: 0 | AJ53: 4.349403862 | AK53: 0.03594289652 | AL53: 0.0375011502 | AM53: 0 | AN53: 0.07397582782 | AO53: 10.98661489 | AP53: 0.2293408429 | AQ53: 0.1133879781 | AR53: 0.3592048915 | AS53: 0.7958512182 | AT53: 0 | AU53: 0.032868 | AV53: 0.04729328489 | AW53: 0.499 | AX53: 0.0249 | AY53: 0.043824 | AZ53: 0.00504 | BA53: 0.068724 | BB53: 3.657210788 | BC53: 83 | BD53: 0.9577968093 | BE53: 5.342191391 | BF53: 17.96024458 | BH53: 95.77968093 | BI53: 1.582213474 | BJ53: 1.412555681 | BK53: 0.01084644 | BL53: 0.04729328489 | BQ53: 9.995574 | BR53: 12.605 | BS53: 5.111198 | BT53: 87.3865081 | BU53: 9299.433596
A54: QrrBot | B54: =Qrr_Q2*1000000000 -> 63 | C54: nC | D54: Reverse Recovery Charge of Body Diode | G54: 45 | H54: 7.35 | I54: BOOST | J54: 2 | K54: 10 | L54: 11.76303855 | M54: 11.51794878 | N54: 1 | O54: 0.1317898532 | P54: 1.159720384 | Q54: 11.76780163 | R54: 1.557341513 | S54: 0.009869408834 | T54: 1.567210922 | U54: 3.898268955 | V54: 0.04558950254 | W54: 0.04558950254 | X54: 0.334782438 | Y54: 0.0003362378425 | Z54: 0.0003362378425 | AA54: 11.76780163 | AB54: 0.7893425845 | AC54: 0 | AD54: 0 | AE54: 0.9373151347 | AF54: 0 | AG54: 0 | AH54: 0 | AI54: 0 | AJ54: 4.272049989 | AK54: 0.03467578111 | AL54: 0.03734808428 | AM54: 0 | AN54: 0.07252685043 | AO54: 10.96497807 | AP54: 0.2284384137 | AQ54: 0.1129251701 | AR54: 0.3577063584 | AS54: 0.7893425845 | AT54: 0 | AU54: 0.032868 | AV54: 0.04562602778 | AW54: 0.499 | AX54: 0.0249 | AY54: 0.043824 | AZ54: 0.00504 | BA54: 0.068724 | BB54: 3.626903034 | BC54: 83 | BD54: 0.9581319093 | BE54: 5.269742522 | BF54: 17.88531792 | BH54: 95.81319093 | BI54: 1.567210922 | BJ54: 1.400416344 | BK54: 0.01084644 | BL54: 0.04562602778 | BQ54: 9.994967 | BR54: 13.75 | BS54: 5.112233 | BT54: 85.98511344 | BU54: 11457.23054
A55: TrrBot | B55: =Trr_Q2*1000000000 -> 40 | C55: ns | D55: Reverse Recovery Time of Body Diode | G55: 46 | H55: 7.38 | I55: BOOST | J55: 2 | K55: 10 | L55: 11.71522132 | M55: 11.46909852 | N55: 1 | O55: 0.1280918911 | P55: 1.131996517 | Q55: 11.71977795 | R55: 1.543090703 | S55: 0.009334267588 | T55: 1.552424971 | U55: 3.834928018 | V55: 0.0441200187 | W55: 0.0441200187 | X55: 0.326779247 | Y55: 0.0003203540288 | Z55: 0.0003203540288 | AA55: 11.71977795 | AB55: 0.7829132128 | AC55: 0 | AD55: 0 | AE55: 0.9282631023 | AF55: 0 | AG55: 0 | AH55: 0 | AI55: 0 | AJ55: 4.194500032 | AK55: 0.03342827799 | AL55: 0.0371962628 | AM55: 0 | AN55: 0.07109989017 | AO55: 10.94346219 | AP55: 0.2275427929 | AQ55: 0.1124661247 | AR55: 0.3562199752 | AS55: 0.7829132128 | AT55: 0 | AU55: 0.032868 | AV55: 0.0439845763 | AW55: 0.499 | AX55: 0.0249 | AY55: 0.043824 | AZ55: 0.00504 | BA55: 0.068724 | BB55: 3.597024887 | BC55: 83 | BD55: 0.9584624888 | BE55: 5.198394508 | BF55: 17.81099876 | BH55: 95.84624888 | BI55: 1.552424971 | BJ55: 1.388450968 | BK55: 0.01084644 | BL55: 0.0439845763 | BQ55: 9.994386 | BR55: 14.954 | BS55: 5.113031 | BT55: 84.35265026 | BU55: 14183.31853
A56: θJABot | B56: =ThetaJA_Q2 -> 50 | C56: °C/W | D56: Junction to Ambient Resistance | G56: 47 | H56: 7.41 | I56: BOOST | J56: 2 | K56: 10 | L56: 11.66779127 | M56: 11.42066973 | N56: 1 | O56: 0.1243946075 | P56: 1.103999672 | Q56: 11.67214295 | R56: 1.529041144 | S56: 0.00881092706 | T56: 1.537852071 | U56: 3.77109092 | V56: 0.04266338018 | W56: 0.04266338018 | X56: 0.318697254 | Y56: 0.0003047038192 | Z56: 0.0003047038192 | AA56: 11.67214295 | AB56: 0.7765618504 | AC56: 0 | AD56: 0 | AE56: 0.9193479612 | AF56: 0 | AG56: 0 | AH56: 0 | AI56: 0 | AJ56: 4.116720432 | AK56: 0.03220003552 | AL56: 0.03704567064 | AM56: 0 | AN56: 0.06969453949 | AO56: 10.92206638 | AP56: 0.2266539146 | AQ56: 0.1120107962 | AR56: 0.354745607 | AS56: 0.7765618504 | AT56: 0 | AU56: 0.032868 | AV56: 0.04236846779 | AW56: 0.499 | AX56: 0.0249 | AY56: 0.043824 | AZ56: 0.00504 | BA56: 0.068724 | BB56: 3.567568731 | BC56: 83 | BD56: 0.9587886228 | BE56: 5.128126975 | BF56: 17.73728035 | BH56: 95.87886228 | BI56: 1.537852071 | BJ56: 1.376656108 | BK56: 0.01084644 | BL56: 0.04236846779
A57: Bottom Schottky | B57: Input Value | C57: Units | D57: Std Units | G57: 48 | H57: 7.44 | I57: BOOST | J57: 2 | K57: 10 | L57: 11.62074373 | M57: 11.37265687 | N57: 1 | O57: 0.1206979942 | P57: 1.075729939 | Q57: 11.62489216 | R57: 1.515189009 | S57: 0.008299758556 | T57: 1.523488768 | U57: 3.706724384 | V57: 0.04121941697 | W57: 0.04121941697 | X57: 0.3105364848 | Y57: 0.0002892987252 | Z57: 0.0002892987252 | AA57: 11.62489216 | AB57: 0.7702872708 | AC57: 0 | AD57: 0 | AE57: 0.9105668874 | AF57: 0 | AG57: 0 | AH57: 0 | AI57: 0 | AJ57: 4.038675493 | AK57: 0.03099070951 | AL57: 0.03689629294 | AM57: 0 | AN57: 0.0683104 | AO57: 10.90078979 | AP57: 0.2257717141 | AQ57: 0.1115591398 | AR57: 0.3532831211 | AS57: 0.7702872708 | AT57: 0 | AU57: 0.032868 | AV57: 0.04077724935 | AW57: 0.499 | AX57: 0.0249 | AY57: 0.043824 | AZ57: 0.00504 | BA57: 0.068724 | BB57: 3.538527141 | BC57: 83 | BD57: 0.959110384 | BE57: 5.05892 | BF57: 17.66415605 | BH57: 95.9110384 | BI57: 1.523488768 | BJ57: 1.365028408 | BK57: 0.01084644 | BL57: 0.04077724935
A58: VfdSky | B58: =VfdSky_Q2 -> 0 | C58: V | D58: Diode Forward Voltage | G58: 49 | H58: 7.47 | I58: BOOST | J58: 2 | K58: 10 | L58: 11.57407407 | M58: 11.32505452 | N58: 1 | O58: 0.117002043 | P58: 1.047187403 | Q58: 11.57802117 | R58: 1.501530569 | S58: 0.007801127877 | T58: 1.509331697 | U58: 3.641792686 | V58: 0.0397879619 | W58: 0.0397879619 | X58: 0.3022969646 | Y58: 0.0002741503644 | Z58: 0.0002741503644 | AA58: 11.57802117 | AB58: 0.7640882725 | AC58: 0 | AD58: 0 | AE58: 0.9019171334 | AF58: 0 | AG58: 0 | AH58: 0 | AI58: 0 | AJ58: 3.960327139 | AK58: 0.02979996298 | AL58: 0.03674811506 | AM58: 0 | AN58: 0.06694708215 | AO58: 10.87963157 | AP58: 0.2248961279 | AQ58: 0.1111111111 | AR58: 0.3518323873 | AS58: 0.7640882725 | AT58: 0 | AU58: 0.032868 | AV58: 0.03921047761 | AW58: 0.499 | AX58: 0.0249 | AY58: 0.043824 | AZ58: 0.00504 | BA58: 0.068724 | BB58: 3.50989289 | BC58: 83 | BD58: 0.9594278438 | BE58: 4.990754108 | BF58: 17.59161936 | BH58: 95.94278438 | BI58: 1.509331697 | BJ58: 1.353564603 | BK58: 0.01084644 | BL58: 0.03921047761
A59: QrrSky | B59: =QrrSky_Q2*1000000000 -> 0 | C59: nC | D59: Diode Reverse Recovery Charge | G59: 50 | H59: 7.5 | I59: BOOST | J59: 2 | K59: 10 | L59: 11.52777778 | M59: 11.27785732 | N59: 1 | O59: 0.1133067461 | P59: 1.018372152 | Q59: 11.53152566 | R59: 1.488062186 | S59: 0.007315394779 | T59: 1.49537758 | U59: 3.57625738 | V59: 0.03836885055 | W59: 0.03836885055 | X59: 0.2939787181 | Y59: 0.0002592704601 | Z59: 0.0002592704601 | AA59: 11.53152566 | AB59: 0.7579636787 | AC59: 0 | AD59: 0 | AE59: 0.8933960264 | AF59: 0 | AG59: 0 | AH59: 0 | AI59: 0 | AJ59: 3.881634629 | AK59: 0.02862746604 | AL59: 0.0366011226 | AM59: 0 | AN59: 0.06560420507 | AO59: 10.85859091 | AP59: 0.2240270935 | AQ59: 0.1106666667 | AR59: 0.3503932777 | AS59: 0.7579636787 | AT59: 0 | AU59: 0.032868 | AV59: 0.03766771848 | AW59: 0.499 | AX59: 0.0249 | AY59: 0.043824 | AZ59: 0.00504 | BA59: 0.068724 | BB59: 3.481658929 | BC59: 83 | BD59: 0.9597410714 | BE59: 4.923610254 | BF59: 17.51966389 | BH59: 95.97410714 | BI59: 1.49537758 | BJ59: 1.342261509 | BK59: 0.01084644 | BL59: 0.03766771848
A60: Ireverse | B60: =Ireverse -> 0 | C60: mA | D60: Reverse Leakage Current | G60: 51 | H60: 7.53 | I60: BOOST | J60: 2 | K60: 10 | L60: 11.48185038 | M60: 11.23106003 | N60: 1 | O60: 0.1096120956 | P60: 0.9892842704 | Q60: 11.48540139 | R60: 1.474780311 | S60: 0.00684291241 | T60: 1.481623224 | U60: 3.51007698 | V60: 0.03696192121 | W60: 0.03696192121 | X60: 0.2855817699 | Y60: 0.0002446708419 | Z60: 0.0002446708419 | AA60: 11.48540139 | AB60: 0.7519123366 | AC60: 0 | AD60: 0 | AE60: 0.8850009653 | AF60: 0 | AG60: 0 | AH60: 0 | AI60: 0 | AJ60: 3.802554242 | AK60: 0.02747289565 | AL60: 0.03645530139 | AM60: 0 | AN60: 0.06428139625 | AO60: 10.83766701 | AP60: 0.2231645499 | AQ60: 0.1102257636 | AR60: 0.3489656667 | AS60: 0.7519123366 | AT60: 0 | AU60: 0.032868 | AV60: 0.0361485469 | AW60: 0.499 | AX60: 0.0249 | AY60: 0.043824 | AZ60: 0.00504 | BA60: 0.068724 | BB60: 3.453818391 | BC60: 83 | BD60: 0.9600501348 | BE60: 4.857469813 | BF60: 17.44828333 | BH60: 96.00501348 | BI60: 1.481623224 | BJ60: 1.331116028 | BK60: 0.01084644 | BL60: 0.0361485469
A61: Controller | B61: Input Value | C61: Units | D61: Std Units | G61: 52 | H61: 7.56 | I61: BOOST | J61: 2 | K61: 10 | L61: 11.43628748 | M61: 11.18465749 | N61: 1 | O61: 0.1059180837 | P61: 0.9599238408 | Q61: 11.43964419 | R61: 1.461681486 | S61: 0.006384026694 | T61: 1.468065513 | U61: 3.443206589 | V61: 0.03556701484 | W61: 0.03556701484 | X61: 0.277106144 | Y61: 0.000230363445 | Z61: 0.000230363445 | AA61: 11.43964419 | AB61: 0.7459331168 | AC61: 0 | AD61: 0 | AE61: 0.8767294184 | AF61: 0 | AG61: 0 | AH61: 0 | AI61: 0 | AJ61: 3.723038901 | AK61: 0.02633593545 | AL61: 0.0363106375 | AM61: 0 | AN61: 0.06297829139 | AO61: 10.81685908 | AP61: 0.2223084368 | AQ61: 0.1097883598 | AR61: 0.3475494308 | AS61: 0.7459331168 | AT61: 0 | AU61: 0.032868 | AV61: 0.03465254664 | AW61: 0.499 | AX61: 0.0249 | AY61: 0.043824 | AZ61: 0.00504 | BA61: 0.068724 | BB61: 3.426364578 | BC61: 83 | BD61: 0.9603551 | BE61: 4.792314569 | BF61: 17.37747154 | BH61: 96.03551 | BI61: 1.468065513 | BJ61: 1.320125141 | BK61: 0.01084644 | BL61: 0.03465254664
A62: θJA | B62: 30 | C62: °C/W | D62: Junction to Ambient Resistance | G62: 53 | H62: 7.59 | I62: BOOST | J62: 2 | K62: 10 | L62: 11.39108476 | M62: 11.13864464 | N62: 1 | O62: 0.1022247029 | P62: 0.9302909455 | Q62: 11.39424996 | R62: 1.448762335 | S62: 0.005939075676 | T62: 1.45470141 | U62: 3.375597474 | V62: 0.03418397493 | W62: 0.03418397493 | X62: 0.2685518639 | Y62: 0.0002163603108 | Z62: 0.0002163603108 | AA62: 11.39424996 | AB62: 0.7400249131 | AC62: 0 | AD62: 0 | AE62: 0.8685789213 | AF62: 0 | AG62: 0 | AH62: 0 | AI62: 0 | AJ62: 3.643037746 | AK62: 0.02521627563 | AL62: 0.03616711719 | AM62: 0 | AN62: 0.0616945341 | AO62: 10.79616636 | AP62: 0.2214586954 | AQ62: 0.1093544137 | AR62: 0.3461444487 | AS62: 0.7400249131 | AT62: 0 | AU62: 0.032868 | AV62: 0.03317931005 | AW62: 0.499 | AX62: 0.0249 | AY62: 0.043824 | AZ62: 0.00504 | BA62: 0.068724 | BB62: 3.39929096 | BC62: 83 | BD62: 0.9606560318 | BE62: 4.728126705 | BF62: 17.30722244 | BH62: 96.06560318 | BI62: 1.45470141 | BJ62: 1.309285904 | BK62: 0.01084644 | BL62: 0.03317931005
A63: Theta Ja | B63: 2 | C63: °C/W | D63: Junction to Ambient Resistance | G63: 54 | H63: 7.62 | I63: BOOST | J63: 2 | K63: 10 | L63: 11.34623797 | M63: 11.0930165 | N63: 1 | O63: 0.09853194568 | P63: 0.900385665 | Q63: 11.34921468 | R63: 1.436019565 | S63: 0.005508388813 | T63: 1.441527954 | U63: 3.307196574 | V63: 0.03281264753 | W63: 0.03281264753 | X63: 0.259918953 | Y63: 0.0002026735864 | Z63: 0.0002026735864 | AA63: 11.34921468 | AB63: 0.7341866415 | AC63: 0 | AD63: 0 | AE63: 0.8605470748 | AF63: 0 | AG63: 0 | AH63: 0 | AI63: 0 | AJ63: 3.562495633 | AK63: 0.02411361276 | AL63: 0.03602472696 | AM63: 0 | AN63: 0.06042977576 | AO63: 10.7755881 | AP63: 0.2206152677 | AQ63: 0.1089238845 | AR63: 0.3447506015 | AS63: 0.7341866415 | AT63: 0 | AU63: 0.032868 | AV63: 0.03172843784 | AW63: 0.499 | AX63: 0.0249 | AY63: 0.043824 | AZ63: 0.00504 | BA63: 0.068724 | BB63: 3.372591165 | BC63: 83 | BD63: 0.9609529931 | BE63: 4.664888788 | BF63: 17.23753007 | BH63: 96.09529931 | BI63: 1.441527954 | BJ63: 1.298595452 | BK63: 0.01084644 | BL63: 0.03172843784
G64: 55 | H64: 7.65 | I64: BOOST | J64: 2 | K64: 10 | L64: 11.30174292 | M64: 11.04776818 | N64: 1 | O64: 0.09483980463 | P64: 0.8702080786 | Q64: 11.30453441 | R64: 1.423449963 | S64: 0.005092286209 | T64: 1.42854225 | U64: 3.23794591 | V64: 0.03145288114 | W64: 0.03145288114 | X64: 0.2512074342 | Y64: 0.000189315525 | Z64: 0.000189315525 | AA64: 11.30453441 | AB64: 0.7284172397 | AC64: 0 | AD64: 0 | AE64: 0.8526315426 | AF64: 0 | AG64: 0 | AH64: 0 | AI64: 0 | AJ64: 3.481352548 | AK64: 0.02302764957 | AL64: 0.03588345353 | AM64: 0 | AN64: 0.05918367528 | AO64: 10.75512355 | AP64: 0.219778097 | AQ64: 0.108496732 | AR64: 0.3433677721 | AS64: 0.7284172397 | AT64: 0 | AU64: 0.032868 | AV64: 0.03029953891 | AW64: 0.499 | AX64: 0.0249 | AY64: 0.043824 | AZ64: 0.00504 | BA64: 0.068724 | BB64: 3.346258975 | BC64: 83 | BD64: 0.9612460457 | BE64: 4.602583764 | BF64: 17.16838861 | BH64: 96.12460457 | BI64: 1.42854225 | BJ64: 1.28805099 | BK64: 0.01084644 | BL64: 0.03029953891
G65: 56 | H65: 7.68 | I65: BOOST | J65: 2 | K65: 10 | L65: 11.25759549 | M65: 11.00289486 | N65: 1 | O65: 0.09114827256 | P65: 0.8397582644 | Q65: 11.26020525 | R65: 1.411050395 | S65: 0.004691077783 | T65: 1.415741473 | U65: 3.167781909 | V65: 0.03010452667 | W65: 0.03010452667 | X65: 0.24241733 | Y65: 0.0001762984857 | Z65: 0.0001762984857 | AA65: 11.26020525 | AB65: 0.7227156671 | AC65: 0 | AD65: 0 | AE65: 0.8448300496 | AF65: 0 | AG65: 0 | AH65: 0 | AI65: 0 | AJ65: 3.399542916 | AK65: 0.02195809487 | AL65: 0.03574328379 | AM65: 0 | AN65: 0.05795589888 | AO65: 10.73477202 | AP65: 0.2189471275 | AQ65: 0.1080729167 | AR65: 0.3419958458 | AS65: 0.7227156671 | AT65: 0 | AU65: 0.032868 | AV65: 0.02889223009 | AW65: 0.499 | AX65: 0.0249 | AY65: 0.043824 | AZ65: 0.00504 | BA65: 0.068724 | BB65: 3.320288323 | BC65: 83 | BD65: 0.9615352499 | BE65: 4.541194944 | BF65: 17.09979229 | BH65: 96.15352499 | BI65: 1.415741473 | BJ65: 1.277649794 | BK65: 0.01084644 | BL65: 0.02889223009
A66: Outputs | G66: 57 | H66: 7.71 | I66: BOOST | J66: 2 | K66: 10 | L66: 11.21379161 | M66: 10.95839183 | N66: 1 | O66: 0.08745734232 | P66: 0.8090362992 | Q66: 11.2162234 | R66: 1.3988178 | S66: 0.004305062366 | T66: 1.403122863 | U66: 3.096634592 | V66: 0.02876743739 | W66: 0.02876743739 | X66: 0.2335486626 | Y66: 0.0001636349333 | Z66: 0.0001636349333 | AA66: 11.2162234 | AB66: 0.7170809037 | AC66: 0 | AD66: 0 | AE66: 0.8371403796 | AF66: 0 | AG66: 0 | AH66: 0 | AI66: 0 | AJ66: 3.316994784 | AK66: 0.02090466335 | AL66: 0.03560420486 | AM66: 0 | AN66: 0.05674611992 | AO66: 10.71453279 | AP66: 0.2181223045 | AQ66: 0.1076523995 | AR66: 0.3406347096 | AS66: 0.7170809037 | AT66: 0 | AU66: 0.032868 | AV66: 0.02750613599 | AW66: 0.499 | AX66: 0.0249 | AY66: 0.043824 | AZ66: 0.00504 | BA66: 0.068724 | BB66: 3.29467328 | BC66: 83 | BD66: 0.9618206645 | BE66: 4.480705996 | BF66: 17.03173548 | BH66: 96.18206645 | BI66: 1.403122863 | BJ66: 1.267389209 | BK66: 0.01084644 | BL66: 0.02750613599
A67: Design | B67: Value | C67: Units | G67: 58 | H67: 7.74 | I67: BOOST | J67: 2 | K67: 10 | L67: 11.1703273 | M67: 10.91425443 | N67: 1 | O67: 0.08376700688 | P67: 0.7780422585 | Q67: 11.1725851 | R67: 1.386749193 | S67: 0.00393452671 | T67: 1.390683719 | U67: 3.024426605 | V67: 0.02744146886 | W67: 0.02744146886 | X67: 0.2246014537 | Y67: 0.000151337439 | Z67: 0.000151337439 | AA67: 11.1725851 | AB67: 0.71151195 | AC67: 0 | AD67: 0 | AE67: 0.8295603738 | AF67: 0 | AG67: 0 | AH67: 0 | AI67: 0 | AJ67: 3.233628846 | AK67: 0.01986707547 | AL67: 0.03546620407 | AM67: 0 | AN67: 0.05555401871 | AO67: 10.69440519 | AP67: 0.2173035745 | AQ67: 0.1072351421 | AR67: 0.3392842528 | AS67: 0.71151195 | AT67: 0 | AU67: 0.032868 | AV67: 0.02614088878 | AW67: 0.499 | AX67: 0.0249 | AY67: 0.043824 | AZ67: 0.00504 | BA67: 0.068724 | BB67: 3.26940806 | BC67: 83 | BD67: 0.9621023474 | BE67: 4.421100936 | BF67: 16.96421264 | BH67: 96.21023474 | BI67: 1.390683719 | BJ67: 1.257266645 | BK67: 0.01084644 | BL67: 0.02614088878
A68: Dmax | B68: =#REF! ->  | C68: index | G68: 59 | H68: 7.77 | I68: BOOST | J68: 2 | K68: 10 | L68: 11.12719863 | M68: 10.87047809 | N68: 1 | O68: 0.08007725935 | P68: 0.7467762168 | Q68: 11.12928669 | R68: 1.374841656 | S68: 0.003579744409 | T68: 1.378421401 | U68: 2.951072059 | V68: 0.0261264789 | W68: 0.0261264789 | X68: 0.2155757249 | Y68: 0.0001394186795 | Z68: 0.0001394186795 | AA68: 11.12928669 | AB68: 0.7060078264 | AC68: 0 | AD68: 0 | AE68: 0.8220879288 | AF68: 0 | AG68: 0 | AH68: 0 | AI68: 0 | AJ68: 3.149357267 | AK68: 0.01884505727 | AL68: 0.03532926892 | AM68: 0 | AN68: 0.05437928233 | AO68: 10.67438855 | AP68: 0.2164908849 | AQ68: 0.1068211068 | AR68: 0.3379443667 | AS68: 0.7060078264 | AT68: 0 | AU68: 0.032868 | AV68: 0.02479612799 | AW68: 0.499 | AX68: 0.0249 | AY68: 0.043824 | AZ68: 0.00504 | BA68: 0.068724 | BB68: 3.244487004 | BC68: 83 | BD68: 0.9623803548 | BE68: 4.362364116 | BF68: 16.89721833 | BH68: 96.23803548 | BI68: 1.378421401 | BJ68: 1.247279578 | BK68: 0.01084644 | BL68: 0.02479612799
A69: Dprime | B69: =1-B68 ->  | C69: index | G69: 60 | H69: 7.8 | I69: BOOST | J69: 2 | K69: 10 | L69: 11.08440171 | M69: 10.82705834 | N69: 1 | O69: 0.0763880929 | P69: 0.7152382473 | Q69: 11.08632454 | R69: 1.363092345 | S69: 0.003240974696 | T69: 1.366333319 | U69: 2.87647513 | V69: 0.02482232751 | W69: 0.02482232751 | X69: 0.2064714973 | Y69: 0.0001278914376 | Z69: 0.0001278914376 | AA69: 11.08632454 | AB69: 0.7005675729 | AC69: 0 | AD69: 0 | AE69: 0.8147209949 | AF69: 0 | AG69: 0 | AH69: 0 | AI69: 0 | AJ69: 3.064082268 | AK69: 0.01783834028 | AL69: 0.03519338711 | AM69: 0 | AN69: 0.05322160441 | AO69: 10.65448223 | AP69: 0.215684184 | AQ69: 0.1064102564 | AR69: 0.3366149443 | AS69: 0.7005675729 | AT69: 0 | AU69: 0.032868 | AV69: 0.02347150037 | AW69: 0.499 | AX69: 0.0249 | AY69: 0.043824 | AZ69: 0.00504 | BA69: 0.068724 | BB69: 3.219904582 | BC69: 83 | BD69: 0.962654742 | BE69: 4.304480221 | BF69: 16.83074722 | BH69: 96.2654742 | BI69: 1.366333319 | BJ69: 1.237425544 | BK69: 0.01084644 | BL69: 0.02347150037
A70: Ipp | B70: =Iripple_Vinnom -> 2.174655852 | C70: A | G70: 61 | H70: 7.83 | I70: BOOST | J70: 2 | K70: 10 | L70: 11.04193274 | M70: 10.78399074 | N70: 1 | O70: 0.07269950085 | P70: 0.6834284222 | Q70: 11.0436951 | R70: 1.351498479 | S70: 0.002918461127 | T70: 1.354416941 | U70: 2.800528336 | V70: 0.02352887688 | W70: 0.02352887688 | X70: 0.1972887918 | Y70: 0.0001167686021 | Z70: 0.0001167686021 | AA70: 11.0436951 | AB70: 0.6951902482 | AC70: 0 | AD70: 0 | AE70: 0.8074575746 | AF70: 0 | AG70: 0 | AH70: 0 | AI70: 0 | AJ70: 2.977694388 | AK70: 0.01684666135 | AL70: 0.03505854655 | AM70: 0 | AN70: 0.05208068503 | AO70: 10.63468559 | AP70: 0.2148834214 | AQ70: 0.1060025543 | AR70: 0.3352958809 | AS70: 0.6951902482 | AT70: 0 | AU70: 0.032868 | AV70: 0.02216665967 | AW70: 0.499 | AX70: 0.0249 | AY70: 0.043824 | AZ70: 0.00504 | BA70: 0.068724 | BB70: 3.195655386 | BC70: 83 | BD70: 0.9629255631 | BE70: 4.247434251 | BF70: 16.76479404 | BH70: 96.29255631 | BI70: 1.354416941 | BJ70: 1.22770214 | BK70: 0.01084644 | BL70: 0.02216665967
A71: Top FET | B71: Value | C71: Units | G71: 62 | H71: 7.86 | I71: BOOST | J71: 2 | K71: 10 | L71: 10.99978796 | M71: 10.74127097 | N71: 1 | O71: 0.06901147659 | P71: 0.6513468123 | Q71: 11.00139489 | R71: 1.340057346 | S71: 0.002612430098 | T71: 1.342669776 | U71: 2.723110431 | V71: 0.02224599126 | W71: 0.02224599126 | X71: 0.1880276287 | Y71: 0.0001060631675 | Z71: 0.0001060631675 | AA71: 11.00139489 | AB71: 0.6898749299 | AC71: 0 | AD71: 0 | AE71: 0.8002957208 | AF71: 0 | AG71: 0 | AH71: 0 | AI71: 0 | AJ71: 2.890070344 | AK71: 0.01586976253 | AL71: 0.0349247353 | AM71: 0 | AN71: 0.05095623048 | AO71: 10.61499802 | AP71: 0.2140885475 | AQ71: 0.1055979644 | AR71: 0.3339870733 | AS71: 0.6898749299 | AT71: 0 | AU71: 0.032868 | AV71: 0.02088126648 | AW71: 0.499 | AX71: 0.0249 | AY71: 0.043824 | AZ71: 0.00504 | BA71: 0.068724 | BB71: 3.171734122 | BC71: 83 | BD71: 0.9631928711 | BE71: 4.191211524 | BF71: 16.69935367 | BH71: 96.31928711 | BI71: 1.342669776 | BJ71: 1.218107025 | BK71: 0.01084644 | BL71: 0.02088126648
A72: Tr | B72: =(Qgd_Q1+Qgs_Q1/2)*(RdsonDRT+Rgate1)/(Vdd-Vsp_Q1)*1000000000 -> 4.095 | C72: ns | D72: Turn on of MOSFET -> Rise time of current | G72: 63 | H72: 7.89 | I72: BOOST | J72: 2 | K72: 10 | L72: 10.95796367 | M72: 10.69889475 | N72: 1 | O72: 0.06532401362 | P72: 0.6189934876 | Q72: 10.95942047 | R72: 1.328766295 | S72: 0.002323089199 | T72: 1.331089384 | U72: 2.644083772 | V72: 0.02097353697 | W72: 0.02097353697 | X72: 0.1786880283 | Y72: 9.578823441e-05 | Z72: 9.578823441e-05 | AA72: 10.95942047 | AB72: 0.6846207137 | AC72: 0 | AD72: 0 | AE72: 0.7932335356 | AF72: 0 | AG72: 0 | AH72: 0 | AI72: 0 | AJ72: 2.801070373 | AK72: 0.01490739094 | AL72: 0.03479194163 | AM72: 0 | AN72: 0.04984795316 | AO72: 10.59541891 | AP72: 0.2132995136 | AQ72: 0.1051964512 | AR72: 0.3326884205 | AS72: 0.6846207137 | AT72: 0 | AU72: 0.032868 | AV72: 0.01961498808 | AW72: 0.499 | AX72: 0.0249 | AY72: 0.043824 | AZ72: 0.00504 | BA72: 0.068724 | BB72: 3.148135606 | BC72: 83 | BD72: 0.9634567181 | BE72: 4.135797658 | BF72: 16.63442102 | BH72: 96.34567181 | BI72: 1.331089384 | BJ72: 1.208637909 | BK72: 0.01084644 | BL72: 0.01961498808
A73: Tf | B73: =(Qgd_Q1+Qgs_Q1/2)*(RdsonDRT2+Rgate1)/(Vsp_Q1)*1000000000 -> 2.73 | C73: ns | D73: Turn off of MOSFET -> Fall time of current | G73: 64 | H73: =VIN_min+(VIN_max-VIN_min)*(G73/200) -> 7.92 | I73: =IF(H73>VIN_BB_to_buck, "BUCK", IF(H73<VIN_boost_to_BB,"BOOST","BUCK-BST")) -> BOOST | J73: 2 | K73: =Iout -> 10 | L73: =Vout*K73/(H73*Efficiency) -> 10.91645623 | M73: =Iout/(1-O73) -> 10.65685787 | N73: =CHOOSE(J73,(Vout+(Rdson2+Rs+Rdcr)*K73)/(H73+(Rs+Rdson2-Rdson1)*K73),1,IF(H73<Vout,D_max_buck_BB,Vout/H73*(1-D_min_boost_exitBB_to_buck))) -> 1 | O73: 0.06163710555 | P73: =MAX(0, CHOOSE(J73, (H73-(Rdson1+Rdcr)*K73-Vout)*N73/(Fsw*Lf), (H73-(Rdson4+Rdcr+Rs)*L73)*O73/(Fsw*Lf), IF(H73<Vout, (H73-(Rdson4+Rdcr+Rs)*L73)*O73/(0.5*Fsw*Lf),(H73-(Rdson1+Rdcr)*K73-Vout)*N73/(0.5*Fsw*Lf)))) -> 0.5863685168 | Q73: =CHOOSE(J73, SQRT(K73^2+(P73^2)/12), SQRT(L73^2+(P73^2)/12), SQRT(M73^2+(P73^2)/12)) -> 10.9177685 | R73: 1.317622736 | S73: =7.759*10^-3*Fsw^0.9458*(0.00787*P73)^2.304 -> 0.002050625351 | T73: 1.319673362 | U73: =IF(H73>Vout, P73/SQRT(12), SQRT(O73/(1-O73))*SQRT(K73^2+(P73^2)/12)) -> 2.563291007 | V73: 0.01971138236 | W73: 0.01971138236 | X73: =IF(H73>Vout, SQRT(N73*(1-N73))*SQRT(K73^2+(P73^2)/12), P73/SQRT(12)) -> 0.1692700105 | Y73: 8.595700938e-05 | Z73: 8.595700938e-05 | AA73: =CHOOSE(J73, SQRT(N73)*SQRT(K73^2+(P73^2)/12), SQRT(L73^2+(P73^2)/12), SQRT(N73)*SQRT(M73^2+(P73^2)/12)) -> 10.9177685 | AB73: =Rdson1*AA73^2 -> 0.6794267129 | AC73: =CHOOSE(J73, (H73*K73/2)*(Fsw)*(Tr_buck+Tf_buck), 0, (H73*M73/2)*(Fsw/2)*(Tr_buck+Tf_buck)) -> 0 | AD73: =IF(H73>Vout, IF(K73>P73/2,0,ABS(K73-P73/2)*Vsd_Q1*Deadtime*Fsw),0) -> 0 | AE73: =(AD73+AC73+AB73*(1+RdsonTopTc*Ta-RdsonTopTc*25))/(1-AB73*RdsonTopTc*ThetaJA_Q1) -> 0.7862691682 | AF73: =CHOOSE(J73, SQRT((1-N73))*SQRT(K73^2+(P73^2)/12), 0, SQRT((1-N73))*SQRT(M73^2+(P73^2)/12)) -> 0 | AG73: =Rdson2*AF73^2 -> 0 | AH73: =CHOOSE(J73, IF(K73<P73/2,Deadtime*Fsw*IF(VfdSky_Q2>0,0,Vsd_Q2)*(K73+P73/2),2*Deadtime*Fsw*IF(VfdSky_Q2>0,0,Vsd_Q2)*K73),0, IF(K73<P73/2,Deadtime*Fsw/2*IF(VfdSky_Q2>0,0,Vsd_Q2)*(K73+P73/2),2*Deadtime*Fsw/2*IF(VfdSky_Q2>0,0,Vsd_Q2)*K73)) -> 0 | AI73: =(AH73+AG73*(1+RdsonBotTc*Ta-RdsonBotTc*25))/(1-AG73*RdsonBotTc*ThetaJA_Q2) -> 0 | AJ73: =CHOOSE(J73, 0, SQRT(O73)*SQRT(L73^2+(P73^2)/12), SQRT(O73)*SQRT(M73^2+(P73^2)/12)) -> 2.710534874 | AK73: =Rdson4*AJ73^2 -> 0.01395929867 | AL73: =CHOOSE(J73, 0, (Vout*L73/2)*(Fsw)*(Tr_boost+Tf_boost), (Vout*Iout/2)*(Fsw/2)*(Tr_boost+Tf_boost)) -> 0.03466015397 | AM73: =IF(H73>Vout, 0, IF(L73>P73/2,0,ABS(L73-P73/2)*Vsd_Q4*Deadtime*Fsw)) -> 0 | AN73: =(AM73+AL73+AK73*(1+RdsonTopTc*Ta-RdsonTopTc*25))/(1-AK73*RdsonTopTc*ThetaJA_Q4) -> 0.04875557136 | AO73: =CHOOSE(J73, SQRT(Iout^2+(P73^2)/12), SQRT(1-O73)*SQRT(L73^2+(P73^2)/12), SQRT(1-O73)*SQRT(M73^2+(P73^2)/12)) -> 10.57594769 | AP73: =Rdson3*AO73^2 -> 0.2125162723 | AQ73: =CHOOSE(J73, 0, IF(L73<P73/2,Deadtime*Fsw*IF(VfdSky_Q3>0,0,Vsd_Q3)*(L73+P73/2), 2*Deadtime*Fsw*IF(VfdSky_Q3>0,0,Vsd_Q3)*L73), IF(L73<P73/2,Deadtime*Fsw/2*IF(VfdSky_Q3>0,0,Vsd_Q3)*(L73+P73/2), 2*Deadtime*Fsw/2*IF(VfdSky_Q3>0,0,Vsd_Q3)*L73)) -> 0.1047979798 | AR73: =(AQ73+AP73*(1+RdsonBotTc*Ta-RdsonBotTc*25))/(1-AP73*RdsonBotTc*ThetaJA_Q3) -> 0.3313998231 | AS73: =CHOOSE(J73, Rdson3*Q73^2, Rdson1*Q73^2, 0) -> 0.6794267129 | AT73: =CHOOSE(J73, 2*Deadtime*Fsw*IF(VfdSky_Q2>0,VfdSky_Q2,0)*K73, 2*Deadtime*Fsw*IF(VfdSky_Q3>0,VfdSky_Q3,0)*L73, 2*Deadtime*Fsw/2*IF(VfdSky_Q2>0,VfdSky_Q2,0)*K73+2*Deadtime*Fsw/2*IF(VfdSky_Q3>0,VfdSky_Q3,0)*L73) -> 0 | AU73: =CHOOSE(J73, IF(QrrSky_Q2>0,QrrSky_Q2,Qrr_Q2)*Fsw*(H73-K73*Rdson1), IF(QrrSky_Q3>0,QrrSky_Q3,Qrr_Q3)*Fsw*Vout, IF(QrrSky_Q2>0,QrrSky_Q2,Qrr_Q2)*Fsw/2*(H73-K73*Rdson1)+IF(QrrSky_Q3>0,QrrSky_Q3,Qrr_Q3)*Fsw/2*Vout) -> 0.032868 | AV73: =CHOOSE(J73, Rs*AF73^2, Rs*AJ73^2, Rs*(AF73^2+AJ73^2)) -> 0.01836749825 | AW73: =Rshunt_std/1000*Iout^2 -> 0.499 | AX73: =IF(Vout>8, Iq*Vout, Iq*H73) -> 0.0249 | AY73: =CHOOSE(J73, (Qg_Q1+Qg_Q2)*Fsw, (Qg_Q3+Qg_Q4)*Fsw, (Qg_Q1+Qg_Q2+Qg_Q3+Qg_Q4)*Fsw/2)*IF(Vout>8, Vout, H73) -> 0.043824 | AZ73: =(Vin-Vdd)*Fsw*(Qg_Q1+Qg_Q2)+(RdsonDRT+RdsonDRT2)*Fsw*Qg_Q1*Vdd/(RdsonDRT+2*Rgate1+RdsonDRT2)+(RdsonDRB+RdsonDRB2)*Fsw*Qg_Q2*Vdd/(RdsonDRB+2*Rgate2+RdsonDRB2) -> 0.00504 | BA73: 0.068724 | BB73: 3.124854762 | BC73: =Vout*K73 -> 83 | BD73: 0.9637171549 | BE73: =IF(H73>Vout,ThetaJA_Q1*(AE73+AU73),ThetaJA_Q4*(AN73+AU73)) -> 4.081178568 | BF73: =IF(H73>Vout, AI73*ThetaJA_Q2, ThetaJA_Q3*AR73) -> 16.56999116 | BH73: 96.37171549 | BI73: 1.319673362 | BJ73: 1.199292563 | BK73: 0.01084644 | BL73: 0.01836749825
A74: Part Power | B74: Value | C74: Units | G74: 65 | H74: 7.95 | I74: BOOST | J74: =IF(I74="BOOST",2, IF(I74="BUCK", 1,3)) -> 2 | K74: 10 | L74: 10.87526205 | M74: 10.61515622 | N74: 1 | O74: =CHOOSE(J74,0,(Vout+(Rdson3+Rdcr)*L74-H74)/(Vout+(Rdson3-Rdson4-Rs)*L74),IF(H74>Vout,D_min_boost_exitBB_to_buck, (Vout-H74*D_max_buck_BB)/Vout)) -> 0.05795074606 | P74: 0.5534719678 | Q74: 10.87643565 | R74: =(Q74^2*Rdcr*(1+Ltc*Ta-Ltc*25))/(1-Q74^2*Rdcr*Ltc*ThetaCa) -> 1.306624142 | S74: 0.001795202682 | T74: =R74+S74 -> 1.308419345 | U74: 2.480550861 | V74: =RCoutEsr*U74^2 -> 0.01845939772 | W74: =V74 -> 0.01845939772 | X74: 0.1597735948 | Y74: =RCinEsr*X74^2 -> 7.658280477e-05 | Z74: =Y74 -> 7.658280477e-05 | AA74: 10.87643565 | AB74: 0.6742920584 | AC74: 0 | AD74: 0 | AE74: 0.7794008143 | AF74: 0 | AG74: 0 | AH74: 0 | AI74: 0 | AJ74: 2.618280132 | AK74: 0.01302524262 | AL74: 0.03452936094 | AM74: 0 | AN74: 0.04767880917 | AO74: 10.5565838 | AP74: 0.2117387769 | AQ74: 0.1044025157 | AR74: 0.3301211837 | AS74: 0.6742920584 | AT74: 0 | AU74: 0.032868 | AV74: 0.01713847713 | AW74: 0.499 | AX74: 0.0249 | AY74: 0.043824 | AZ74: 0.00504 | BA74: 0.068724 | BB74: 3.10188661 | BC74: 83 | BD74: =BC74/(BC74+BB74) -> 0.9639742318 | BE74: 4.027340458 | BF74: 16.50605919 | BH74: =BD74*100 -> 96.39742318 | BI74: =T74 -> 1.308419345 | BJ74: =AE74+AI74+AN74+AR74+AU74 -> 1.190068807 | BK74: =AI74+AU74*0.33 -> 0.01084644 | BL74: =AV74 -> 0.01713847713
A75: Power Dis | B75: =BA9 -> 0.068724 | C75: W | G75: 66 | H75: 7.98 | I75: BOOST | J75: 2 | K75: 10 | L75: 10.83437761 | M75: 10.57378573 | N75: 1 | O75: 0.05426492896 | P75: 0.5203039071 | Q75: 10.83541868 | R75: 1.295768042 | S75: 0.001556960112 | T75: 1.297325002 | U75: 2.395652679 | V75: 0.01721745527 | W75: 0.01721745527 | X75: 0.1501988004 | Y75: 6.767903894e-05 | Z75: 6.767903894e-05 | AA75: 10.83541868 | AB75: 0.669215898 | AC75: 0 | AD75: 0 | AE75: 0.772626714 | AF75: 0 | AG75: 0 | AH75: 0 | AI75: 0 | AJ75: 2.52409279 | AK75: 0.01210498439 | AL75: 0.03439955131 | AM75: 0 | AN75: 0.04661739627 | AO75: 10.53732668 | AP75: 0.2109669816 | AQ75: 0.1040100251 | AR75: 0.3288524066 | AS75: 0.669215898 | AT75: 0 | AU75: 0.032868 | AV75: 0.01592761104 | AW75: 0.499 | AX75: 0.0249 | AY75: 0.043824 | AZ75: 0.00504 | BA75: =SUM(AX75:AY75) -> 0.068724 | BB75: =SUM(T75,W75,Z75,AE75,AI75,AN75,AR75, AT75,AU75,BA75,AV75,AW75) -> 3.079226264 | BC75: 83 | BD75: 0.9642279979 | BE75: 3.974269814 | BF75: 16.44262033 | BH75: 96.42279979 | BI75: 1.297325002 | BJ75: 1.180964517 | BK75: 0.01084644 | BL75: 0.01592761104
A76: Temp rise | B76: =B75*B62 -> 2.06172 | C76: °C | G76: 67 | H76: 8.01 | I76: BUCK-BST | J76: 3 | K76: 10 | L76: 10.79379942 | M76: 10.55198314 | N76: 0.982 | O76: 0.05231084337 | P76: 1.007056725 | Q76: 10.55598701 | R76: 1.223341015 | S76: 0.007129472885 | T76: 1.230470488 | U76: 2.350424723 | V76: 0.01657348914 | W76: 0.01657348914 | X76: 0.2907122356 | Y76: 0.0002535408119 | Z76: 0.0002535408119 | AA76: 10.46055172 | AB76: 0.6237119107 | AC76: 0.01730575356 | AD76: 0 | AE76: 0.7323759898 | AF76: 1.416234271 | AG76: 0.01143260121 | AH76: 0.048 | AI76: 0.0595688065 | AJ76: 2.414319311 | AK76: 0.01107498169 | AL76: 0.0158751857 | AM76: 0 | AN76: 0.02700999444 | AO76: 10.27618236 | AP76: 0.2006398556 | AQ76: 0.0518102372 | AR76: 0.2630039059 | AS76: 0 | AT76: 0 | AU76: 0.04649634 | AV76: 0.01958664311 | AW76: 0.499 | AX76: 0.0249 | AY76: 0.032868 | AZ76: 0.00504 | BA76: 0.057768 | BB76: 2.952107197 | BC76: 83 | BD76: 0.9656540451 | BE76: 3.675316722 | BF76: 13.1501953 | BH76: 96.56540451 | BI76: 1.230470488 | BJ76: 1.128455037 | BK76: 0.0749125987 | BL76: 0.01958664311
A77: Current (switching) | B77: =(Qg_Q1+Qg_Q2)*Fsw+Iq -> 0.00564 | C77: A | G77: 68 | H77: 8.04 | I77: BUCK-BST | J77: 3 | K77: 10 | L77: 10.75352405 | M77: 10.51261007 | N77: 0.982 | O77: 0.04876144578 | P77: 0.9423805829 | Q77: 10.51612938 | R77: 1.213225242 | S77: 0.006118410622 | T77: 1.219343653 | U77: 2.264927001 | V77: 0.01538968296 | W77: 0.01538968296 | X77: 0.2720418416 | Y77: 0.0002220202908 | Z77: 0.0002220202908 | AA77: 10.42105444 | AB77: 0.6190107407 | AC77: 0.01730575356 | AD77: 0 | AE77: 0.7262246683 | AF77: 1.410886809 | AG77: 0.01134642906 | AH77: 0.048 | AI77: 0.05948140937 | AJ77: 2.322171056 | AK77: 0.01024570899 | AL77: 0.0158751857 | AM77: 0 | AN77: 0.02617453001 | AO77: 10.25653444 | AP77: 0.1998733476 | AQ77: 0.05161691542 | AR77: 0.2619621119 | AS77: 0 | AT77: 0 | AU77: 0.04660974 | AV77: 0.01845770001 | AW77: 0.499 | AX77: 0.0249 | AY77: 0.032868 | AZ77: 0.00504 | BA77: 0.057768 | BB77: 2.930633516 | BC77: 83 | BD77: 0.9658953577 | BE77: 3.639213501 | BF77: 13.09810559 | BH77: 96.58953577 | BI77: 1.219343653 | BJ77: 1.12045246 | BK77: 0.07486262357 | BL77: 0.01845770001
A78: Qrr Current | B78: =Qrr_Q2*Fsw -> 0.00756 | C78: A | G78: 69 | H78: 8.07 | I78: BUCK-BST | J78: 3 | K78: 10 | L78: 10.71354812 | M78: 10.47352973 | N78: 0.982 | O78: 0.04521204819 | P78: 0.8771719019 | Q78: 10.4765903 | R78: 1.203242767 | S78: 0.005186666612 | T78: 1.208429434 | U78: 2.176771358 | V78: 0.01421500063 | W78: 0.01421500063 | X78: 0.2532177168 | Y78: 0.0001923576364 | Z78: 0.0001923576364 | AA78: 10.38187282 | AB78: 0.6143647145 | AC78: 0.01730575356 | AD78: 0 | AE78: 0.720158457 | AF78: 1.405582085 | AG78: 0.01126126768 | AH78: 0.048 | AI78: 0.05939504037 | AJ78: 2.227650483 | AK78: 0.009428610685 | AL78: 0.0158751857 | AM78: 0 | AN78: 0.02535160247 | AO78: 10.23701702 | AP78: 0.1991133834 | AQ78: 0.05142503098 | AR78: 0.2609293182 | AS78: 0 | AT78: 0 | AU78: 0.04672314 | AV78: 0.01734521918 | AW78: 0.499 | AX78: 0.0249 | AY78: 0.032868 | AZ78: 0.00504 | BA78: 0.057768 | BB78: 2.909507569 | BC78: 83 | BD78: 0.9661328804 | BE78: 3.603737123 | BF78: 13.04646591 | BH78: 96.61328804 | BI78: 1.208429434 | BJ78: 1.112557558 | BK78: 0.07481367657 | BL78: 0.01734521918
A79: Diode Current | B79: =C79/Vin ->  | C79: =Deadtime*Fsw*(Iripple_Vinnom/2)*(VsdTop+VsdBot) ->  | G79: 70 | H79: 8.1 | I79: BUCK-BST | J79: 3 | K79: 10 | L79: 10.67386831 | M79: 10.43473888 | N79: 0.982 | O79: 0.0416626506 | P79: 0.8114307995 | Q79: 10.43736767 | R79: 1.193391609 | S79: 0.004334475839 | T79: 1.197726085 | U79: 2.085611215 | V79: 0.01304932242 | W79: 0.01304932242 | X79: 0.2342398952 | Y79: 0.0001646049856 | Z79: 0.0001646049856 | AA79: 10.3430048 | AB79: 0.6097731649 | AC79: 0.01730575356 | AD79: 0 | AE79: 0.7141759892 | AF79: 1.400319817 | AG79: 0.01117710486 | AH79: 0.048 | AI79: 0.05930968697 | AJ79: 2.130416075 | AK79: 0.008623478044 | AL79: 0.0158751857 | AM79: 0 | AN79: 0.02454098949 | AO79: 10.21763041 | AP79: 0.1983599452 | AQ79: 0.0512345679 | AR79: 0.2599054805 | AS79: 0 | AT79: 0 | AU79: 0.04683654 | AV79: 0.01624892061 | AW79: 0.499 | AX79: 0.0249 | AY79: 0.032868 | AZ79: 0.00504 | BA79: 0.057768 | BB79: 2.888725619 | BC79: 83 | BD79: 0.9663666494 | BE79: 3.568876474 | BF79: 12.99527402 | BH79: 96.63666494 | BI79: 1.197726085 | BJ79: 1.104768686 | BK79: 0.07476574517 | BL79: 0.01624892061
A80: Total | B80: =SUM(B77:B79) ->  | C80: A | G80: 71 | H80: 8.13 | I80: BUCK-BST | J80: 3 | K80: 10 | L80: 10.63448134 | M80: 10.39623431 | N80: 0.982 | O80: 0.03811325301 | P80: 0.7451573912 | Q80: 10.39845947 | R80: 1.183669838 | S80: 0.003561890638 | T80: 1.187231728 | U80: 1.991023989 | V80: 0.01189252958 | W80: 0.01189252958 | X80: 0.2151084102 | Y80: 0.0001388148844 | Z80: 0.0001388148844 | AA80: 10.30444837 | AB80: 0.6052354401 | AC80: 0.01730575356 | AD80: 0 | AE80: 0.7082759328 | AF80: 1.395099735 | AG80: 0.01109392864 | AH80: 0.048 | AI80: 0.05922533697 | AJ80: 2.030051299 | AK80: 0.007830105723 | AL80: 0.0158751857 | AM80: 0 | AN80: 0.02374247264 | AO80: 10.19837493 | AP80: 0.1976130172 | AQ80: 0.05104551046 | AR80: 0.2588905564 | AS80: 0 | AT80: 0 | AU80: 0.04694994 | AV80: 0.01516852886 | AW80: 0.499 | AX80: 0.0249 | AY80: 0.032868 | AZ80: 0.00504 | BA80: 0.057768 | BB80: 2.86828384 | BC80: 83 | BD80: 0.9665967024 | BE80: 3.534620632 | BF80: 12.94452782 | BH80: 96.65967024 | BI80: 1.187231728 | BJ80: 1.097084239 | BK80: 0.07471881717 | BL80: 0.01516852886
G81: 72 | H81: 8.16 | I81: BUCK-BST | J81: 3 | K81: 10 | L81: 10.59538399 | M81: 10.35801286 | N81: 0.982 | O81: 0.03456385542 | P81: 0.6783517912 | Q81: 10.35986376 | R81: 1.174075569 | S81: 0.002868754755 | T81: 1.176944324 | U81: 1.892485522 | V81: 0.01074450436 | W81: 0.01074450436 | X81: 0.1958232946 | Y81: 0.0001150402882 | Z81: 0.0001150402882 | AA81: 10.26620159 | AB81: 0.6007509024 | AC81: 0.01730575356 | AD81: 0 | AE81: 0.7024569901 | AF81: 1.389921576 | AG81: 0.01101172734 | AH81: 0.048 | AI81: 0.0591419784 | AJ81: 1.926039254 | AK81: 0.007048291696 | AL81: 0.0158751857 | AM81: 0 | AN81: 0.02295583729 | AO81: 10.17925095 | AP81: 0.1968725849 | AQ81: 0.05085784314 | AR81: 0.2578845059 | AS81: 0 | AT81: 0 | AU81: 0.04706334 | AV81: 0.01410377299 | AW81: 0.499 | AX81: 0.0249 | AY81: 0.032868 | AZ81: 0.00504 | BA81: 0.057768 | BB81: 2.848178293 | BC81: 83 | BD81: 0.9668230783 | BE81: 3.500958864 | BF81: 12.89422529 | BH81: 96.68230783 | BI81: 1.176944324 | BJ81: 1.089502652 | BK81: 0.0746728806 | BL81: 0.01410377299
G82: 73 | H82: 8.19 | I82: BUCK-BST | J82: 3 | K82: 10 | L82: 10.55657306 | M82: 10.32007142 | N82: 0.982 | O82: 0.03101445783 | P82: 0.6110141118 | Q82: 10.32157864 | R82: 1.164606965 | S82: 0.002254671194 | T82: 1.166861637 | U82: 1.789332275 | V82: 0.009605129969 | W82: 0.009605129969 | X82: 0.176384581 | Y82: 9.333456121e-05 | Z82: 9.333456121e-05 | AA82: 10.2282626 | AB82: 0.5963189286 | AC82: 0.01730575356 | AD82: 0 | AE82: 0.696717896 | AF82: 1.384785089 | AG82: 0.01093048953 | AH82: 0.048 | AI82: 0.05905959959 | AJ82: 1.817725177 | AK82: 0.006277837157 | AL82: 0.0158751857 | AM82: 0 | AN82: 0.02218087244 | AO82: 10.16025889 | AP82: 0.1961386355 | AQ82: 0.05067155067 | AR82: 0.2568872908 | AS82: 0 | AT82: 0 | AU82: 0.04717674 | AV82: 0.0130543864 | AW82: 0.499 | AX82: 0.0249 | AY82: 0.032868 | AZ82: 0.00504 | BA82: 0.057768 | BB82: 2.828404886 | BC82: 83 | BD82: 0.9670458179 | BE82: 3.467880622 | BF82: 12.84436454 | BH82: 96.70458179 | BI82: 1.166861637 | BJ82: 1.082022399 | BK82: 0.07462792379 | BL82: 0.0130543864
G83: 74 | H83: 8.22 | I83: BUCK-BST | J83: 3 | K83: 10 | L83: 10.51804542 | M83: 10.28240693 | N83: 0.982 | O83: 0.02746506024 | P83: 0.5431444636 | Q83: 10.28360229 | R83: 1.155262233 | S83: 0.001718961463 | T83: 1.156981195 | U83: 1.680703282 | V83: 0.008474290562 | W83: 0.008474290562 | X83: 0.1567923011 | Y83: 7.37514771e-05 | Z83: 7.37514771e-05 | AA83: 10.19062959 | AB83: 0.5919389092 | AC83: 0.01730575356 | AD83: 0 | AE83: 0.6910574176 | AF83: 1.379690026 | AG83: 0.01085020404 | AH83: 0.048 | AI83: 0.05897818912 | AJ83: 1.70425882 | AK83: 0.005518546436 | AL83: 0.0158751857 | AM83: 0 | AN83: 0.02141737069 | AO83: 10.14139921 | AP83: 0.195411158 | AQ83: 0.050486618 | AR83: 0.2558988751 | AS83: 0 | AT83: 0 | AU83: 0.04729014 | AV83: 0.01202010673 | AW83: 0.499 | AX83: 0.0249 | AY83: 0.032868 | AZ83: 0.00504 | BA83: 0.057768 | BB83: 2.808959336 | BC83: 83 | BD83: 0.9672649644 | BE83: 3.435375535 | BF83: 12.79494375 | BH83: 96.72649644 | BI83: 1.156981195 | BJ83: 1.074641992 | BK83: 0.07458393532 | BL83: 0.01202010673
G84: 75 | H84: 8.25 | I84: BUCK-BST | J84: 3 | K84: 10 | L84: 10.47979798 | M84: 10.24501635 | N84: 0.982 | O84: 0.02391566265 | P84: 0.4747429558 | Q84: 10.24593294 | R84: 1.146039624 | S84: 0.001260612501 | T84: 1.147300236 | U84: 1.565446816 | V84: 0.0073518712 | W84: 0.0073518712 | X84: 0.1370464867 | Y84: 5.634521852e-05 | Z84: 5.634521852e-05 | AA84: 10.15330081 | AB84: 0.5876102486 | AC84: 0.01730575356 | AD84: 0 | AE84: 0.6854743532 | AF84: 1.374636153 | AG84: 0.01077085995 | AH84: 0.048 | AI84: 0.05889773581 | AJ84: 1.584501733 | AK84: 0.00477022691 | AL84: 0.0158751857 | AM84: 0 | AN84: 0.02066512808 | AO84: 10.12267238 | AP84: 0.1946901426 | AQ84: 0.0503030303 | AR84: 0.254919225 | AS84: 0 | AT84: 0 | AU84: 0.04740354 | AV84: 0.01100067574 | AW84: 0.499 | AX84: 0.0249 | AY84: 0.032868 | AZ84: 0.00504 | BA84: 0.057768 | BB84: 2.78983711 | BC84: 83 | BD84: 0.9674805641 | BE84: 3.403433404 | BF84: 12.74596125 | BH84: 96.74805641 | BI84: 1.147300236 | BJ84: 1.067359982 | BK84: 0.07454090401 | BL84: 0.01100067574
G85: 76 | H85: 8.28 | I85: BUCK-BST | J85: 3 | K85: 10 | L85: 10.4418277 | M85: 10.20789673 | N85: 0.982 | O85: 0.02036626506 | P85: 0.4058096957 | Q85: 10.20856891 | R85: 1.136937429 | S85: 0.0008782052143 | T85: 1.137815634 | U85: 1.441961377 | V85: 0.006237757834 | W85: 0.006237757834 | X85: 0.1171471685 | Y85: 4.117037729e-05 | Z85: 4.117037729e-05 | AA85: 10.11627458 | AB85: 0.5833323644 | AC85: 0.01730575356 | AD85: 0 | AE85: 0.6799675315 | AF85: 1.369623242 | AG85: 0.0106924466 | AH85: 0.048 | AI85: 0.05881822875 | AJ85: 1.456869195 | AK85: 0.004032688918 | AL85: 0.0158751857 | AM85: 0 | AN85: 0.01992394404 | AO85: 10.10407894 | AP85: 0.1939755814 | AQ85: 0.05012077295 | AR85: 0.2539483085 | AS85: 0 | AT85: 0 | AU85: 0.04751694 | AV85: 0.009995839189 | AW85: 0.499 | AX85: 0.0249 | AY85: 0.032868 | AZ85: 0.00504 | BA85: 0.057768 | BB85: 2.771033354 | BC85: 83 | BD85: 0.9676926668 | BE85: 3.372044202 | BF85: 12.69741543 | BH85: 96.76926668 | BI85: 1.137815634 | BJ85: 1.060174953 | BK85: 0.07449881895 | BL85: 0.009995839189
G86: 77 | H86: 8.31 | I86: BUCK-BST | J86: 3 | K86: 10 | L86: 10.40413157 | M86: 10.18329939 | N86: 0.9808182912 | O86: 0.018 | P86: 0 | Q86: 10.18329939 | R86: 1.130807261 | S86: 0 | T86: 1.130807261 | U86: 0 | V86: 0 | W86: 0 | X86: 1.371632999 | Y86: 0.00564413125 | Z86: 0.00564413125 | AA86: 10.08515995 | AB86: 0.5797495717 | AC86: 0.01732660387 | AD86: 0 | AE86: 0.6753872719 | AF86: 1.410367069 | AG86: 0.01133807103 | AH86: 0.048 | AI86: 0.0594729327 | AJ86: 1.36623298 | AK86: 0.003546525856 | AL86: 0.0158751857 | AM86: 0 | AN86: 0.01943549726 | AO86: 10.09123352 | AP86: 0.1934826884 | AQ86: 0.04993983153 | AR86: 0.2532213078 | AS86: 0 | AT86: 0 | AU86: 0.04763034 | AV86: 0.009639319561 | AW86: 0.499 | AX86: 0.0249 | AY86: 0.032868 | AZ86: 0.00504 | BA86: 0.057768 | BB86: 2.758006061 | BC86: 83 | BD86: 0.9678396667 | BE86: 36.1508806 | BF86: 2.973646635 | BH86: 96.78396667 | BI86: 1.130807261 | BJ86: 1.05514735 | BK86: 0.0751909449 | BL86: 0.009639319561
G87: 78 | H87: 8.34 | I87: BUCK-BST | J87: 3 | K87: 10 | L87: 10.36670663 | M87: 10.18329939 | N87: 0.9772901679 | O87: 0.018 | P87: 0 | Q87: 10.18329939 | R87: 1.130807261 | S87: 0 | T87: 1.130807261 | U87: 0 | V87: 0 | W87: 0 | X87: 1.489768293 | Y87: 0.006658228698 | Z87: 0.006658228698 | AA87: 10.06700483 | AB87: 0.5776641416 | AC87: 0.01738915479 | AD87: 0 | AE87: 0.672781665 | AF87: 1.534600991 | AG87: 0.01342350114 | AH87: 0.048 | AI87: 0.06158884874 | AJ87: 1.36623298 | AK87: 0.003546525856 | AL87: 0.0158751857 | AM87: 0 | AN87: 0.01943549726 | AO87: 10.09123352 | AP87: 0.1934826884 | AQ87: 0.04976019185 | AR87: 0.2530344369 | AS87: 0 | AT87: 0 | AU87: 0.04774374 | AV87: 0.01055398189 | AW87: 0.499 | AX87: 0.0249 | AY87: 0.032868 | AZ87: 0.00504 | BA87: 0.057768 | BB87: 2.759371659 | BC87: 83 | BD87: 0.9678242552 | BE87: 36.02627025 | BF87: 3.079442437 | BH87: 96.78242552 | BI87: 1.130807261 | BJ87: 1.054584188 | BK87: 0.07734428294 | BL87: 0.01055398189
G88: 79 | H88: 8.37 | I88: BUCK-BST | J88: 3 | K88: 10 | L88: 10.32954998 | M88: 10.18329939 | N88: 0.9737873357 | O88: 0.018 | P88: 0 | Q88: 10.18329939 | R88: 1.130807261 | S88: 0 | T88: 1.130807261 | U88: 0 | V88: 0 | W88: 0 | X88: 1.597672072 | Y88: 0.007657668153 | Z88: 0.007657668153 | AA88: 10.04894741 | AB88: 0.5755936608 | AC88: 0.0174517057 | AD88: 0 | AE88: 0.6701976729 | AF88: 1.648709327 | AG88: 0.01549398194 | AH88: 0.048 | AI88: 0.06369134846 | AJ88: 1.36623298 | AK88: 0.003546525856 | AL88: 0.0158751857 | AM88: 0 | AN88: 0.01943549726 | AO88: 10.09123352 | AP88: 0.1934826884 | AQ88: 0.0495818399 | AR88: 0.2528489055 | AS88: 0 | AT88: 0 | AU88: 0.04785714 | AV88: 0.0114620875 | AW88: 0.499 | AX88: 0.0249 | AY88: 0.032868 | AZ88: 0.00504 | BA88: 0.057768 | BB88: 2.76072558 | BC88: 83 | BD88: 0.9678089759 | BE88: 35.90274065 | BF88: 3.184567423 | BH88: 96.78089759 | BI88: 1.130807261 | BJ88: 1.054030564 | BK88: 0.07948420466 | BL88: 0.0114620875
G89: 80 | H89: 8.4 | I89: BUCK-BST | J89: 3 | K89: 10 | L89: 10.29265873 | M89: 10.18329939 | N89: 0.9703095238 | O89: 0.018 | P89: 0 | Q89: 10.18329939 | R89: 1.130807261 | S89: 0 | T89: 1.130807261 | U89: 0 | V89: 0 | W89: 0 | X89: 1.69732 | Y89: 0.008642685544 | Z89: 0.008642685544 | AA89: 10.03098681 | AB89: 0.5735379692 | AC89: 0.01751425662 | AD89: 0 | AE89: 0.6676350341 | AF89: 1.754676638 | AG89: 0.01754967358 | AH89: 0.048 | AI89: 0.06578055905 | AJ89: 1.36623298 | AK89: 0.003546525856 | AL89: 0.0158751857 | AM89: 0 | AN89: 0.01943549726 | AO89: 10.09123352 | AP89: 0.1934826884 | AQ89: 0.0494047619 | AR89: 0.2526646994 | AS89: 0 | AT89: 0 | AU89: 0.04797054 | AV89: 0.01236370665 | AW89: 0.499 | AX89: 0.0249 | AY89: 0.032868 | AZ89: 0.00504 | BA89: 0.057768 | BB89: 2.762067983 | BC89: 83 | BD89: 0.9677938272 | BE89: 35.7802787 | BF89: 3.289027953 | BH89: 96.77938272 | BI89: 1.130807261 | BJ89: 1.05348633 | BK89: 0.08161083725 | BL89: 0.01236370665
G90: 81 | H90: 8.43 | I90: BUCK-BST | J90: 3 | K90: 10 | L90: 10.25603005 | M90: 10.18329939 | N90: 0.966856465 | O90: 0.018 | P90: 0 | Q90: 10.18329939 | R90: 1.130807261 | S90: 0 | T90: 1.130807261 | U90: 0 | V90: 0 | W90: 0 | X90: 1.790112876 | Y90: 0.009613512325 | Z90: 0.009613512325 | AA90: 10.01312217 | AB90: 0.5714969088 | AC90: 0.01757680754 | AD90: 0 | AE90: 0.6650934912 | AF90: 1.853906921 | AG90: 0.01959073397 | AH90: 0.048 | AI90: 0.06785660612 | AJ90: 1.36623298 | AK90: 0.003546525856 | AL90: 0.0158751857 | AM90: 0 | AN90: 0.01943549726 | AO90: 10.09123352 | AP90: 0.1934826884 | AQ90: 0.04922894425 | AR90: 0.2524818043 | AS90: 0 | AT90: 0 | AU90: 0.04808394 | AV90: 0.01325890857 | AW90: 0.499 | AX90: 0.0249 | AY90: 0.032868 | AZ90: 0.00504 | BA90: 0.057768 | BB90: 2.76339902 | BC90: 83 | BD90: 0.9677788071 | BE90: 35.65887156 | BF90: 3.392830306 | BH90: 96.77788071 | BI90: 1.130807261 | BJ90: 1.052951339 | BK90: 0.08372430632 | BL90: 0.01325890857
G91: 82 | H91: 8.46 | I91: BUCK-BST | J91: 3 | K91: 10 | L91: 10.21966115 | M91: 10.18329939 | N91: 0.963427896 | O91: 0.018 | P91: 0.007084028647 | Q91: 10.18329959 | R91: 1.13080731 | S91: 7.817483785e-08 | T91: 1.130807389 | U91: 0.002044982923 | V91: 1.254586547e-08 | W91: 1.254586547e-08 | X91: 1.877087816 | Y91: 0.01057037601 | Z91: 0.01057037601 | AA91: 9.995352841 | AB91: 0.569470347 | AC91: 0.01763935845 | AD91: 0 | AE91: 0.6625728202 | AF91: 1.947437346 | AG91: 0.02161731963 | AH91: 0.048 | AI91: 0.06991961456 | AJ91: 1.366233008 | AK91: 0.003546525999 | AL91: 0.0158751857 | AM91: 0 | AN91: 0.0194354974 | AO91: 10.09123372 | AP91: 0.1934826962 | AQ91: 0.04905437352 | AR91: 0.2523002149 | AS91: 0 | AT91: 0 | AU91: 0.04819734 | AV91: 0.01414776212 | AW91: 0.499 | AX91: 0.0249 | AY91: 0.032868 | AZ91: 0.00504 | BA91: 0.057768 | BB91: 2.764719026 | BC91: 83 | BD91: 0.967763912 | BE91: 35.53850801 | BF91: 3.495980728 | BH91: 96.7763912 | BI91: 1.130807389 | BJ91: 1.052425487 | BK91: 0.08582473676 | BL91: 0.01414776212
G92: 83 | H92: 8.49 | I92: BUCK-BST | J92: 3 | K92: 10 | L92: 10.18354927 | M92: 10.18329939 | N92: 0.9600235571 | O92: 0.018 | P92: 0.07764896418 | Q92: 10.18332406 | R92: 1.130813235 | S92: 1.944884136e-05 | T92: 1.130832684 | U92: 0.02241532519 | V92: 1.50734041e-06 | W92: 1.50734041e-06 | X92: 1.959043637 | Y92: 0.01151355592 | Z92: 0.01151355592 | AA92: 9.97770155 | AB92: 0.5674608108 | AC92: 0.01770190937 | AD92: 0 | AE92: 0.6600761947 | AF92: 2.036064999 | AG92: 0.02362969587 | AH92: 0.048 | AI92: 0.07196982087 | AJ92: 1.36623629 | AK92: 0.00354654304 | AL92: 0.0158751857 | AM92: 0 | AN92: 0.01943551452 | AO92: 10.09125796 | AP92: 0.1934836259 | AQ92: 0.04888103651 | AR92: 0.2521209162 | AS92: 0 | AT92: 0 | AU92: 0.04831074 | AV92: 0.0150304057 | AW92: 0.499 | AX92: 0.0249 | AY92: 0.032868 | AZ92: 0.00504 | BA92: 0.057768 | BB92: 2.766059339 | BC92: 83 | BD92: 0.9677487883 | BE92: 35.41934674 | BF92: 3.598491043 | BH92: 96.77487883 | BI92: 1.130832684 | BJ92: 1.051913186 | BK92: 0.08791236507 | BL92: 0.0150304057
G93: 84 | H93: 8.52 | I93: BUCK-BST | J93: 3 | K93: 10 | L93: 10.14769171 | M93: 10.18329939 | N93: 0.9566431925 | O93: 0.018 | P93: 0.1477169635 | Q93: 10.18338867 | R93: 1.130828883 | S93: 8.558324204e-05 | T93: 1.130914466 | U93: 0.04264221433 | V93: 5.45507533e-06 | W93: 5.45507533e-06 | X93: 2.036608675 | Y93: 0.01244332469 | Z93: 0.01244332469 | AA93: 9.960182878 | AB93: 0.5654698849 | AC93: 0.01776446029 | AD93: 0 | AE93: 0.6576055749 | AF93: 2.120415489 | AG93: 0.02562812253 | AH93: 0.048 | AI93: 0.07400745696 | AJ93: 1.366244958 | AK93: 0.003546588044 | AL93: 0.0158751857 | AM93: 0 | AN93: 0.01943555973 | AO93: 10.09132199 | AP93: 0.1934860811 | AQ93: 0.04870892019 | AR93: 0.2519445542 | AS93: 0 | AT93: 0 | AU93: 0.04842414 | AV93: 0.01590696783 | AW93: 0.499 | AX93: 0.0249 | AY93: 0.032868 | AZ93: 0.00504 | BA93: 0.057768 | BB93: 2.7674555 | BC93: 83 | BD93: 0.9677330348 | BE93: 35.30148574 | BF93: 3.700372848 | BH93: 96.77330348 | BI93: 1.130914466 | BJ93: 1.051417286 | BK93: 0.08998742316 | BL93: 0.01590696783
G94: 85 | H94: 8.55 | I94: BUCK-BST | J94: 3 | K94: 10 | L94: 10.11208577 | M94: 10.18329939 | N94: 0.9532865497 | O94: 0.018 | P94: 0.2172932577 | Q94: 10.18349258 | R94: 1.130854049 | S94: 0.0002082455452 | T94: 1.131062294 | U94: 0.0627271604 | V94: 1.180408996e-05 | W94: 1.180408996e-05 | X94: 2.110285668 | Y94: 0.01335991681 | Z94: 0.01335991681 | AA94: 9.942794972 | AB94: 0.5634972796 | AC94: 0.0178270112 | AD94: 0 | AE94: 0.6551605256 | AF94: 2.200988251 | AG94: 0.0276127909 | AH94: 0.048 | AI94: 0.07603268583 | AJ94: 1.3662589 | AK94: 0.003546660423 | AL94: 0.0158751857 | AM94: 0 | AN94: 0.01943563245 | AO94: 10.09142496 | AP94: 0.1934900297 | AQ94: 0.0485380117 | AR94: 0.2517710802 | AS94: 0 | AT94: 0 | AU94: 0.04853754 | AV94: 0.01677753165 | AW94: 0.499 | AX94: 0.0249 | AY94: 0.032868 | AZ94: 0.00504 | BA94: 0.057768 | BB94: 2.768917011 | BC94: 83 | BD94: 0.9677165446 | BE94: 35.18490328 | BF94: 3.801634291 | BH94: 96.77165446 | BI94: 1.131062294 | BJ94: 1.050937464 | BK94: 0.09205007403 | BL94: 0.01677753165
G95: 86 | H95: 8.58 | I95: BUCK-BST | J95: 3 | K95: 10 | L95: 10.07672883 | M95: 10.18329939 | N95: 0.94995338 | O95: 0.018 | P95: 0.2863830043 | Q95: 10.18363496 | R95: 1.130888532 | S95: 0.0003933938808 | T95: 1.131281926 | U95: 0.0826716523 | V95: 2.050380628e-05 | W95: 2.050380628e-05 | X95: 2.180486303 | Y95: 0.01426356155 | Z95: 0.01426356155 | AA95: 9.925536016 | AB95: 0.5615427116 | AC95: 0.01788956212 | AD95: 0 | AE95: 0.6527406215 | AF95: 2.278191355 | AG95: 0.02958388835 | AH95: 0.048 | AI95: 0.07804566721 | AJ95: 1.366278002 | AK95: 0.0035467596 | AL95: 0.0158751857 | AM95: 0 | AN95: 0.01943573208 | AO95: 10.09156606 | AP95: 0.1934954404 | AQ95: 0.04836829837 | AR95: 0.2516004466 | AS95: 0 | AT95: 0 | AU95: 0.04865094 | AV95: 0.01764217857 | AW95: 0.499 | AX95: 0.0249 | AY95: 0.032868 | AZ95: 0.00504 | BA95: 0.057768 | BB95: 2.770449577 | BC95: 83 | BD95: 0.9676992532 | BE95: 35.06957807 | BF95: 3.90228336 | BH95: 96.76992532 | BI95: 1.131281926 | BJ95: 1.050473407 | BK95: 0.09410047741 | BL95: 0.01764217857
G96: 87 | H96: 8.61 | I96: BUCK-BST | J96: 3 | K96: 10 | L96: 10.04161827 | M96: 10.18329939 | N96: 0.9466434379 | O96: 0.018 | P96: 0.3549912892 | Q96: 10.183815 | R96: 1.130932137 | S96: 0.000645242151 | T96: 1.131577379 | U96: 0.1024771582 | V96: 3.150470385e-05 | W96: 3.150470385e-05 | X96: 2.247552974 | Y96: 0.01515448312 | Z96: 0.01515448312 | AA96: 9.908404224 | AB96: 0.5596059033 | AC96: 0.01795211303 | AD96: 0 | AE96: 0.6503454465 | AF96: 2.35236344 | AG96: 0.03154159841 | AH96: 0.048 | AI96: 0.08004655768 | AJ96: 1.366302157 | AK96: 0.00354688501 | AL96: 0.0158751857 | AM96: 0 | AN96: 0.01943585807 | AO96: 10.09174447 | AP96: 0.1935022822 | AQ96: 0.04819976771 | AR96: 0.2514326066 | AS96: 0 | AT96: 0 | AU96: 0.04876434 | AV96: 0.01850098835 | AW96: 0.499 | AX96: 0.0249 | AY96: 0.032868 | AZ96: 0.00504 | BA96: 0.057768 | BB96: 2.772057164 | BC96: 83 | BD96: 0.967681116 | BE96: 34.95548933 | BF96: 4.002327884 | BH96: 96.7681116 | BI96: 1.131577379 | BJ96: 1.050024809 | BK96: 0.09613878988 | BL96: 0.01850098835
G97: 88 | H97: 8.64 | I97: BUCK-BST | J97: 3 | K97: 10 | L97: 10.00675154 | M97: 10.18329939 | N97: 0.9433564815 | O97: 0.018 | P97: 0.4231231277 | Q97: 10.18403191 | R97: 1.130984672 | S97: 0.0009669423521 | T97: 1.131951614 | U97: 0.1221451258 | V97: 4.47582953e-05 | W97: 4.47582953e-05 | X97: 2.311774265 | Y97: 0.01603290076 | Z97: 0.01603290076 | AA97: 9.891397846 | AB97: 0.5576865827 | AC97: 0.01801466395 | AD97: 0 | AE97: 0.647974594 | AF97: 2.423789292 | AG97: 0.03348610085 | AH97: 0.048 | AI97: 0.08203551072 | AJ97: 1.366331258 | AK97: 0.003547036101 | AL97: 0.0158751857 | AM97: 0 | AN97: 0.01943600985 | AO97: 10.09195941 | AP97: 0.1935105251 | AQ97: 0.04803240741 | AR97: 0.2512675142 | AS97: 0 | AT97: 0 | AU97: 0.04887774 | AV97: 0.0193540391 | AW97: 0.499 | AX97: 0.0249 | AY97: 0.032868 | AZ97: 0.00504 | BA97: 0.057768 | BB97: 2.773742681 | BC97: 83 | BD97: 0.9676621004 | BE97: 34.8426167 | BF97: 4.101775536 | BH97: 96.76621004 | BI97: 1.131951614 | BJ97: 1.049591369 | BK97: 0.09816516492 | BL97: 0.0193540391
G98: 89 | H98: 8.67 | I98: BUCK-BST | J98: 3 | K98: 10 | L98: 9.972126105 | M98: 10.18329939 | N98: 0.9400922722 | O98: 0.018 | P98: 0.4907834656 | Q98: 10.18428489 | R98: 1.131045948 | S98: 0.001360916691 | T98: 1.132406865 | U98: 0.141676983 | V98: 6.021710254e-05 | W98: 6.021710254e-05 | X98: 2.373396226 | Y98: 0.01689902894 | Z98: 0.01689902894 | AA98: 9.874515164 | AB98: 0.5557844834 | AC98: 0.01807721487 | AD98: 0 | AE98: 0.6456276661 | AF98: 2.492711192 | AG98: 0.0354175718 | AH98: 0.048 | AI98: 0.0840126768 | AJ98: 1.3663652 | AK98: 0.003547212331 | AL98: 0.0158751857 | AM98: 0 | AN98: 0.01943618689 | AO98: 10.09221011 | AP98: 0.1935201394 | AQ98: 0.04786620531 | AR98: 0.2511051245 | AS98: 0 | AT98: 0 | AU98: 0.04899114 | AV98: 0.02020140737 | AW98: 0.499 | AX98: 0.0249 | AY98: 0.032868 | AZ98: 0.00504 | BA98: 0.057768 | BB98: 2.775508312 | BC98: 83 | BD98: 0.9676421817 | BE98: 34.7309403 | BF98: 4.20063384 | BH98: 96.76421817 | BI98: 1.132406865 | BJ98: 1.049172794 | BK98: 0.100179753 | BL98: 0.02020140737
G99: 90 | H99: 8.7 | I99: BUCK-BST | J99: 3 | K99: 10 | L99: 9.937739464 | M99: 10.18329939 | N99: 0.9368505747 | O99: 0.018 | P99: 0.5579771805 | Q99: 10.1845732 | R99: 1.131115782 | S99: 0.001829049382 | T99: 1.132944831 | U99: 0.1610741377 | V99: 7.78346335e-05 | W99: 7.78346335e-05 | X99: 2.432630773 | Y99: 0.01775307743 | Z99: 0.01775307743 | AA99: 9.857754492 | AB99: 0.5538993447 | AC99: 0.01813976578 | AD99: 0 | AE99: 0.6433042736 | AF99: 2.559337354 | AG99: 0.03733618384 | AH99: 0.048 | AI99: 0.08597820344 | AJ99: 1.36640388 | AK99: 0.003547413171 | AL99: 0.0158751857 | AM99: 0 | AN99: 0.01943638866 | AO99: 10.09249581 | AP99: 0.1935310963 | AQ99: 0.04770114943 | AR99: 0.2509453932 | AS99: 0 | AT99: 0 | AU99: 0.04910454 | AV99: 0.02104316814 | AW99: 0.499 | AX99: 0.0249 | AY99: 0.032868 | AZ99: 0.00504 | BA99: 0.057768 | BB99: 2.77735571 | BC99: 83 | BD99: 0.9676213415 | BE99: 34.62044068 | BF99: 4.298910172 | BH99: 96.76213415 | BI99: 1.132944831 | BJ99: 1.048768799 | BK99: 0.1021827016 | BL99: 0.02104316814
G100: 91 | H100: 8.73 | I100: BUCK-BST | J100: 3 | K100: 10 | L100: 9.903589156 | M100: 10.18329939 | N100: 0.9336311569 | O100: 0.018 | P100: 0.6247090829 | Q100: 10.18489608 | R100: 1.131193992 | S100: 0.00237280941 | T100: 1.133566802 | U100: 0.1803379786 | V100: 9.756535958e-05 | W100: 9.756535958e-05 | X100: 2.489662056 | Y100: 0.01859525146 | Z100: 0.01859525146 | AA100: 9.841114176 | AB100: 0.5520309109 | AC100: 0.0182023167 | AD100: 0 | AE100: 0.6410040359 | AF100: 2.623848321 | AG100: 0.03924210607 | AH100: 0.048 | AI100: 0.08793223529 | AJ100: 1.366447199 | AK100: 0.003547638102 | AL100: 0.0158751857 | AM100: 0 | AN100: 0.01943661462 | AO100: 10.09281578 | AP100: 0.1935433675 | AQ100: 0.04753722795 | AR100: 0.250788277 | AS100: 0 | AT100: 0 | AU100: 0.04921794 | AV100: 0.0218793949 | AW100: 0.499 | AX100: 0.0249 | AY100: 0.032868 | AZ100: 0.00504 | BA100: 0.057768 | BB100: 2.779286116 | BC100: 83 | BD100: 0.9675995658 | BE100: 34.5110988 | BF100: 4.396611765 | BH100: 96.75995658 | BI100: 1.133566802 | BJ100: 1.048379103 | BK100: 0.1041741555 | BL100: 0.0218793949
G101: 92 | H101: 8.76 | I101: BUCK-BST | J101: 3 | K101: 10 | L101: 9.869672755 | M101: 10.18329939 | N101: 0.93043379 | O101: 0.018 | P101: 0.6909839175 | Q101: 10.1852528 | R101: 1.131280404 | S101: 0.002993334768 | T101: 1.134273739 | U101: 0.1994698754 | V101: 0.0001193646936 | W101: 0.0001193646936 | X101: 2.544651373 | Y101: 0.01942575183 | Z101: 0.01942575183 | AA101: 9.824592589 | AB101: 0.5501789314 | AC101: 0.01826486762 | AD101: 0 | AE101: 0.6387265806 | AF101: 2.686401893 | AG101: 0.04113550423 | AH101: 0.048 | AI101: 0.08987491422 | AJ101: 1.366495058 | AK101: 0.003547886614 | AL101: 0.0158751857 | AM101: 0 | AN101: 0.01943686428 | AO101: 10.09316927 | AP101: 0.1935569253 | AQ101: 0.04737442922 | AR101: 0.2506337335 | AS101: 0 | AT101: 0 | AU101: 0.04933134 | AV101: 0.02271015968 | AW101: 0.499 | AX101: 0.0249 | AY101: 0.032868 | AZ101: 0.00504 | BA101: 0.057768 | BB101: 2.781300448 | BC101: 83 | BD101: 0.9675768445 | BE101: 34.40289603 | BF101: 4.493745711 | BH101: 96.75768445 | BI101: 1.134273739 | BJ101: 1.048003433 | BK101: 0.1061542564 | BL101: 0.02271015968
G102: 93 | H102: 8.79 | I102: BUCK | J102: 1 | K102: 10 | L102: 9.835987865 | M102: 10 | N102: 0.9622234827 | O102: 0 | P102: 0.392672083 | Q102: 10.00064244 | R102: 1.087108334 | S102: 0.0008140785996 | T102: 1.087922413 | U102: 0.1133546664 | V102: 3.854784119e-05 | W102: 3.854784119e-05 | X102: 1.906675711 | Y102: 0.01090623681 | Z102: 0.01090623681 | AA102: 9.809929263 | AB102: 0.5485378593 | AC102: 0.03599505 | AD102: 0 | AE102: 0.6565628222 | AF102: 1.943743072 | AG102: 0.02153538165 | AH102: 0.096 | AI102: 0.1180438053 | AJ102: 0 | AK102: 0 | AL102: 0 | AM102: 0 | AN102: 0 | AO102: 10.00064244 | AP102: 0.1900244136 | AQ102: 0 | AR102: 0.1975315781 | AS102: 0.1900244136 | AT102: 0 | AU102: 0.06602148 | AV102: 0.009445342828 | AW102: 0.499 | AX102: 0.0249 | AY102: 0.021912 | AZ102: 0.00504 | BA102: 0.046812 | BB102: 2.692284226 | BC102: 83 | BD102: 0.9685819529 | BE102: 36.12921511 | BF102: 5.902190266 | BH102: 96.85819529 | BI102: 1.087922413 | BJ102: 1.038159686 | BK102: 0.1398308937 | BL102: 0.009445342828
G103: 94 | H103: 8.82 | I103: BUCK | J103: 1 | K103: 10 | L103: 9.802532124 | M103: 10 | N103: 0.9589598643 | O103: 0 | P103: 0.4265961161 | Q103: 10.00075824 | R103: 1.087135699 | S103: 0.0009853263313 | T103: 1.088121025 | U103: 0.1231476912 | V103: 4.549606157e-05 | W103: 4.549606157e-05 | X103: 1.983981134 | Y103: 0.01180854342 | Z103: 0.01180854342 | AA103: 9.793392129 | AB103: 0.5466900176 | AC103: 0.0361179 | AD103: 0 | AE103: 0.6543536379 | AF103: 2.025990117 | AG103: 0.02339642494 | AH103: 0.096 | AI103: 0.1199577414 | AJ103: 0 | AK103: 0 | AL103: 0 | AM103: 0 | AN103: 0 | AO103: 10.00075824 | AP103: 0.1900288142 | AQ103: 0 | AR103: 0.1975363332 | AS103: 0.1900288142 | AT103: 0 | AU103: 0.06624828 | AV103: 0.01026158989 | AW103: 0.499 | AX103: 0.0249 | AY103: 0.021912 | AZ103: 0.00504 | BA103: 0.046812 | BB103: 2.694144647 | BC103: 83 | BD103: 0.9685609249 | BE103: 36.0300959 | BF103: 5.99788707 | BH103: 96.85609249 | BI103: 1.088121025 | BJ103: 1.038095993 | BK103: 0.1418196738 | BL103: 0.01026158989
G104: 95 | H104: 8.85 | I104: BUCK | J104: 1 | K104: 10 | L104: 9.769303202 | M104: 10 | N104: 0.9557183099 | O104: 0 | P104: 0.4602908036 | Q104: 10.00088274 | R104: 1.087165122 | S104: 0.001173944519 | T104: 1.088339066 | U104: 0.1328745097 | V104: 5.296690598e-05 | W104: 5.296690598e-05 | X104: 2.057384117 | Y104: 0.01269848822 | Z104: 0.01269848822 | AA104: 9.776947622 | AB104: 0.5448556174 | AC104: 0.03624075 | AD104: 0 | AE104: 0.6521633391 | AF104: 2.104507267 | AG104: 0.02524501976 | AH104: 0.096 | AI104: 0.1218602929 | AJ104: 0 | AK104: 0 | AL104: 0 | AM104: 0 | AN104: 0 | AO104: 10.00088274 | AP104: 0.1900335457 | AQ104: 0 | AR104: 0.197541446 | AS104: 0.1900335457 | AT104: 0 | AU104: 0.06647508 | AV104: 0.01107237709 | AW104: 0.499 | AX104: 0.0249 | AY104: 0.021912 | AZ104: 0.00504 | BA104: 0.046812 | BB104: 2.696015056 | BC104: 83 | BD104: 0.968539785 | BE104: 35.93192096 | BF104: 6.093014643 | BH104: 96.8539785 | BI104: 1.088339066 | BJ104: 1.038040158 | BK104: 0.1437970693 | BL104: 0.01107237709
G105: 96 | H105: 8.88 | I105: BUCK | J105: 1 | K105: 10 | L105: 9.736298799 | M105: 10 | N105: 0.9524985963 | O105: 0 | P105: 0.4937584635 | Q105: 10.00101577 | R105: 1.08719656 | S105: 0.001379998733 | T105: 1.088576558 | U105: 0.1425357909 | V105: 6.094935507e-05 | W105: 6.094935507e-05 | X105: 2.127303752 | Y105: 0.01357626376 | Z105: 0.01357626376 | AA105: 9.760594809 | AB105: 0.5430345028 | AC105: 0.0363636 | AD105: 0 | AE105: 0.6499916851 | AF105: 2.17970306 | AG105: 0.02708130095 | AH105: 0.096 | AI105: 0.1237515717 | AJ105: 0 | AK105: 0 | AL105: 0 | AM105: 0 | AN105: 0 | AO105: 10.00101577 | AP105: 0.1900386013 | AQ105: 0 | AR105: 0.1975469089 | AS105: 0.1900386013 | AT105: 0 | AU105: 0.06670188 | AV105: 0.01187776358 | AW105: 0.499 | AX105: 0.0249 | AY105: 0.021912 | AZ105: 0.00504 | BA105: 0.046812 | BB105: 2.697895581 | BC105: 83 | BD105: 0.9685185317 | BE105: 35.83467826 | BF105: 6.187578583 | BH105: 96.85185317 | BI105: 1.088576558 | BJ105: 1.037992046 | BK105: 0.1457631921 | BL105: 0.01187776358
G106: 97 | H106: 8.91 | I106: BUCK | J106: 1 | K106: 10 | L106: 9.703516648 | M106: 10 | N106: 0.9493005036 | O106: =CHOOSE(J106,0,(Vout+(Rdson3+Rdcr)*L106-H106)/(Vout+(Rdson3-Rdson4-Rs)*L106),IF(H106>Vout,D_min_boost_exitBB_to_buck, (Vout-H106*D_max_buck_BB)/Vout)) -> 0 | P106: 0.5270013825 | Q106: 10.00115714 | R106: 1.08722997 | S106: 0.001603523911 | T106: 1.088833494 | U106: 0.152132195 | V106: 6.94326143e-05 | W106: 6.94326143e-05 | X106: 2.19408743 | Y106: 0.01444205896 | Z106: 0.01444205896 | AA106: 9.744332772 | AB106: 0.5412265207 | AC106: 0.03648645 | AD106: 0 | AE106: 0.6478384396 | AF106: 2.251915415 | AG106: 0.0289054013 | AH106: 0.096 | AI106: 0.1256316882 | AJ106: 0 | AK106: 0 | AL106: 0 | AM106: 0 | AN106: 0 | AO106: 10.00115714 | AP106: 0.190043974 | AQ106: 0 | AR106: 0.1975527146 | AS106: 0.190043974 | AT106: 0 | AU106: 0.06692868 | AV106: 0.01267780759 | AW106: 0.499 | AX106: 0.0249 | AY106: 0.021912 | AZ106: 0.00504 | BA106: 0.046812 | BB106: 2.699786316 | BC106: 83 | BD106: 0.968497164 | BE106: 35.73835598 | BF106: 6.281584409 | BH106: 96.8497164 | BI106: 1.088833494 | BJ106: 1.037951522 | BK106: 0.1477181526 | BL106: 0.01267780759
G107: 98 | H107: 8.94 | I107: BUCK | J107: 1 | K107: 10 | L107: 9.670954512 | M107: 10 | N107: 0.9461238148 | O107: 0 | P107: 0.5600218169 | Q107: 10.00130668 | R107: 1.087265311 | S107: 0.001844528432 | T107: 1.08910984 | U107: 0.1616643734 | V107: 7.840610884e-05 | W107: 7.840610884e-05 | X107: 2.258027103 | Y107: 0.01529605919 | Z107: 0.01529605919 | AA107: 9.728160606 | AB107: 0.53943152 | AC107: 0.0366093 | AD107: 0 | AE107: 0.6457033701 | AF107: 2.321427705 | AG107: 0.03071745157 | AH107: 0.096 | AI107: 0.1275007512 | AJ107: 0 | AK107: 0 | AL107: 0 | AM107: 0 | AN107: 0 | AO107: 10.00130668 | AP107: 0.1900496572 | AQ107: 0 | AR107: 0.1975588558 | AS107: 0.1900496572 | AT107: 0 | AU107: 0.06715548 | AV107: 0.01347256648 | AW107: 0.499 | AX107: 0.0249 | AY107: 0.021912 | AZ107: 0.00504 | BA107: 0.046812 | BB107: 2.701687329 | BC107: 83 | BD107: 0.968475681 | BE107: 35.64294251 | BF107: 6.37503756 | BH107: 96.8475681 | BI107: 1.08910984 | BJ107: 1.037918457 | BK107: 0.1496620596 | BL107: 0.01347256648
G108: 99 | H108: 8.97 | I108: BUCK | J108: 1 | K108: 10 | L108: 9.638610182 | M108: 10 | N108: 0.9429683157 | O108: 0 | P108: 0.5928219926 | Q108: 10.00146422 | R108: 1.087302543 | S108: 0.00210299752 | T108: 1.089405541 | U108: 0.1711329685 | V108: 8.785947873e-05 | W108: 8.785947873e-05 | X108: 2.319371063 | Y108: 0.01613844638 | Z108: 0.01613844638 | AA108: 9.71207742 | AB108: 0.5376493525 | AC108: 0.03673215 | AD108: 0 | AE108: 0.6435862485 | AF108: 2.388480413 | AG108: 0.0325175805 | AH108: 0.096 | AI108: 0.129358868 | AJ108: 0 | AK108: 0 | AL108: 0 | AM108: 0 | AN108: 0 | AO108: 10.00146422 | AP108: 0.1900556443 | AQ108: 0 | AR108: 0.1975653254 | AS108: 0.1900556443 | AT108: 0 | AU108: 0.06738228 | AV108: 0.01426209671 | AW108: 0.499 | AX108: 0.0249 | AY108: 0.021912 | AZ108: 0.00504 | BA108: 0.046812 | BB108: 2.703598665 | BC108: 83 | BD108: 0.9684540824 | BE108: 35.54842642 | BF108: 6.467943399 | BH108: 96.84540824 | BI108: 1.089405541 | BJ108: 1.037892722 | BK108: 0.1515950204 | BL108: 0.01426209671
G109: 100 | H109: 9 | I109: BUCK | J109: 1 | K109: 10 | L109: 9.606481481 | M109: 10 | N109: 0.939833795 | O109: 0 | P109: 0.6254041062 | Q109: 10.00162958 | R109: 1.087341625 | S109: 0.002378896109 | T109: 1.089720521 | U109: 0.1805386145 | V109: 9.778257403e-05 | W109: 9.778257403e-05 | X109: 2.378332684 | Y109: 0.01696939907 | Z109: 0.01696939907 | AA109: 9.696082334 | AB109: 0.535879872 | AC109: 0.036855 | AD109: 0 | AE109: 0.6414868502 | AF109: 2.453279757 | AG109: 0.03430591493 | AH109: 0.096 | AI109: 0.1312061443 | AJ109: 0 | AK109: 0 | AL109: 0 | AM109: 0 | AN109: 0 | AO109: 10.00162958 | AP109: 0.190061929 | AQ109: 0 | AR109: 0.1975721165 | AS109: 0.190061929 | AT109: 0 | AU109: 0.06760908 | AV109: 0.01504645392 | AW109: 0.499 | AX109: 0.0249 | AY109: 0.021912 | AZ109: 0.00504 | BA109: 0.046812 | BB109: 2.705520347 | BC109: 83 | BD109: 0.9684323678 | BE109: 35.45479651 | BF109: 6.560307215 | BH109: 96.84323678 | BI109: 1.089720521 | BJ109: 1.037874191 | BK109: 0.1535171407 | BL109: 0.01504645392
G110: 101 | H110: 9.03 | I110: BUCK | J110: 1 | K110: 10 | L110: 9.574566261 | M110: 10 | N110: 0.9367200442 | O110: 0 | P110: 0.6577703251 | Q110: 10.0018026 | R110: =(Q110^2*Rdcr*(1+Ltc*Ta-Ltc*25))/(1-Q110^2*Rdcr*Ltc*ThetaCa) -> 1.087382517 | S110: =7.759*10^-3*Fsw^0.9458*(0.00787*P110)^2.304 -> 0.002672171275 | T110: =R110+S110 -> 1.090054689 | U110: 0.1898819371 | V110: =RCoutEsr*U110^2 -> 0.0001081654502 | W110: =V110 -> 0.0001081654502 | X110: 2.435097019 | Y110: =RCinEsr*X110^2 -> 0.01778909248 | Z110: =Y110 -> 0.01778909248 | AA110: 9.680174482 | AB110: 0.5341229346 | AC110: 0.03697785 | AD110: 0 | AE110: 0.6394049548 | AF110: 2.516004203 | AG110: 0.03608257976 | AH110: 0.096 | AI110: 0.1330426844 | AJ110: 0 | AK110: 0 | AL110: 0 | AM110: 0 | AN110: 0 | AO110: 10.0018026 | AP110: 0.1900685048 | AQ110: 0 | AR110: 0.1975792223 | AS110: 0.1900685048 | AT110: 0 | AU110: 0.06783588 | AV110: 0.01582569288 | AW110: 0.499 | AX110: 0.0249 | AY110: 0.021912 | AZ110: 0.00504 | BA110: =SUM(AX110:AY110) -> 0.046812 | BB110: =SUM(T110,W110,Z110,AE110,AI110,AN110,AR110, AT110,AU110,BA110,AV110,AW110) -> 2.707452381 | BC110: 83 | BD110: =BC110/(BC110+BB110) -> 0.9684105372 | BE110: 35.36204174 | BF110: 6.652134221 | BH110: =BD110*100 -> 96.84105372 | BI110: =T110 -> 1.090054689 | BJ110: =AE110+AI110+AN110+AR110+AU110 -> 1.037862741 | BK110: =AI110+AU110*0.33 -> 0.1554285248 | BL110: =AV110 -> 0.01582569288
G111: 102 | H111: 9.06 | I111: BUCK | J111: 1 | K111: 10 | L111: 9.542862399 | M111: 10 | N111: 0.9336268575 | O111: 0 | P111: 0.689922788 | Q111: 10.00198311 | R111: 1.087425183 | S111: 0.002982754341 | T111: 1.090407937 | U111: 0.1991635537 | V111: 0.0001189983634 | W111: 0.0001189983634 | X111: 2.489825871 | Y111: 0.01859769861 | Z111: 0.01859769861 | AA111: 9.66435301 | AB111: 0.5323783989 | AC111: 0.0371007 | AD111: 0 | AE111: 0.6373403454 | AF111: 2.576809465 | AG111: 0.03784769801 | AH111: 0.096 | AI111: 0.1348685912 | AJ111: 0 | AK111: 0 | AL111: 0 | AM111: 0 | AN111: 0 | AO111: 10.00198311 | AP111: 0.1900753656 | AQ111: 0 | AR111: 0.197586636 | AS111: 0.1900753656 | AT111: 0 | AU111: 0.06806268 | AV111: 0.01659986755 | AW111: 0.499 | AX111: 0.0249 | AY111: 0.021912 | AZ111: 0.00504 | BA111: 0.046812 | BB111: 2.709394754 | BC111: 83 | BD111: 0.9683885907 | BE111: 35.27015127 | BF111: 6.743429558 | BH111: 96.83885907 | BI111: 1.090407937 | BJ111: 1.037858253 | BK111: 0.1573292756 | BL111: 0.01659986755
G112: 103 | H112: 9.09 | I112: BUCK | J112: 1 | K112: 10 | L112: 9.511367803 | M112: 10 | N112: 0.9305540318 | O112: 0 | P112: 0.7218636056 | Q112: 10.00217096 | R112: 1.087469584 | S112: 0.003310562681 | T112: 1.090780146 | U112: 0.2083840735 | V112: 0.0001302717663 | W112: 0.0001302717663 | X112: 2.542661748 | Y112: 0.01939538629 | Z112: 0.01939538629 | AA112: 9.648617076 | AB112: 0.5306461255 | AC112: 0.03722355 | AD112: 0 | AE112: 0.635292809 | AF112: 2.635832399 | AG112: 0.03960139088 | AH112: 0.096 | AI112: 0.1366839659 | AJ112: 0 | AK112: 0 | AL112: 0 | AM112: 0 | AN112: 0 | AO112: 10.00217096 | AP112: 0.1900825055 | AQ112: 0 | AR112: 0.1975943513 | AS112: 0.1900825055 | AT112: 0 | AU112: 0.06828948 | AV112: 0.01736903109 | AW112: 0.499 | AX112: 0.0249 | AY112: 0.021912 | AZ112: 0.00504 | BA112: 0.046812 | BB112: 2.711347442 | BC112: 83 | BD112: 0.9683665288 | BE112: 35.17911445 | BF112: 6.834198296 | BH112: 96.83665288 | BI112: 1.090780146 | BJ112: 1.037860606 | BK112: 0.1592194943 | BL112: 0.01736903109
G113: 104 | H113: 9.12 | I113: BUCK | J113: 1 | K113: 10 | L113: 9.480080409 | M113: 10 | N113: 0.9275013669 | O113: 0 | P113: 0.7535948606 | Q113: 10.00236599 | R113: 1.087515683 | S113: 0.003655501309 | T113: 1.091171184 | U113: 0.2175440978 | V113: 0.0001419763035 | W113: 0.0001419763035 | X113: 2.593730984 | Y113: 0.02018232125 | Z113: 0.02018232125 | AA113: 9.632965851 | AB113: 0.5289259772 | AC113: 0.0373464 | AD113: 0 | AE113: 0.6332621361 | AF113: 2.693194078 | AG113: 0.04134377775 | AH113: 0.096 | AI113: 0.1384889087 | AJ113: 0 | AK113: 0 | AL113: 0 | AM113: 0 | AN113: 0 | AO113: 10.00236599 | AP113: 0.1900899183 | AQ113: 0 | AR113: 0.1976023617 | AS113: 0.1900899183 | AT113: 0 | AU113: 0.06851628 | AV113: 0.01813323586 | AW113: 0.499 | AX113: 0.0249 | AY113: 0.021912 | AZ113: 0.00504 | BA113: 0.046812 | BB113: 2.713310404 | BC113: 83 | BD113: 0.9683443518 | BE113: 35.0889208 | BF113: 6.924445434 | BH113: 96.83443518 | BI113: 1.091171184 | BJ113: 1.037869686 | BK113: 0.1610992811 | BL113: 0.01813323586
G114: 105 | H114: 9.15 | I114: BUCK | J114: 1 | K114: 10 | L114: 9.448998179 | M114: 10 | N114: 0.9244686649 | O114: 0 | P114: 0.7851186088 | Q114: 10.00256805 | R114: 1.087563444 | S114: 0.004017464263 | T114: 1.091580908 | U114: 0.2266442201 | V114: 0.0001541028075 | W114: 0.0001541028075 | X114: 2.643146244 | Y114: 0.02095866621 | Z114: 0.02095866621 | AA114: 9.617398516 | AB114: 0.5272178191 | AC114: 0.03746925 | AD114: 0 | AE114: 0.6312481206 | AF114: 2.749002251 | AG114: 0.04307497626 | AH114: 0.096 | AI114: 0.1402835181 | AJ114: 0 | AK114: 0 | AL114: 0 | AM114: 0 | AN114: 0 | AO114: 10.00256805 | AP114: 0.1900975984 | AQ114: 0 | AR114: 0.1976106609 | AS114: 0.1900975984 | AT114: 0 | AU114: 0.06874308 | AV114: 0.01889253345 | AW114: 0.499 | AX114: 0.0249 | AY114: 0.021912 | AZ114: 0.00504 | BA114: 0.046812 | BB114: 2.71528359 | BC114: 83 | BD114: 0.9683220602 | BE114: 34.99956003 | BF114: 7.014175905 | BH114: 96.83220602 | BI114: 1.091580908 | BJ114: 1.03788538 | BK114: 0.1629687345 | BL114: 0.01889253345
G115: 106 | H115: 9.18 | I115: BUCK | J115: 1 | K115: 10 | L115: 9.418119099 | M115: 10 | N115: 0.9214557306 | O115: 0 | P115: 0.8164368789 | Q115: 10.00277699 | R115: 1.087612832 | S115: 0.004396335828 | T115: 1.092009168 | U115: 0.2356850259 | V115: 0.0001666422943 | W115: 0.0001666422943 | X115: 2.691008541 | Y115: 0.0217245809 | Z115: 0.0217245809 | AA115: 9.601914265 | AB115: 0.5255215181 | AC115: 0.0375921 | AD115: 0 | AE115: 0.62925056 | AF115: 2.803353327 | AG115: 0.04479510228 | AH115: 0.096 | AI115: 0.1420678914 | AJ115: 0 | AK115: 0 | AL115: 0 | AM115: 0 | AN115: 0 | AO115: 10.00277699 | AP115: 0.1901055401 | AQ115: 0 | AR115: 0.1976192427 | AS115: 0.1901055401 | AT115: 0 | AU115: 0.06896988 | AV115: 0.01964697469 | AW115: 0.499 | AX115: 0.0249 | AY115: 0.021912 | AZ115: 0.00504 | BA115: 0.046812 | BB115: 2.71726694 | BC115: 83 | BD115: 0.9682996549 | BE115: 34.911022 | BF115: 7.103394571 | BH115: 96.82996549 | BI115: 1.092009168 | BJ115: 1.037907574 | BK115: 0.1648279518 | BL115: 0.01964697469
G116: 107 | H116: 9.21 | I116: BUCK | J116: 1 | K116: 10 | L116: 9.387441187 | M116: 10 | N116: 0.9184623714 | O116: 0 | P116: 0.8475516736 | Q116: 10.00299265 | R116: 1.087663813 | S116: 0.004791991619 | T116: 1.092455804 | U116: 0.2446670935 | V116: 0.0001795859599 | W116: 0.0001795859599 | X116: 2.737408883 | Y116: 0.02248022217 | Z116: 0.02248022217 | AA116: 9.586512302 | AB116: 0.5238369433 | AC116: 0.03771495 | AD116: 0 | AE116: 0.6272692552 | AF116: 2.85633399 | AG116: 0.04650427002 | AH116: 0.096 | AI116: 0.1438421246 | AJ116: 0 | AK116: 0 | AL116: 0 | AM116: 0 | AN116: 0 | AO116: 10.00299265 | AP116: 0.1901137378 | AQ116: 0 | AR116: 0.1976281012 | AS116: 0.1901137378 | AT116: 0 | AU116: 0.06919668 | AV116: 0.02039660966 | AW116: 0.499 | AX116: 0.0249 | AY116: 0.021912 | AZ116: 0.00504 | BA116: 0.046812 | BB116: 2.719260383 | BC116: 83 | BD116: 0.9682771367 | BE116: 34.82329676 | BF116: 7.192106231 | BH116: 96.82771367 | BI116: 1.092455804 | BJ116: 1.037936161 | BK116: 0.166677029 | BL116: 0.02039660966
G117: 108 | H117: 9.24 | I117: BUCK | J117: 1 | K117: 10 | L117: 9.356962482 | M117: 10 | N117: 0.9154883972 | O117: 0 | P117: 0.8784649694 | Q117: 10.0032149 | R117: 1.087716351 | S117: 0.005204299545 | T117: 1.092920651 | U117: 0.2535909933 | V117: 0.0001929251756 | W117: 0.0001929251756 | X117: 2.782429636 | Y117: 0.02322574404 | Z117: 0.02322574404 | AA117: 9.571191844 | AB117: 0.5221639658 | AC117: 0.0378378 | AD117: 0 | AE117: 0.6253040102 | AF117: 2.908022539 | AG117: 0.04820259199 | AH117: 0.096 | AI117: 0.1456063123 | AJ117: 0 | AK117: 0 | AL117: 0 | AM117: 0 | AN117: 0 | AO117: 10.0032149 | AP117: 0.1901221859 | AQ117: 0 | AR117: 0.1976372304 | AS117: 0.1901221859 | AT117: 0 | AU117: 0.06942348 | AV117: 0.02114148771 | AW117: 0.499 | AX117: 0.0249 | AY117: 0.021912 | AZ117: 0.00504 | BA117: 0.046812 | BB117: 2.721263841 | BC117: 83 | BD117: 0.9682545063 | BE117: 34.73637451 | BF117: 7.280315616 | BH117: 96.82545063 | BI117: 1.092920651 | BJ117: 1.037971033 | BK117: 0.1685160607 | BL117: 0.02114148771
G118: 109 | H118: 9.27 | I118: BUCK | J118: 1 | K118: 10 | L118: 9.32668105 | M118: 10 | N118: 0.9125336202 | O118: 0 | P118: 0.9091787172 | Q118: 10.0034436 | R118: 1.087770415 | S118: 0.005633120672 | T118: 1.093403536 | U118: 0.2624572886 | V118: 0.000206651485 | W118: 0.000206651485 | X118: 2.826145653 | Y118: 0.02396129775 | Z118: 0.02396129775 | AA118: 9.555952115 | AB118: 0.5205024587 | AC118: 0.03796065 | AD118: 0 | AE118: 0.6233546325 | AF118: 2.958489986 | AG118: 0.04989017908 | AH118: 0.096 | AI118: 0.1473605479 | AJ118: 0 | AK118: 0 | AL118: 0 | AM118: 0 | AN118: 0 | AO118: 10.0034436 | AP118: 0.1901308793 | AQ118: 0 | AR118: 0.1976466246 | AS118: 0.1901308793 | AT118: 0 | AU118: 0.06965028 | AV118: 0.02188165749 | AW118: 0.499 | AX118: 0.0249 | AY118: 0.021912 | AZ118: 0.00504 | BA118: 0.046812 | BB118: 2.723277228 | BC118: 83 | BD118: 0.9682317649 | BE118: 34.65024563 | BF118: 7.368027395 | BH118: 96.82317649 | BI118: 1.093403536 | BJ118: 1.038012085 | BK118: 0.1703451403 | BL118: 0.02188165749
G119: 110 | H119: 9.3 | I119: BUCK | J119: 1 | K119: 10 | L119: 9.296594982 | M119: 10 | N119: 0.9095978552 | O119: 0 | P119: 0.9396948431 | Q119: 10.0036786 | R119: 1.087825972 | S119: 0.006078309992 | T119: 1.093904282 | U119: 0.2712665353 | V119: 0.0002207565995 | W119: 0.0002207565995 | X119: 2.868625212 | Y119: 0.02468703182 | Z119: 0.02468703182 | AA119: 9.540792355 | AB119: 0.518852297 | AC119: 0.0380835 | AD119: 0 | AE119: 0.6214209326 | AF119: 3.007800985 | AG119: 0.05156714057 | AH119: 0.096 | AI119: 0.1491049235 | AJ119: 0 | AK119: 0 | AL119: 0 | AM119: 0 | AN119: 0 | AO119: 10.0036786 | AP119: 0.1901398125 | AQ119: 0 | AR119: 0.197656278 | AS119: 0.1901398125 | AT119: 0 | AU119: 0.06987708 | AV119: 0.02261716692 | AW119: 0.499 | AX119: 0.0249 | AY119: 0.021912 | AZ119: 0.00504 | BA119: 0.046812 | BB119: 2.725300451 | BC119: 83 | BD119: 0.9682089134 | BE119: 34.56490063 | BF119: 7.455246174 | BH119: 96.82089134 | BI119: 1.093904282 | BJ119: 1.038059214 | BK119: 0.1721643599 | BL119: 0.02261716692
G120: 111 | H120: 9.33 | I120: BUCK | J120: 1 | K120: 10 | L120: 9.266702394 | M120: 10 | N120: 0.9066809193 | O120: 0 | P120: 0.9700152482 | Q120: 10.00391977 | R120: 1.087882988 | S120: 0.006539717117 | T120: 1.094422706 | U120: 0.2800192823 | V120: 0.0002352323954 | W120: 0.0002352323954 | X120: 2.90993082 | Y120: 0.02540309213 | Z120: 0.02540309213 | AA120: 9.525711811 | AB120: 0.5172133574 | AC120: 0.03820635 | AD120: 0 | AE120: 0.6195027241 | AF120: 3.05601461 | AG120: 0.05323358418 | AH120: 0.096 | AI120: 0.1508395299 | AJ120: 0 | AK120: 0 | AL120: 0 | AM120: 0 | AN120: 0 | AO120: 10.00391977 | AP120: 0.1901489805 | AQ120: 0 | AR120: 0.1976661852 | AS120: 0.1901489805 | AT120: 0 | AU120: 0.07010388 | AV120: 0.02334806324 | AW120: 0.499 | AX120: 0.0249 | AY120: 0.021912 | AZ120: 0.00504 | BA120: 0.046812 | BB120: 2.727333413 | BC120: 83 | BD120: 0.968185953 | BE120: 34.48033021 | BF120: 7.541976497 | BH120: 96.8185953 | BI120: 1.094422706 | BJ120: 1.038112319 | BK120: 0.1739738103 | BL120: 0.02334806324
G121: 112 | H121: 9.36 | I121: BUCK | J121: 1 | K121: 10 | L121: 9.237001425 | M121: 10 | N121: 0.9037826319 | O121: 0 | P121: 1.00014181 | Q121: 10.00416698 | R121: 1.087941434 | S121: 0.007017186906 | T121: 1.094958621 | U121: 0.2887160715 | V121: 0.0002500709098 | W121: 0.0002500709098 | X121: 2.95011988 | Y121: 0.02610962193 | Z121: 0.02610962193 | AA121: 9.51070974 | AB121: 0.5155855187 | AC121: 0.0383292 | AD121: 0 | AE121: 0.6175998238 | AF121: 3.103185009 | AG121: 0.05488961605 | AH121: 0.096 | AI121: 0.1525644569 | AJ121: 0 | AK121: 0 | AL121: 0 | AM121: 0 | AN121: 0 | AO121: 10.00416698 | AP121: 0.1901583782 | AQ121: 0 | AR121: 0.1976763407 | AS121: 0.1901583782 | AT121: 0 | AU121: 0.07033068 | AV121: 0.02407439301 | AW121: 0.499 | AX121: 0.0249 | AY121: 0.021912 | AZ121: 0.00504 | BA121: 0.046812 | BB121: 2.729376009 | BC121: 83 | BD121: 0.9681628849 | BE121: 34.39652519 | BF121: 7.628222847 | BH121: 96.81628849 | BI121: 1.094958621 | BJ121: 1.038171301 | BK121: 0.1757735813 | BL121: 0.02407439301
G122: 113 | H122: 9.39 | I122: BUCK | J122: 1 | K122: 10 | L122: 9.207490238 | M122: 10 | N122: 0.9009028147 | O122: 0 | P122: 1.03007638 | Q122: 10.0044201 | R122: 1.088001279 | S122: 0.007510560029 | T122: 1.095511839 | U122: 0.2973574376 | V122: 0.0002652643372 | W122: 0.0002652643372 | X122: 2.989245275 | Y122: 0.02680676195 | Z122: 0.02680676195 | AA122: 9.495785412 | AB122: 0.5139686614 | AC122: 0.03845205 | AD122: 0 | AE122: 0.6157120511 | AF122: 3.149361975 | AG122: 0.05653534085 | AH122: 0.096 | AI122: 0.154279793 | AJ122: 0 | AK122: 0 | AL122: 0 | AM122: 0 | AN122: 0 | AO122: 10.0044201 | AP122: 0.1901680007 | AQ122: 0 | AR122: 0.1976867391 | AS122: 0.1901680007 | AT122: 0 | AU122: 0.07055748 | AV122: 0.02479620213 | AW122: 0.499 | AX122: 0.0249 | AY122: 0.021912 | AZ122: 0.00504 | BA122: 0.046812 | BB122: 2.731428131 | BC122: 83 | BD122: 0.9681397104 | BE122: 34.31347656 | BF122: 7.713989649 | BH122: 96.81397104 | BI122: 1.095511839 | BJ122: 1.038236063 | BK122: 0.1775637614 | BL122: 0.02479620213
G123: 114 | H123: 9.42 | I123: BUCK | J123: 1 | K123: 10 | L123: 9.178167021 | M123: 10 | N123: 0.8980412917 | O123: 0 | P123: 1.059820789 | Q123: 10.00467899 | R123: 1.088062492 | S123: 0.008019673477 | T123: 1.096082165 | U123: 0.3059439089 | V123: 0.0002808050262 | W123: 0.0002808050262 | X123: 3.027355855 | Y123: 0.02749465042 | Z123: 0.02749465042 | AA123: 9.480938104 | AB123: 0.5123626678 | AC123: 0.0385749 | AD123: 0 | AE123: 0.6138392288 | AF123: 3.194591419 | AG123: 0.05817086172 | AH123: 0.096 | AI123: 0.1559856254 | AJ123: 0 | AK123: 0 | AL123: 0 | AM123: 0 | AN123: 0 | AO123: 10.00467899 | AP123: 0.1901778432 | AQ123: 0 | AR123: 0.1976973753 | AS123: 0.1901778432 | AT123: 0 | AU123: 0.07078428 | AV123: 0.02551353584 | AW123: 0.499 | AX123: 0.0249 | AY123: 0.021912 | AZ123: 0.00504 | BA123: 0.046812 | BB123: 2.733489666 | BC123: 83 | BD123: 0.9681164306 | BE123: 34.23117544 | BF123: 7.799281268 | BH123: 96.81164306 | BI123: 1.096082165 | BJ123: 1.038306509 | BK123: 0.1793444378 | BL123: 0.02551353584
G124: 115 | H124: 9.45 | I124: BUCK | J124: 1 | K124: 10 | L124: 9.149029982 | M124: 10 | N124: 0.8951978892 | O124: 0 | P124: 1.089376843 | Q124: 10.00494354 | R124: 1.088125043 | S124: 0.008544361029 | T124: 1.096669404 | U124: 0.3144760068 | V124: 0.0002966854766 | W124: 0.0002966854766 | X124: 3.064496867 | Y124: 0.02817342314 | Z124: 0.02817342314 | AA124: 9.466167105 | AB124: 0.510767422 | AC124: 0.03869775 | AD124: 0 | AE124: 0.6119811822 | AF124: 3.238915791 | AG124: 0.05979628037 | AH124: 0.096 | AI124: 0.1576820403 | AJ124: 0 | AK124: 0 | AL124: 0 | AM124: 0 | AN124: 0 | AO124: 10.00494354 | AP124: 0.1901879008 | AQ124: 0 | AR124: 0.197708244 | AS124: 0.1901879008 | AT124: 0 | AU124: 0.07101108 | AV124: 0.02622643876 | AW124: 0.499 | AX124: 0.0249 | AY124: 0.021912 | AZ124: 0.00504 | BA124: 0.046812 | BB124: 2.735560498 | BC124: 83 | BD124: 0.968093047 | BE124: 34.14961311 | BF124: 7.884102013 | BH124: 96.8093047 | BI124: 1.096669404 | BJ124: 1.038382546 | BK124: 0.1811156967 | BL124: 0.02622643876
G125: 116 | H125: 9.48 | I125: BUCK | J125: 1 | K125: 10 | L125: 9.120077356 | M125: 10 | N125: 0.8923724356 | O125: 0 | P125: 1.118746325 | Q125: 10.00521361 | R125: 1.088188905 | S125: 0.009084453673 | T125: 1.097273359 | U125: 0.3229542461 | V125: 0.0003128983352 | W125: 0.0003128983352 | X125: 3.100710322 | Y125: 0.02884321351 | Z125: 0.02884321351 | AA125: 9.451471711 | AB125: 0.5091828098 | AC125: 0.0388206 | AD125: 0 | AE125: 0.6101377395 | AF125: 3.282374436 | AG125: 0.06141169705 | AH125: 0.096 | AI125: 0.1593691227 | AJ125: 0 | AK125: 0 | AL125: 0 | AM125: 0 | AN125: 0 | AO125: 10.00521361 | AP125: 0.1901981689 | AQ125: 0 | AR125: 0.1977193402 | AS125: 0.1901981689 | AT125: 0 | AU125: 0.07123788 | AV125: 0.02693495485 | AW125: 0.499 | AX125: 0.0249 | AY125: 0.021912 | AZ125: 0.00504 | BA125: 0.046812 | BB125: 2.737640508 | BC125: 83 | BD125: 0.9680695609 | BE125: 34.06878097 | BF125: 7.968456136 | BH125: 96.80695609 | BI125: 1.097273359 | BJ125: 1.038464082 | BK125: 0.1828776231 | BL125: 0.02693495485
G126: 117 | H126: 9.51 | I126: BUCK | J126: 1 | K126: 10 | L126: 9.091307396 | M126: 10 | N126: 0.8895647614 | O126: 0 | P126: 1.147930997 | Q126: 10.0054891 | R126: 1.088254048 | S126: 0.009639779992 | T126: 1.097893828 | U126: 0.3313791351 | V126: 0.0003294363936 | W126: 0.0003294363936 | X126: 3.136035321 | Y126: 0.0295041526 | Z126: 0.0295041526 | AA126: 9.43685123 | AB126: 0.5076087185 | AC126: 0.03894345 | AD126: 0 | AE126: 0.6083087317 | AF126: 3.325003908 | AG126: 0.06301721063 | AH126: 0.096 | AI126: 0.1610469566 | AJ126: 0 | AK126: 0 | AL126: 0 | AM126: 0 | AN126: 0 | AO126: 10.0054891 | AP126: 0.190208643 | AQ126: 0 | AR126: 0.1977306591 | AS126: 0.190208643 | AT126: 0 | AU126: 0.07146468 | AV126: 0.02763912747 | AW126: 0.499 | AX126: 0.0249 | AY126: 0.021912 | AZ126: 0.00504 | BA126: 0.046812 | BB126: 2.739729572 | BC126: 83 | BD126: 0.9680459737 | BE126: 33.98867058 | BF126: 8.052347832 | BH126: 96.80459737 | BI126: 1.097893828 | BJ126: 1.038551027 | BK126: 0.184630301 | BL126: 0.02763912747
G127: 118 | H127: 9.54 | I127: BUCK | J127: 1 | K127: 10 | L127: 9.062718379 | M127: 10 | N127: 0.8867746994 | O127: 0 | P127: 1.176932597 | Q127: 10.00576988 | R127: 1.088320445 | S127: 0.01021016651 | T127: 1.098530611 | U127: 0.339751176 | V127: 0.0003462925847 | W127: 0.0003462925847 | X127: 3.170508329 | Y127: 0.03015636919 | Z127: 0.03015636919 | AA127: 9.422304979 | AB127: 0.5060450373 | AC127: 0.0390663 | AD127: 0 | AE127: 0.6064939923 | AF127: 3.366838243 | AG127: 0.06461291858 | AH127: 0.096 | AI127: 0.1627156249 | AJ127: 0 | AK127: 0 | AL127: 0 | AM127: 0 | AN127: 0 | AO127: 10.00576988 | AP127: 0.1902193186 | AQ127: 0 | AR127: 0.1977421958 | AS127: 0.1902193186 | AT127: 0 | AU127: 0.07169148 | AV127: 0.02833899938 | AW127: 0.499 | AX127: 0.0249 | AY127: 0.021912 | AZ127: 0.00504 | BA127: 0.046812 | BB127: 2.741827565 | BC127: 83 | BD127: 0.9680222869 | BE127: 33.90927362 | BF127: 8.135781243 | BH127: 96.80222869 | BI127: 1.098530611 | BJ127: 1.038643293 | BK127: 0.1863738133 | BL127: 0.02833899938
G128: 119 | H128: 9.57 | I128: BUCK | J128: 1 | K128: 10 | L128: 9.034308603 | M128: 10 | N128: 0.8840020844 | O128: 0 | P128: 1.205752843 | Q128: 10.00605583 | R128: 1.088388068 | S128: 0.01079543803 | T128: 1.099183506 | U128: 0.3480708643 | V128: 0.0003634599797 | W128: 0.0003634599797 | X128: 3.204163427 | Y128: 0.03079998981 | Z128: 0.03079998981 | AA128: 9.407832281 | AB128: 0.5044916569 | AC128: 0.03918915 | AD128: 0 | AE128: 0.6046933577 | AF128: 3.407909196 | AG128: 0.06619891702 | AH128: 0.096 | AI128: 0.1643752092 | AJ128: 0 | AK128: 0 | AL128: 0 | AM128: 0 | AN128: 0 | AO128: 10.00605583 | AP128: 0.1902301913 | AQ128: 0 | AR128: 0.1977539455 | AS128: 0.1902301913 | AT128: 0 | AU128: 0.07191828 | AV128: 0.02903461273 | AW128: 0.499 | AX128: 0.0249 | AY128: 0.021912 | AZ128: 0.00504 | BA128: 0.046812 | BB128: 2.743934361 | BC128: 83 | BD128: 0.9679985018 | BE128: 33.83058189 | BF128: 8.218760459 | BH128: 96.79985018 | BI128: 1.099183506 | BJ128: 1.038740792 | BK128: 0.1881082416 | BL128: 0.02903461273
G129: 120 | H129: 9.6 | I129: BUCK | J129: 1 | K129: 10 | L129: 9.006076389 | M129: 10 | N129: 0.8812467532 | O129: 0 | P129: 1.23439343 | Q129: 10.00634685 | R129: 1.088456891 | S129: 0.01139541788 | T129: 1.099852309 | U129: 0.3563386896 | V129: 0.0003809317851 | W129: 0.0003809317851 | X129: 3.23703253 | Y129: 0.0314351388 | Z129: 0.0314351388 | AA129: 9.393432473 | AB129: 0.5029484697 | AC129: 0.039312 | AD129: 0 | AE129: 0.6029066667 | AF129: 3.448246458 | AG129: 0.06777530073 | AH129: 0.096 | AI129: 0.1660257903 | AJ129: 0 | AK129: 0 | AL129: 0 | AM129: 0 | AN129: 0 | AO129: 10.00634685 | AP129: 0.1902412568 | AQ129: 0 | AR129: 0.1977659036 | AS129: 0.1902412568 | AT129: 0 | AU129: 0.07214508 | AV129: 0.02972600909 | AW129: 0.499 | AX129: 0.0249 | AY129: 0.021912 | AZ129: 0.00504 | BA129: 0.046812 | BB129: 2.74604983 | BC129: 83 | BD129: 0.96797462 | BE129: 33.75258734 | BF129: 8.301289515 | BH129: 96.797462 | BI129: 1.099852309 | BJ129: 1.038843441 | BK129: 0.1898336667 | BL129: 0.02972600909
G130: 121 | H130: 9.63 | I130: BUCK | J130: 1 | K130: 10 | L130: 8.978020076 | M130: 10 | N130: 0.8785085448 | O130: 0 | P130: 1.262856033 | Q130: 10.00664282 | R130: 1.088526888 | S130: 0.01200992825 | T130: 1.100536816 | U130: 0.3645551353 | V130: 0.0003987013401 | W130: 0.0003987013401 | X130: 3.269145574 | Y130: 0.03206193836 | Z130: 0.03206193836 | AA130: 9.379104896 | AB130: 0.5014153693 | AC130: 0.03943485 | AD130: 0 | AE130: 0.6011337607 | AF130: 3.487877835 | AG130: 0.0693421632 | AH130: 0.096 | AI130: 0.1676674479 | AJ130: 0 | AK130: 0 | AL130: 0 | AM130: 0 | AN130: 0 | AO130: 10.00664282 | AP130: 0.1902525108 | AQ130: 0 | AR130: 0.1977780656 | AS130: 0.1902525108 | AT130: 0 | AU130: 0.07237188 | AV130: 0.03041322947 | AW130: 0.499 | AX130: 0.0249 | AY130: 0.021912 | AZ130: 0.00504 | BA130: 0.046812 | BB130: 2.74817384 | BC130: 83 | BD130: 0.967950643 | BE130: 33.67528203 | BF130: 8.383372395 | BH130: 96.7950643 | BI130: 1.100536816 | BJ130: 1.038951154 | BK130: 0.1915501683 | BL130: 0.03041322947
G131: 122 | H131: 9.66 | I131: BUCK | J131: 1 | K131: 10 | L131: 8.950138026 | M131: 10 | N131: 0.8757872999 | O131: 0 | P131: 1.291142306 | Q131: 10.00694362 | R131: 1.088598033 | S131: 0.01263879038 | T131: 1.101236823 | U131: 0.372720679 | V131: 0.0004167621137 | W131: 0.0004167621137 | X131: 3.300530693 | Y131: 0.03268050857 | Z131: 0.03268050857 | AA131: 9.364848903 | AB131: 0.4998922514 | AC131: 0.0395577 | AD131: 0 | AE131: 0.5993744834 | AF131: 3.526829415 | AG131: 0.07089959661 | AH131: 0.096 | AI131: 0.1693002606 | AJ131: 0 | AK131: 0 | AL131: 0 | AM131: 0 | AN131: 0 | AO131: 10.00694362 | AP131: 0.1902639493 | AQ131: 0 | AR131: 0.1977904269 | AS131: 0.1902639493 | AT131: 0 | AU131: 0.07259868 | AV131: 0.0310963143 | AW131: 0.499 | AX131: 0.0249 | AY131: 0.021912 | AZ131: 0.00504 | BA131: 0.046812 | BB131: 2.750306259 | BC131: 83 | BD131: 0.9679265722 | BE131: 33.59865817 | BF131: 8.465013032 | BH131: 96.79265722 | BI131: 1.101236823 | BJ131: 1.039063851 | BK131: 0.193257825 | BL131: 0.0310963143
G132: 123 | H132: 9.69 | I132: BUCK | J132: 1 | K132: 10 | L132: 8.922428621 | M132: 10 | N132: 0.8730828616 | O132: 0 | P132: 1.319253883 | Q132: 10.00724917 | R132: 1.0886703 | S132: 0.01328182481 | T132: 1.101952125 | U132: 0.3808357922 | V132: 0.0004351077018 | W132: 0.0004351077018 | X132: 3.331214366 | Y132: 0.03329096745 | Z132: 0.03329096745 | AA132: 9.350663854 | AB132: 0.4983790127 | AC132: 0.03968055 | AD132: 0 | AE132: 0.5976286812 | AF132: 3.565125718 | AG132: 0.0724476919 | AH132: 0.096 | AI132: 0.1709243062 | AJ132: 0 | AK132: 0 | AL132: 0 | AM132: 0 | AN132: 0 | AO132: 10.00724917 | AP132: 0.1902755682 | AQ132: 0 | AR132: 0.1978029832 | AS132: 0.1902755682 | AT132: 0 | AU132: 0.07282548 | AV132: 0.03177530347 | AW132: 0.499 | AX132: 0.0249 | AY132: 0.021912 | AZ132: 0.00504 | BA132: 0.046812 | BB132: 2.752446954 | BC132: 83 | BD132: 0.9679024092 | BE132: 33.52270806 | BF132: 8.54621531 | BH132: 96.79024092 | BI132: 1.101952125 | BJ132: 1.039181451 | BK132: 0.1949567146 | BL132: 0.03177530347
G133: 124 | H133: 9.72 | I133: BUCK | J133: 1 | K133: 10 | L133: 8.894890261 | M133: 10 | N133: 0.8703950744 | O133: 0 | P133: 1.347192376 | Q133: 10.00755934 | R133: 1.088743665 | S133: 0.01393885159 | T133: 1.102682517 | U133: 0.3889009405 | V133: 0.0004537318246 | W133: 0.0004537318246 | X133: 3.361221554 | Y133: 0.03389343101 | Z133: 0.03389343101 | AA133: 9.336549117 | AB133: 0.4968755517 | AC133: 0.0398034 | AD133: 0 | AE133: 0.5958962026 | AF133: 3.602789825 | AG133: 0.07398653876 | AH133: 0.096 | AI133: 0.1725396612 | AJ133: 0 | AK133: 0 | AL133: 0 | AM133: 0 | AN133: 0 | AO133: 10.00755934 | AP133: 0.1902873635 | AQ133: 0 | AR133: 0.1978157302 | AS133: 0.1902873635 | AT133: 0 | AU133: 0.07305228 | AV133: 0.0324502363 | AW133: 0.499 | AX133: 0.0249 | AY133: 0.021912 | AZ133: 0.00504 | BA133: 0.046812 | BB133: 2.75459579 | BC133: 83 | BD133: 0.9678781555 | BE133: 33.44742413 | BF133: 8.626983062 | BH133: 96.78781555 | BI133: 1.102682517 | BJ133: 1.039303874 | BK133: 0.1966469136 | BL133: 0.0324502363
G134: 125 | H134: 9.75 | I134: BUCK | J134: 1 | K134: 10 | L134: 8.867521368 | M134: 10 | N134: 0.8677237852 | O134: 0 | P134: 1.37495938 | Q134: 10.00787404 | R134: 1.088818104 | S134: 0.01460969044 | T134: 1.103427795 | U134: 0.3969165841 | V134: 0.0004726283243 | W134: 0.0004726283243 | X134: 3.390575824 | Y134: 0.03448801326 | Z134: 0.03448801326 | AA134: 9.32250407 | AB134: 0.4953817681 | AC134: 0.03992625 | AD134: 0 | AE134: 0.5941768987 | AF134: 3.639843492 | AG134: 0.07551622568 | AH134: 0.096 | AI134: 0.1741464015 | AJ134: 0 | AK134: 0 | AL134: 0 | AM134: 0 | AN134: 0 | AO134: 10.00787404 | AP134: 0.1902993313 | AQ134: 0 | AR134: 0.1978286638 | AS134: 0.1902993313 | AT134: 0 | AU134: 0.07327908 | AV134: 0.03312115161 | AW134: 0.499 | AX134: 0.0249 | AY134: 0.021912 | AZ134: 0.00504 | BA134: 0.046812 | BB134: 2.756752632 | BC134: 83 | BD134: 0.9678538127 | BE134: 33.37279893 | BF134: 8.707320073 | BH134: 96.78538127 | BI134: 1.103427795 | BJ134: 1.039431044 | BK134: 0.1983284979 | BL134: 0.03312115161
G135: 126 | H135: 9.78 | I135: BUCK | J135: 1 | K135: 10 | L135: 8.840320382 | M135: 10 | N135: 0.8650688424 | O135: 0 | P135: 1.402556469 | Q135: 10.00819316 | R135: 1.088893594 | S135: 0.01529416097 | T135: 1.104187755 | U135: 0.4048831774 | V135: 0.000491791162 | W135: 0.000491791162 | X135: 3.419299455 | Y135: 0.03507482628 | Z135: 0.03507482628 | AA135: 9.308528096 | AB135: 0.4938975633 | AC135: 0.0400491 | AD135: 0 | AE135: 0.5924706227 | AF135: 3.676307261 | AG135: 0.07703683992 | AH135: 0.096 | AI135: 0.1757446017 | AJ135: 0 | AK135: 0 | AL135: 0 | AM135: 0 | AN135: 0 | AO135: 10.00819316 | AP135: 0.1903114677 | AQ135: 0 | AR135: 0.1978417796 | AS135: 0.1903114677 | AT135: 0 | AU135: 0.07350588 | AV135: 0.03378808769 | AW135: 0.499 | AX135: 0.0249 | AY135: 0.021912 | AZ135: 0.00504 | BA135: 0.046812 | BB135: 2.758917344 | BC135: 83 | BD135: 0.9678293823 | BE135: 33.29882513 | BF135: 8.787230084 | BH135: 96.78293823 | BI135: 1.104187755 | BJ135: 1.039562884 | BK135: 0.2000015421 | BL135: 0.03378808769
G136: 127 | H136: 9.81 | I136: BUCK | J136: 1 | K136: 10 | L136: 8.813285763 | M136: 10 | N136: 0.8624300966 | O136: 0 | P136: 1.429985197 | Q136: 10.00851661 | R136: 1.088970109 | S136: 0.01599208281 | T136: 1.104962192 | U136: 0.4128011692 | V136: 0.0005112144159 | W136: 0.0005112144159 | X136: 3.447413536 | Y136: 0.03565398027 | Z136: 0.03565398027 | AA136: 9.294620589 | AB136: 0.4924228398 | AC136: 0.04017195 | AD136: 0 | AE136: 0.59077723 | AF136: 3.712200549 | AG136: 0.07854846761 | AH136: 0.096 | AI136: 0.1773343357 | AJ136: 0 | AK136: 0 | AL136: 0 | AM136: 0 | AN136: 0 | AO136: 10.00851661 | AP136: 0.1903237691 | AQ136: 0 | AR136: 0.1978550738 | AS136: 0.1903237691 | AT136: 0 | AU136: 0.07373268 | AV136: 0.03445108228 | AW136: 0.499 | AX136: 0.0249 | AY136: 0.021912 | AZ136: 0.00504 | BA136: 0.046812 | BB136: 2.761089789 | BC136: 83 | BD136: 0.9678048659 | BE136: 33.2254955 | BF136: 8.866716783 | BH136: 96.78048659 | BI136: 1.104962192 | BJ136: 1.03969932 | BK136: 0.2016661201 | BL136: 0.03445108228
G137: 128 | H137: =VIN_min+(VIN_max-VIN_min)*(G137/200) -> 9.84 | I137: =IF(H137>VIN_BB_to_buck, "BUCK", IF(H137<VIN_boost_to_BB,"BOOST","BUCK-BST")) -> BUCK | J137: 1 | K137: =Iout -> 10 | L137: =Vout*K137/(H137*Efficiency) -> 8.786415989 | M137: =Iout/(1-O137) -> 10 | N137: =CHOOSE(J137,(Vout+(Rdson2+Rs+Rdcr)*K137)/(H137+(Rs+Rdson2-Rdson1)*K137),1,IF(H137<Vout,D_max_buck_BB,Vout/H137*(1-D_min_boost_exitBB_to_buck))) -> 0.8598073999 | O137: 0 | P137: =MAX(0, CHOOSE(J137, (H137-(Rdson1+Rdcr)*K137-Vout)*N137/(Fsw*Lf), (H137-(Rdson4+Rdcr+Rs)*L137)*O137/(Fsw*Lf), IF(H137<Vout, (H137-(Rdson4+Rdcr+Rs)*L137)*O137/(0.5*Fsw*Lf),(H137-(Rdson1+Rdcr)*K137-Vout)*N137/(0.5*Fsw*Lf)))) -> 1.457247101 | Q137: =CHOOSE(J137, SQRT(K137^2+(P137^2)/12), SQRT(L137^2+(P137^2)/12), SQRT(M137^2+(P137^2)/12)) -> 10.00884429 | R137: 1.089047629 | S137: 0.01670327573 | T137: 1.105750905 | U137: =IF(H137>Vout, P137/SQRT(12), SQRT(O137/(1-O137))*SQRT(K137^2+(P137^2)/12)) -> 0.4206710029 | V137: 0.000530892278 | W137: 0.000530892278 | X137: =IF(H137>Vout, SQRT(N137*(1-N137))*SQRT(K137^2+(P137^2)/12), P137/SQRT(12)) -> 3.474938058 | Y137: 0.03622558352 | Z137: 0.03622558352 | AA137: =CHOOSE(J137, SQRT(N137)*SQRT(K137^2+(P137^2)/12), SQRT(L137^2+(P137^2)/12), SQRT(N137)*SQRT(M137^2+(P137^2)/12)) -> 9.280780949 | AB137: =Rdson1*AA137^2 -> 0.4909575016 | AC137: =CHOOSE(J137, (H137*K137/2)*(Fsw)*(Tr_buck+Tf_buck), 0, (H137*M137/2)*(Fsw/2)*(Tr_buck+Tf_buck)) -> 0.0402948 | AD137: =IF(H137>Vout, IF(K137>P137/2,0,ABS(K137-P137/2)*Vsd_Q1*Deadtime*Fsw),0) -> 0 | AE137: =(AD137+AC137+AB137*(1+RdsonTopTc*Ta-RdsonTopTc*25))/(1-AB137*RdsonTopTc*ThetaJA_Q1) -> 0.5890965785 | AF137: =CHOOSE(J137, SQRT((1-N137))*SQRT(K137^2+(P137^2)/12), 0, SQRT((1-N137))*SQRT(M137^2+(P137^2)/12)) -> 3.747541736 | AG137: =Rdson2*AF137^2 -> 0.08005119368 | AH137: =CHOOSE(J137, IF(K137<P137/2,Deadtime*Fsw*IF(VfdSky_Q2>0,0,Vsd_Q2)*(K137+P137/2),2*Deadtime*Fsw*IF(VfdSky_Q2>0,0,Vsd_Q2)*K137),0, IF(K137<P137/2,Deadtime*Fsw/2*IF(VfdSky_Q2>0,0,Vsd_Q2)*(K137+P137/2),2*Deadtime*Fsw/2*IF(VfdSky_Q2>0,0,Vsd_Q2)*K137)) -> 0.096 | AI137: =(AH137+AG137*(1+RdsonBotTc*Ta-RdsonBotTc*25))/(1-AG137*RdsonBotTc*ThetaJA_Q2) -> 0.1789156764 | AJ137: =CHOOSE(J137, 0, SQRT(O137)*SQRT(L137^2+(P137^2)/12), SQRT(O137)*SQRT(M137^2+(P137^2)/12)) -> 0 | AK137: =Rdson4*AJ137^2 -> 0 | AL137: =CHOOSE(J137, 0, (Vout*L137/2)*(Fsw)*(Tr_boost+Tf_boost), (Vout*Iout/2)*(Fsw/2)*(Tr_boost+Tf_boost)) -> 0 | AM137: =IF(H137>Vout, 0, IF(L137>P137/2,0,ABS(L137-P137/2)*Vsd_Q4*Deadtime*Fsw)) -> 0 | AN137: =(AM137+AL137+AK137*(1+RdsonTopTc*Ta-RdsonTopTc*25))/(1-AK137*RdsonTopTc*ThetaJA_Q4) -> 0 | AO137: =CHOOSE(J137, SQRT(Iout^2+(P137^2)/12), SQRT(1-O137)*SQRT(L137^2+(P137^2)/12), SQRT(1-O137)*SQRT(M137^2+(P137^2)/12)) -> 10.00884429 | AP137: =Rdson3*AO137^2 -> 0.1903362318 | AQ137: =CHOOSE(J137, 0, IF(L137<P137/2,Deadtime*Fsw*IF(VfdSky_Q3>0,0,Vsd_Q3)*(L137+P137/2), 2*Deadtime*Fsw*IF(VfdSky_Q3>0,0,Vsd_Q3)*L137), IF(L137<P137/2,Deadtime*Fsw/2*IF(VfdSky_Q3>0,0,Vsd_Q3)*(L137+P137/2), 2*Deadtime*Fsw/2*IF(VfdSky_Q3>0,0,Vsd_Q3)*L137)) -> 0 | AR137: =(AQ137+AP137*(1+RdsonBotTc*Ta-RdsonBotTc*25))/(1-AP137*RdsonBotTc*ThetaJA_Q3) -> 0.1978685423 | AS137: =CHOOSE(J137, Rdson3*Q137^2, Rdson1*Q137^2, 0) -> 0.1903362318 | AT137: =CHOOSE(J137, 2*Deadtime*Fsw*IF(VfdSky_Q2>0,VfdSky_Q2,0)*K137, 2*Deadtime*Fsw*IF(VfdSky_Q3>0,VfdSky_Q3,0)*L137, 2*Deadtime*Fsw/2*IF(VfdSky_Q2>0,VfdSky_Q2,0)*K137+2*Deadtime*Fsw/2*IF(VfdSky_Q3>0,VfdSky_Q3,0)*L137) -> 0 | AU137: =CHOOSE(J137, IF(QrrSky_Q2>0,QrrSky_Q2,Qrr_Q2)*Fsw*(H137-K137*Rdson1), IF(QrrSky_Q3>0,QrrSky_Q3,Qrr_Q3)*Fsw*Vout, IF(QrrSky_Q2>0,QrrSky_Q2,Qrr_Q2)*Fsw/2*(H137-K137*Rdson1)+IF(QrrSky_Q3>0,QrrSky_Q3,Qrr_Q3)*Fsw/2*Vout) -> 0.07395948 | AV137: =CHOOSE(J137, Rs*AF137^2, Rs*AJ137^2, Rs*(AF137^2+AJ137^2)) -> 0.03511017267 | AW137: =Rshunt_std/1000*Iout^2 -> 0.499 | AX137: =IF(Vout>8, Iq*Vout, Iq*H137) -> 0.0249 | AY137: =CHOOSE(J137, (Qg_Q1+Qg_Q2)*Fsw, (Qg_Q3+Qg_Q4)*Fsw, (Qg_Q1+Qg_Q2+Qg_Q3+Qg_Q4)*Fsw/2)*IF(Vout>8, Vout, H137) -> 0.021912 | AZ137: =(Vin-Vdd)*Fsw*(Qg_Q1+Qg_Q2)+(RdsonDRT+RdsonDRT2)*Fsw*Qg_Q1*Vdd/(RdsonDRT+2*Rgate1+RdsonDRT2)+(RdsonDRB+RdsonDRB2)*Fsw*Qg_Q2*Vdd/(RdsonDRB+2*Rgate2+RdsonDRB2) -> 0.00504 | BA137: 0.046812 | BB137: 2.763269831 | BC137: =Vout*K137 -> 83 | BD137: 0.967780265 | BE137: =IF(H137>Vout,ThetaJA_Q1*(AE137+AU137),ThetaJA_Q4*(AN137+AU137)) -> 33.15280293 | BF137: =IF(H137>Vout, AI137*ThetaJA_Q2, ThetaJA_Q3*AR137) -> 8.945783819 | BH137: 96.7780265 | BI137: 1.105750905 | BJ137: 1.039840277 | BK137: 0.2033223048 | BL137: 0.03511017267
G138: 129 | H138: 9.87 | I138: BUCK | J138: =IF(I138="BOOST",2, IF(I138="BUCK", 1,3)) -> 1 | K138: 10 | L138: 8.759709558 | M138: 10 | N138: 0.8572006064 | O138: =CHOOSE(J138,0,(Vout+(Rdson3+Rdcr)*L138-H138)/(Vout+(Rdson3-Rdson4-Rs)*L138),IF(H138>Vout,D_min_boost_exitBB_to_buck, (Vout-H138*D_max_buck_BB)/Vout)) -> 0 | P138: 1.484343697 | Q138: 10.00917611 | R138: 1.08912613 | S138: 0.01742755985 | T138: 1.10655369 | U138: 0.4284931165 | V138: 0.0005508190527 | W138: 0.0005508190527 | X138: 3.501891991 | Y138: 0.03678974255 | Z138: 0.03678974255 | AA138: 9.267008585 | AB138: 0.4895014542 | AC138: 0.04041765 | AD138: 0 | AE138: 0.587428528 | AF138: 3.782348244 | AG138: 0.08154510196 | AH138: 0.096 | AI138: 0.1804886958 | AJ138: 0 | AK138: 0 | AL138: 0 | AM138: 0 | AN138: 0 | AO138: 10.00917611 | AP138: 0.1903488521 | AQ138: 0 | AR138: 0.1978821813 | AS138: 0.1903488521 | AT138: 0 | AU138: 0.07418628 | AV138: 0.0357653956 | AW138: 0.499 | AX138: 0.0249 | AY138: 0.021912 | AZ138: 0.00504 | BA138: 0.046812 | BB138: 2.765457332 | BC138: 83 | BD138: 0.9677555811 | BE138: 33.0807404 | BF138: 9.024434789 | BH138: 96.77555811 | BI138: 1.10655369 | BJ138: 1.039985685 | BK138: 0.2049701682 | BL138: 0.0357653956
G139: 130 | H139: 9.9 | I139: BUCK | J139: 1 | K139: 10 | L139: 8.733164983 | M139: 10 | N139: 0.8546095718 | O139: 0 | P139: 1.511276485 | Q139: 10.00951196 | R139: 1.089205591 | S139: 0.01816475568 | T139: 1.107370347 | U139: 0.4362679428 | V139: 0.0005709891538 | W139: 0.0005709891538 | X139: 3.528293358 | Y139: 0.03734656205 | Z139: 0.03734656205 | AA139: 9.253302912 | AB139: 0.4880546042 | AC139: 0.0405405 | AD139: 0 | AE139: 0.5857729403 | AF139: 3.816636601 | AG139: 0.08303027516 | AH139: 0.096 | AI139: 0.182053465 | AJ139: 0 | AK139: 0 | AL139: 0 | AM139: 0 | AN139: 0 | AO139: 10.00951196 | AP139: 0.1903616265 | AQ139: 0 | AR139: 0.1978959868 | AS139: 0.1903616265 | AT139: 0 | AU139: 0.07441308 | AV139: 0.03641678735 | AW139: 0.499 | AX139: 0.0249 | AY139: 0.021912 | AZ139: 0.00504 | BA139: 0.046812 | BB139: 2.767652157 | BC139: 83 | BD139: 0.9677308159 | BE139: 33.00930102 | BF139: 9.102673251 | BH139: 96.77308159 | BI139: 1.107370347 | BJ139: 1.040135472 | BK139: 0.2066097814 | BL139: 0.03641678735
G140: 131 | H140: 9.93 | I140: BUCK | J140: 1 | K140: 10 | L140: 8.706780799 | M140: 10 | N140: 0.8520341537 | O140: 0 | P140: 1.538046947 | Q140: 10.00985177 | R140: 1.08928599 | S140: 0.01891468432 | T140: 1.108200674 | U140: 0.4439959093 | V140: 0.0005913971025 | W140: 0.0005913971025 | X140: 3.5541593 | Y140: 0.03789614498 | Z140: 0.03789614498 | AA140: 9.239663353 | AB140: 0.4866168596 | AC140: 0.04066335 | AD140: 0 | AE140: 0.5841296797 | AF140: 3.850422508 | AG140: 0.08450679488 | AH140: 0.096 | AI140: 0.1836100543 | AJ140: 0 | AK140: 0 | AL140: 0 | AM140: 0 | AN140: 0 | AO140: 10.00985177 | AP140: 0.1903745515 | AQ140: 0 | AR140: 0.1979099553 | AS140: 0.1903745515 | AT140: 0 | AU140: 0.07463988 | AV140: 0.03706438372 | AW140: 0.499 | AX140: 0.0249 | AY140: 0.021912 | AZ140: 0.00504 | BA140: 0.046812 | BB140: 2.769854169 | BC140: 83 | BD140: 0.9677059709 | BE140: 32.93847798 | BF140: 9.180502716 | BH140: 96.77059709 | BI140: 1.108200674 | BJ140: 1.040289569 | BK140: 0.2082412147 | BL140: 0.03706438372
G141: 132 | H141: 9.96 | I141: BUCK | J141: 1 | K141: 10 | L141: 8.680555556 | M141: 10 | N141: 0.8494742113 | O141: 0 | P141: 1.564656544 | Q141: 10.01019543 | R141: 1.089367305 | S141: 0.01967716746 | T141: 1.109044473 | U141: 0.4516774383 | V141: 0.0006120375249 | W141: 0.0006120375249 | X141: 3.579506137 | Y141: 0.03843859256 | Z141: 0.03843859256 | AA141: 9.226089339 | AB141: 0.4851881296 | AC141: 0.0407862 | AD141: 0 | AE141: 0.582498612 | AF141: 3.883720898 | AG141: 0.08597474167 | AH141: 0.096 | AI141: 0.1851585331 | AJ141: 0 | AK141: 0 | AL141: 0 | AM141: 0 | AN141: 0 | AO141: 10.01019543 | AP141: 0.1903876238 | AQ141: 0 | AR141: 0.1979240829 | AS141: 0.1903876238 | AT141: 0 | AU141: 0.07486668 | AV141: 0.03770822003 | AW141: 0.499 | AX141: 0.0249 | AY141: 0.021912 | AZ141: 0.00504 | BA141: 0.046812 | BB141: 2.772063231 | BC141: 83 | BD141: 0.9676810476 | BE141: 32.8682646 | BF141: 9.257926654 | BH141: 96.76810476 | BI141: 1.109044473 | BJ141: 1.040447908 | BK141: 0.2098645375 | BL141: 0.03770822003
G142: 133 | H142: 9.99 | I142: BUCK | J142: 1 | K142: 10 | L142: 8.654487821 | M142: 10 | N142: 0.8469296056 | O142: 0 | P142: 1.591106722 | Q142: 10.01054286 | R142: 1.089449517 | S142: 0.02045202756 | T142: 1.109901544 | U142: 0.4593129472 | V142: 0.0006329051504 | W142: 0.0006329051504 | X142: 3.604349426 | Y142: 0.03897400436 | Z142: 0.03897400436 | AA142: 9.212580308 | AB142: 0.4837683248 | AC142: 0.04090905 | AD142: 0 | AE142: 0.5808796055 | AF142: 3.916545985 | AG142: 0.08743419499 | AH142: 0.096 | AI142: 0.1866989698 | AJ142: 0 | AK142: 0 | AL142: 0 | AM142: 0 | AN142: 0 | AO142: 10.01054286 | AP142: 0.1904008399 | AQ142: 0 | AR142: 0.1979383662 | AS142: 0.1904008399 | AT142: 0 | AU142: 0.07509348 | AV142: 0.03834833114 | AW142: 0.499 | AX142: 0.0249 | AY142: 0.021912 | AZ142: 0.00504 | BA142: 0.046812 | BB142: 2.774279206 | BC142: 83 | BD142: 0.9676560476 | BE142: 32.79865428 | BF142: 9.334948491 | BH142: 96.76560476 | BI142: 1.109901544 | BJ142: 1.040610422 | BK142: 0.2114798182 | BL142: 0.03834833114
G143: 134 | H143: 10.02 | I143: BUCK | J143: 1 | K143: 10 | L143: 8.628576181 | M143: 10 | N143: 0.8444001991 | O143: 0 | P143: 1.617398911 | Q143: 10.01089398 | R143: 1.089532604 | S143: 0.02123908793 | T143: 1.110771692 | U143: 0.4669028483 | V143: 0.0006539948092 | W143: 0.0006539948092 | X143: 3.628704004 | Y143: 0.03950247826 | Z143: 0.03950247826 | AA143: 9.199135704 | AB143: 0.4823573568 | AC143: 0.0410319 | AD143: 0 | AE143: 0.5792725302 | AF143: 3.948911315 | AG143: 0.08888523329 | AH143: 0.096 | AI143: 0.1882314322 | AJ143: 0 | AK143: 0 | AL143: 0 | AM143: 0 | AN143: 0 | AO143: 10.01089398 | AP143: 0.1904141967 | AQ143: 0 | AR143: 0.1979528014 | AS143: 0.1904141967 | AT143: 0 | AU143: 0.07532028 | AV143: 0.03898475144 | AW143: 0.499 | AX143: 0.0249 | AY143: 0.021912 | AZ143: 0.00504 | BA143: 0.046812 | BB143: 2.77650196 | BC143: 83 | BD143: 0.9676309724 | BE143: 32.72964051 | BF143: 9.411571612 | BH143: 96.76309724 | BI143: 1.110771692 | BJ143: 1.040777044 | BK143: 0.2130871246 | BL143: 0.03898475144
G144: 135 | H144: 10.05 | I144: BUCK | J144: 1 | K144: 10 | L144: 8.602819237 | M144: 10 | N144: 0.8418858561 | O144: 0 | P144: 1.643534521 | Q144: 10.0112487 | R144: 1.089616547 | S144: 0.02203817274 | T144: 1.11165472 | U144: 0.4744475489 | V144: 0.00067530143 | W144: 0.00067530143 | X144: 3.652584041 | Y144: 0.04002411054 | Z144: 0.04002411054 | AA144: 9.185754978 | AB144: 0.4809551387 | AC144: 0.04115475 | AD144: 0 | AE144: 0.5776772579 | AF144: 3.980829808 | AG144: 0.09032793398 | AH144: 0.096 | AI144: 0.1897559872 | AJ144: 0 | AK144: 0 | AL144: 0 | AM144: 0 | AN144: 0 | AO144: 10.0112487 | AP144: 0.1904276909 | AQ144: 0 | AR144: 0.1979673853 | AS144: 0.1904276909 | AT144: 0 | AU144: 0.07554708 | AV144: 0.0396175149 | AW144: 0.499 | AX144: 0.0249 | AY144: 0.021912 | AZ144: 0.00504 | BA144: 0.046812 | BB144: 2.778731357 | BC144: 83 | BD144: 0.9676058236 | BE144: 32.66121689 | BF144: 9.487799362 | BH144: 96.76058236 | BI144: 1.11165472 | BJ144: 1.04094771 | BK144: 0.2146865236 | BL144: 0.0396175149
G145: 136 | H145: 10.08 | I145: BUCK | J145: 1 | K145: 10 | L145: 8.577215608 | M145: 10 | N145: 0.8393864424 | O145: 0 | P145: 1.669514946 | Q145: 10.01160693 | R145: 1.089701326 | S145: 0.02284910719 | T145: 1.112550434 | U145: 0.4819474517 | V145: 0.0006968200387 | W145: 0.0006968200387 | X145: 3.676003079 | Y145: 0.0405389959 | Z145: 0.0405389959 | AA145: 9.17243759 | AB145: 0.4795615846 | AC145: 0.0412776 | AD145: 0 | AE145: 0.5760936625 | AF145: 4.012313798 | AG145: 0.09176237347 | AH145: 0.096 | AI145: 0.1912727009 | AJ145: 0 | AK145: 0 | AL145: 0 | AM145: 0 | AN145: 0 | AO145: 10.01160693 | AP145: 0.1904413194 | AQ145: 0 | AR145: 0.1979821144 | AS145: 0.1904413194 | AT145: 0 | AU145: 0.07577388 | AV145: 0.04024665503 | AW145: 0.499 | AX145: 0.0249 | AY145: 0.021912 | AZ145: 0.00504 | BA145: 0.046812 | BB145: 2.780967262 | BC145: 83 | BD145: 0.9675806027 | BE145: 32.59337713 | BF145: 9.563635044 | BH145: 96.75806027 | BI145: 1.112550434 | BJ145: 1.041122358 | BK145: 0.2162780813 | BL145: 0.04024665503
G146: 137 | H146: 10.11 | I146: BUCK | J146: 1 | K146: 10 | L146: 8.55176393 | M146: 10 | N146: 0.8369018254 | O146: 0 | P146: 1.695341565 | Q146: 10.0119686 | R146: 1.089786923 | S146: 0.0236717175 | T146: 1.11345864 | U146: 0.4894029546 | V146: 0.0007185457558 | W146: 0.0007185457558 | X146: 3.698974068 | Y146: 0.04104722748 | Z146: 0.04104722748 | AA146: 9.159183003 | AB146: 0.4781766097 | AC146: 0.04140045 | AD146: 0 | AE146: 0.5745216198 | AF146: 4.043375071 | AG146: 0.0931886272 | AH146: 0.096 | AI146: 0.1927816384 | AJ146: 0 | AK146: 0 | AL146: 0 | AM146: 0 | AN146: 0 | AO146: 10.0119686 | AP146: 0.190455079 | AQ146: 0 | AR146: 0.1979969853 | AS146: 0.190455079 | AT146: 0 | AU146: 0.07600068 | AV146: 0.04087220491 | AW146: 0.499 | AX146: 0.0249 | AY146: 0.021912 | AZ146: 0.00504 | BA146: 0.046812 | BB146: 2.783209542 | BC146: 83 | BD146: 0.9675553112 | BE146: 32.52611499 | BF146: 9.639081922 | BH146: 96.75553112 | BI146: 1.11345864 | BJ146: 1.041300924 | BK146: 0.2178618628 | BL146: 0.04087220491
G147: 138 | H147: 10.14 | I147: BUCK | J147: 1 | K147: 10 | L147: 8.526462853 | M147: 10 | N147: 0.8344318741 | O147: 0 | P147: 1.72101574 | Q147: 10.01233362 | R147: 1.089873317 | S147: 0.02450583102 | T147: 1.114379148 | U147: 0.4968144505 | V147: 0.0007404737946 | W147: 0.0007404737946 | X147: 3.72150941 | Y147: 0.04154889688 | Z147: 0.04154889688 | AA147: 9.145990691 | AB147: 0.4768001306 | AC147: 0.0415233 | AD147: 0 | AE147: 0.5729610072 | AF147: 4.074024899 | AG147: 0.09460676961 | AH147: 0.096 | AI147: 0.1942828644 | AJ147: 0 | AK147: 0 | AL147: 0 | AM147: 0 | AN147: 0 | AO147: 10.01233362 | AP147: 0.1904689667 | AQ147: 0 | AR147: 0.1980119947 | AS147: 0.1904689667 | AT147: 0 | AU147: 0.07622748 | AV147: 0.0414941972 | AW147: 0.499 | AX147: 0.0249 | AY147: 0.021912 | AZ147: 0.00504 | BA147: 0.046812 | BB147: 2.785458063 | BC147: 83 | BD147: 0.9675299506 | BE147: 32.45942436 | BF147: 9.714143222 | BH147: 96.75299506 | BI147: 1.114379148 | BJ147: 1.041483346 | BK147: 0.2194379328 | BL147: 0.0414941972
G148: 139 | H148: 10.17 | I148: BUCK | J148: 1 | K148: 10 | L148: 8.501311046 | M148: 10 | N148: 0.831976459 | O148: 0 | P148: 1.746538817 | Q148: 10.01270192 | R148: 1.089960492 | S148: 0.02535127625 | T148: 1.115311768 | U148: 0.504182328 | V148: 0.0007625994595 | W148: 0.0007625994595 | X148: 3.743620984 | Y148: 0.04204409421 | Z148: 0.04204409421 | AA148: 9.132860131 | AB148: 0.4754320648 | AC148: 0.04164615 | AD148: 0 | AE148: 0.571411704 | AF148: 4.104274071 | AG148: 0.0960168742 | AH148: 0.096 | AI148: 0.1957764426 | AJ148: 0 | AK148: 0 | AL148: 0 | AM148: 0 | AN148: 0 | AO148: 10.01270192 | AP148: 0.1904829797 | AQ148: 0 | AR148: 0.1980271396 | AS148: 0.1904829797 | AT148: 0 | AU148: 0.07645428 | AV148: 0.04211266412 | AW148: 0.499 | AX148: 0.0249 | AY148: 0.021912 | AZ148: 0.00504 | BA148: 0.046812 | BB148: 2.787712692 | BC148: 83 | BD148: 0.9675045224 | BE148: 32.3932992 | BF148: 9.788822131 | BH148: 96.75045224 | BI148: 1.115311768 | BJ148: 1.041669566 | BK148: 0.221006355 | BL148: 0.04211266412
G149: 140 | H149: 10.2 | I149: BUCK | J149: 1 | K149: 10 | L149: 8.47630719 | M149: 10 | N149: 0.8295354523 | O149: 0 | P149: 1.771912124 | Q149: 10.01307342 | R149: 1.090048428 | S149: 0.02620788292 | T149: 1.116256311 | U149: 0.511506971 | V149: 0.000784918144 | W149: 0.000784918144 | X149: 3.765320178 | Y149: 0.04253290814 | Z149: 0.04253290814 | AA149: 9.119790808 | AB149: 0.4740723309 | AC149: 0.041769 | AD149: 0 | AE149: 0.5698735913 | AF149: 4.134132921 | AG149: 0.09741901354 | AH149: 0.096 | AI149: 0.1972624359 | AJ149: 0 | AK149: 0 | AL149: 0 | AM149: 0 | AN149: 0 | AO149: 10.01307342 | AP149: 0.1904971148 | AQ149: 0 | AR149: 0.1980424166 | AS149: 0.1904971148 | AT149: 0 | AU149: 0.07668108 | AV149: 0.04272763752 | AW149: 0.499 | AX149: 0.0249 | AY149: 0.021912 | AZ149: 0.00504 | BA149: 0.046812 | BB149: 2.789973298 | BC149: 83 | BD149: 0.9674790282 | BE149: 32.32773356 | BF149: 9.863121796 | BH149: 96.74790282 | BI149: 1.116256311 | BJ149: 1.041859524 | BK149: 0.2225671923 | BL149: 0.04272763752
G150: 141 | H150: 10.23 | I150: BUCK | J150: 1 | K150: 10 | L150: 8.451449984 | M150: 10 | N150: 0.8271087275 | O150: 0 | P150: 1.797136978 | Q150: 10.01344805 | R150: 1.090137108 | S150: 0.02707548202 | T150: 1.11721259 | U150: 0.5187887589 | V150: 0.0008074253291 | W150: 0.0008074253291 | X150: 3.786617922 | Y150: 0.04301542585 | Z150: 0.04301542585 | AA150: 9.106782212 | AB150: 0.4727208489 | AC150: 0.04189185 | AD150: 0 | AE150: 0.5683465517 | AF150: 4.163611355 | AG150: 0.09881325926 | AH150: 0.096 | AI150: 0.1987409066 | AJ150: 0 | AK150: 0 | AL150: 0 | AM150: 0 | AN150: 0 | AO150: 10.01344805 | AP150: 0.1905113694 | AQ150: 0 | AR150: 0.1980578228 | AS150: 0.1905113694 | AT150: 0 | AU150: 0.07690788 | AV150: 0.0433391488 | AW150: 0.499 | AX150: 0.0249 | AY150: 0.021912 | AZ150: 0.00504 | BA150: 0.046812 | BB150: 2.792239751 | BC150: 83 | BD150: 0.9674534695 | BE150: 32.26272159 | BF150: 9.93704533 | BH150: 96.74534695 | BI150: 1.11721259 | BJ150: 1.042053161 | BK150: 0.224120507 | BL150: 0.0433391488
G151: 142 | H151: 10.26 | I151: BUCK | J151: 1 | K151: 10 | L151: 8.426738142 | M151: 10 | N151: 0.8246961595 | O151: 0 | P151: 1.822214676 | Q151: 10.01382572 | R151: 1.090226514 | S151: 0.02795390585 | T151: 1.11818042 | U151: 0.5260280668 | V151: 0.0008301165812 | W151: 0.0008301165812 | X151: 3.807524706 | Y151: 0.04349173316 | Z151: 0.04349173316 | AA151: 9.093833841 | AB151: 0.4713775394 | AC151: 0.0420147 | AD151: 0 | AE151: 0.5668304698 | AF151: 4.192718879 | AG151: 0.1001996821 | AH151: 0.096 | AI151: 0.2002119162 | AJ151: 0 | AK151: 0 | AL151: 0 | AM151: 0 | AN151: 0 | AO151: 10.01382572 | AP151: 0.1905257405 | AQ151: 0 | AR151: 0.198073355 | AS151: 0.1905257405 | AT151: 0 | AU151: 0.07713468 | AV151: 0.04394722899 | AW151: 0.499 | AX151: 0.0249 | AY151: 0.021912 | AZ151: 0.00504 | BA151: 0.046812 | BB151: 2.794511919 | BC151: 83 | BD151: 0.9674278476 | BE151: 32.19825749 | BF151: 10.01059581 | BH151: 96.74278476 | BI151: 1.11818042 | BJ151: 1.042250421 | BK151: 0.2256663606 | BL151: 0.04394722899
G152: 143 | H152: 10.29 | I152: BUCK | J152: 1 | K152: 10 | L152: 8.402170392 | M152: 10 | N152: 0.8222976248 | O152: 0 | P152: 1.847146503 | Q152: 10.01420637 | R152: 1.090316629 | S152: 0.02884298803 | T152: 1.119159617 | U152: 0.5332252653 | V152: 0.0008529875507 | W152: 0.0008529875507 | X152: 3.828050612 | Y152: 0.04396191447 | Z152: 0.04396191447 | AA152: 9.080945198 | AB152: 0.4700423245 | AC152: 0.04213755 | AD152: 0 | AE152: 0.5653252316 | AF152: 4.221464614 | AG152: 0.1015783519 | AH152: 0.096 | AI152: 0.2016755254 | AJ152: 0 | AK152: 0 | AL152: 0 | AM152: 0 | AN152: 0 | AO152: 10.01420637 | AP152: 0.1905402254 | AQ152: 0 | AR152: 0.1980890104 | AS152: 0.1905402254 | AT152: 0 | AU152: 0.07736148 | AV152: 0.04455190872 | AW152: 0.499 | AX152: 0.0249 | AY152: 0.021912 | AZ152: 0.00504 | BA152: 0.046812 | BB152: 2.796789675 | BC152: 83 | BD152: 0.967402164 | BE152: 32.13433558 | BF152: 10.08377627 | BH152: 96.7402164 | BI152: 1.119159617 | BJ152: 1.042451247 | BK152: 0.2272048138 | BL152: 0.04455190872
G153: 144 | H153: 10.32 | I153: BUCK | J153: 1 | K153: 10 | L153: 8.377745478 | M153: 10 | N153: 0.8199130014 | O153: 0 | P153: 1.871933728 | Q153: 10.01458992 | R153: 1.090407437 | S153: 0.0297425636 | T153: 1.120150001 | U153: 0.5403807208 | V153: 0.0008760339701 | W153: 0.0008760339701 | X153: 3.848205332 | Y153: 0.04442605284 | Z153: 0.04442605284 | AA153: 9.068115792 | AB153: 0.4687151269 | AC153: 0.0422604 | AD153: 0 | AE153: 0.5638307249 | AF153: 4.249857327 | AG153: 0.1029493376 | AH153: 0.096 | AI153: 0.2031317943 | AJ153: 0 | AK153: 0 | AL153: 0 | AM153: 0 | AN153: 0 | AO153: 10.01458992 | AP153: 0.1905548215 | AQ153: 0 | AR153: 0.1981047859 | AS153: 0.1905548215 | AT153: 0 | AU153: 0.07758828 | AV153: 0.04515321824 | AW153: 0.499 | AX153: 0.0249 | AY153: 0.021912 | AZ153: 0.00504 | BA153: 0.046812 | BB153: 2.799072891 | BC153: 83 | BD153: 0.9673764203 | BE153: 32.07095025 | BF153: 10.15658972 | BH153: 96.73764203 | BI153: 1.120150001 | BJ153: 1.042655585 | BK153: 0.2287359267 | BL153: 0.04515321824
G154: 145 | H154: 10.35 | I154: BUCK | J154: 1 | K154: 10 | L154: 8.353462158 | M154: 10 | N154: 0.8175421687 | O154: 0 | P154: 1.896577605 | Q154: 10.01497631 | R154: 1.090498921 | S154: 0.03065246897 | T154: 1.12115139 | U154: 0.5474947953 | V154: 0.0008992516525 | W154: 0.0008992516525 | X154: 3.867998189 | Y154: 0.04488422998 | Z154: 0.04488422998 | AA154: 9.055345139 | AB154: 0.4673958708 | AC154: 0.04238325 | AD154: 0 | AE154: 0.5623468389 | AF154: 4.277905442 | AG154: 0.1043127073 | AH154: 0.096 | AI154: 0.2045807824 | AJ154: 0 | AK154: 0 | AL154: 0 | AM154: 0 | AN154: 0 | AO154: 10.01497631 | AP154: 0.190569526 | AQ154: 0 | AR154: 0.1981206788 | AS154: 0.190569526 | AT154: 0 | AU154: 0.07781508 | AV154: 0.04575118742 | AW154: 0.499 | AX154: 0.0249 | AY154: 0.021912 | AZ154: 0.00504 | BA154: 0.046812 | BB154: 2.801361439 | BC154: 83 | BD154: 0.9673506178 | BE154: 32.00809595 | BF154: 10.22903912 | BH154: 96.73506178 | BI154: 1.12115139 | BJ154: 1.04286338 | BK154: 0.2302597588 | BL154: 0.04575118742
G155: 146 | H155: 10.38 | I155: BUCK | J155: 1 | K155: 10 | L155: 8.329319204 | M155: 10 | N155: 0.8151850072 | O155: 0 | P155: 1.921079374 | Q155: 10.01536547 | R155: 1.090591065 | S155: 0.03157254201 | T155: 1.122163607 | U155: 0.5545678467 | V155: 0.0009226364899 | W155: 0.0009226364899 | X155: 3.887438159 | Y155: 0.04533652632 | Z155: 0.04533652632 | AA155: 9.042632758 | AB155: 0.466084481 | AC155: 0.0425061 | AD155: 0 | AE155: 0.5608734646 | AF155: 4.305617064 | AG155: 0.1056685283 | AH155: 0.096 | AI155: 0.2060225482 | AJ155: 0 | AK155: 0 | AL155: 0 | AM155: 0 | AN155: 0 | AO155: 10.01536547 | AP155: 0.1905843364 | AQ155: 0 | AR155: 0.1981366862 | AS155: 0.1905843364 | AT155: 0 | AU155: 0.07804188 | AV155: 0.04634584574 | AW155: 0.499 | AX155: 0.0249 | AY155: 0.021912 | AZ155: 0.00504 | BA155: 0.046812 | BB155: 2.803655195 | BC155: 83 | BD155: 0.967324758 | BE155: 31.94576723 | BF155: 10.30112741 | BH155: 96.7324758 | BI155: 1.122163607 | BJ155: 1.043074579 | BK155: 0.2317763686 | BL155: 0.04634584574
G156: 147 | H156: 10.41 | I156: BUCK | J156: 1 | K156: 10 | L156: 8.305315402 | M156: 10 | N156: 0.8128413991 | O156: 0 | P156: 1.94544026 | Q156: 10.01575733 | R156: 1.090683853 | S156: 0.03250262204 | T156: 1.123186475 | U156: 0.561600229 | V156: 0.0009461844517 | W156: 0.0009461844517 | X156: 3.906533885 | Y156: 0.04578302098 | Z156: 0.04578302098 | AA156: 9.029978177 | AB156: 0.4647808835 | AC156: 0.04262895 | AD156: 0 | AE156: 0.5594104943 | AF156: 4.332999993 | AG156: 0.107016867 | AH156: 0.096 | AI156: 0.2074571498 | AJ156: 0 | AK156: 0 | AL156: 0 | AM156: 0 | AN156: 0 | AO156: 10.01575733 | AP156: 0.1905992502 | AQ156: 0 | AR156: 0.1981528054 | AS156: 0.1905992502 | AT156: 0 | AU156: 0.07826868 | AV156: 0.04693722235 | AW156: 0.499 | AX156: 0.0249 | AY156: 0.021912 | AZ156: 0.00504 | BA156: 0.046812 | BB156: 2.805954033 | BC156: 83 | BD156: 0.9672988423 | BE156: 31.88395871 | BF156: 10.37285749 | BH156: 96.72988423 | BI156: 1.123186475 | BJ156: 1.043289129 | BK156: 0.2332858142 | BL156: 0.04693722235
G157: 148 | H157: 10.44 | I157: BUCK | J157: 1 | K157: 10 | L157: 8.281449553 | M157: 10 | N157: 0.8105112279 | O157: 0 | P157: 1.969661477 | Q157: 10.01615182 | R157: 1.09077727 | S157: 0.03344254985 | T157: 1.12421982 | U157: 0.5685922919 | V157: 0.0009698915831 | W157: 0.0009698915831 | X157: 3.925293698 | Y157: 0.04622379185 | Z157: 0.04622379185 | AA157: 9.017380928 | AB157: 0.4634850051 | AC157: 0.0427518 | AD157: 0 | AE157: 0.5579578219 | AF157: 4.360061742 | AG157: 0.1083577889 | AH157: 0.096 | AI157: 0.2088846445 | AJ157: 0 | AK157: 0 | AL157: 0 | AM157: 0 | AN157: 0 | AO157: 10.01615182 | AP157: 0.1906142647 | AQ157: 0 | AR157: 0.1981690336 | AS157: 0.1906142647 | AT157: 0 | AU157: 0.07849548 | AV157: 0.047525346 | AW157: 0.499 | AX157: 0.0249 | AY157: 0.021912 | AZ157: 0.00504 | BA157: 0.046812 | BB157: 2.808257829 | BC157: 83 | BD157: 0.9672728721 | BE157: 31.8226651 | BF157: 10.44423223 | BH157: 96.72728721 | BI157: 1.12421982 | BJ157: 1.04350698 | BK157: 0.2347881529 | BL157: 0.047525346
G158: 149 | H158: 10.47 | I158: BUCK | J158: 1 | K158: 10 | L158: 8.257720471 | M158: 10 | N158: 0.8081943783 | O158: 0 | P158: 1.99374422 | Q158: 10.01654887 | R158: 1.090871299 | S158: 0.03439216776 | T158: 1.125263467 | U158: 0.575544381 | V158: 0.0009937540036 | W158: 0.0009937540036 | X158: 3.943725631 | Y158: 0.04665891555 | Z158: 0.04665891555 | AA158: 9.004840548 | AB158: 0.4621967738 | AC158: 0.04287465 | AD158: 0 | AE158: 0.556515343 | AF158: 4.386809551 | AG158: 0.1096913588 | AH158: 0.096 | AI158: 0.210305089 | AJ158: 0 | AK158: 0 | AL158: 0 | AM158: 0 | AN158: 0 | AO158: 10.01654887 | AP158: 0.1906293775 | AQ158: 0 | AR158: 0.1981853682 | AS158: 0.1906293775 | AT158: 0 | AU158: 0.07872228 | AV158: 0.0481102451 | AW158: 0.499 | AX158: 0.0249 | AY158: 0.021912 | AZ158: 0.00504 | BA158: 0.046812 | BB158: 2.810566462 | BC158: 83 | BD158: 0.9672468488 | BE158: 31.76188115 | BF158: 10.51525445 | BH158: 96.72468488 | BI158: 1.125263467 | BJ158: 1.04372808 | BK158: 0.2362834414 | BL158: 0.0481102451
G159: 150 | H159: 10.5 | I159: BUCK | J159: 1 | K159: 10 | L159: 8.234126984 | M159: 10 | N159: 0.8058907363 | O159: 0 | P159: 2.017689674 | Q159: 10.01694844 | R159: 1.090965927 | S159: 0.03535131958 | T159: 1.126317247 | U159: 0.5824568383 | V159: 0.001017767906 | W159: 0.001017767906 | X159: 3.961837433 | Y159: 0.04708846753 | Z159: 0.04708846753 | AA159: 8.992356581 | AB159: 0.4609161182 | AC159: 0.0429975 | AD159: 0 | AE159: 0.5550829543 | AF159: 4.4132504 | AG159: 0.1110176408 | AH159: 0.096 | AI159: 0.2117185394 | AJ159: 0 | AK159: 0 | AL159: 0 | AM159: 0 | AN159: 0 | AO159: 10.01694844 | AP159: 0.1906445863 | AQ159: 0 | AR159: 0.1982018066 | AS159: 0.1906445863 | AT159: 0 | AU159: 0.07894908 | AV159: 0.04869194773 | AW159: 0.499 | AX159: 0.0249 | AY159: 0.021912 | AZ159: 0.00504 | BA159: 0.046812 | BB159: 2.81287981 | BC159: 83 | BD159: 0.9672207737 | BE159: 31.70160172 | BF159: 10.58592697 | BH159: 96.72207737 | BI159: 1.126317247 | BJ159: 1.04395238 | BK159: 0.2377717358 | BL159: 0.04869194773
G160: 151 | H160: 10.53 | I160: BUCK | J160: 1 | K160: 10 | L160: 8.210667933 | M160: 10 | N160: 0.8036001895 | O160: 0 | P160: 2.041499011 | Q160: 10.01735044 | R160: 1.091061139 | S160: 0.03631985067 | T160: 1.127380989 | U160: 0.5893300017 | V160: 0.001041929553 | W160: 0.001041929553 | X160: 3.979636584 | Y160: 0.04751252202 | Z160: 0.04751252202 | AA160: 8.979928575 | AB160: 0.4596429681 | AC160: 0.04312035 | AD160: 0 | AE160: 0.5536605542 | AF160: 4.439391021 | AG160: 0.1123366981 | AH160: 0.096 | AI160: 0.213125051 | AJ160: 0 | AK160: 0 | AL160: 0 | AM160: 0 | AN160: 0 | AO160: 10.01735044 | AP160: 0.1906598887 | AQ160: 0 | AR160: 0.1982183463 | AS160: 0.1906598887 | AT160: 0 | AU160: 0.07917588 | AV160: 0.0492704816 | AW160: 0.499 | AX160: 0.0249 | AY160: 0.021912 | AZ160: 0.00504 | BA160: 0.046812 | BB160: 2.815197754 | BC160: 83 | BD160: 0.9671946482 | BE160: 31.64182171 | BF160: 10.65625255 | BH160: 96.71946482 | BI160: 1.127380989 | BJ160: 1.044179831 | BK160: 0.2392530914 | BL160: 0.0492704816
G161: 152 | H161: 10.56 | I161: BUCK | J161: 1 | K161: 10 | L161: 8.187342172 | M161: 10 | N161: 0.8013226264 | O161: 0 | P161: 2.065173386 | Q161: 10.01775483 | R161: 1.091156919 | S161: 0.03729760791 | T161: 1.128454527 | U161: 0.5961642053 | V161: 0.001066235279 | W161: 0.001066235279 | X161: 3.997130308 | Y161: 0.04793115209 | Z161: 0.04793115209 | AA161: 8.967556084 | AB161: 0.4583772541 | AC161: 0.0432432 | AD161: 0 | AE161: 0.5522480423 | AF161: 4.465237915 | AG161: 0.1136485929 | AH161: 0.096 | AI161: 0.2145246785 | AJ161: 0 | AK161: 0 | AL161: 0 | AM161: 0 | AN161: 0 | AO161: 10.01775483 | AP161: 0.1906752823 | AQ161: 0 | AR161: 0.1982349847 | AS161: 0.1906752823 | AT161: 0 | AU161: 0.07940268 | AV161: 0.0498458741 | AW161: 0.499 | AX161: 0.0249 | AY161: 0.021912 | AZ161: 0.00504 | BA161: 0.046812 | BB161: 2.817520174 | BC161: 83 | BD161: 0.9671684737 | BE161: 31.58253612 | BF161: 10.72623393 | BH161: 96.71684737 | BI161: 1.128454527 | BJ161: 1.044410386 | BK161: 0.2407275629 | BL161: 0.0498458741
G162: 153 | H162: 10.59 | I162: BUCK | J162: 1 | K162: 10 | L162: 8.164148568 | M162: 10 | N162: 0.7990579369 | O162: 0 | P162: 2.088713945 | Q162: 10.01816153 | R162: 1.091253255 | S162: 0.03828443976 | T162: 1.129537694 | U162: 0.6029597793 | V162: 0.001090681486 | W162: 0.001090681486 | X162: 4.014325584 | Y162: 0.04834442968 | Z162: 0.04834442968 | AA162: 8.955238667 | AB162: 0.4571189076 | AC162: 0.04336605 | AD162: 0 | AE162: 0.5508453198 | AF162: 4.490797358 | AG162: 0.1149533872 | AH162: 0.096 | AI162: 0.2159174762 | AJ162: 0 | AK162: 0 | AL162: 0 | AM162: 0 | AN162: 0 | AO162: 10.01816153 | AP162: 0.1906907649 | AQ162: 0 | AR162: 0.1982517193 | AS162: 0.1906907649 | AT162: 0 | AU162: 0.07962948 | AV162: 0.05041815227 | AW162: 0.499 | AX162: 0.0249 | AY162: 0.021912 | AZ162: 0.00504 | BA162: 0.046812 | BB162: 2.819846953 | BC162: 83 | BD162: 0.9671422514 | BE162: 31.52373999 | BF162: 10.79587381 | BH162: 96.71422514 | BI162: 1.129537694 | BJ162: 1.044643995 | BK162: 0.2421952046 | BL162: 0.05041815227
G163: 154 | H163: 10.62 | I163: BUCK | J163: 1 | K163: 10 | L163: 8.141086001 | M163: 10 | N163: 0.7968060122 | O163: 0 | P163: 2.112121819 | Q163: 10.0185705 | R163: 1.091350131 | S163: 0.03928019622 | T163: 1.130630327 | U163: 0.6097170504 | V163: 0.001115264645 | W163: 0.001115264645 | X163: 4.031229159 | Y163: 0.04875242559 | Z163: 0.04875242559 | AA163: 8.942975889 | AB163: 0.4558678612 | AC163: 0.0434889 | AD163: 0 | AE163: 0.5494522891 | AF163: 4.516075413 | AG163: 0.1162511417 | AH163: 0.096 | AI163: 0.2173034976 | AJ163: 0 | AK163: 0 | AL163: 0 | AM163: 0 | AN163: 0 | AO163: 10.0185705 | AP163: 0.1907063343 | AQ163: 0 | AR163: 0.1982685479 | AS163: 0.1907063343 | AT163: 0 | AU163: 0.07985628 | AV163: 0.05098734284 | AW163: 0.499 | AX163: 0.0249 | AY163: 0.021912 | AZ163: 0.00504 | BA163: 0.046812 | BB163: 2.822177975 | BC163: 83 | BD163: 0.9671159828 | BE163: 31.46542846 | BF163: 10.86517488 | BH163: 96.71159828 | BI163: 1.130630327 | BJ163: 1.044880615 | BK163: 0.24365607 | BL163: 0.05098734284
G164: 155 | H164: 10.65 | I164: BUCK | J164: 1 | K164: 10 | L164: 8.118153365 | M164: 10 | N164: 0.7945667447 | O164: 0 | P164: 2.135398126 | Q164: 10.01898167 | R164: 1.091447535 | S164: 0.04028472887 | T164: 1.131732264 | U164: 0.6164363416 | V164: 0.00113998129 | W164: 0.00113998129 | X164: 4.047847556 | Y164: 0.04915520951 | Z164: 0.04915520951 | AA164: 8.930767318 | AB164: 0.4546240478 | AC164: 0.04361175 | AD164: 0 | AE164: 0.548068854 | AF164: 4.541077943 | AG164: 0.1175419166 | AH164: 0.096 | AI164: 0.2186827956 | AJ164: 0 | AK164: 0 | AL164: 0 | AM164: 0 | AN164: 0 | AO164: 10.01898167 | AP164: 0.1907219882 | AQ164: 0 | AR164: 0.1982854679 | AS164: 0.1907219882 | AT164: 0 | AU164: 0.08008308 | AV164: 0.05155347221 | AW164: 0.499 | AX164: 0.0249 | AY164: 0.021912 | AZ164: 0.00504 | BA164: 0.046812 | BB164: 2.824513124 | BC164: 83 | BD164: 0.9670896691 | BE164: 31.4075967 | BF164: 10.93413978 | BH164: 96.70896691 | BI164: 1.131732264 | BJ164: 1.045120197 | BK164: 0.245110212 | BL164: 0.05155347221
G165: 156 | H165: 10.68 | I165: BUCK | J165: 1 | K165: 10 | L165: 8.095349563 | M165: 10 | N165: 0.792340028 | O165: 0 | P165: 2.158543973 | Q165: 10.01939499 | R165: 1.091545453 | S165: 0.04129789087 | T165: 1.132843344 | U165: 0.6231179721 | V165: 0.001164828021 | W165: 0.001164828021 | X165: 4.064187089 | Y165: 0.04955285007 | Z165: 0.04955285007 | AA165: 8.918612528 | AB165: 0.4533874017 | AC165: 0.0437346 | AD165: 0 | AE165: 0.5466949195 | AF165: 4.565810616 | AG165: 0.1188257715 | AH165: 0.096 | AI165: 0.2200554226 | AJ165: 0 | AK165: 0 | AL165: 0 | AM165: 0 | AN165: 0 | AO165: 10.01939499 | AP165: 0.1907377244 | AQ165: 0 | AR165: 0.1983024771 | AS165: 0.1907377244 | AT165: 0 | AU165: 0.08030988 | AV165: 0.05211656646 | AW165: 0.499 | AX165: 0.0249 | AY165: 0.021912 | AZ165: 0.00504 | BA165: 0.046812 | BB165: 2.826852288 | BC165: 83 | BD165: 0.9670633116 | BE165: 31.35023998 | BF165: 11.00277113 | BH165: 96.70633116 | BI165: 1.132843344 | BJ165: 1.045362699 | BK165: 0.246557683 | BL165: 0.05211656646
G166: 157 | H166: 10.71 | I166: BUCK | J166: 1 | K166: 10 | L166: 8.072673514 | M166: 10 | N166: 0.7901257569 | O166: 0 | P166: 2.181560454 | Q166: 10.0198104 | R166: 1.091643872 | S166: 0.04231953695 | T166: 1.133963409 | U166: 0.6297622576 | V166: 0.001189801503 | W166: 0.001189801503 | X166: 4.080253866 | Y166: 0.04994541483 | Z166: 0.04994541483 | AA166: 8.906511099 | AB166: 0.4521578578 | AC166: 0.04385745 | AD166: 0 | AE166: 0.5453303921 | AF166: 4.590278918 | AG166: 0.1201027651 | AH166: 0.096 | AI166: 0.2214214303 | AJ166: 0 | AK166: 0 | AL166: 0 | AM166: 0 | AN166: 0 | AO166: 10.0198104 | AP166: 0.190753541 | AQ166: 0 | AR166: 0.1983195731 | AS166: 0.190753541 | AT166: 0 | AU166: 0.08053668 | AV166: 0.05267665136 | AW166: 0.499 | AX166: 0.0249 | AY166: 0.021912 | AZ166: 0.00504 | BA166: 0.046812 | BB166: 2.829195352 | BC166: 83 | BD166: 0.9670369116 | BE166: 31.29335361 | BF166: 11.07107152 | BH166: 96.70369116 | BI166: 1.133963409 | BJ166: 1.045608076 | BK166: 0.2479985347 | BL166: 0.05267665136
G167: 158 | H167: 10.74 | I167: BUCK | J167: 1 | K167: 10 | L167: 8.050124146 | M167: 10 | N167: 0.7879238272 | O167: 0 | P167: 2.204448649 | Q167: 10.02022785 | R167: 1.091742779 | S167: 0.0433495234 | T167: 1.135092302 | U167: 0.6363695104 | V167: 0.001214898461 | W167: 0.001214898461 | X167: 4.096053804 | Y167: 0.05033297029 | Z167: 0.05033297029 | AA167: 8.894462615 | AB167: 0.4509353517 | AC167: 0.0439803 | AD167: 0 | AE167: 0.5439751794 | AF167: 4.614488157 | AG167: 0.1213729554 | AH167: 0.096 | AI167: 0.2227808699 | AJ167: 0 | AK167: 0 | AL167: 0 | AM167: 0 | AN167: 0 | AO167: 10.02022785 | AP167: 0.1907694357 | AQ167: 0 | AR167: 0.1983367538 | AS167: 0.1907694357 | AT167: 0 | AU167: 0.08076348 | AV167: 0.05323375238 | AW167: 0.499 | AX167: 0.0249 | AY167: 0.021912 | AZ167: 0.00504 | BA167: 0.046812 | BB167: 2.831542207 | BC167: 83 | BD167: 0.9670104703 | BE167: 31.23693297 | BF167: 11.1390435 | BH167: 96.70104703 | BI167: 1.135092302 | BJ167: 1.045856283 | BK167: 0.2494328183 | BL167: 0.05323375238
G168: 159 | H168: 10.77 | I168: BUCK | J168: 1 | K168: 10 | L168: 8.027700402 | M168: 10 | N168: 0.7857341362 | O168: 0 | P168: 2.227209629 | Q168: 10.02064728 | R168: 1.091842161 | S168: 0.04438770813 | T168: 1.136229869 | U168: 0.6429400393 | V168: 0.001240115682 | W168: 0.001240115682 | X168: 4.111592633 | Y168: 0.05071558195 | Z168: 0.05071558195 | AA168: 8.882466663 | AB168: 0.4497198199 | AC168: 0.04410315 | AD168: 0 | AE168: 0.5426291903 | AF168: 4.638443475 | AG168: 0.1226363999 | AH168: 0.096 | AI168: 0.2241337921 | AJ168: 0 | AK168: 0 | AL168: 0 | AM168: 0 | AN168: 0 | AO168: 10.02064728 | AP168: 0.1907854066 | AQ168: 0 | AR168: 0.198354017 | AS168: 0.1907854066 | AT168: 0 | AU168: 0.08099028 | AV168: 0.05378789467 | AW168: 0.499 | AX168: 0.0249 | AY168: 0.021912 | AZ168: 0.00504 | BA168: 0.046812 | BB168: 2.833892741 | BC168: 83 | BD168: 0.9669839891 | BE168: 31.18097351 | BF168: 11.20668961 | BH168: 96.69839891 | BI168: 1.136229869 | BJ168: 1.046107279 | BK168: 0.2508605845 | BL168: 0.05378789467
G169: 160 | H169: 10.8 | I169: BUCK | J169: 1 | K169: 10 | L169: 8.005401235 | M169: 10 | N169: 0.783556582 | O169: 0 | P169: 2.24984445 | Q169: 10.02106864 | R169: 1.091942007 | S169: 0.0454339506 | T169: 1.137375957 | U169: 0.6494741496 | V169: 0.001265450013 | W169: 0.001265450013 | X169: 4.126875908 | Y169: 0.05109331428 | Z169: 0.05109331428 | AA169: 8.870522838 | AB169: 0.4485111999 | AC169: 0.044226 | AD169: 0 | AE169: 0.5412923349 | AF169: 4.662149852 | AG169: 0.1238931551 | AH169: 0.096 | AI169: 0.2254802469 | AJ169: 0 | AK169: 0 | AL169: 0 | AM169: 0 | AN169: 0 | AO169: 10.02106864 | AP169: 0.1908014517 | AQ169: 0 | AR169: 0.1983713604 | AS169: 0.1908014517 | AT169: 0 | AU169: 0.08121708 | AV169: 0.05433910311 | AW169: 0.499 | AX169: 0.0249 | AY169: 0.021912 | AZ169: 0.00504 | BA169: 0.046812 | BB169: 2.836246847 | BC169: 83 | BD169: 0.966957469 | BE169: 31.12547074 | BF169: 11.27401235 | BH169: 96.6957469 | BI169: 1.137375957 | BJ169: 1.046361022 | BK169: 0.2522818833 | BL169: 0.05433910311
G170: 161 | H170: 10.83 | I170: BUCK | J170: 1 | K170: 10 | L170: 7.983225608 | M170: 10 | N170: 0.781391064 | O170: =CHOOSE(J170,0,(Vout+(Rdson3+Rdcr)*L170-H170)/(Vout+(Rdson3-Rdson4-Rs)*L170),IF(H170>Vout,D_min_boost_exitBB_to_buck, (Vout-H170*D_max_buck_BB)/Vout)) -> 0 | P170: 2.27235416 | Q170: 10.02149188 | R170: 1.092042303 | S170: 0.04648811185 | T170: 1.138530415 | U170: 0.6559721431 | V170: 0.001290898358 | W170: 0.001290898358 | X170: 4.141909012 | Y170: 0.05146623078 | Z170: 0.05146623078 | AA170: 8.858630738 | AB170: 0.4473094297 | AC170: 0.04434885 | AD170: 0 | AE170: 0.5399645244 | AF170: 4.685612116 | AG170: 0.1251432771 | AH170: 0.096 | AI170: 0.2268202839 | AJ170: 0 | AK170: 0 | AL170: 0 | AM170: 0 | AN170: 0 | AO170: 10.02149188 | AP170: 0.190817569 | AQ170: 0 | AR170: 0.198388782 | AS170: 0.190817569 | AT170: 0 | AU170: 0.08144388 | AV170: 0.05488740226 | AW170: 0.499 | AX170: 0.0249 | AY170: 0.021912 | AZ170: 0.00504 | BA170: 0.046812 | BB170: 2.838604416 | BC170: 83 | BD170: 0.9669309114 | BE170: 31.07042022 | BF170: 11.34101419 | BH170: 96.69309114 | BI170: 1.138530415 | BJ170: 1.04661747 | BK170: 0.2536967643 | BL170: 0.05488740226
G171: 162 | H171: 10.86 | I171: BUCK | J171: 1 | K171: 10 | L171: 7.961172498 | M171: 10 | N171: 0.7792374828 | O171: 0 | P171: 2.294739793 | Q171: 10.02191694 | R171: 1.092143038 | S171: 0.04755005451 | T171: 1.139693093 | U171: 0.6624343186 | V171: 0.001316457679 | W171: 0.001316457679 | X171: 4.156697165 | Y171: 0.05183439398 | Z171: 0.05183439398 | AA171: 8.846789964 | AB171: 0.4461144482 | AC171: 0.0444717 | AD171: 0 | AE171: 0.5386456715 | AF171: 4.708834947 | AG171: 0.1263868214 | AH171: 0.096 | AI171: 0.2281539519 | AJ171: 0 | AK171: 0 | AL171: 0 | AM171: 0 | AN171: 0 | AO171: 10.02191694 | AP171: 0.1908337565 | AQ171: 0 | AR171: 0.1984062797 | AS171: 0.1908337565 | AT171: 0 | AU171: 0.08167068 | AV171: 0.0554328164 | AW171: 0.499 | AX171: 0.0249 | AY171: 0.021912 | AZ171: 0.00504 | BA171: 0.046812 | BB171: 2.840965344 | BC171: 83 | BD171: 0.9669043174 | BE171: 31.01581758 | BF171: 11.4076976 | BH171: 96.69043174 | BI171: 1.139693093 | BJ171: 1.046876583 | BK171: 0.2551052763 | BL171: 0.0554328164
G172: 163 | H172: 10.89 | I172: BUCK | J172: 1 | K172: 10 | L172: 7.939240894 | M172: 10 | N172: 0.7770957398 | O172: 0 | P172: 2.317002371 | Q172: 10.02234379 | R172: 1.0922442 | S172: 0.04861964278 | T172: 1.140863843 | U172: 0.6688609714 | V172: 0.001342124997 | W172: 0.001342124997 | X172: 4.171245435 | Y172: 0.05219786544 | Z172: 0.05219786544 | AA172: 8.835000124 | AB172: 0.444926195 | AC172: 0.04459455 | AD172: 0 | AE172: 0.5373356897 | AF172: 4.731822885 | AG172: 0.1276238425 | AH172: 0.096 | AI172: 0.2294812996 | AJ172: 0 | AK172: 0 | AL172: 0 | AM172: 0 | AN172: 0 | AO172: 10.02234379 | AP172: 0.1908500125 | AQ172: 0 | AR172: 0.1984238514 | AS172: 0.1908500125 | AT172: 0 | AU172: 0.08189748 | AV172: 0.05597536953 | AW172: 0.499 | AX172: 0.0249 | AY172: 0.021912 | AZ172: 0.00504 | BA172: 0.046812 | BB172: 2.843329524 | BC172: 83 | BD172: 0.9668776882 | BE172: 30.96165849 | BF172: 11.47406498 | BH172: 96.68776882 | BI172: 1.140863843 | BJ172: 1.047138321 | BK172: 0.256507468 | BL172: 0.05597536953
G173: 164 | H173: 10.92 | I173: BUCK | J173: 1 | K173: 10 | L173: 7.917429792 | M173: 10 | N173: 0.7749657378 | O173: 0 | P173: 2.339142907 | Q173: 10.02277236 | R173: 1.092345778 | S173: 0.04969674241 | T173: 1.14204252 | U173: 0.6752523935 | V173: 0.001367897385 | W173: 0.001367897385 | X173: 4.185558736 | Y173: 0.0525567058 | Z173: 0.0525567058 | AA173: 8.823260828 | AB173: 0.4437446104 | AC173: 0.0447174 | AD173: 0 | AE173: 0.5360344939 | AF173: 4.754580334 | AG173: 0.1288543946 | AH173: 0.096 | AI173: 0.2308023747 | AJ173: 0 | AK173: 0 | AL173: 0 | AM173: 0 | AN173: 0 | AO173: 10.02277236 | AP173: 0.190866335 | AQ173: 0 | AR173: 0.1984414952 | AS173: 0.190866335 | AT173: 0 | AU173: 0.08212428 | AV173: 0.05651508537 | AW173: 0.499 | AX173: 0.0249 | AY173: 0.021912 | AZ173: 0.00504 | BA173: 0.046812 | BB173: 2.845696853 | BC173: 83 | BD173: 0.9668510251 | BE173: 30.9079387 | BF173: 11.54011874 | BH173: 96.68510251 | BI173: 1.14204252 | BJ173: 1.047402644 | BK173: 0.2579033871 | BL173: 0.05651508537
G174: 165 | H174: 10.95 | I174: BUCK | J174: 1 | K174: 10 | L174: 7.895738204 | M174: 10 | N174: 0.7728473804 | O174: 0 | P174: 2.361162401 | Q174: 10.02320261 | R174: =(Q174^2*Rdcr*(1+Ltc*Ta-Ltc*25))/(1-Q174^2*Rdcr*Ltc*ThetaCa) -> 1.09244776 | S174: =7.759*10^-3*Fsw^0.9458*(0.00787*P174)^2.304 -> 0.05078122074 | T174: =R174+S174 -> 1.143228981 | U174: 0.681608874 | V174: =RCoutEsr*U174^2 -> 0.001393771971 | W174: =V174 -> 0.001393771971 | X174: 4.199641841 | Y174: =RCinEsr*X174^2 -> 0.05291097477 | Z174: =Y174 -> 0.05291097477 | AA174: 8.811571694 | AB174: 0.4425696356 | AC174: 0.04484025 | AD174: 0 | AE174: 0.534742 | AF174: 4.777111569 | AG174: 0.1300785312 | AH174: 0.096 | AI174: 0.2321172247 | AJ174: 0 | AK174: 0 | AL174: 0 | AM174: 0 | AN174: 0 | AO174: 10.02320261 | AP174: 0.1908827222 | AQ174: 0 | AR174: 0.1984592091 | AS174: 0.1908827222 | AT174: 0 | AU174: 0.08235108 | AV174: 0.05705198736 | AW174: 0.499 | AX174: 0.0249 | AY174: 0.021912 | AZ174: 0.00504 | BA174: =SUM(AX174:AY174) -> 0.046812 | BB174: =SUM(T174,W174,Z174,AE174,AI174,AN174,AR174, AT174,AU174,BA174,AV174,AW174) -> 2.848067229 | BC174: 83 | BD174: =BC174/(BC174+BB174) -> 0.9668243291 | BE174: 30.854654 | BF174: 11.60586124 | BH174: =BD174*100 -> 96.68243291 | BI174: =T174 -> 1.143228981 | BJ174: =AE174+AI174+AN174+AR174+AU174 -> 1.047669514 | BK174: =AI174+AU174*0.33 -> 0.2592930811 | BL174: =AV174 -> 0.05705198736
G175: 166 | H175: 10.98 | I175: BUCK | J175: 1 | K175: 10 | L175: 7.874165149 | M175: 10 | N175: 0.7707405725 | O175: 0 | P175: 2.383061844 | Q175: 10.0236345 | R175: 1.092550136 | S175: 0.05187294665 | T175: 1.144423082 | U175: 0.6879306984 | V175: 0.001419745938 | W175: 0.001419745938 | X175: 4.213499384 | Y175: 0.05326073118 | Z175: 0.05326073118 | AA175: 8.799932339 | AB175: 0.4414012123 | AC175: 0.0449631 | AD175: 0 | AE175: 0.5334581249 | AF175: 4.799420743 | AG175: 0.131296305 | AH175: 0.096 | AI175: 0.2334258965 | AJ175: 0 | AK175: 0 | AL175: 0 | AM175: 0 | AN175: 0 | AO175: 10.0236345 | AP175: 0.1908991724 | AQ175: 0 | AR175: 0.1984769911 | AS175: 0.1908991724 | AT175: 0 | AU175: 0.08257788 | AV175: 0.05758609867 | AW175: 0.499 | AX175: 0.0249 | AY175: 0.021912 | AZ175: 0.00504 | BA175: 0.046812 | BB175: 2.850440551 | BC175: 83 | BD175: 0.9667976014 | BE175: 30.80180025 | BF175: 11.67129483 | BH175: 96.67976014 | BI175: 1.144423082 | BJ175: 1.047938893 | BK175: 0.2606765969 | BL175: 0.05758609867
G176: 167 | H176: 11.01 | I176: BUCK | J176: 1 | K176: 10 | L176: 7.852709658 | M176: 10 | N176: 0.7686452198 | O176: 0 | P176: 2.404842213 | Q176: 10.02406798 | R176: 1.092652893 | S176: 0.05297179058 | T176: 1.145624684 | U176: 0.6942181496 | V176: 0.001445816518 | W176: 0.001445816518 | X176: 4.227135869 | Y176: 0.05360603295 | Z176: 0.05360603295 | AA176: 8.78834239 | AB176: 0.4402392832 | AC176: 0.04508595 | AD176: 0 | AE176: 0.5321827869 | AF176: 4.821511887 | AG176: 0.1325077682 | AH176: 0.096 | AI176: 0.2347284365 | AJ176: 0 | AK176: 0 | AL176: 0 | AM176: 0 | AN176: 0 | AO176: 10.02406798 | AP176: 0.1909156838 | AQ176: 0 | AR176: 0.1984948394 | AS176: 0.1909156838 | AT176: 0 | AU176: 0.08280468 | AV176: 0.0581174422 | AW176: 0.499 | AX176: 0.0249 | AY176: 0.021912 | AZ176: 0.00504 | BA176: 0.046812 | BB176: 2.852816718 | BC176: 83 | BD176: 0.9667708431 | BE176: 30.74937334 | BF176: 11.73642182 | BH176: 96.67708431 | BI176: 1.145624684 | BJ176: 1.048210743 | BK176: 0.2620539809 | BL176: 0.0581174422
G177: 168 | H177: 11.04 | I177: BUCK | J177: 1 | K177: 10 | L177: 7.831370773 | M177: 10 | N177: 0.7665612291 | O177: 0 | P177: 2.426504479 | Q177: 10.024503 | R177: 1.092756023 | S177: 0.0540776245 | T177: 1.146833647 | U177: 0.700471507 | V177: 0.001471980997 | W177: 0.001471980997 | X177: 4.240555669 | Y177: 0.05394693715 | Z177: 0.05394693715 | AA177: 8.776801473 | AB177: 0.4390837914 | AC177: 0.0452088 | AD177: 0 | AE177: 0.5309159051 | AF177: 4.84338892 | AG177: 0.1337129725 | AH177: 0.096 | AI177: 0.2360248905 | AJ177: 0 | AK177: 0 | AL177: 0 | AM177: 0 | AN177: 0 | AO177: 10.024503 | AP177: 0.1909322546 | AQ177: 0 | AR177: 0.1985127521 | AS177: 0.1909322546 | AT177: 0 | AU177: 0.08303148 | AV177: 0.05864604059 | AW177: 0.499 | AX177: 0.0249 | AY177: 0.021912 | AZ177: 0.00504 | BA177: 0.046812 | BB177: 2.855195634 | BC177: 83 | BD177: 0.9667440554 | BE177: 30.69736925 | BF177: 11.80124452 | BH177: 96.67440554 | BI177: 1.146833647 | BJ177: 1.048485028 | BK177: 0.2634252789 | BL177: 0.05864604059
G178: 169 | H178: 11.07 | I178: BUCK | J178: 1 | K178: 10 | L178: 7.810147546 | M178: 10 | N178: 0.7644885083 | O178: 0 | P178: 2.448049598 | Q178: 10.02493951 | R178: 1.092859513 | S178: 0.05519032194 | T178: 1.148049835 | U178: 0.7066910473 | V178: 0.001498236709 | W178: 0.001498236709 | X178: 4.253763038 | Y178: 0.05428349996 | Z178: 0.05428349996 | AA178: 8.765309222 | AB178: 0.4379346808 | AC178: 0.04533165 | AD178: 0 | AE178: 0.5296573996 | AF178: 4.865055651 | AG178: 0.134911969 | AH178: 0.096 | AI178: 0.237315304 | AJ178: 0 | AK178: 0 | AL178: 0 | AM178: 0 | AN178: 0 | AO178: 10.02493951 | AP178: 0.1909488832 | AQ178: 0 | AR178: 0.1985307274 | AS178: 0.1909488832 | AT178: 0 | AU178: 0.08325828 | AV178: 0.05917191622 | AW178: 0.499 | AX178: 0.0249 | AY178: 0.021912 | AZ178: 0.00504 | BA178: 0.046812 | BB178: 2.857577199 | BC178: 83 | BD178: 0.9667172393 | BE178: 30.64578398 | BF178: 11.8657652 | BH178: 96.67172393 | BI178: 1.148049835 | BJ178: 1.048761711 | BK178: 0.2647905364 | BL178: 0.05917191622
G179: 170 | H179: 11.1 | I179: BUCK | J179: 1 | K179: 10 | L179: 7.789039039 | M179: 10 | N179: 0.7624269663 | O179: 0 | P179: 2.469478519 | Q179: 10.02537748 | R179: 1.092963355 | S179: 0.05630975792 | T179: 1.149273113 | U179: 0.712877044 | V179: 0.00152458104 | W179: 0.00152458104 | X179: 4.266762112 | Y179: 0.05461577675 | Z179: 0.05461577675 | AA179: 8.753865272 | AB179: 0.436791896 | AC179: 0.0454545 | AD179: 0 | AE179: 0.5284071918 | AF179: 4.886515782 | AG179: 0.136104808 | AH179: 0.096 | AI179: 0.2385997218 | AJ179: 0 | AK179: 0 | AL179: 0 | AM179: 0 | AN179: 0 | AO179: 10.02537748 | AP179: 0.190965568 | AQ179: 0 | AR179: 0.1985487635 | AS179: 0.190965568 | AT179: 0 | AU179: 0.08348508 | AV179: 0.05969509121 | AW179: 0.499 | AX179: 0.0249 | AY179: 0.021912 | AZ179: 0.00504 | BA179: 0.046812 | BB179: 2.859961319 | BC179: 83 | BD179: 0.9666903959 | BE179: 30.59461359 | BF179: 11.92998609 | BH179: 96.66903959 | BI179: 1.149273113 | BJ179: 1.049040757 | BK179: 0.2661497982 | BL179: 0.05969509121
G180: 171 | H180: 11.13 | I180: BUCK | J180: 1 | K180: 10 | L180: 7.768044325 | M180: 10 | N180: 0.7603765128 | O180: 0 | P180: 2.49079218 | Q180: 10.02581686 | R180: 1.093067537 | S180: 0.05743580902 | T180: 1.150503346 | U180: 0.7190297677 | V180: 0.001551011421 | W180: 0.001551011421 | X180: 4.279556911 | Y180: 0.05494382207 | Z180: 0.05494382207 | AA180: 8.742469264 | AB180: 0.4356553823 | AC180: 0.04557735 | AD180: 0 | AE180: 0.527165204 | AF180: 4.907772914 | AG180: 0.1372915394 | AH180: 0.096 | AI180: 0.2398781885 | AJ180: 0 | AK180: 0 | AL180: 0 | AM180: 0 | AN180: 0 | AO180: 10.02581686 | AP180: 0.1909823072 | AQ180: 0 | AR180: 0.1985668586 | AS180: 0.1909823072 | AT180: 0 | AU180: 0.08371188 | AV180: 0.06021558744 | AW180: 0.499 | AX180: 0.0249 | AY180: 0.021912 | AZ180: 0.00504 | BA180: 0.046812 | BB180: 2.862347898 | BC180: 83 | BD180: 0.9666635264 | BE180: 30.5438542 | BF180: 11.99390943 | BH180: 96.66635264 | BI180: 1.150503346 | BJ180: 1.049322131 | BK180: 0.2675031089 | BL180: 0.06021558744
G181: 172 | H181: 11.16 | I181: BUCK | J181: 1 | K181: 10 | L181: 7.747162485 | M181: 10 | N181: 0.7583370586 | O181: 0 | P181: 2.511991506 | Q181: 10.02625762 | R181: 1.09317205 | S181: 0.0585683533 | T181: 1.151740404 | U181: 0.7251494862 | V181: 0.001577525332 | W181: 0.001577525332 | X181: 4.29215135 | Y181: 0.05526768964 | Z181: 0.05526768964 | AA181: 8.731120842 | AB181: 0.4345250856 | AC181: 0.0457002 | AD181: 0 | AE181: 0.5259313594 | AF181: 4.928830552 | AG181: 0.1384722125 | AH181: 0.096 | AI181: 0.241150748 | AJ181: 0 | AK181: 0 | AL181: 0 | AM181: 0 | AN181: 0 | AO181: 10.02625762 | AP181: 0.1909990994 | AQ181: 0 | AR181: 0.198585011 | AS181: 0.1909990994 | AT181: 0 | AU181: 0.08393868 | AV181: 0.06073342654 | AW181: 0.499 | AX181: 0.0249 | AY181: 0.021912 | AZ181: 0.00504 | BA181: 0.046812 | BB181: 2.864736844 | BC181: 83 | BD181: 0.9666366317 | BE181: 30.49350197 | BF181: 12.0575374 | BH181: 96.66366317 | BI181: 1.151740404 | BJ181: 1.049605798 | BK181: 0.2688505124 | BL181: 0.06073342654
G182: 173 | H182: 11.19 | I182: BUCK | J182: 1 | K182: 10 | L182: 7.726392612 | M182: 10 | N182: 0.7563085154 | O182: 0 | P182: 2.533077417 | Q182: 10.02669969 | R182: 1.093276884 | S182: 0.05970727034 | T182: 1.152984155 | U182: 0.7312364644 | V182: 0.001604120301 | W182: 0.001604120301 | X182: 4.304549237 | Y182: 0.05558743239 | Z182: 0.05558743239 | AA182: 8.719819655 | AB182: 0.4334009525 | AC182: 0.04582305 | AD182: 0 | AE182: 0.5247055823 | AF182: 4.949692106 | AG182: 0.1396468761 | AH182: 0.096 | AI182: 0.2424174439 | AJ182: 0 | AK182: 0 | AL182: 0 | AM182: 0 | AN182: 0 | AO182: 10.02669969 | AP182: 0.1910159429 | AQ182: 0 | AR182: 0.1986032191 | AS182: 0.1910159429 | AT182: 0 | AU182: 0.08416548 | AV182: 0.06124862987 | AW182: 0.499 | AX182: 0.0249 | AY182: 0.021912 | AZ182: 0.00504 | BA182: 0.046812 | BB182: 2.867128063 | BC182: 83 | BD182: 0.9666097129 | BE182: 30.44355311 | BF182: 12.12087219 | BH182: 96.66097129 | BI182: 1.152984155 | BJ182: 1.049891725 | BK182: 0.2701920523 | BL182: 0.06124862987
G183: 174 | H183: 11.22 | I183: BUCK | J183: 1 | K183: 10 | L183: 7.705733809 | M183: 10 | N183: 0.7542907959 | O183: 0 | P183: 2.55405082 | Q183: 10.02714306 | R183: 1.09338203 | S183: 0.06085244118 | T183: 1.154234471 | U183: 0.7372909642 | V183: 0.001630793898 | W183: 0.001630793898 | X183: 4.316754277 | Y183: 0.05590310246 | Z183: 0.05590310246 | AA183: 8.708565354 | AB183: 0.43228293 | AC183: 0.0459459 | AD183: 0 | AE183: 0.5234877979 | AF183: 4.970360896 | AG183: 0.1408155784 | AH183: 0.096 | AI183: 0.2436783191 | AJ183: 0 | AK183: 0 | AL183: 0 | AM183: 0 | AN183: 0 | AO183: 10.02714306 | AP183: 0.1910328361 | AQ183: 0 | AR183: 0.1986214811 | AS183: 0.1910328361 | AT183: 0 | AU183: 0.08439228 | AV183: 0.06176121858 | AW183: 0.499 | AX183: 0.0249 | AY183: 0.021912 | AZ183: 0.00504 | BA183: 0.046812 | BB183: 2.869521464 | BC183: 83 | BD183: 0.966582771 | BE183: 30.39400389 | BF183: 12.18391595 | BH183: 96.6582771 | BI183: 1.154234471 | BJ183: 1.050179878 | BK183: 0.2715277715 | BL183: 0.06176121858
G184: 175 | H184: 11.25 | I184: BUCK | J184: 1 | K184: 10 | L184: 7.685185185 | M184: 10 | N184: 0.7522838137 | O184: 0 | P184: 2.574912612 | Q184: 10.02758768 | R184: 1.093487478 | S184: 0.06200374837 | T184: 1.155491227 | U184: 0.743313245 | V184: 0.00165754374 | W184: 0.00165754374 | X184: 4.328770081 | Y184: 0.05621475124 | Z184: 0.05621475124 | AA184: 8.697357596 | AB184: 0.4311709662 | AC184: 0.04606875 | AD184: 0 | AE184: 0.5222779323 | AF184: 4.990840153 | AG184: 0.141978367 | AH184: 0.096 | AI184: 0.2449334162 | AJ184: 0 | AK184: 0 | AL184: 0 | AM184: 0 | AN184: 0 | AO184: 10.02758768 | AP184: 0.1910497777 | AQ184: 0 | AR184: 0.1986397955 | AS184: 0.1910497777 | AT184: 0 | AU184: 0.08461908 | AV184: 0.06227121357 | AW184: 0.499 | AX184: 0.0249 | AY184: 0.021912 | AZ184: 0.00504 | BA184: 0.046812 | BB184: 2.871916959 | BC184: 83 | BD184: 0.9665558071 | BE184: 30.34485061 | BF184: 12.24667081 | BH184: 96.65558071 | BI184: 1.155491227 | BJ184: 1.050470224 | BK184: 0.2728577126 | BL184: 0.06227121357
G185: 176 | H185: 11.28 | I185: BUCK | J185: 1 | K185: 10 | L185: 7.664745863 | M185: 10 | N185: 0.7502874834 | O185: 0 | P185: 2.595663683 | Q185: 10.0280335 | R185: 1.093593219 | S185: 0.06316107591 | T185: 1.156754295 | U185: 0.7493035632 | V185: 0.001684367489 | W185: 0.001684367489 | X185: 4.340600164 | Y185: 0.05652242935 | Z185: 0.05652242935 | AA185: 8.686196039 | AB185: 0.4300650093 | AC185: 0.0461916 | AD185: 0 | AE185: 0.5210759127 | AF185: 5.011133026 | AG185: 0.143135289 | AH185: 0.096 | AI185: 0.2461827776 | AJ185: 0 | AK185: 0 | AL185: 0 | AM185: 0 | AN185: 0 | AO185: 10.0280335 | AP185: 0.1910667661 | AQ185: 0 | AR185: 0.1986581605 | AS185: 0.1910667661 | AT185: 0 | AU185: 0.08484588 | AV185: 0.06277863552 | AW185: 0.499 | AX185: 0.0249 | AY185: 0.021912 | AZ185: 0.00504 | BA185: 0.046812 | BB185: 2.874314458 | BC185: 83 | BD185: 0.9665288221 | BE185: 30.29608963 | BF185: 12.30913888 | BH185: 96.65288221 | BI185: 1.156754295 | BJ185: 1.050762731 | BK185: 0.274181918 | BL185: 0.06277863552
G186: 177 | H186: 11.31 | I186: BUCK | J186: 1 | K186: 10 | L186: 7.644414972 | M186: 10 | N186: 0.7483017203 | O186: 0 | P186: 2.616304912 | Q186: 10.02848049 | R186: 1.093699244 | S186: 0.06432430926 | T186: 1.158023553 | U186: 0.7552621726 | V186: 0.001711262848 | W186: 0.001711262848 | X186: 4.35224795 | Y186: 0.05682618665 | Z186: 0.05682618665 | AA186: 8.675080346 | AB186: 0.4289650084 | AC186: 0.04631445 | AD186: 0 | AE186: 0.5198816671 | AF186: 5.031242584 | AG186: 0.144286391 | AH186: 0.096 | AI186: 0.2474264448 | AJ186: 0 | AK186: 0 | AL186: 0 | AM186: 0 | AN186: 0 | AO186: 10.02848049 | AP186: 0.1910837998 | AQ186: 0 | AR186: 0.1986765748 | AS186: 0.1910837998 | AT186: 0 | AU186: 0.08507268 | AV186: 0.06328350485 | AW186: 0.499 | AX186: 0.0249 | AY186: 0.021912 | AZ186: 0.00504 | BA186: 0.046812 | BB186: 2.876713874 | BC186: 83 | BD186: 0.966501817 | BE186: 30.24771735 | BF186: 12.37132224 | BH186: 96.6501817 | BI186: 1.158023553 | BJ186: 1.051057367 | BK186: 0.2755004292 | BL186: 0.06328350485
G187: 178 | H187: 11.34 | I187: BUCK | J187: 1 | K187: 10 | L187: 7.624191652 | M187: 10 | N187: 0.7463264408 | O187: 0 | P187: 2.636837168 | Q187: 10.02892862 | R187: 1.093805544 | S187: 0.06549333532 | T187: 1.15929888 | U187: 0.7611893243 | V187: 0.001738227562 | W187: 0.001738227562 | X187: 4.363716776 | Y187: 0.05712607232 | Z187: 0.05712607232 | AA187: 8.664010185 | AB187: 0.4278709131 | AC187: 0.0464373 | AD187: 0 | AE187: 0.5186951244 | AF187: 5.051171815 | AG187: 0.1454317192 | AH187: 0.096 | AI187: 0.2486644592 | AJ187: 0 | AK187: 0 | AL187: 0 | AM187: 0 | AN187: 0 | AO187: 10.02892862 | AP187: 0.1911008775 | AQ187: 0 | AR187: 0.1986950366 | AS187: 0.1911008775 | AT187: 0 | AU187: 0.08529948 | AV187: 0.06378584177 | AW187: 0.499 | AX187: 0.0249 | AY187: 0.021912 | AZ187: 0.00504 | BA187: 0.046812 | BB187: 2.879115121 | BC187: 83 | BD187: 0.9664747929 | BE187: 30.19973022 | BF187: 12.43322296 | BH187: 96.64747929 | BI187: 1.15929888 | BJ187: 1.0513541 | BK187: 0.2768132876 | BL187: 0.06378584177
G188: 179 | H188: 11.37 | I188: BUCK | J188: 1 | K188: 10 | L188: 7.604075051 | M188: 10 | N188: 0.7443615621 | O188: 0 | P188: 2.657261312 | Q188: 10.02937784 | R188: 1.093912111 | S188: 0.06666804242 | T188: 1.160580153 | U188: 0.7670852668 | V188: 0.00176525942 | W188: 0.00176525942 | X188: 4.375009896 | Y188: 0.05742213476 | Z188: 0.05742213476 | AA188: 8.652985224 | AB188: 0.4267826738 | AC188: 0.04656015 | AD188: 0 | AE188: 0.5175162145 | AF188: 5.070923635 | AG188: 0.1465713191 | AH188: 0.096 | AI188: 0.2498968616 | AJ188: 0 | AK188: 0 | AL188: 0 | AM188: 0 | AN188: 0 | AO188: 10.02937784 | AP188: 0.1911179976 | AQ188: 0 | AR188: 0.1987135446 | AS188: 0.1911179976 | AT188: 0 | AU188: 0.08552628 | AV188: 0.06428566628 | AW188: 0.499 | AX188: 0.0249 | AY188: 0.021912 | AZ188: 0.00504 | BA188: 0.046812 | BB188: 2.881518114 | BC188: 83 | BD188: 0.9664477506 | BE188: 30.15212473 | BF188: 12.49484308 | BH188: 96.64477506 | BI188: 1.160580153 | BJ188: 1.051652901 | BK188: 0.278120534 | BL188: 0.06428566628
G189: 180 | H189: 11.4 | I189: BUCK | J189: 1 | K189: 10 | L189: 7.584064327 | M189: 10 | N189: 0.7424070022 | O189: 0 | P189: 2.677578195 | Q189: 10.02982812 | R189: 1.094018935 | S189: 0.06784832034 | T189: 1.161867255 | U189: 0.7729502459 | V189: 0.001792356248 | W189: 0.001792356248 | X189: 4.386130479 | Y189: 0.05771442173 | Z189: 0.05771442173 | AA189: 8.642005139 | AB189: 0.4257002411 | AC189: 0.046683 | AD189: 0 | AE189: 0.5163448681 | AF189: 5.090500884 | AG189: 0.1477052357 | AH189: 0.096 | AI189: 0.2511236926 | AJ189: 0 | AK189: 0 | AL189: 0 | AM189: 0 | AN189: 0 | AO189: 10.02982812 | AP189: 0.191135159 | AQ189: 0 | AR189: 0.1987320972 | AS189: 0.191135159 | AT189: 0 | AU189: 0.08575308 | AV189: 0.06478299814 | AW189: 0.499 | AX189: 0.0249 | AY189: 0.021912 | AZ189: 0.00504 | BA189: 0.046812 | BB189: 2.883922769 | BC189: 83 | BD189: 0.9664206911 | BE189: 30.1048974 | BF189: 12.55618463 | BH189: 96.64206911 | BI189: 1.161867255 | BJ189: 1.051953738 | BK189: 0.279422209 | BL189: 0.06478299814
G190: 181 | H190: 11.43 | I190: BUCK | J190: 1 | K190: 10 | L190: 7.564158647 | M190: 10 | N190: 0.7404626801 | O190: 0 | P190: 2.697788662 | Q190: 10.03027942 | R190: 1.094126008 | S190: 0.06903406022 | T190: 1.163160069 | U190: 0.778784505 | V190: 0.001819515916 | W190: 0.001819515916 | X190: 4.397081617 | Y190: 0.05800298023 | Z190: 0.05800298023 | AA190: 8.631069606 | AB190: 0.4246235665 | AC190: 0.04680585 | AD190: 0 | AE190: 0.5151810167 | AF190: 5.109906335 | AG190: 0.1488335137 | AH190: 0.096 | AI190: 0.2523449921 | AJ190: 0 | AK190: 0 | AL190: 0 | AM190: 0 | AN190: 0 | AO190: 10.03027942 | AP190: 0.1911523601 | AQ190: 0 | AR190: 0.1987506929 | AS190: 0.1911523601 | AT190: 0 | AU190: 0.08597988 | AV190: 0.06527785689 | AW190: 0.499 | AX190: 0.0249 | AY190: 0.021912 | AZ190: 0.00504 | BA190: 0.046812 | BB190: 2.886329003 | BC190: 83 | BD190: 0.9663936154 | BE190: 30.05804483 | BF190: 12.6172496 | BH190: 96.63936154 | BI190: 1.163160069 | BJ190: 1.052256582 | BK190: 0.2807183525 | BL190: 0.06527785689
G191: 182 | H191: 11.46 | I191: BUCK | J191: 1 | K191: 10 | L191: 7.544357184 | M191: 10 | N191: 0.7385285155 | O191: 0 | P191: 2.717893544 | Q191: 10.03073172 | R191: 1.094233323 | S191: 0.07022515464 | T191: 1.164458478 | U191: 0.7845882846 | V191: 0.001846736329 | W191: 0.001846736329 | X191: 4.407866326 | Y191: 0.05828785664 | Z191: 0.05828785664 | AA191: 8.620178306 | AB191: 0.4235526019 | AC191: 0.0469287 | AD191: 0 | AE191: 0.5140245927 | AF191: 5.129142692 | AG191: 0.1499561971 | AH191: 0.096 | AI191: 0.2535607997 | AJ191: 0 | AK191: 0 | AL191: 0 | AM191: 0 | AN191: 0 | AO191: 10.03073172 | AP191: 0.1911695997 | AQ191: 0 | AR191: 0.1987693303 | AS191: 0.1911695997 | AT191: 0 | AU191: 0.08620668 | AV191: 0.06577026188 | AW191: 0.499 | AX191: 0.0249 | AY191: 0.021912 | AZ191: 0.00504 | BA191: 0.046812 | BB191: 2.888736735 | BC191: 83 | BD191: 0.9663665244 | BE191: 30.01156363 | BF191: 12.67803999 | BH191: 96.63665244 | BI191: 1.164458478 | BJ191: 1.052561403 | BK191: 0.2820090041 | BL191: 0.06577026188
G192: 183 | H192: 11.49 | I192: BUCK | J192: 1 | K192: 10 | L192: 7.524659124 | M192: 10 | N192: 0.736604429 | O192: 0 | P192: 2.737893668 | Q192: 10.03118497 | R192: 1.094340871 | S192: 0.07142149753 | T192: 1.165762368 | U192: 0.7903618231 | V192: 0.001874015434 | W192: 0.001874015434 | X192: 4.418487548 | Y192: 0.05856909662 | Z192: 0.05856909662 | AA192: 8.609330922 | AB192: 0.4224872999 | AC192: 0.04705155 | AD192: 0 | AE192: 0.5128755294 | AF192: 5.148212592 | AG192: 0.1510733295 | AH192: 0.096 | AI192: 0.2547711548 | AJ192: 0 | AK192: 0 | AL192: 0 | AM192: 0 | AN192: 0 | AO192: 10.03118497 | AP192: 0.1911868764 | AQ192: 0 | AR192: 0.1987880081 | AS192: 0.1911868764 | AT192: 0 | AU192: 0.08643348 | AV192: 0.06626023222 | AW192: 0.499 | AX192: 0.0249 | AY192: 0.021912 | AZ192: 0.00504 | BA192: 0.046812 | BB192: 2.891145885 | BC192: 83 | BD192: 0.9663394189 | BE192: 29.96545047 | BF192: 12.73855774 | BH192: 96.63394189 | BI192: 1.165762368 | BJ192: 1.052868172 | BK192: 0.2832942032 | BL192: 0.06626023222
G193: 184 | H193: 11.52 | I193: BUCK | J193: 1 | K193: 10 | L193: 7.505063657 | M193: 10 | N193: 0.7346903421 | O193: 0 | P193: 2.75778985 | Q193: 10.03163914 | R193: 1.094448644 | S193: 0.07262298422 | T193: 1.167071628 | U193: 0.7961053563 | V193: 0.001901351215 | W193: 0.001901351215 | X193: 4.428948153 | Y193: 0.05884674521 | Z193: 0.05884674521 | AA193: 8.598527142 | AB193: 0.4214276133 | AC193: 0.0471744 | AD193: 0 | AE193: 0.5117337608 | AF193: 5.16711861 | AG193: 0.152184954 | AH193: 0.096 | AI193: 0.2559760961 | AJ193: 0 | AK193: 0 | AL193: 0 | AM193: 0 | AN193: 0 | AO193: 10.03163914 | AP193: 0.1912041891 | AQ193: 0 | AR193: 0.1988067248 | AS193: 0.1912041891 | AT193: 0 | AU193: 0.08666028 | AV193: 0.06674778683 | AW193: 0.499 | AX193: 0.0249 | AY193: 0.021912 | AZ193: 0.00504 | BA193: 0.046812 | BB193: 2.893556373 | BC193: 83 | BD193: 0.9663122998 | BE193: 29.91970204 | BF193: 12.7988048 | BH193: 96.63122998 | BI193: 1.167071628 | BJ193: 1.053176862 | BK193: 0.2845739885 | BL193: 0.06674778683
G194: 185 | H194: 11.55 | I194: BUCK | J194: 1 | K194: 10 | L194: 7.485569986 | M194: 10 | N194: 0.7327861771 | O194: 0 | P194: 2.777582899 | Q194: 10.03209419 | R194: 1.094556634 | S194: 0.07382951137 | T194: 1.168386146 | U194: 0.8018191173 | V194: 0.001928741691 | W194: 0.001928741691 | X194: 4.439250942 | Y194: 0.05912084678 | Z194: 0.05912084678 | AA194: 8.587766655 | AB194: 0.4203734959 | AC194: 0.04729725 | AD194: 0 | AE194: 0.5105992219 | AF194: 5.185863262 | AG194: 0.1532911133 | AH194: 0.096 | AI194: 0.257175662 | AJ194: 0 | AK194: 0 | AL194: 0 | AM194: 0 | AN194: 0 | AO194: 10.03209419 | AP194: 0.1912215364 | AQ194: 0 | AR194: 0.1988254791 | AS194: 0.1912215364 | AT194: 0 | AU194: 0.08688708 | AV194: 0.06723294442 | AW194: 0.499 | AX194: 0.0249 | AY194: 0.021912 | AZ194: 0.00504 | BA194: 0.046812 | BB194: 2.895968122 | BC194: 83 | BD194: 0.9662851682 | BE194: 29.8743151 | BF194: 12.8587831 | BH194: 96.62851682 | BI194: 1.168386146 | BJ194: 1.053487443 | BK194: 0.2858483984 | BL194: 0.06723294442
G195: 186 | H195: 11.58 | I195: BUCK | J195: 1 | K195: 10 | L195: 7.466177317 | M195: 10 | N195: 0.730891857 | O195: 0 | P195: 2.797273614 | Q195: 10.03255011 | R195: 1.094664834 | S195: 0.07504097701 | T195: 1.169705811 | U195: 0.8075033371 | V195: 0.001956184918 | W195: 0.001956184918 | X195: 4.449398651 | Y195: 0.05939144508 | Z195: 0.05939144508 | AA195: 8.577049157 | AB195: 0.4193249018 | AC195: 0.0474201 | AD195: 0 | AE195: 0.5094718483 | AF195: 5.204449001 | AG195: 0.1543918496 | AH195: 0.096 | AI195: 0.2583698906 | AJ195: 0 | AK195: 0 | AL195: 0 | AM195: 0 | AN195: 0 | AO195: 10.03255011 | AP195: 0.1912389171 | AQ195: 0 | AR195: 0.1988442697 | AS195: 0.1912389171 | AT195: 0 | AU195: 0.08711388 | AV195: 0.0677157235 | AW195: 0.499 | AX195: 0.0249 | AY195: 0.021912 | AZ195: 0.00504 | BA195: 0.046812 | BB195: 2.898381053 | BC195: 83 | BD195: 0.9662580247 | BE195: 29.82928642 | BF195: 12.91849453 | BH195: 96.62580247 | BI195: 1.169705811 | BJ195: 1.053799889 | BK195: 0.287117471 | BL195: 0.0677157235
G196: 187 | H196: 11.61 | I196: BUCK | J196: 1 | K196: 10 | L196: 7.446884869 | M196: 10 | N196: 0.7290073055 | O196: 0 | P196: 2.816862787 | Q196: 10.03300684 | R196: 1.094773237 | S196: 0.07625728048 | T196: 1.171030517 | U196: 0.8131582442 | V196: 0.001983678991 | W196: 0.001983678991 | X196: 4.45939395 | Y196: 0.0596585832 | Z196: 0.0596585832 | AA196: 8.566374343 | AB196: 0.4182817855 | AC196: 0.04754295 | AD196: 0 | AE196: 0.5083515765 | AF196: 5.222878225 | AG196: 0.1554872046 | AH196: 0.096 | AI196: 0.2595588197 | AJ196: 0 | AK196: 0 | AL196: 0 | AM196: 0 | AN196: 0 | AO196: 10.03300684 | AP196: 0.19125633 | AQ196: 0 | AR196: 0.1988630952 | AS196: 0.19125633 | AT196: 0 | AU196: 0.08734068 | AV196: 0.06819614238 | AW196: 0.499 | AX196: 0.0249 | AY196: 0.021912 | AZ196: 0.00504 | BA196: 0.046812 | BB196: 2.900795093 | BC196: 83 | BD196: 0.9662308703 | BE196: 29.78461282 | BF196: 12.97794098 | BH196: 96.62308703 | BI196: 1.171030517 | BJ196: 1.054114171 | BK196: 0.2883812441 | BL196: 0.06819614238
G197: 188 | H197: 11.64 | I197: BUCK | J197: 1 | K197: 10 | L197: 7.427691867 | M197: 10 | N197: 0.7271324475 | O197: 0 | P197: 2.836351201 | Q197: 10.03346437 | R197: 1.094881834 | S197: 0.07747832246 | T197: 1.172360156 | U197: 0.8187840648 | V197: 0.002011222034 | W197: 0.002011222034 | X197: 4.469239446 | Y197: 0.05992230366 | Z197: 0.05992230366 | AA197: 8.555741913 | AB197: 0.4172441022 | AC197: 0.0476658 | AD197: 0 | AE197: 0.5072383437 | AF197: 5.241153276 | AG197: 0.1565772197 | AH197: 0.096 | AI197: 0.2607424864 | AJ197: 0 | AK197: 0 | AL197: 0 | AM197: 0 | AN197: 0 | AO197: 10.03346437 | AP197: 0.191273774 | AQ197: 0 | AR197: 0.1988819544 | AS197: 0.191273774 | AT197: 0 | AU197: 0.08756748 | AV197: 0.06867421916 | AW197: 0.499 | AX197: 0.0249 | AY197: 0.021912 | AZ197: 0.00504 | BA197: 0.046812 | BB197: 2.903210165 | BC197: 83 | BD197: 0.9662037058 | BE197: 29.74029118 | BF197: 13.03712432 | BH197: 96.62037058 | BI197: 1.172360156 | BJ197: 1.054430264 | BK197: 0.2896397548 | BL197: 0.06867421916
G198: 189 | H198: 11.67 | I198: BUCK | J198: 1 | K198: 10 | L198: 7.408597544 | M198: 10 | N198: 0.7252672082 | O198: 0 | P198: 2.855739632 | Q198: 10.03392267 | R198: 1.094990618 | S198: 0.07870400492 | T198: 1.173694623 | U198: 0.8243810227 | V198: 0.002038812212 | W198: 0.002038812212 | X198: 4.478937685 | Y198: 0.06018264836 | Z198: 0.06018264836 | AA198: 8.545151571 | AB198: 0.4162118076 | AC198: 0.04778865 | AD198: 0 | AE198: 0.5061320878 | AF198: 5.259276443 | AG198: 0.1576619356 | AH198: 0.096 | AI198: 0.2619209277 | AJ198: 0 | AK198: 0 | AL198: 0 | AM198: 0 | AN198: 0 | AO198: 10.03392267 | AP198: 0.1912912477 | AQ198: 0 | AR198: 0.1989008459 | AS198: 0.1912912477 | AT198: 0 | AU198: 0.08779428 | AV198: 0.06914997176 | AW198: 0.499 | AX198: 0.0249 | AY198: 0.021912 | AZ198: 0.00504 | BA198: 0.046812 | BB198: 2.905626197 | BC198: 83 | BD198: 0.966176532 | BE198: 29.69631839 | BF198: 13.09604638 | BH198: 96.6176532 | BI198: 1.173694623 | BJ198: 1.054748141 | BK198: 0.2908930401 | BL198: 0.06914997176
G199: 190 | H199: 11.7 | I199: BUCK | J199: 1 | K199: 10 | L199: 7.38960114 | M199: 10 | N199: 0.7234115139 | O199: 0 | P199: 2.875028847 | Q199: 10.03438169 | R199: 1.095099583 | S199: 0.07993423112 | T199: 1.175033814 | U199: 0.8299493395 | V199: 0.002066447718 | W199: 0.002066447718 | X199: 4.488491156 | Y199: 0.06043965858 | Z199: 0.06043965858 | AA199: 8.534603022 | AB199: 0.4151848578 | AC199: 0.0479115 | AD199: 0 | AE199: 0.5050327478 | AF199: 5.277249962 | AG199: 0.1587413928 | AH199: 0.096 | AI199: 0.2630941801 | AJ199: 0 | AK199: 0 | AL199: 0 | AM199: 0 | AN199: 0 | AO199: 10.03438169 | AP199: 0.1913087502 | AQ199: 0 | AR199: 0.1989197687 | AS199: 0.1913087502 | AT199: 0 | AU199: 0.08802108 | AV199: 0.06962341791 | AW199: 0.499 | AX199: 0.0249 | AY199: 0.021912 | AZ199: 0.00504 | BA199: 0.046812 | BB199: 2.908043115 | BC199: 83 | BD199: 0.9661493498 | BE199: 29.65269139 | BF199: 13.15470901 | BH199: 96.61493498 | BI199: 1.175033814 | BJ199: 1.055067777 | BK199: 0.2921411365 | BL199: 0.06962341791
G200: 191 | H200: 11.73 | I200: BUCK | J200: 1 | K200: 10 | L200: 7.370701904 | M200: 10 | N200: 0.7215652914 | O200: 0 | P200: 2.894219606 | Q200: 10.03484142 | R200: 1.095208722 | S200: 0.08116890561 | T200: 1.176377628 | U200: 0.8354892344 | V200: 0.002094126782 | W200: 0.002094126782 | X200: 4.49790229 | Y200: 0.06069337504 | Z200: 0.06069337504 | AA200: 8.524095976 | AB200: 0.4141632096 | AC200: 0.04803435 | AD200: 0 | AE200: 0.5039402629 | AF200: 5.29507602 | AG200: 0.1598156313 | AH200: 0.096 | AI200: 0.2642622799 | AJ200: 0 | AK200: 0 | AL200: 0 | AM200: 0 | AN200: 0 | AO200: 10.03484142 | AP200: 0.1913262803 | AQ200: 0 | AR200: 0.1989387214 | AS200: 0.1913262803 | AT200: 0 | AU200: 0.08824788 | AV200: 0.07009457514 | AW200: 0.499 | AX200: 0.0249 | AY200: 0.021912 | AZ200: 0.00504 | BA200: 0.046812 | BB200: 2.910460849 | BC200: 83 | BD200: 0.96612216 | BE200: 29.60940715 | BF200: 13.213114 | BH200: 96.612216 | BI200: 1.176377628 | BJ200: 1.055389144 | BK200: 0.2933840803 | BL200: 0.07009457514
G201: 192 | H201: =VIN_min+(VIN_max-VIN_min)*(G201/200) -> 11.76 | I201: =IF(H201>VIN_BB_to_buck, "BUCK", IF(H201<VIN_boost_to_BB,"BOOST","BUCK-BST")) -> BUCK | J201: 1 | K201: =Iout -> 10 | L201: =Vout*K201/(H201*Efficiency) -> 7.351899093 | M201: =Iout/(1-O201) -> 10 | N201: =CHOOSE(J201,(Vout+(Rdson2+Rs+Rdcr)*K201)/(H201+(Rs+Rdson2-Rdson1)*K201),1,IF(H201<Vout,D_max_buck_BB,Vout/H201*(1-D_min_boost_exitBB_to_buck))) -> 0.7197284684 | O201: 0 | P201: =MAX(0, CHOOSE(J201, (H201-(Rdson1+Rdcr)*K201-Vout)*N201/(Fsw*Lf), (H201-(Rdson4+Rdcr+Rs)*L201)*O201/(Fsw*Lf), IF(H201<Vout, (H201-(Rdson4+Rdcr+Rs)*L201)*O201/(0.5*Fsw*Lf),(H201-(Rdson1+Rdcr)*K201-Vout)*N201/(0.5*Fsw*Lf)))) -> 2.913312661 | Q201: =CHOOSE(J201, SQRT(K201^2+(P201^2)/12), SQRT(L201^2+(P201^2)/12), SQRT(M201^2+(P201^2)/12)) -> 10.03530182 | R201: 1.095318027 | S201: 0.0824079342 | T201: 1.177725961 | U201: =IF(H201>Vout, P201/SQRT(12), SQRT(O201/(1-O201))*SQRT(K201^2+(P201^2)/12)) -> 0.8410009244 | V201: 0.002121847665 | W201: 0.002121847665 | X201: =IF(H201>Vout, SQRT(N201*(1-N201))*SQRT(K201^2+(P201^2)/12), P201/SQRT(12)) -> 4.507173464 | Y201: 0.06094383789 | Z201: 0.06094383789 | AA201: =CHOOSE(J201, SQRT(N201)*SQRT(K201^2+(P201^2)/12), SQRT(L201^2+(P201^2)/12), SQRT(N201)*SQRT(M201^2+(P201^2)/12)) -> 8.513630144 | AB201: =Rdson1*AA201^2 -> 0.4131468199 | AC201: =CHOOSE(J201, (H201*K201/2)*(Fsw)*(Tr_buck+Tf_buck), 0, (H201*M201/2)*(Fsw/2)*(Tr_buck+Tf_buck)) -> 0.0481572 | AD201: =IF(H201>Vout, IF(K201>P201/2,0,ABS(K201-P201/2)*Vsd_Q1*Deadtime*Fsw),0) -> 0 | AE201: =(AD201+AC201+AB201*(1+RdsonTopTc*Ta-RdsonTopTc*25))/(1-AB201*RdsonTopTc*ThetaJA_Q1) -> 0.5028545735 | AF201: =CHOOSE(J201, SQRT((1-N201))*SQRT(K201^2+(P201^2)/12), 0, SQRT((1-N201))*SQRT(M201^2+(P201^2)/12)) -> 5.312756754 | AG201: =Rdson2*AF201^2 -> 0.1608846907 | AH201: =CHOOSE(J201, IF(K201<P201/2,Deadtime*Fsw*IF(VfdSky_Q2>0,0,Vsd_Q2)*(K201+P201/2),2*Deadtime*Fsw*IF(VfdSky_Q2>0,0,Vsd_Q2)*K201),0, IF(K201<P201/2,Deadtime*Fsw/2*IF(VfdSky_Q2>0,0,Vsd_Q2)*(K201+P201/2),2*Deadtime*Fsw/2*IF(VfdSky_Q2>0,0,Vsd_Q2)*K201)) -> 0.096 | AI201: =(AH201+AG201*(1+RdsonBotTc*Ta-RdsonBotTc*25))/(1-AG201*RdsonBotTc*ThetaJA_Q2) -> 0.2654252629 | AJ201: =CHOOSE(J201, 0, SQRT(O201)*SQRT(L201^2+(P201^2)/12), SQRT(O201)*SQRT(M201^2+(P201^2)/12)) -> 0 | AK201: =Rdson4*AJ201^2 -> 0 | AL201: =CHOOSE(J201, 0, (Vout*L201/2)*(Fsw)*(Tr_boost+Tf_boost), (Vout*Iout/2)*(Fsw/2)*(Tr_boost+Tf_boost)) -> 0 | AM201: =IF(H201>Vout, 0, IF(L201>P201/2,0,ABS(L201-P201/2)*Vsd_Q4*Deadtime*Fsw)) -> 0 | AN201: =(AM201+AL201+AK201*(1+RdsonTopTc*Ta-RdsonTopTc*25))/(1-AK201*RdsonTopTc*ThetaJA_Q4) -> 0 | AO201: =CHOOSE(J201, SQRT(Iout^2+(P201^2)/12), SQRT(1-O201)*SQRT(L201^2+(P201^2)/12), SQRT(1-O201)*SQRT(M201^2+(P201^2)/12)) -> 10.03530182 | AP201: =Rdson3*AO201^2 -> 0.1913438369 | AQ201: =CHOOSE(J201, 0, IF(L201<P201/2,Deadtime*Fsw*IF(VfdSky_Q3>0,0,Vsd_Q3)*(L201+P201/2), 2*Deadtime*Fsw*IF(VfdSky_Q3>0,0,Vsd_Q3)*L201), IF(L201<P201/2,Deadtime*Fsw/2*IF(VfdSky_Q3>0,0,Vsd_Q3)*(L201+P201/2), 2*Deadtime*Fsw/2*IF(VfdSky_Q3>0,0,Vsd_Q3)*L201)) -> 0 | AR201: =(AQ201+AP201*(1+RdsonBotTc*Ta-RdsonBotTc*25))/(1-AP201*RdsonBotTc*ThetaJA_Q3) -> 0.1989577029 | AS201: =CHOOSE(J201, Rdson3*Q201^2, Rdson1*Q201^2, 0) -> 0.1913438369 | AT201: =CHOOSE(J201, 2*Deadtime*Fsw*IF(VfdSky_Q2>0,VfdSky_Q2,0)*K201, 2*Deadtime*Fsw*IF(VfdSky_Q3>0,VfdSky_Q3,0)*L201, 2*Deadtime*Fsw/2*IF(VfdSky_Q2>0,VfdSky_Q2,0)*K201+2*Deadtime*Fsw/2*IF(VfdSky_Q3>0,VfdSky_Q3,0)*L201) -> 0 | AU201: =CHOOSE(J201, IF(QrrSky_Q2>0,QrrSky_Q2,Qrr_Q2)*Fsw*(H201-K201*Rdson1), IF(QrrSky_Q3>0,QrrSky_Q3,Qrr_Q3)*Fsw*Vout, IF(QrrSky_Q2>0,QrrSky_Q2,Qrr_Q2)*Fsw/2*(H201-K201*Rdson1)+IF(QrrSky_Q3>0,QrrSky_Q3,Qrr_Q3)*Fsw/2*Vout) -> 0.08847468 | AV201: =CHOOSE(J201, Rs*AF201^2, Rs*AJ201^2, Rs*(AF201^2+AJ201^2)) -> 0.07056346081 | AW201: =Rshunt_std/1000*Iout^2 -> 0.499 | AX201: =IF(Vout>8, Iq*Vout, Iq*H201) -> 0.0249 | AY201: =CHOOSE(J201, (Qg_Q1+Qg_Q2)*Fsw, (Qg_Q3+Qg_Q4)*Fsw, (Qg_Q1+Qg_Q2+Qg_Q3+Qg_Q4)*Fsw/2)*IF(Vout>8, Vout, H201) -> 0.021912 | AZ201: =(Vin-Vdd)*Fsw*(Qg_Q1+Qg_Q2)+(RdsonDRT+RdsonDRT2)*Fsw*Qg_Q1*Vdd/(RdsonDRT+2*Rgate1+RdsonDRT2)+(RdsonDRB+RdsonDRB2)*Fsw*Qg_Q2*Vdd/(RdsonDRB+2*Rgate2+RdsonDRB2) -> 0.00504 | BA201: 0.046812 | BB201: 2.912879327 | BC201: =Vout*K201 -> 83 | BD201: 0.9660949633 | BE201: =IF(H201>Vout,ThetaJA_Q1*(AE201+AU201),ThetaJA_Q4*(AN201+AU201)) -> 29.56646267 | BF201: =IF(H201>Vout, AI201*ThetaJA_Q2, ThetaJA_Q3*AR201) -> 13.27126315 | BH201: 96.60949633 | BI201: 1.177725961 | BJ201: 1.055712219 | BK201: 0.2946219073 | BL201: 0.07056346081
... 8 more rows

Sheet Efficiency vs Load Calculations (hidden)
A1: BUCK-BOOST CONTROLLER POWER TOOL
H2: =BD19 -> 0.9219535952 | I2: 10% load
H3: =BD59 -> 0.9592250651 | I3: 50% load
H4: =BD109 -> 0.9369763555 | I4: 100% load
A6: Enter the values of your design and MOSFET datasheet specifications below. Note that thermal resistance (θJA) will change when components are placed on the PCB | BV6: 80 | BW6: 100 | BX6: 120 | BY6: 140 | BZ6: 160 | CA6: 180 | CB6: 20 | CC6: 30 | CD6: 40 | CE6: 50
G7: Operating Point Condtions | Q7: Filter Inductor | U7: Cout | X7: Cin | AA7: High-side BUCK "Control" MOSFET Losses | AF7: Low-side BUCK "Sync" MOSFET Losses | AJ7: Low-side BOOST "Control" MOSFET Losses | AO7: High-side BOOST "Sync" MOSFET Losses | AS7: Pass FET | AT7: External Diode | AU7: Diode/FET | AV7: Sense Rs | AW7: Output Rs | AX7: Controller IC Losses | BB7: RESULTS | BH7: Consolidated Buck/Boost Efficiency & Losses
A8: Input Parameters | G8: Step | H8: Vin | I8: Mode | J8: Mode Digit | K8: Iout | L8: Iin | M8: Avg IL | N8: Duty Cycle BUCK Leg | O8: Duty Cycle BOOST Leg | P8: Ripple Current pk-pk | Q8: Irms Lf | R8: DCR Loss | S8: Core Loss | T8: Total Inductor Loss | U8: Irms Cout | V8: Cout ESR Loss | W8: Total Cout Loss | X8: Irms Cin | Y8: Cin ESR Loss | Z8: Total Cin Loss | AA8: Irms | AB8: RDS(on) Loss | AC8: Transition Loss | AD8: Dead Time Loss | AE8: Total Control MOSFET Loss | AF8: Irms | AG8: RDS(on) Loss | AH8: Deadtime Loss | AI8: Total Sync MOSFET Loss | AJ8: Irms | AK8: RDS(on) Loss | AL8: Transition Loss | AM8: Dead Time Loss | AN8: Total Control MOSFET Loss | AO8: Irms | AP8: RDS(on) Loss | AQ8: Deadtime Loss | AR8: Total Sync MOSFET Loss | AS8: Q1/Q3 RDS(on) Loss @ D = 100% | AT8: Deadtime Loss | AU8: Reverse Recovery Loss | AV8: Isense Shunt Loss | AW8: Iout Shunt Loss | AX8: IQ Loss | AY8: Switching Current Loss | AZ8: Switching Current Diss | BA8: Total IC Loss | BB8: Total Loss | BC8: Pout | BD8: EFF, h | BE8: =IF(Vin>Vout, "Buck ''CONTROL'' MOSFET Temp Rise", "Boost ''CONTROL'' MOSFET Temp Rise") -> Boost ''CONTROL'' MOSFET Temp Rise | BF8: =IF(Vin>Vout, "Buck ''SYNC'' MOSFET Temp Rise", "Boost ''SYNC'' MOSFET Temp Rise") -> Boost ''SYNC'' MOSFET Temp Rise | BH8: h | BI8: Inductor Cu & Core Loss | BJ8: Total MOSFET Loss | BK8: =IF(Vin>Vout, "Buck ''Control'' MOSFET Loss", "Boost ''Control'' MOSFET Loss") -> Boost ''Control'' MOSFET Loss | BL8: =IF(Vin>Vout, "Buck ''SYNC'' MOSFET Loss", "Boost ''SYNC'' MOSFET Loss") -> Boost ''SYNC'' MOSFET Loss | BM8: Shunt Loss | BT8: Qg | BV8: θJA=80 | BW8: θJA=100 | BX8: θJA=120 | BY8: θJA=140 | BZ8: θJA=160 | CA8: θJA=180 | CB8: θJA=20 | CC8: θJA=30 | CD8: θJA=40 | CE8: θJA=50
A9: Design | B9: Input Value | C9: Units | D9: Description | G9: 0 | H9: =Vin -> 6 | I9: =IF(H9>VIN_BB_to_buck, "BUCK", IF(H9<VIN_boost_to_BB,"BOOST","BUCK-BST")) -> BOOST | J9: =IF(I9="BOOST",2, IF(I9="BUCK", 1,3)) -> 2 | K9: 0 | L9: =Vout*K9/(Vin*Efficiency) -> 0 | M9: =K9/(1-O9) -> 0 | N9: =CHOOSE(J9,(Vout+(Rdson2+Rs+Rdcr)*K9)/(Vin+(Rs+Rdson2-Rdson1)*K9), 1, IF(Vin<Vout, D_max_buck_BB, Vout/Vin*(1-D_min_boost_exitBB_to_buck))) -> 1 | O9: =CHOOSE(J9,0,(Vout+(Rdson3+Rdcr)*L9-Vin)/(Vout+(Rdson3-Rdson4-Rs)*L9), IF(Vin>Vout,D_min_boost_exitBB_to_buck, (Vout-Vin*D_max_buck_BB)/Vout)) -> 0.2771084337 | P9: =MAX(0, CHOOSE(J9, (Vin-(Rdson1+Rdcr)*K9-Vout)*N9/(Fsw*Lf), (Vin-(Rdson4+Rdcr+Rs)*L9)*O9/(Fsw*Lf), IF(Vin<Vout, (Vin-(Rdson4+Rdcr+Rs)*L9)*O9/(0.5*Fsw*Lf),(Vin-(Rdson1+Rdcr)*K9-Vout)*N9/(0.5*Fsw*Lf)))) -> 2.037562013 | Q9: =CHOOSE(J9, SQRT(K9^2+(P9^2)/12), SQRT(L9^2+(P9^2)/12), SQRT(M9^2+(P9^2)/12)) -> 0.5881934883 | R9: =(Q9^2*Rdcr*(1+Ltc*Ta-Ltc*25))/(1-Q9^2*Rdcr*Ltc*ThetaCa) -> 0.003460673632 | S9: =ABS(7.759*10^-3*Fsw^0.9458*(0.00787*P9)^2.304) -> 0.0361586762 | T9: =R9+S9 -> 0.03961934983 | U9: =IF(Vin>Vout, P9/SQRT(12), SQRT(O9/(1-O9))*SQRT(K9^2+(P9^2)/12)) -> 0.3641736383 | V9: =RCoutEsr*U9^2 -> 0.0003978673166 | W9: =V9 -> 0.0003978673166 | X9: =IF(Vin>Vout, SQRT(N9*(1-N9))*SQRT(K9^2+(P9^2)/12), P9/SQRT(12)) -> 0.5881934883 | Y9: =RCinEsr*X9^2 -> 0.001037914739 | Z9: =Y9 -> 0.001037914739 | AA9: =CHOOSE(J9, SQRT(N9)*SQRT(K9^2+(P9^2)/12), SQRT(L9^2+(P9^2)/12), SQRT(N9)*SQRT(M9^2+(P9^2)/12)) -> 0.5881934883 | AB9: =Rdson1*AA9^2 -> 0.001972038004 | AC9: =CHOOSE(J9, (Vin*K9/2)*(Fsw)*(Tr_buck+Tf_buck), 0, (Vin*K9/2)*(Fsw/2)*(Tr_buck+Tf_buck)) -> 0 | AD9: =CHOOSE(J9, IF(K9>P9/2,0,ABS(K9-P9/2)*Vsd_Q1*Deadtime*Fsw),0, IF(K9>P9/2,0,ABS(K9-P9/2)*Vsd_Q1*Deadtime*Fsw/2)) -> 0 | AE9: =(AD9+AC9+AB9*(1+RdsonTopTc*Ta-RdsonTopTc*25))/(1-AB9*RdsonTopTc*ThetaJA_Q1) -> 0.001972816098 | AF9: =CHOOSE(J9, SQRT((1-N9))*SQRT(K9^2+(P9^2)/12), 0, SQRT((1-N9))*SQRT(M9^2+(P9^2)/12)) -> 0 | AG9: =Rdson2*AF9^2 -> 0 | AH9: =CHOOSE(J9, IF(K9<P9/2,Deadtime*Fsw*IF(VfdSky_Q2>0,0,Vsd_Q2)*(K9+P9/2),2*Deadtime*Fsw*IF(VfdSky_Q2>0,0,Vsd_Q2)*K9),0, IF(K9<P9/2,Deadtime*Fsw/2*IF(VfdSky_Q2>0,0,Vsd_Q2)*(K9+P9/2),2*Deadtime*Fsw/2*IF(VfdSky_Q2>0,0,Vsd_Q2)*K9)) -> 0 | AI9: =(AH9+AG9*(1+RdsonBotTc*Ta-RdsonBotTc*25))/(1-AG9*RdsonBotTc*ThetaJA_Q2) -> 0 | AJ9: =CHOOSE(J9, 0, SQRT(O9)*SQRT(L9^2+(P9^2)/12), SQRT(O9)*SQRT(M9^2+(P9^2)/12)) -> 0.3096314625 | AK9: =Rdson4*AJ9^2 -> 0.0001821561209 | AL9: =CHOOSE(J9, 0, (Vout*L9/2)*(Fsw)*(Tr_boost+Tf_boost), (Vout*Iout/2)*(Fsw/2)*(Tr_boost+Tf_boost)) -> 0 | AM9: =IF(H9>Vout, 0, IF(L9>P9/2,0,ABS(L9-P9/2)*Vsd_Q4*Deadtime*Fsw)) -> 0.004890148831 | AN9: =(AM9+AL9+AK9*(1+RdsonTopTc*Ta-RdsonTopTc*25))/(1-AK9*RdsonTopTc*ThetaJA_Q4) -> 0.005072489748 | AO9: =CHOOSE(J9, SQRT(K9^2+(P9^2)/12), SQRT(1-O9)*SQRT(L9^2+(P9^2)/12), SQRT(1-O9)*SQRT(M9^2+(P9^2)/12)) -> 0.5000999271 | AP9: =Rdson3*AO9^2 -> 0.0004751898805 | AQ9: =CHOOSE(J9, 0, IF(L9<P9/2,Deadtime*Fsw*IF(VfdSky_Q3>0,0,Vsd_Q3)*(L9+P9/2), 2*Deadtime*Fsw*IF(VfdSky_Q3>0,0,Vsd_Q3)*L9), IF(L9<P9/2,Deadtime*Fsw/2*IF(VfdSky_Q3>0,0,Vsd_Q3)*(L9+P9/2), 2*Deadtime*Fsw/2*IF(VfdSky_Q3>0,0,Vsd_Q3)*L9)) -> 0.004890148831 | AR9: =(AQ9+AP9*(1+RdsonBotTc*Ta-RdsonBotTc*25))/(1-AP9*RdsonBotTc*ThetaJA_Q3) -> 0.005365848671 | AS9: =CHOOSE(J9, Rdson3*Q9^2, Rdson1*Q9^2, 0) -> 0.001972038004 | AT9: =CHOOSE(J9, 2*Deadtime*Fsw*IF(VfdSky_Q2>0,VfdSky_Q2,0)*K9, 2*Deadtime*Fsw*IF(VfdSky_Q3>0,VfdSky_Q3,0)*L9, 2*Deadtime*Fsw/2*IF(VfdSky_Q2>0,VfdSky_Q2,0)*K9+2*Deadtime*Fsw/2*IF(VfdSky_Q3>0,VfdSky_Q3,0)*L9) -> 0 | AU9: =CHOOSE(J9, IF(QrrSky_Q2>0,QrrSky_Q2,Qrr_Q2*K9/Iout)*Fsw*(Vin-K9*Rdson1), IF(QrrSky_Q3>0,QrrSky_Q3,Qrr_Q3)*Fsw*Vout, IF(QrrSky_Q2>0,QrrSky_Q2,Qrr_Q2*K9/Iout)*Fsw/2*(Vin-K9*Rdson1)+IF(QrrSky_Q3>0,QrrSky_Q3,Qrr_Q3)*Fsw/2*Vout) -> 0.032868 | AV9: =CHOOSE(J9, Rs*AF9^2, Rs*AJ9^2, Rs*(AF9^2+AJ9^2)) -> 0.0002396791064 | AW9: =Rshunt_std/1000*Iout^2 -> 0.499 | AX9: =IF(Vout>8, Iq*Vout, Iq*Vin) -> 0.0249 | AY9: =CHOOSE(J9, (Qg_Q1+Qg_Q2)*Fsw, (Qg_Q3+Qg_Q4)*Fsw, (Qg_Q1+Qg_Q2+Qg_Q3+Qg_Q4)*Fsw/2)*IF(Vout>8, Vout, Vin) -> 0.043824 | AZ9: =(Vin-Vdd)*Fsw*(Qg_Q1+Qg_Q2)+(RdsonDRT+RdsonDRT2)*Fsw*Qg_Q1*Vdd/(RdsonDRT+2*Rgate1+RdsonDRT2)+(RdsonDRB+RdsonDRB2)*Fsw*Qg_Q2*Vdd/(RdsonDRB+2*Rgate2+RdsonDRB2) -> 0.00504 | BA9: =SUM(AX9:AY9) -> 0.068724 | BB9: =SUM(T9,W9,Z9,AE9,AI9,AN9,AR9, AT9,AU9,BA9,AV9,AW9) -> 0.6542979655 | BC9: =Vout*K9 -> 0 | BD9: =BC9/(BC9+BB9) -> 0 | BE9: =IF(Vin>Vout,ThetaJA_Q1*BK9,ThetaJA_Q4*BK9) -> 1.338268487 | BF9: =IF(Vin>Vout, ThetaJA_Q2*BL9, ThetaJA_Q3*BL9) -> 0.8106144335 | BH9: =BD9*100 -> 0 | BI9: =T9 -> 0.03961934983 | BJ9: =AE9+AI9+AN9+AR9+AU9 -> 0.04527915452 | BK9: =IF(Vin>Vout, AE9+AU9*0.66, AN9+AU9*0.66) -> 0.02676536975 | BL9: =IF(Vin>Vout, AI9+AU9*0.33, AR9+AU9*0.33) -> 0.01621228867 | BM9: =AV9 -> 0.0002396791064 | BQ9: 250kHz / 5-1.2V /25A | BR9: 70 | BS9: 70 | BT9: 70 | BU9: =250000*(5-Vdd)*BT9/1000000000+((250000*BT9/1000000000*Vdd)*2.5/(2*4)) -> -0.002734375 | BV9: =BV$6*$BU9 -> -0.21875 | BW9: -0.2734375 | BX9: -0.328125 | BY9: -0.3828125 | BZ9: -0.4375 | CA9: -0.4921875 | CB9: -0.0546875 | CC9: -0.08203125 | CD9: -0.109375 | CE9: -0.13671875
G10: 1 | H10: 6 | I10: BOOST | J10: =IF(I10="BOOST",2, IF(I10="BUCK", 1,3)) -> 2 | K10: =Iout*G10/100 -> 0.1 | L10: 0.1440972222 | M10: =K10/(1-O10) -> 0.138375184 | N10: 1 | O10: 0.2773270677 | P10: 2.038464403 | Q10: 0.6058399978 | R10: 0.003671499105 | S10: =7.759*10^-3*Fsw^0.9458*(0.00787*P10)^2.304 -> 0.03619558278 | T10: =R10+S10 -> 0.03986708189 | U10: 0.369759887 | V10: 0.0004101671221 | W10: =V10 -> 0.0004101671221 | X10: 0.5884539858 | Y10: 0.00103883428 | Z10: =Y10 -> 0.00103883428 | AA10: 0.6058399978 | AB10: 0.002092139987 | AC10: 0 | AD10: 0 | AE10: 0.002093015763 | AF10: 0 | AG10: 0 | AH10: 0 | AI10: 0 | AJ10: 0.3190465642 | AK10: 0.0001934023492 | AL10: 0.0004575140325 | AM10: 0.0042006479 | AN10: 0.00485175195 | AO10: =CHOOSE(J10, SQRT(K10^2+(P10^2)/12), SQRT(1-O10)*SQRT(L10^2+(P10^2)/12), SQRT(1-O10)*SQRT(M10^2+(P10^2)/12)) -> 0.5150256234 | AP10: 0.0005039776463 | AQ10: 0.005583981233 | AR10: 0.006088572581 | AS10: 0.002092139987 | AT10: 0 | AU10: 0.032868 | AV10: 0.0002544767753 | AW10: 0.499 | AX10: 0.0249 | AY10: 0.043824 | AZ10: 0.00504 | BA10: =SUM(AX10:AY10) -> 0.068724 | BB10: =SUM(T10,W10,Z10,AE10,AI10,AN10,AR10, AT10,AU10,BA10,AV10,AW10) -> 0.6551959004 | BC10: 0.83 | BD10: =BC10/(BC10+BB10) -> 0.5588488359 | BE10: 1.327231597 | BF10: 0.846750629 | BH10: =BD10*100 -> 55.88488359 | BI10: =T10 -> 0.03986708189 | BJ10: =AE10+AI10+AN10+AR10+AU10 -> 0.04590134029 | BK10: 0.02654463195 | BL10: 0.01693501258 | BM10: =AV10 -> 0.0002544767753
A11: Vin | B11: =Vin -> 6 | C11: V | D11: Vin | G11: 2 | H11: 6 | I11: BOOST | J11: 2 | K11: 0.2 | L11: 0.2881944444 | M11: =K11/(1-O11) -> 0.2768341274 | N11: 1 | O11: 0.2775457207 | P11: 2.03936582 | Q11: 0.655469641 | R11: 0.004297881737 | S11: 0.03623247087 | T11: 0.04053035261 | U11: 0.3853756349 | V11: 0.0004455431399 | W11: 0.0004455431399 | X11: 0.5887142027 | Y11: 0.001039753237 | Z11: 0.001039753237 | AA11: 0.655469641 | AB11: 0.002448950566 | AC11: 0 | AD11: 0 | AE11: 0.002450150626 | AF11: 0 | AG11: 0 | AH11: 0 | AI11: 0 | AJ11: 0.3453185028 | AK11: 0.00022656525 | AL11: 0.0009150280649 | AM11: 0.003511144635 | AN11: 0.00465294879 | AO11: 0.557131566 | AP11: 0.0005897516055 | AQ11: 0.006277811302 | AR11: 0.006868373034 | AS11: 0.002448950566 | AT11: 0 | AU11: 0.032868 | AV11: 0.000298112171 | AW11: 0.499 | AX11: 0.0249 | AY11: 0.043824 | AZ11: 0.00504 | BA11: =SUM(AX11:AY11) -> 0.068724 | BB11: =SUM(T11,W11,Z11,AE11,AI11,AN11,AR11, AT11,AU11,BA11,AV11,AW11) -> 0.6568772336 | BC11: 1.66 | BD11: 0.71648164 | BE11: 1.317291439 | BF11: 0.8857406517 | BH11: 71.648164 | BI11: 0.04053035261 | BJ11: 0.04683947245 | BK11: 0.02634582879 | BL11: 0.01771481303 | BM11: 0.000298112171 | BQ11: 250kHz / 12-5V / 30A | BR11: 90 | BS11: 90 | BT11: 90 | BU11: =250000*(12-Vdd)*BT11/1000000000+((250000*BT9/1000000000*Vdd)*2.5/(2*4)) -> 0.142265625 | BV11: 11.38125 | BW11: 14.2265625 | BX11: 17.071875 | BY11: 19.9171875 | BZ11: 22.7625 | CA11: 25.6078125 | CB11: 2.8453125 | CC11: 4.26796875 | CD11: 5.690625 | CE11: 7.11328125
A12: Vout | B12: =Vout -> 8.3 | C12: V | D12: Vout | G12: 3 | H12: 6 | I12: BOOST | J12: 2 | K12: 0.3 | L12: 0.4322916667 | M12: 0.4153769171 | N12: 1 | O12: 0.2777643926 | P12: 2.040266265 | Q12: 0.730593335 | R12: 0.00533994644 | S12: 0.03626934039 | T12: 0.04160928683 | U12: 0.4099068315 | V12: 0.0005040708316 | W12: 0.0005040708316 | X12: 0.5889741387 | Y12: 0.001040671608 | Z12: 0.001040671608 | AA12: 0.730593335 | AB12: 0.003042469741 | AC12: 0 | AD12: 0 | AE12: 0.003044322192 | AF12: 0 | AG12: 0 | AH12: 0 | AI12: 0 | AJ12: 0.3850472196 | AK12: 0.0002816965866 | AL12: 0.001372542097 | AM12: 0.002821639037 | AN12: 0.004476129903 | AO12: 0.6208906988 | AP12: 0.0007324599937 | AQ12: 0.006971639037 | AR12: 0.007705227785 | AS12: 0.003042469741 | AT12: 0 | AU12: 0.032868 | AV12: 0.0003706534034 | AW12: 0.499 | AX12: 0.0249 | AY12: 0.043824 | AZ12: 0.00504 | BA12: 0.068724 | BB12: 0.6593423626 | BC12: 2.49 | BD12: 0.7906412556 | BE12: 1.308450495 | BF12: 0.9275833892 | BH12: 79.06412556 | BI12: 0.04160928683 | BJ12: 0.04809367988 | BK12: 0.0261690099 | BL12: 0.01855166778 | BM12: 0.0003706534034 | BQ12: 250kHz / 18-1.2V / 20A | BR12: 60 | BS12: 60 | BT12: 60 | BU12: =250000*(18-Vdd)*BT12/1000000000+((250000*BT9/1000000000*Vdd)*2.5/(2*4)) -> 0.198515625 | BV12: 15.88125 | BW12: 19.8515625 | BX12: 23.821875 | BY12: 27.7921875 | BZ12: 31.7625 | CA12: 35.7328125 | CB12: 3.9703125 | CC12: 5.95546875 | CD12: 7.940625 | CE12: 9.92578125
A13: Fsw | B13: =Fsw/1000 -> 120 | C13: kHz | D13: Switching Frequency | G13: 4 | H13: 6 | I13: BOOST | J13: 2 | K13: 0.4 | L13: 0.5763888889 | M13: 0.5540036402 | N13: 1 | O13: 0.2779830836 | P13: 2.041165738 | Q13: 0.8242697467 | R13: 0.00679790106 | S13: 0.03630619127 | T13: 0.04310409233 | U13: 0.4418995977 | V13: 0.0005858257632 | W13: 0.0005858257632 | X13: 0.589233794 | Y13: 0.001041589392 | Z13: 0.001041589392 | AA13: 0.8242697467 | AB13: 0.003872697507 | AC13: 0 | AD13: 0 | AE13: 0.003875699389 | AF13: 0 | AG13: 0 | AH13: 0 | AI13: 0 | AJ13: 0.4345888145 | AK13: 0.0003588481316 | AL13: 0.00183005613 | AM13: 0.002132131104 | AN13: 0.004321345506 | AO13: 0.7003950154 | AP13: 0.0009320510374 | AQ13: 0.007665464437 | AR13: 0.008599118438 | AS13: 0.003872697507 | AT13: 0 | AU13: 0.032868 | AV13: 0.0004721685942 | AW13: 0.499 | AX13: 0.0249 | AY13: 0.043824 | AZ13: 0.00504 | BA13: 0.068724 | BB13: 0.6625918394 | BC13: 3.32 | BD13: 0.8336279824 | BE13: 1.300711275 | BF13: 0.9722779219 | BH13: 83.36279824 | BI13: 0.04310409233 | BJ13: 0.04966416333 | BK13: 0.02601422551 | BL13: 0.01944555844 | BM13: 0.0004721685942 | BQ13: 500kHz / 5-1.2V / 15A | BR13: 30 | BS13: 30 | BT13: 30 | BU13: =500000*(5-Vdd)*BT13/1000000000+((500000*BT9/1000000000*Vdd)*2.5/(2*4)) -> 0.04453125 | BV13: 3.5625 | BW13: 4.453125 | BX13: 5.34375 | BY13: 6.234375 | BZ13: 7.125 | CA13: 8.015625 | CB13: 0.890625 | CC13: 1.3359375 | CD13: 1.78125 | CE13: 2.2265625
A14: Iout | B14: =Iout -> 10 | C14: A | D14: Max Output Current | G14: 5 | H14: 6 | I14: BOOST | J14: 2 | K14: 0.5 | L14: 0.7204861111 | M14: 0.692714384 | N14: 1 | O14: 0.2782017935 | P14: 2.042064237 | Q14: 0.930914836 | R14: 0.008672036486 | S14: 0.03634302344 | T14: 0.04501505993 | U14: 0.4798901282 | V14: 0.0006908836055 | W14: 0.0006908836055 | X14: 0.5894931685 | Y14: 0.001042506587 | Z14: 0.001042506587 | AA14: 0.930914836 | AB14: 0.004939633862 | AC14: 0 | AD14: 0 | AE14: 0.004944518685 | AF14: 0 | AG14: 0 | AH14: 0 | AI14: 0 | AJ14: 0.4910095221 | AK14: 0.0004580716666 | AL14: 0.002287570162 | AM14: 0.001442620835 | AN14: 0.004188646404 | AO14: 0.7908932173 | AP14: 0.001188472954 | AQ14: 0.008359287502 | AR14: 0.009550030447 | AS14: 0.004939633862 | AT14: 0 | AU14: 0.032868 | AV14: 0.0006027258771 | AW14: 0.499 | AX14: 0.0249 | AY14: 0.043824 | AZ14: 0.00504 | BA14: 0.068724 | BB14: 0.6666263715 | BC14: 4.15 | BD14: 0.8615989034 | BE14: 1.29407632 | BF14: 1.019823522 | BH14: 86.15989034 | BI14: 0.04501505993 | BJ14: 0.05155119554 | BK14: 0.0258815264 | BL14: 0.02039647045 | BM14: 0.0006027258771 | BQ14: 500kHz / 12-5V / 15A | BR14: 45 | BS14: 45 | BT14: 45 | BU14: =500000*(12-Vdd)*BT14/1000000000+((500000*BT9/1000000000*Vdd)*2.5/(2*4)) -> 0.18328125 | BV14: 14.6625 | BW14: 18.328125 | BX14: 21.99375 | BY14: 25.659375 | BZ14: 29.325 | CA14: 32.990625 | CB14: 3.665625 | CC14: 5.4984375 | CD14: 7.33125 | CE14: 9.1640625
A15: Ta | B15: =Ta -> 25 | C15: °C | D15: Ambient Temperature | G15: 6 | H15: 6 | I15: BOOST | J15: 2 | K15: 0.6 | L15: 0.8645833333 | M15: 0.8315092358 | N15: 1 | O15: 0.2784205224 | P15: 2.042961763 | Q15: 1.046571579 | R15: 0.01096272679 | S15: 0.03637983683 | T15: 0.04734256363 | U15: 0.5225961264 | V15: 0.0008193201341 | W15: 0.0008193201341 | X15: 0.589752262 | Y15: 0.001043423192 | Z15: 0.001043423192 | AA15: 1.046571579 | AB15: 0.006243278804 | AC15: 0 | AD15: 0 | AE15: 0.006251084256 | AF15: 0 | AG15: 0 | AH15: 0 | AI15: 0 | AJ15: 0.5522294441 | AK15: 0.000579418982 | AL15: 0.002745084195 | AM15: 0.0007531082323 | AN15: 0.004078083993 | AO15: 0.8890189604 | AP15: 0.001501673953 | AQ15: 0.009053108232 | AR15: 0.01055795311 | AS15: 0.006243278804 | AT15: 0 | AU15: 0.032868 | AV15: 0.0007623933974 | AW15: 0.499 | AX15: 0.0249 | AY15: 0.043824 | AZ15: 0.00504 | BA15: 0.068724 | BB15: 0.6714468217 | BC15: 4.98 | BD15: 0.8811902787 | BE15: 1.2885482 | BF15: 1.070219655 | BH15: 88.11902787 | BI15: 0.04734256363 | BJ15: 0.05375512135 | BK15: 0.02577096399 | BL15: 0.02140439311 | BM15: 0.0007623933974 | BQ15: 1Mhz / 5-1.2V / 10A | BR15: 20 | BS15: 20 | BT15: 20 | BU15: =1000000*(5-Vdd)*BT15/1000000000+((1000000*BT9/1000000000*Vdd)*2.5/(2*4)) -> 0.1140625 | BV15: 9.125 | BW15: 11.40625 | BX15: 13.6875 | BY15: 15.96875 | BZ15: 18.25 | CA15: 20.53125 | CB15: 2.28125 | CC15: 3.421875 | CD15: 4.5625 | CE15: 5.703125
A16: Vcc | B16: =Vdd -> 7.5 | C16: V | D16: Subregulated VCC Voltage | G16: 7 | H16: 6 | I16: BOOST | J16: 2 | K16: 0.7 | L16: 1.008680556 | M16: 0.9703882831 | N16: 1 | O16: 0.2786392703 | P16: 2.043858317 | Q16: 1.168567299 | R16: 0.01367042943 | S16: 0.03641663137 | T16: 0.05008706081 | U16: 0.5689789773 | V16: 0.0009712112297 | W16: 0.0009712112297 | X16: 0.5900110747 | Y16: 0.001044339205 | Z16: 0.001044339205 | AA16: 1.168567299 | AB16: 0.007783632329 | AC16: 0 | AD16: 0 | AE16: 0.007795768208 | AF16: 0 | AG16: 0 | AH16: 0 | AI16: 0 | AJ16: 0.6168433553 | AK16: 0.0007229418775 | AL16: 0.003202598227 | AM16: 6.359329366e-05 | AN16: 0.003989710264 | AO16: 0.992498769 | AP16: 0.001871602232 | AQ16: 0.009746926627 | AR16: 0.01162287954 | AS16: 0.007783632329 | AT16: 0 | AU16: 0.032868 | AV16: 0.0009512393125 | AW16: 0.499 | AX16: 0.0249 | AY16: 0.043824 | AZ16: 0.00504 | BA16: 0.068724 | BB16: 0.6770542086 | BC16: 5.81 | BD16: 0.8956299444 | BE16: 1.284129513 | BF16: 1.123465977 | BH16: 89.56299444 | BI16: 0.05008706081 | BJ16: 0.05627635801 | BK16: 0.02568259026 | BL16: 0.02246931954 | BM16: 0.0009512393125 | BQ16: 1Mhz / 12-1.2V/ 10A | BR16: 25 | BS16: 25 | BT16: 25 | BU16: =1000000*(12-Vdd)*BT16/1000000000+((1000000*BT9/1000000000*Vdd)*2.5/(2*4)) -> 0.2765625 | BV16: 22.125 | BW16: 27.65625 | BX16: 33.1875 | BY16: 38.71875 | BZ16: 44.25 | CA16: 49.78125 | CB16: 5.53125 | CC16: 8.296875 | CD16: 11.0625 | CE16: 13.828125
A17: Components | B17: Input Value | C17: Units | D17: Description | G17: 8 | H17: 6 | I17: BOOST | J17: 2 | K17: 0.8 | L17: 1.152777778 | M17: 1.109351614 | N17: 1 | O17: 0.2788580372 | P17: 2.044753897 | Q17: 1.295111892 | R17: 0.01679568545 | S17: 0.03645340699 | T17: 0.05324909245 | U17: 0.6182321243 | V17: 0.001146632878 | W17: 0.001146632878 | X17: 0.5902696064 | Y17: 0.001045254625 | Z17: 0.001045254625 | AA17: 1.295111892 | AB17: 0.009560694435 | AC17: 0 | AD17: 0 | AE17: 0.009579010834 | AF17: 0 | AG17: 0 | AH17: 0 | AI17: 0 | AJ17: 0.6839098746 | AK17: 0.0008886921616 | AL17: 0.00366011226 | AM17: 0 | AN17: 0.004549613062 | AO17: 1.099810027 | AP17: 0.002298205984 | AQ17: 0.01106666667 | AR17: 0.01337101852 | AS17: 0.009560694435 | AT17: 0 | AU17: 0.032868 | AV17: 0.001169331792 | AW17: 0.499 | AX17: 0.0249 | AY17: 0.043824 | AZ17: 0.00504 | BA17: 0.068724 | BB17: 0.6847019542 | BC17: 6.64 | BD17: 0.906521527 | BE17: 1.312124653 | BF17: 1.210872926 | BH17: 90.6521527 | BI17: 0.05324909245 | BJ17: 0.06036764242 | BK17: 0.02624249306 | BL17: 0.02421745852 | BM17: 0.001169331792 | BQ17: 500kHz / 18-1.2V / 20A | BR17: 50 | BS17: 50 | BT17: 50 | BU17: =500000*(18-Vdd)*BT17/1000000000+((500000*BT15/1000000000*Vdd)*2.5/(2*4)) -> 0.2859375 | BV17: 22.875 | BW17: 28.59375 | BX17: 34.3125 | BY17: 40.03125 | BZ17: 45.75 | CA17: 51.46875 | CB17: 5.71875 | CC17: 8.578125 | CD17: 11.4375 | CE17: 14.296875
A18: L | B18: =Lf*1000000 -> 6.8 | C18: uH | D18: Filter Inductance | G18: 9 | H18: 6 | I18: BOOST | J18: 2 | K18: 0.9 | L18: 1.296875 | M18: 1.248399315 | N18: 1 | O18: 0.2790768231 | P18: 2.045648504 | Q18: 1.424994005 | R18: 0.02033911978 | S18: 0.03649016362 | T18: 0.05682928339 | U18: 0.6697415351 | V18: 0.001345661172 | W18: 0.001345661172 | X18: 0.5905278571 | Y18: 0.00104616945 | Z18: 0.00104616945 | AA18: 1.424994005 | AB18: 0.01157446512 | AC18: 0 | AD18: 0 | AE18: 0.01160132094 | AF18: 0 | AG18: 0 | AH18: 0 | AI18: 0 | AJ18: 0.7527918744 | AK18: 0.001076721652 | AL18: 0.004117626292 | AM18: 0 | AN18: 0.005195466758 | AO18: 1.209922439 | AP18: 0.002781433388 | AQ18: 0.01245 | AR18: 0.01523991115 | AS18: 0.01157446512 | AT18: 0 | AU18: 0.032868 | AV18: 0.001416739015 | AW18: 0.499 | AX18: 0.0249 | AY18: 0.043824 | AZ18: 0.00504 | BA18: 0.068724 | BB18: 0.6932665519 | BC18: 7.47 | BD18: 0.9150748604 | BE18: 1.344417338 | BF18: 1.304317557 | BH18: 91.50748604 | BI18: 0.05682928339 | BJ18: 0.06490469884 | BK18: 0.02688834676 | BL18: 0.02608635115 | BM18: 0.001416739015 | BQ18: θJA=120°C/W - 160°C/W
A19: Rdcr | B19: =Rdcr*1000 -> 10 | C19: mW | D19: Inductor DCR at 25°C | G19: 10 | H19: 6 | I19: BOOST | J19: 2 | K19: 1 | L19: 1.440972222 | M19: 1.387531475 | N19: 1 | O19: 0.279295628 | P19: 2.046542137 | Q19: 1.557378836 | R19: 0.02430144152 | S19: 0.03652690118 | T19: 0.06082834269 | U19: 0.7230427157 | V19: 0.001568372306 | W19: 0.001568372306 | X19: 0.5907858269 | Y19: 0.00104708368 | Z19: 0.00104708368 | AA19: 1.557378836 | AB19: 0.01382494438 | AC19: 0 | AD19: 0 | AE19: 0.01386327618 | AF19: 0 | AG19: 0 | AH19: 0 | AI19: 0 | AJ19: 0.8230502236 | AK19: 0.001287082174 | AL19: 0.004575140325 | AM19: 0 | AN19: 0.00586373192 | AO19: 1.322126003 | AP19: 0.003321232619 | AQ19: 0.01383333333 | AR19: 0.01716596839 | AS19: 0.01382494438 | AT19: 0 | AU19: 0.032868 | AV19: 0.001693529177 | AW19: 0.499 | AX19: 0.0249 | AY19: 0.043824 | AZ19: 0.00504 | BA19: 0.068724 | BB19: 0.7026223043 | BC19: 8.3 | BD19: 0.9219535952 | BE19: 1.377830596 | BF19: 1.400620419 | BH19: 92.19535952 | BI19: 0.06082834269 | BJ19: 0.06976097649 | BK19: 0.02755661192 | BL19: 0.02801240839 | BM19: 0.001693529177 | BQ19: θJA=30°C/W - 50°C/W
A20: LTc | B20: =Ltc*1000000 -> 4000 | C20: ppm | D20: Inductor Series Resistance Temp Co | G20: 11 | H20: 6 | I20: BOOST | J20: 2 | K20: 1.1 | L20: 1.585069444 | M20: 1.526748181 | N20: 1 | O20: 0.2795144519 | P20: 2.047434797 | Q20: 1.691678924 | R20: 0.02868344432 | S20: 0.0365636196 | T20: 0.06524706392 | U20: 0.7777837286 | V20: 0.001814842585 | W20: 0.001814842585 | X20: 0.5910435155 | Y20: 0.001047997312 | Z20: 0.001047997312 | AA20: 1.691678924 | AB20: 0.01631213221 | AC20: 0 | AD20: 0 | AE20: 0.01636552353 | AF20: 0 | AG20: 0 | AH20: 0 | AI20: 0 | AJ20: 0.8943758673 | AK20: 0.001519825565 | AL20: 0.005032654357 | AM20: 0 | AN20: 0.006554472253 | AO20: 1.435921094 | AP20: 0.003917551839 | AQ20: 0.01521666667 | AR20: 0.01914922212 | AS20: 0.01631213221 | AT20: 0 | AU20: 0.032868 | AV20: 0.00199977048 | AW20: 0.499 | AX20: 0.0249 | AY20: 0.043824 | AZ20: 0.00504 | BA20: 0.068724 | BB20: 0.7127708922 | BC20: 9.13 | BD20: 0.9275843256 | BE20: 1.412367613 | BF20: 1.499783106 | BH20: 92.75843256 | BI20: 0.06524706392 | BJ20: 0.0749372179 | BK20: 0.02824735225 | BL20: 0.02999566212 | BM20: 0.00199977048
A21: ThetaCa | B21: =ThetaCa -> 20 | C21: °C/W | D21: Core to Ambient Thermal Resistance | G21: 12 | H21: 6 | I21: BOOST | J21: 2 | K21: 1.2 | L21: 1.729166667 | M21: 1.666049522 | N21: 1 | O21: 0.2797332948 | P21: 2.048326483 | Q21: 1.827472063 | R21: 0.03348600677 | S21: 0.03660031882 | T21: 0.07008632559 | U21: 0.8336962711 | V21: 0.002085148417 | W21: 0.002085148417 | X21: 0.5913009231 | Y21: 0.001048910345 | Z21: 0.001048910345 | AA21: 1.827472063 | AB21: 0.01903602861 | AC21: 0 | AD21: 0 | AE21: 0.01910877967 | AF21: 0 | AG21: 0 | AH21: 0 | AI21: 0 | AJ21: 0.9665466657 | AK21: 0.001775003668 | AL21: 0.005490168389 | AM21: 0 | AN21: 0.007267752115 | AO21: 1.550948641 | AP21: 0.004570339203 | AQ21: 0.0166 | AR21: 0.02118970803 | AS21: 0.01903602861 | AT21: 0 | AU21: 0.032868 | AV21: 0.002335531142 | AW21: 0.499 | AX21: 0.0249 | AY21: 0.043824 | AZ21: 0.00504 | BA21: 0.068724 | BB21: 0.7237141553 | BC21: 9.96 | BD21: 0.9322600601 | BE21: 1.448031606 | BF21: 1.601807402 | BH21: 93.22600601 | BI21: 0.07008632559 | BJ21: 0.08043423982 | BK21: 0.02896063211 | BL21: 0.03203614803 | BM21: 0.002335531142
A22: Cin | B22: =Cin*1000000 -> 1120 | C22: μF | D22: Input Capacitance | G22: 13 | H22: 6 | I22: BOOST | J22: 2 | K22: 1.3 | L22: 1.873263889 | M22: 1.805435586 | N22: 1 | O22: 0.2799521567 | P22: 2.049217195 | Q22: 1.964448656 | R22: 0.03871009284 | S22: 0.03663699876 | T22: 0.07534709161 | U22: 0.8905740317 | V22: 0.002379366318 | W22: 0.002379366318 | X22: 0.5915580495 | Y22: 0.001049822778 | Z22: 0.001049822778 | AA22: 1.964448656 | AB22: 0.02199663358 | AC22: 0 | AD22: 0 | AE22: 0.02209383157 | AF22: 0 | AG22: 0 | AH22: 0 | AI22: 0 | AJ22: 1.03939971 | AK22: 0.002052668338 | AL22: 0.005947682422 | AM22: 0 | AN22: 0.008003636522 | AO22: 1.66694534 | AP22: 0.005279542857 | AQ22: 0.01798333333 | AR22: 0.02328746562 | AS22: 0.02199663358 | AT22: 0 | AU22: 0.032868 | AV22: 0.002700879392 | AW22: 0.499 | AX22: 0.0249 | AY22: 0.043824 | AZ22: 0.00504 | BA22: 0.068724 | BB22: 0.7354540938 | BC22: 10.79 | BD22: 0.93618871 | BE22: 1.484825826 | BF22: 1.706695281 | BH22: 93.618871 | BI22: 0.07534709161 | BJ22: 0.08625293371 | BK22: 0.02969651652 | BL22: 0.03413390562 | BM22: 0.002700879392
A23: RCinEsr | B23: =RCinEsr*1000 -> 3 | C23: mW | D23: Input Capacitor ESR | G23: 14 | H23: 6 | I23: BOOST | J23: 2 | K23: 1.4 | L23: 2.017361111 | M23: 1.944906461 | N23: 1 | O23: 0.2801710377 | P23: 2.050106933 | Q23: 2.102377398 | R23: 0.04435675237 | S23: 0.03667365936 | T23: 0.08103041173 | U23: 0.9482568056 | V23: 0.002697572908 | W23: 0.002697572908 | X23: 0.5918148948 | Y23: 0.001050734609 | Z23: 0.001050734609 | AA23: 2.102377398 | AB23: 0.02519394712 | AC23: 0 | AD23: 0 | AE23: 0.02532153701 | AF23: 0 | AG23: 0 | AH23: 0 | AI23: 0 | AJ23: 1.112813276 | AK23: 0.002352871436 | AL23: 0.006405196454 | AM23: 0 | AN23: 0.008762191152 | AO23: 1.783714477 | AP23: 0.006045110937 | AQ23: 0.01936666667 | AR23: 0.0254425382 | AS23: 0.02519394712 | AT23: 0 | AU23: 0.032868 | AV23: 0.003095883468 | AW23: 0.499 | AX23: 0.0249 | AY23: 0.043824 | AZ23: 0.00504 | BA23: 0.068724 | BB23: 0.7479928691 | BC23: 11.62 | BD23: 0.9395218871 | BE23: 1.522753558 | BF23: 1.81444891 | BH23: 93.95218871 | BI23: 0.08103041173 | BJ23: 0.09239426636 | BK23: 0.03045507115 | BL23: 0.0362889782 | BM23: 0.003095883468
A24: Cout | B24: =Cout*1000000 -> 2500 | C24: μF | D24: Output Capcitance | G24: 15 | H24: 6 | I24: BOOST | J24: 2 | K24: 1.5 | L24: 2.161458333 | M24: 2.084462236 | N24: 1 | O24: 0.2803899376 | P24: 2.050995697 | Q24: 2.241082493 | R24: 0.05042712158 | S24: 0.03671030054 | T24: 0.08713742212 | U24: 1.006618914 | V24: 0.003039844916 | W24: 0.003039844916 | X24: 0.5920714589 | Y24: 0.001051645837 | Z24: 0.001051645837 | AA24: 2.241082493 | AB24: 0.02862796921 | AC24: 0 | AD24: 0 | AE24: 0.02879282524 | AF24: 0 | AG24: 0 | AH24: 0 | AI24: 0 | AJ24: 1.186694843 | AK24: 0.002675664834 | AL24: 0.006862710487 | AM24: 0 | AN24: 0.009543482353 | AO24: 1.901106544 | AP24: 0.006866991571 | AQ24: 0.02075 | AR24: 0.02765497286 | AS24: 0.02862796921 | AT24: 0 | AU24: 0.032868 | AV24: 0.003520611623 | AW24: 0.499 | AX24: 0.0249 | AY24: 0.043824 | AZ24: 0.00504 | BA24: 0.068724 | BB24: 0.7613328049 | BC24: 12.45 | BD24: 0.942372748 | BE24: 1.561818118 | BF24: 1.925070643 | BH24: 94.2372748 | BI24: 0.08713742212 | BJ24: 0.09885928045 | BK24: 0.03123636235 | BL24: 0.03850141286 | BM24: 0.003520611623
A25: RCoutEsr | B25: =CoutEsr*1000 -> 3 | C25: mW | D25: Output Capacitor ESR | G25: 16 | H25: 6 | I25: BOOST | J25: 2 | K25: 1.6 | L25: 2.305555556 | M25: 2.224103 | N25: 1 | O25: 0.2806088566 | P25: 2.051883487 | Q25: 2.380428233 | R25: 0.05692242367 | S25: 0.03674692223 | T25: 0.09366934589 | U25: 1.065560756 | V25: 0.003406259176 | W25: 0.003406259176 | X25: 0.5923277417 | Y25: 0.001052556461 | Z25: 0.001052556461 | AA25: 2.380428233 | AB25: 0.03229869987 | AC25: 0 | AD25: 0 | AE25: 0.0325086976 | AF25: 0 | AG25: 0 | AH25: 0 | AI25: 0 | AJ25: 1.260972977 | AK25: 0.003021100413 | AL25: 0.007320224519 | AM25: 0 | AN25: 0.01034757715 | AO25: 2.019006123 | AP25: 0.007745132877 | AQ25: 0.02213333333 | AR25: 0.02992482055 | AS25: 0.03229869987 | AT25: 0 | AU25: 0.032868 | AV25: 0.003975132122 | AW25: 0.499 | AX25: 0.0249 | AY25: 0.043824 | AZ25: 0.00504 | BA25: 0.068724 | BB25: 0.775476389 | BC25: 13.28 | BD25: 0.944827456 | BE25: 1.602022857 | BF25: 2.038563028 | BH25: 94.4827456 | BI25: 0.09366934589 | BJ25: 0.1056490953 | BK25: 0.03204045715 | BL25: 0.04077126055 | BM25: 0.003975132122 | BQ25: EFF_1 @ 25°C | BR25: Vin | BS25: Iout | BT25: Vout | BU25: Efficiency | BV25: Pdis
A26: Top Driver | B26: Input Value | C26: Units | D26: Description | G26: 17 | H26: 6 | I26: BOOST | J26: 2 | K26: 1.7 | L26: 2.449652778 | M26: 2.36382884 | N26: 1 | O26: 0.2808277945 | P26: 2.052770302 | Q26: 2.520308359 | R26: 0.06384396942 | S26: 0.03678352436 | T26: 0.1006274938 | U26: 1.125002612 | V26: 0.003796892629 | W26: 0.003796892629 | X26: 0.5925837433 | Y26: 0.001053466478 | Z26: 0.001053466478 | AA26: 2.520308359 | AB26: 0.03620613908 | AC26: 0 | AD26: 0 | AE26: 0.03647022831 | AF26: 0 | AG26: 0 | AH26: 0 | AI26: 0 | AJ26: 1.33559174 | AK26: 0.003389230062 | AL26: 0.007777738552 | AM26: 0 | AN26: 0.01117454323 | AO26: 2.137322841 | AP26: 0.008679482965 | AQ26: 0.02351666667 | AR26: 0.032252136 | AS26: 0.03620613908 | AT26: 0 | AU26: 0.032868 | AV26: 0.004459513239 | AW26: 0.499 | AX26: 0.0249 | AY26: 0.043824 | AZ26: 0.00504 | BA26: 0.068724 | BB26: 0.7904262737 | BC26: 14.11 | BD26: 0.9469527744 | BE26: 1.643371162 | BF26: 2.1549288 | BH26: 94.69527744 | BI26: 0.1006274938 | BJ26: 0.1127649075 | BK26: 0.03286742323 | BL26: 0.043098576 | BM26: 0.004459513239 | BQ26: Vin=10V | BR26: 9.998964 | BS26: 0.1027 | BT26: 5.121136 | BU26: 61.87068324 | BV26: 324.123657
A27: RdsonDRT | B27: =RdsonDRT -> 1.5 | C27: W | D27: Drain to Source Resistance of pullup Top FET Driver | G27: 18 | H27: 6 | I27: BOOST | J27: 2 | K27: 1.8 | L27: 2.59375 | M27: 2.503639846 | N27: 1 | O27: 0.2810467515 | P27: 2.053656143 | Q27: 2.660638587 | R27: 0.07119315788 | S27: 0.03682010686 | T27: 0.1080132647 | U27: 1.184880068 | V27: 0.004211822326 | W27: 0.004211822326 | X27: 0.5928394636 | Y27: 0.001054375889 | Z27: 0.001054375889 | AA27: 2.660638587 | AB27: 0.04035028684 | AC27: 0 | AD27: 0 | AE27: 0.0406785652 | AF27: 0 | AG27: 0 | AH27: 0 | AI27: 0 | AJ27: 1.410506755 | AK27: 0.00378010568 | AL27: 0.008235252584 | AM27: 0 | AN27: 0.012024449 | AO27: 2.255985015 | AP27: 0.009669989935 | AQ27: 0.0249 | AR27: 0.03463697778 | AS27: 0.04035028684 | AT27: 0 | AU27: 0.032868 | AV27: 0.004973823263 | AW27: 0.499 | AX27: 0.0249 | AY27: 0.043824 | AZ27: 0.00504 | BA27: 0.068724 | BB27: 0.8061852782 | BC27: 14.94 | BD27: 0.9488012326 | BE27: 1.68586645 | BF27: 2.274170889 | BH27: 94.88012326 | BI27: 0.1080132647 | BJ27: 0.120207992 | BK27: 0.033717329 | BL27: 0.04548341778 | BM27: 0.004973823263 | BQ27: Vout=5.1V | BR27: 9.998667 | BS27: 0.1166 | BT27: 5.121298 | BU27: 64.72942057 | BV27: 325.3788646
A28: RdsonDRT2 | B28: =RdsonDRT2 -> 1 | C28: W | D28: Drain to Source Resistance of pulldown Top FET Driver | G28: 19 | H28: 6 | I28: BOOST | J28: 2 | K28: 1.9 | L28: 2.737847222 | M28: 2.643536106 | N28: 1 | O28: 0.2812657275 | P28: 2.05454101 | Q28: 2.801351277 | R28: 0.07897147705 | S28: 0.03685666966 | T28: 0.1158281467 | U28: 1.245140611 | V28: 0.00465112542 | W28: 0.00465112542 | X28: 0.5930949025 | Y28: 0.00105528469 | Z28: 0.00105528469 | AA28: 2.801351277 | AB28: 0.04473114316 | AC28: 0 | AD28: 0 | AE28: 0.04513493057 | AF28: 0 | AG28: 0 | AH28: 0 | AI28: 0 | AJ28: 1.485682401 | AK28: 0.004193779175 | AL28: 0.008692766617 | AM28: 0 | AN28: 0.01289736353 | AO28: 2.37493511 | AP28: 0.01071660188 | AQ28: 0.02628333333 | AR28: 0.03707940826 | AS28: 0.04473114316 | AT28: 0 | AU28: 0.032868 | AV28: 0.005518130493 | AW28: 0.499 | AX28: 0.0249 | AY28: 0.043824 | AZ28: 0.00504 | BA28: 0.068724 | BB28: 0.8227563897 | BC28: 15.77 | BD28: 0.9504147249 | BE28: 1.729512177 | BF28: 2.396292413 | BH28: 95.04147249 | BI28: 0.1158281467 | BJ28: 0.1279797024 | BK28: 0.03459024353 | BL28: 0.04792584826 | BM28: 0.005518130493 | BQ28: L=3.3uH/30mOhm | BR28: 9.998766 | BS28: 0.1466 | BT28: 5.121323 | BU28: 69.88537692 | BV28: 323.5244619
A29: Bottom Driver | B29: Input Value | C29: Units | D29: Description | G29: 20 | H29: 6 | I29: BOOST | J29: 2 | K29: 2 | L29: 2.881944444 | M29: 2.78351771 | N29: 1 | O29: 0.2814847226 | P29: 2.055424901 | Q29: 2.942391557 | R29: 0.08718050464 | S29: 0.03689321269 | T29: 0.1240737173 | U29: 1.305741064 | V29: 0.005114879177 | W29: 0.005114879177 | X29: 0.59335006 | Y29: 0.001056192881 | Z29: 0.001056192881 | AA29: 2.942391557 | AB29: 0.04934870802 | AC29: 0 | AD29: 0 | AE29: 0.04984062209 | AF29: 0 | AG29: 0 | AH29: 0 | AI29: 0 | AJ29: 1.561089778 | AK29: 0.004630302462 | AL29: 0.009150280649 | AM29: 0 | AN29: 0.01379335659 | AO29: 2.494126456 | AP29: 0.01181926688 | AQ29: 0.02766666667 | AR29: 0.03957949367 | AS29: 0.04934870802 | AT29: 0 | AU29: 0.032868 | AV29: 0.00609250324 | AW29: 0.499 | AX29: 0.0249 | AY29: 0.043824 | AZ29: 0.00504 | BA29: 0.068724 | BB29: 0.840142765 | BC29: 16.6 | BD29: 0.9518270707 | BE29: 1.77431183 | BF29: 2.521296683 | BH29: 95.18270707 | BI29: 0.1240737173 | BJ29: 0.1360814723 | BK29: 0.03548623659 | BL29: 0.05042593367 | BM29: 0.00609250324 | BQ29: 4394 Top and Bottom Fets | BR29: 9.99879 | BS29: 0.1958 | BT29: 5.12176 | BU29: 75.66251657 | BV29: 322.5719977
A30: RdsonDRB | B30: =RdsonDRB -> 1.5 | C30: W | D30: Drain to Source Resistance of pullup Bottom FET Driver | G30: 21 | H30: 6 | I30: BOOST | J30: 2 | K30: 2.1 | L30: 3.026041667 | M30: 2.923584748 | N30: 1 | O30: 0.2817037366 | P30: 2.056307818 | Q30: 3.083714479 | R30: 0.09582190892 | S30: 0.03692973588 | T30: 0.1327516448 | U30: 1.366645646 | V30: 0.005603160966 | W30: 0.005603160966 | X30: 0.5936049361 | Y30: 0.00105710046 | Z30: 0.00105710046 | AA30: 3.083714479 | AB30: 0.05420298143 | AC30: 0 | AD30: 0 | AE30: 0.05479701374 | AF30: 0 | AG30: 0 | AH30: 0 | AI30: 0 | AJ30: 1.636705206 | AK30: 0.005089727469 | AL30: 0.009607794682 | AM30: 0 | AN30: 0.01471249867 | AO30: 2.613520816 | AP30: 0.01297793301 | AQ30: 0.02905 | AR30: 0.04213730403 | AS30: 0.05420298143 | AT30: 0 | AU30: 0.032868 | AV30: 0.006697009827 | AW30: 0.499 | AX30: 0.0249 | AY30: 0.043824 | AZ30: 0.00504 | BA30: 0.068724 | BB30: 0.8583477325 | BC30: 17.43 | BD30: 0.9530658677 | BE30: 1.820268934 | BF30: 2.649187202 | BH30: 95.30658677 | BI30: 0.1327516448 | BJ30: 0.1445148164 | BK30: 0.03640537867 | BL30: 0.05298374403 | BM30: 0.006697009827 | BR30: 9.998766 | BS30: 0.2681 | BT30: 5.122408 | BU30: 80.95755345 | BV30: 323.0250607
A31: RdsonDRB2 | B31: 1 | C31: W | D31: Drain to Source Resistance of pulldown Bottom FET Driver | G31: 22 | H31: 6 | I31: BOOST | J31: 2 | K31: 2.2 | L31: 3.170138889 | M31: 3.063737307 | N31: 1 | O31: 0.2819227697 | P31: 2.05718976 | Q31: 3.225282889 | R31: 0.1048974495 | S31: 0.03696623916 | T31: 0.1418636887 | U31: 1.427824484 | V31: 0.006116048268 | W31: 0.006116048268 | X31: 0.5938595307 | Y31: 0.001058007427 | Z31: 0.001058007427 | AA31: 3.225282889 | AB31: 0.05929396339 | AC31: 0 | AD31: 0 | AE31: 0.06000555685 | AF31: 0 | AG31: 0 | AH31: 0 | AI31: 0 | AJ31: 1.712509105 | AK31: 0.005572106128 | AL31: 0.01006530871 | AM31: 0 | AN31: 0.01565486095 | AO31: 2.733086585 | AP31: 0.01419254833 | AQ31: 0.03043333333 | AR31: 0.04475291324 | AS31: 0.05929396339 | AT31: 0 | AU31: 0.032868 | AV31: 0.00733171859 | AW31: 0.499 | AX31: 0.0249 | AY31: 0.043824 | AZ31: 0.00504 | BA31: 0.068724 | BB31: 0.877374794 | BC31: 18.26 | BD31: 0.9541538584 | BE31: 1.867387048 | BF31: 2.779967662 | BH31: 95.41538584 | BI31: 0.1418636887 | BJ31: 0.153281331 | BK31: 0.03734774095 | BL31: 0.05559935324 | BM31: 0.00733171859 | BR31: 9.998704 | BS31: 0.3655 | BT31: 5.123094 | BU31: 85.41902227 | BV31: 319.6330069
